Workbook

Sheet INDICE
B1: INFORME NACIONAL SOBRE EL ESTADO GENERAL QUE GUARDAN LAS HUMANIDADES, LAS CIENCIAS, LAS TECNOLOGÍAS Y LA INNOVACIÓN EN MÉXICO, 2022
B3: Í N D I C E
B4: ANEXO ESTADÍSTICO
B6: A.6 GASTO EN INVESTIGACION CIENTÍFICA Y DESARROLLO EXPERIMENTAL
B8: A.6.1 | C8: GIDE POR SECTOR DE EJECUCIÓN Y FUENTE DE LOS FONDOS, 2013-2022 (Miles de pesos)
B9: A.6.2 | C9: GIDE POR SECTOR DE EJECUCIÓN Y FUENTE DE LOS FONDOS, 2013-2022 (Miles de pesos de 2022)
B10: A.6.3 | C10: GIDE POR SECTOR DE EJECUCIÓN Y TIPO DE GASTO, 2013-2022 (Miles de pesos)
B11: A.6.4 | C11: GIDE POR SECTOR DE EJECUCIÓN Y TIPO DE GASTO, 2013-2020 (Miles de pesos de 2022)
B12: A.6.5 | C12: GIDE POR SECTOR DE EJECUCIÓN Y TIPO DE ACTIVIDAD, 2013-2022 (Miles de pesos)
B13: A.6.6 | C13: GIDE POR SECTOR DE EJECUCIÓN Y TIPO DE ACTIVIDAD, 2013-2022 (Miles de pesos de 2022)
B14: A.6.7 | C14: GIDE POR SECTOR DE EJECUCIÓN Y CAMPO DE LA CIENCIA, 2013-2022 (Miles de pesos)
B15: A.6.8 | C15: GIDE POR SECTOR DE EJECUCIÓN Y CAMPO DE LA CIENCIA, 2013-2022 (Miles de pesos de 2022)
B16: A.6.9 | C16: GIDESP POR INDUSTRIA, 2013-2022 (Miles de pesos)
B17: A.6.10 | C17: GIDESP POR INDUSTRIA, 2013-2022 (Miles de pesos de 2022)
B18: A.6.11 | C18: GIDE POR PAÍS, 2021
B19: A.6.12 | C19: FUENTES DE FINANCIAMIENTO DEL GIDE POR PAÍS, 2021
B20: A.6.13 | C20: GIDE EJECUTADO POR EL SECTOR GOBIERNO POR PAÍS, 2021
B21: A.6.14 | C21: GIDE EJECUTADO POR EL SECTOR INSTITUCIONES DE EDUCACIÓN SUPERIOR POR PAÍS, 2021
B22: A.6.15 | C22: GIDE EJECUTADO POR EL SECTOR EMPRESARIAL POR PAÍS, 2021
B23: A.6.16 | C23: GIDE POR PAÍS, 2013-2021
B24: A.6.17 | C24: GIDE PER CÁPITA POR PAÍS, 2013-2021
B25: A.6.18 | C25: GIDE COMO RELACIÓN DEL PIB POR PAÍS, 2013-2021
B26: A.6.19 | C26: GIDE FINANCIADO POR LAS EMPRESAS POR PAÍSES, 2013-2022
B27: A.6.20 | C27: GIDE FINANCIADO POR EL GOBIERNO POR PAÍSES, 2013-2021
B28: A.6.21 | C28: GIDE FINANCIADO POR OTROS SECTORES NACIONALES POR PAÍSES, 2013-2021
B29: A.6.22 | C29: GIDE EJECUTADO POR LAS EMPRESAS POR PAÍSES, 2013-2021
B30: A.6.23 | C30: GIDE EJECUTADO POR EL GOBIERNO POR PAÍSES, 2013-2021
B31: A.6.24 | C31: GIDE EJECUTADO POR INSTITUCIONES DE EDUCACIÓN SUPERIOR POR PAÍSES, 2013-2021
B32: A.6.25 | C32: GASTO EN INVESTIGACIÓN BÁSICA POR PAÍSES COMO PORCENTAJE DEL PIB, 2013-2021
B34: A.7 INVERSIÓN FEDERAL EN CIENCIA, TECNOLOGÍA E INNOVACIÓN
B36: A.7.1 | C36: GASTO FEDERAL EN CIENCIA, TECNOLOGÍA E INNOVACIÓN -GFCyT-, 2013-2022 (Millones de pesos)
B37: A.7.2 | C37: GFCyT POR RAMO ADMINISTRATIVO, 2013-2022 (Millones de pesos)
B38: A.7.3 | C38: GFCyT POR RAMO ADMINISTRATIVO, 2013-2022 (Millones de pesos de 2022)
B39: A.7.4 | C39: PARTICIPACIÓN DE LOS RAMOS ADMINISTRATIVOS Y PRINCIPALES ENTIDADES EN EL GFCyT, 2013-2022 (Millones de pesos)
B40: A.7.5 | C40: PARTICIPACIÓN DE LOS RAMOS ADMINISTRATIVOS Y PRINCIPALES ENTIDADES EN EL GFCyT, 2013-2022 (Millones de pesos a precios de 2022)
B41: A.7.6 | C41: GFCyT POR SECTOR DE ASIGNACIÓN, 2013-2022 (Millones de pesos)
B42: A.7.7 | C42: GFCyT POR SECTOR DE ASIGNACIÓN, 2013-2022 (Millones de pesos a precios de 2022)
B43: A.7.8 | C43: GFIDE POR SECTOR DE ASIGNACIÓN, 2013-2022 (Millones de pesos a precios de 2022)
B44: A.7.9 | C44: GFEECyT POR SECTOR DE ASIGNACIÓN, 2013-2022 (Millones de pesos a precios de 2022)
B45: A.7.10 | C45: GFSCyT POR SECTOR DE ASIGNACIÓN, 2013-2022 (Millones de pesos a precios de 2022)
B46: A.7.11 | C46: GFCyT POR TIPO DE ACTIVIDAD, 2013-2022 (Millones de pesos)
B47: A.7.12 | C47: GFCyT POR TIPO DE ACTIVIDAD, 2013-2022 (Millones de pesos a precios de 2022)
B48: A.7.13 | C48: PARTICIPACIÓN DE LOS RAMOS ADMINISTRATIVOS Y PRINCIPALES ENTIDADES EN EL GFIDE, 2013-2022 (Millones de pesos)
B49: A.7.14 | C49: PARTICIPACIÓN DE LOS RAMOS ADMINISTRATIVOS Y PRINCIPALES ENTIDADES EN EL GFIDE, 2013-2022 (Millones de pesos a precios de 2022)
B50: A.7.15 | C50: PARTICIPACIÓN DE LOS RAMOS ADMINISTRATIVOS Y PRINCIPALES ENTIDADES EN EL GFEECyT, 2013-2022 (Millones de pesos)
B51: A.7.16 | C51: PARTICIPACIÓN DE LOS RAMOS ADMINISTRATIVOS Y PRINCIPALES ENTIDADES EN EL GFEECyT, 2013-2022 (Millones de pesos a precios de 2022)
B52: A.7.17 | C52: PARTICIPACIÓN DE LOS RAMOS ADMINISTRATIVOS Y PRINCIPALES ENTIDADES EN EL GFSCyT, 2013-2022 (Millones de pesos)
B53: A.7.18 | C53: PARTICIPACIÓN DE LOS RAMOS ADMINISTRATIVOS Y PRINCIPALES ENTIDADES EN EL GFSCyT, 2013-2022 (Millones de pesos a precios de 2022)
B54: A.7.19 | C54: GFCyT POR OBJETIVO SOCIO-ECONÓMICO, 2013-2022 (Millones de pesos)
B55: A.7.20 | C55: GFCyT POR OBJETIVO SOCIO-ECONÓMICO, 2013-2022 (Millones de pesos a precios de 2022)
B56: A.7.21 | C56: GFIDE POR OBJETIVO SOCIO-ECONÓMICO, 2013-2022 (Millones de pesos)
B57: A.7.22 | C57: GFIDE POR OBJETIVO SOCIO-ECONÓMICO, 2013-2022 (Millones de pesos a precios de 2022)
B58: A.7.23 | C58: GFEECyT POR OBJETIVO SOCIO-ECONÓMICO, 2013-2022 (Millones de pesos)
B59: A.7.24 | C59: GFEECyT POR OBJETIVO SOCIO-ECONÓMICO, 2013-2022 (Millones de pesos a precios de 2022)
B60: A.7.25 | C60: GFSCyT POR OBJETIVO SOCIO-ECONÓMICO, 2013-2022 (Millones de pesos)
B61: A.7.26 | C61: GFSCyT POR OBJETIVO SOCIO-ECONÓMICO, 2013-2022 (Millones de pesos a precios de 2022)
B62: A.7.27 | C62: PARTICIPACIÓN DE LOS RAMOS ADMINISTRATIVOS Y PRINCIPALES ENTIDADES EN EL GFCyT POR ACTIVIDAD, 2022
B63: A.7.28 | C63: COMPARACIÓN INTERNACIONAL DE LAS ASIGNACIONES PRESUPUESTALES DEL GOBIERNO A LA IDE (GBARD), 2013-2022 (Millones de dólares de EUA PPP)
B64: A.7.29 | C64: PRESUPUESTO ADMINISTRADO POR EL RAMO 38 CONACYT, 2013-2022 (Millones de pesos)
B65: A.7.30 | C65: PRESUPUESTO ADMINISTRADO POR EL RAMO 38 CONACYT, 2013-2022 (Millones de pesos a precios de 2022)
B66: A.7.31 | C66: PRESUPUESTO ADMINISTRADO POR EL CONAHCYT, 2012-2022 (Millones de pesos)
B67: A.7.32 | C67: PRESUPUESTO ADMINISTRADO POR EL CONAHCYT POR ACTIVIDAD, 2013-2022 (Millones de pesos)
B68: A.7.33 | C68: PRESUPUESTO ADMINISTRADO POR EL CONAHCYT POR ACTIVIDAD, 2013-2022 (Millones de pesos a precios de 2022)
B70: A.8 PRESUPUESTO ESTATAL EN CIENCIA, TECNOLOGÍA E INNOVACIÓN
B72: A.8.1 | C72: PRESUPUESTO ESTATAL EN CIENCIA, TECNOLOGÍA E INNOVACIÓN, 2009-2022 (Millones de pesos)
B73: A.8.2 | C73: PRESUPUESTO ESTATAL EN CIENCIA, TECNOLOGÍA E INNOVACIÓN, 2009-2022 (Millones de pesos a precios de 2022)
B74: A.8.3 | C74: PRESUPUESTO DE EGRESO ESTATAL 2009-2022 (Millones de pesos)
B75: A.8.4 | C75: PRESUPUESTO DE EGRESO ESTATAL 2009-2022 (Millones de pesos a precios de 2022)
B76: A.8.5 | C76: PROPORCIÓN DEL PRESUPUESTO ESTATAL DESTINADO A CIENCIA, TECNOLOGÍA E INNOVACIÓN, 2009-2022
B78: A.9 GASTO NACIONAL EN CIENCIA, TECNOLOGÍA E INNOVACIÓN
B80: A.9.1 | C80: GASTO NACIONAL EN CIENCIA, TECNOLOGÍA E INNOVACIÓN, POR SECTOR DE FINANCIAMIENTO, 2014-2022 (Millones de pesos)
B81: A.9.2 | C81: GASTO NACIONAL EN CIENCIA, TECNOLOGÍA E INNOVACIÓN, POR SECTOR DE FINANCIAMIENTO, 2014-2022 (Millones de pesos a precios de 2022)
B82: A.9.3 | C82: GASTO NACIONAL EN CIENCIA, TECNOLOGÍA E INNOVACIÓN, POR TIPO DE ACTIVIDAD, 2014-2022 (Millones de pesos)
B83: A.9.4 | C83: GASTO NACIONAL EN CIENCIA, TECNOLOGÍA E INNOVACIÓN, POR TIPO DE ACTIVIDAD, 2014-2022 (Millones de pesos a precios de 2022)

Sheet A.6.1
B5: A.6.1 GIDE POR SECTOR DE EJECUCIÓN Y FUENTE DE LOS FONDOS, 2013-2022
B6: Miles de pesos
B8: Sector de ejecución
B9: Sector de financiamiento | D9: 2013 | E9: 2014 | F9: 2015 | G9: 2016 | H9: 2017e/ | I9: 2018e/ | J9: 2019e/ | K9: 2020e/ | L9: 2021e/ | M9: 2022e/
B10: Productivo
C11: Productivo | D11: 13,799,410 | E11: 11,288,764 | F11: 12,902,295 | G11: 13,717,251 | H11: 12,836,089 | I11: 11,800,679 | J11: 11,791,160 | K11: 11,557,173 | L11: 11,618,004 | M11: 11,406,098
C12: Gobierno | D12: 3,668,931 | E12: 2,202,165 | F12: 1,672,104 | G12: 3,259,393 | H12: 2,975,618 | I12: 3,031,035 | J12: 2,866,260 | K12: 2,919,025 | L12: 3,036,794 | M12: 3,219,851
C13: Educación superior | D13: 10,270 | E13: 14,889 | F13: 50,236 | G13: 62,299 | H13: 65,075 | I13: 68,248 | J13: 77,222 | K13: 77,324 | L13: 82,239 | M13: 89,460
C14: Privado no lucrativo | D14: 6,775 | E14: 1,084 | F14: 47,203 | G14: 82,666 | H14: 89,708 | I14: 93,295 | J14: 99,834 | K14: 104,664 | L14: 113,839 | M14: 123,436
C15: Fondos del exterior | D15: 124,918 | E15: 87,171 | F15: 171,145 | G15: 224,587 | H15: 245,244 | I15: 260,390 | J15: 302,238 | K15: 351,707 | L15: 404,371 | M15: 454,603
B16: Total sector productivo | D16: 17,610,304 | E16: 13,594,074 | F16: 14,842,983 | G16: 17,346,195 | H16: 16,211,734 | I16: 15,253,647 | J16: 15,136,716 | K16: 15,009,893 | L16: 15,255,247 | M16: 15,293,447
B18: Gobierno
C19: Productivo | D19: 193,122 | E19: 431,628 | F19: 650,399 | G19: 647,172 | H19: 605,599 | I19: 556,749 | J19: 556,300 | K19: 545,261 | L19: 548,131 | M19: 538,133
C20: Gobierno | D20: 28,519,967 | E20: 24,002,145 | F20: 23,190,500 | G20: 19,770,040 | H20: 18,048,789 | I20: 18,384,920 | J20: 17,385,473 | K20: 17,705,520 | L20: 18,419,854 | M20: 19,530,194
C21: Educación superior | D21: 98,708 | E21: 37,050 | F21: 16,069 | G21: 23,872 | H21: 24,936 | I21: 26,152 | J21: 29,590 | K21: 29,629 | L21: 31,513 | M21: 34,280
C22: Privado no lucrativo | D22: 16,168 | E22: 17,483 | F22: 16,429 | G22: 20,119 | H22: 21,833 | I22: 22,706 | J22: 24,298 | K22: 25,473 | L22: 27,706 | M22: 30,042
C23: Fondos del exterior | D23: 90,445 | E23: 116,844 | F23: 148,008 | G23: 131,354 | H23: 143,436 | I23: 152,294 | J23: 176,770 | K23: 205,703 | L23: 236,504 | M23: 265,883
B24: Total sector gobierno | D24: 28,918,410 | E24: 24,605,150 | F24: 24,021,405 | G24: 20,592,557 | H24: 18,844,592 | I24: 19,142,821 | J24: 18,172,430 | K24: 18,511,586 | L24: 19,263,708 | M24: 20,398,531
B26: Educación superior
C27: Productivo | D27: 139,033 | E27: 87,792 | F27: 130,100 | G27: 138,744 | H27: 129,831 | I27: 119,359 | J27: 119,262 | K27: 116,896 | L27: 117,511 | M27: 115,368
C28: Gobierno | D28: 18,507,307 | E28: 16,027,271 | F28: 18,363,211 | G28: 17,817,078 | H28: 16,265,859 | I28: 16,568,786 | J28: 15,668,068 | K28: 15,956,500 | L28: 16,600,269 | M28: 17,600,925
C29: Fondos del gobierno a universidades públicas | D29: 2,298,845 | E29: 19,464,252 | F29: 20,199,326 | G29: 19,583,810 | H29: 17,878,772 | I29: 18,211,738 | J29: 17,221,704 | K29: 17,538,737 | L29: 18,246,342 | M29: 19,346,223
C30: Subtotal gobierno | D30: 20,806,152 | E30: 35,491,523 | F30: 38,562,536 | G30: 37,400,888 | H30: 34,144,631 | I30: 34,780,524 | J30: 32,889,772 | K30: 33,495,238 | L30: 34,846,611 | M30: 36,947,148
C31: Educación superior | D31: 941,855 | E31: 1,440,805 | F31: 1,320,480 | G31: 1,654,991 | H31: 1,728,727 | I31: 1,813,030 | J31: 2,051,422 | K31: 2,054,120 | L31: 2,184,714 | M31: 2,376,519
C32: Privado no lucrativo | D32: 80,708 | E32: 94,083 | F32: 92,566 | G32: 101,486 | H32: 110,132 | I32: 114,536 | J32: 122,564 | K32: 128,493 | L32: 139,756 | M32: 151,538
C33: Fondos del exterior | D33: 12,866 | E33: 35,016 | F33: 40,437 | G33: 48,502 | H33: 52,963 | I33: 56,234 | J33: 65,272 | K33: 75,955 | L33: 87,328 | M33: 98,176
B34: Total sector educación superior | D34: 21,980,614 | E34: 37,149,219 | F34: 40,146,119 | G34: 39,344,611 | H34: 36,166,284 | I34: 36,883,683 | J34: 35,248,292 | K34: 35,870,701 | L34: 37,375,921 | M34: 39,688,750
B36: Privado no lucrativo
C37: Productivo | D37: 83,042 | E37: 162,552 | F37: 186,257 | G37: 159,595 | H37: 149,343 | I37: 137,296 | J37: 137,186 | K37: 134,463 | L37: 135,171 | M37: 132,706
C38: Gobierno | D38: 146,230 | E38: 171,941 | F38: 131,798 | G38: 140,872 | H38: 128,607 | I38: 131,002 | J38: 123,881 | K38: 126,161 | L38: 131,251 | M38: 139,163
C39: Educación superior | D39: 2,028 | E39: 2,566 | F39: 2,636 | G39: 2,710 | H39: 2,831 | I39: 2,969 | J39: 3,359 | K39: 3,364 | L39: 3,577 | M39: 3,891
C40: Privado no lucrativo | D40: 365,796 | E40: 282,041 | F40: 281,107 | G40: 311,829 | H40: 338,394 | I40: 351,927 | J40: 376,593 | K40: 394,811 | L40: 429,419 | M40: 465,622
C41: Fondos del exterior | D41: 76,208 | E41: 141,798 | F41: 141,375 | G41: 157,283 | H41: 171,750 | I41: 182,356 | J41: 211,664 | K41: 246,308 | L41: 283,190 | M41: 318,368
B42: Total sector privado no lucrativo | D42: 673,304 | E42: 760,898 | F42: 743,173 | G42: 772,289 | H42: 790,925 | I42: 805,550 | J42: 852,683 | K42: 905,108 | L42: 982,608 | M42: 1,059,750
B44: Total
C45: Productivo | D45: 14,214,607 | E45: 11,970,736 | F45: 13,869,051 | G45: 14,662,762 | H45: 13,720,863 | I45: 12,614,084 | J45: 12,603,909 | K45: 12,353,793 | L45: 12,418,817 | M45: 12,192,305
C46: Gobierno | D46: 53,141,280 | E46: 61,867,774 | F46: 63,556,938 | G46: 60,571,193 | H46: 55,297,645 | I46: 56,327,482 | J46: 53,265,386 | K46: 54,245,945 | L46: 56,434,511 | M46: 59,836,356
C47: Educación superior | D47: 1,052,861 | E47: 1,495,310 | F47: 1,389,421 | G47: 1,743,872 | H47: 1,821,568 | I47: 1,910,398 | J47: 2,161,594 | K47: 2,164,436 | L47: 2,302,044 | M47: 2,504,150
C48: Privado no lucrativo | D48: 469,447 | E48: 394,691 | F48: 437,305 | G48: 516,100 | H48: 560,067 | I48: 582,464 | J48: 623,289 | K48: 653,441 | L48: 710,719 | M48: 770,638
C49: Fondos del exterior | D49: 304,437 | E49: 380,829 | F49: 500,965 | G49: 561,726 | H49: 613,393 | I49: 651,274 | J49: 755,944 | K49: 879,673 | L49: 1,011,393 | M49: 1,137,030
B50: Total GIDE | D50: 69,182,632 | E50: 76,109,341 | F50: 79,753,681 | G50: 78,055,652 | H50: 72,013,536 | I50: 72,085,701 | J50: 69,410,121 | K50: 70,297,288 | L50: 72,877,484 | M50: 76,440,478
B51: e/ Cifras estimadas
B52: n.d. No disponible
B53: Los totales pueden no coincidir debido al redondeo de la cifras.
B54: Las cifras del GIDE de 2007 a 2020 fueron calculadas contabilizando el gasto en becas de doctorado registrados en el SNP y, a partir de 2014, se contabiliza el pago a personal adscrito en el Programa de Investigadoras e Investigadores por México.
B55: Fuente: Datos calculados por el Conacyt con base en información proveniente de la Encuesta sobre Investigación y Desarrollo Tecnológico (ESIDET), 2008, 2010, 2012, 2014, 2017 levantada en colaboración con el INEGI y Conacyt; Datos de la Cuenta de la Hacienda Pública Federal.

Sheet A.6.2
B5: A.6.2 GIDE POR SECTOR DE EJECUCIÓN Y FUENTE DE LOS FONDOS, 2013-2022
B6: Miles de pesos a precios de 2022
B8: Sector de ejecución
B9: Sector de financiamiento | D9: 2013 | E9: 2014 | F9: 2015 | G9: 2016 | H9: 2017e/ | I9: 2018e/ | J9: 2019e/ | K9: 2020e/ | L9: 2021e/ | M9: 2022e/
B10: Productivo
C11: Productivo | D11: 21,535,322 | E11: 16,881,668 | F11: 18,692,694 | G11: 18,739,061 | H11: 16,449,684 | I11: 14,375,455 | J11: 13,771,695 | K11: 12,878,984 | L11: 12,397,795 | M11: 11,406,098
C12: Gobierno | D12: 5,725,723 | E12: 3,293,206 | F12: 2,422,525 | G12: 4,452,639 | H12: 3,813,309 | I12: 3,692,372 | J12: 3,347,700 | K12: 3,252,879 | L12: 3,240,621 | M12: 3,219,851
C13: Educación superior | D13: 16,027 | E13: 22,266 | F13: 72,781 | G13: 85,106 | H13: 83,394 | I13: 83,139 | J13: 90,193 | K13: 86,167 | L13: 87,759 | M13: 89,460
C14: Privado no lucrativo | D14: 10,573 | E14: 1,622 | F14: 68,388 | G14: 112,929 | H14: 114,962 | I14: 113,651 | J14: 116,603 | K14: 116,635 | L14: 121,479 | M14: 123,436
C15: Fondos del exterior | D15: 194,947 | E15: 130,360 | F15: 247,953 | G15: 306,807 | H15: 314,285 | I15: 317,204 | J15: 353,005 | K15: 391,933 | L15: 431,512 | M15: 454,603
B16: Total sector productivo | D16: 27,482,593 | E16: 20,329,121 | F16: 21,504,341 | G16: 23,696,542 | H16: 20,775,636 | I16: 18,581,821 | J16: 17,679,195 | K16: 16,726,597 | L16: 16,279,166 | M16: 15,293,447
M17: 0
B18: Gobierno | M18: 0
C19: Productivo | D19: 301,386 | E19: 645,474 | F19: 942,290 | G19: 884,098 | H19: 776,087 | I19: 678,226 | J19: 649,741 | K19: 607,623 | L19: 584,921 | M19: 538,133
C20: Gobierno | D20: 44,508,184 | E20: 35,893,765 | F20: 33,598,126 | G20: 27,007,743 | H20: 23,129,854 | I20: 22,396,303 | J20: 20,305,671 | K20: 19,730,528 | L20: 19,656,179 | M20: 19,530,194
C21: Educación superior | D21: 154,043 | E21: 55,406 | F21: 23,281 | G21: 32,611 | H21: 31,955 | I21: 31,858 | J21: 34,560 | K21: 33,018 | L21: 33,628 | M21: 34,280
C22: Privado no lucrativo | D22: 25,232 | E22: 26,145 | F22: 23,802 | G22: 27,484 | H22: 27,979 | I22: 27,660 | J22: 28,379 | K22: 28,386 | L22: 29,565 | M22: 30,042
C23: Fondos del exterior | D23: 141,148 | E23: 174,733 | F23: 214,432 | G23: 179,442 | H23: 183,816 | I23: 185,523 | J23: 206,462 | K23: 229,229 | L23: 252,378 | M23: 265,883
B24: Total sector gobierno | D24: 45,129,993 | E24: 36,795,523 | F24: 34,801,931 | G24: 28,131,379 | H24: 24,149,691 | I24: 23,319,569 | J24: 21,224,812 | K24: 20,628,784 | L24: 20,556,671 | M24: 20,398,531
M25: 0
B26: Educación superior | M26: 0
C27: Productivo | D27: 216,975 | E27: 131,288 | F27: 188,487 | G27: 189,537 | H27: 166,381 | I27: 145,401 | J27: 139,295 | K27: 130,265 | L27: 125,398 | M27: 115,368
C28: Gobierno | D28: 28,882,455 | E28: 23,967,821 | F28: 26,604,406 | G28: 24,339,813 | H28: 20,844,997 | I28: 20,183,909 | J28: 18,299,798 | K28: 17,781,469 | L28: 17,714,465 | M28: 17,600,925
C29: Fondos del gobierno a universidades públicas | D29: 3,587,571 | E29: 29,107,620 | F29: 29,264,548 | G29: 26,753,334 | H29: 22,911,975 | I29: 22,185,334 | J29: 20,114,395 | K29: 19,544,669 | L29: 19,471,021 | M29: 19,346,223
C30: Subtotal gobierno | D30: 32,470,026 | E30: 53,075,441 | F30: 55,868,954 | G30: 51,093,147 | H30: 43,756,972 | I30: 42,369,243 | J30: 38,414,192 | K30: 37,326,139 | L30: 37,185,486 | M30: 36,947,148
C31: Educación superior | D31: 1,469,856 | E31: 2,154,637 | F31: 1,913,096 | G31: 2,260,874 | H31: 2,215,396 | I31: 2,208,613 | J31: 2,395,995 | K31: 2,289,052 | L31: 2,331,351 | M31: 2,376,519
C32: Privado no lucrativo | D32: 125,953 | E32: 140,695 | F32: 134,109 | G32: 138,639 | H32: 141,136 | I32: 139,526 | J32: 143,151 | K32: 143,189 | L32: 149,136 | M32: 151,538
C33: Fondos del exterior | D33: 20,079 | E33: 52,364 | F33: 58,585 | G33: 66,258 | H33: 67,873 | I33: 68,504 | J33: 76,235 | K33: 84,642 | L33: 93,190 | M33: 98,176
B34: Total sector educación superior | D34: 34,302,888 | E34: 55,554,426 | F34: 58,163,230 | G34: 53,748,456 | H34: 46,347,759 | I34: 44,931,287 | J34: 41,168,868 | K34: 39,973,287 | L34: 39,884,561 | M34: 39,688,750
M35: 0
B36: Privado no lucrativo | M36: 0
C37: Productivo | D37: 129,595 | E37: 243,087 | F37: 269,847 | G37: 218,022 | H37: 191,386 | I37: 167,253 | J37: 160,228 | K37: 149,842 | L37: 144,244 | M37: 132,706
C38: Gobierno | D38: 228,206 | E38: 257,127 | F38: 190,947 | G38: 192,444 | H38: 164,812 | I38: 159,586 | J38: 144,689 | K38: 140,590 | L38: 140,061 | M38: 139,163
C39: Educación superior | D39: 3,165 | E39: 3,837 | F39: 3,819 | G39: 3,702 | H39: 3,628 | I39: 3,617 | J39: 3,923 | K39: 3,748 | L39: 3,818 | M39: 3,891
C40: Privado no lucrativo | D40: 570,860 | E40: 421,775 | F40: 407,265 | G40: 425,988 | H40: 433,658 | I40: 428,713 | J40: 439,849 | K40: 439,967 | L40: 458,241 | M40: 465,622
C41: Fondos del exterior | D41: 118,930 | E41: 212,050 | F41: 204,822 | G41: 214,863 | H41: 220,100 | I41: 222,144 | J41: 247,217 | K41: 274,479 | L41: 302,197 | M41: 318,368
B42: Total sector privado no lucrativo | D42: 1,050,756 | E42: 1,137,877 | F42: 1,076,700 | G42: 1,055,020 | H42: 1,013,585 | I42: 981,312 | J42: 995,906 | K42: 1,008,626 | L42: 1,048,560 | M42: 1,059,750
M43: 0
B44: Total | M44: 0
C45: Productivo | D45: 22,183,277 | E45: 17,901,516 | F45: 20,093,319 | G45: 20,030,718 | H45: 17,583,538 | I45: 15,366,335 | J45: 14,720,958 | K45: 13,766,715 | L45: 13,252,357 | M45: 12,192,305
C46: Gobierno | D46: 82,932,140 | E46: 92,519,540 | F46: 92,080,552 | G46: 82,745,973 | H46: 70,864,949 | I46: 68,617,504 | J46: 62,212,252 | K46: 60,450,135 | L46: 60,222,347 | M46: 59,836,356
C47: Educación superior | D47: 1,643,092 | E47: 2,236,146 | F47: 2,012,977 | G47: 2,382,294 | H47: 2,334,373 | I47: 2,327,226 | J47: 2,524,672 | K47: 2,411,986 | L47: 2,456,555 | M47: 2,504,150
C48: Privado no lucrativo | D48: 732,618 | E48: 590,237 | F48: 633,563 | G48: 705,041 | H48: 717,736 | I48: 709,551 | J48: 727,981 | K48: 728,176 | L48: 758,422 | M48: 770,638
C49: Fondos del exterior | D49: 475,104 | E49: 569,507 | F49: 725,793 | G49: 767,371 | H49: 786,074 | I49: 793,374 | J49: 882,918 | K49: 980,283 | L49: 1,079,277 | M49: 1,137,030
B50: Total GIDE | D50: 107,966,231 | E50: 113,816,947 | F50: 115,546,203 | G50: 106,631,396 | H50: 92,286,670 | I50: 87,813,989 | J50: 81,068,781 | K50: 78,337,295 | L50: 77,768,959 | M50: 76,440,478
B51: e/ Cifras estimadas
B52: n.d. No disponible
B53: Los totales pueden no coincidir debido al redondeo de la cifras.
B54: Las cifras del GIDE de 2007 a 2020 fueron calculadas contabilizando el gasto en becas de doctorado registrados en el SNP y, a partir de 2014, se contabiliza el pago a personal adscrito en el Programa de Investigadoras e Investigadores por México.
B55: Fuente: Datos calculados por el Conacyt con base en información proveniente de la Encuesta sobre Investigación y Desarrollo Tecnológico (ESIDET), 2008, 2010, 2012, 2014, 2017 levantada en colaboración con el INEGI y Conacyt; Datos de la Cuenta de la Hacienda Pública Federal.

Sheet A.6.3
B5: A.6.3 GIDE POR SECTOR DE EJECUCIÓN Y TIPO DE GASTO, 2013-2022
B6: Miles de pesos
B8: Sector de ejecución
C9: Tipo de gasto | D9: 2013 | E9: 2014 | F9: 2015 | G9: 2016 | H9: 2017e/ | I9: 2018e/ | J9: 2019e/ | K9: 2020e/ | L9: 2021e/ | M9: 2022e/
B10: Productivo
C11: Costos laborales | D11: 4,777,268 | E11: 6,071,018 | F11: 6,576,351 | G11: 6,258,780 | H11: 5,849,448 | I11: 5,503,755 | J11: 5,461,565 | K11: 5,415,805 | L11: 5,504,333 | M11: 5,518,116
C12: Otros costos corrientes | D12: 6,481,021 | E12: 5,568,521 | F12: 6,030,175 | G12: 7,867,019 | H12: 7,352,507 | I12: 6,917,986 | J12: 6,864,954 | K12: 6,807,437 | L12: 6,918,712 | M12: 6,936,037
C13: Subtotal gasto corriente | D13: 11,258,289 | E13: 11,639,539 | F13: 12,606,526 | G13: 14,125,799 | H13: 13,201,956 | I13: 12,421,741 | J13: 12,326,519 | K13: 12,223,242 | L13: 12,423,044 | M13: 12,454,152
C14: Terrenos y edificios | D14: 1,062,621 | E14: 173,445 | F14: 122,056 | G14: 309,464 | H14: 289,225 | I14: 272,132 | J14: 270,046 | K14: 267,783 | L14: 272,161 | M14: 272,842
C15: Instrumentos y equipo | D15: 5,289,393 | E15: 1,781,090 | F15: 2,114,401 | G15: 2,910,932 | H15: 2,720,554 | I15: 2,559,774 | J15: 2,540,151 | K15: 2,518,868 | L15: 2,560,042 | M15: 2,566,453
C16: Subtotal gasto de capital | D16: 6,352,015 | E16: 1,954,535 | F16: 2,236,457 | G16: 3,220,396 | H16: 3,009,779 | I16: 2,831,906 | J16: 2,810,197 | K16: 2,786,652 | L16: 2,832,203 | M16: 2,839,295
B17: Total sector productivo | D17: 17,610,304 | E17: 13,594,074 | F17: 14,842,983 | G17: 17,346,195 | H17: 16,211,734 | I17: 15,253,647 | J17: 15,136,716 | K17: 15,009,893 | L17: 15,255,247 | M17: 15,293,447
B19: Gobierno
C20: Costos laborales | D20: 14,979,859 | E20: 11,100,051 | F20: 11,692,218 | G20: 10,545,600 | H20: 9,650,454 | I20: 9,803,180 | J20: 9,306,235 | K20: 9,479,919 | L20: 9,865,086 | M20: 10,446,238
C21: Otros costos corrientes | D21: 10,813,888 | E21: 9,092,465 | F21: 9,740,204 | G21: 8,008,574 | H21: 7,328,780 | I21: 7,444,763 | J21: 7,067,372 | K21: 7,199,272 | L21: 7,491,776 | M21: 7,933,117
C22: Subtotal gasto corriente | D22: 25,793,747 | E22: 20,192,516 | F22: 21,432,423 | G22: 18,554,174 | H22: 16,979,234 | I22: 17,247,943 | J22: 16,373,607 | K22: 16,679,191 | L22: 17,356,863 | M22: 18,379,355
C23: Terrenos y edificios | D23: 734,319 | E23: 1,333,919 | F23: 297,100 | G23: 271,102 | H23: 248,090 | I23: 252,016 | J23: 239,241 | K23: 243,706 | L23: 253,607 | M23: 268,547
C24: Instrumentos y equipo | D24: 2,390,343 | E24: 3,078,715 | F24: 2,291,882 | G24: 1,767,281 | H24: 1,617,268 | I24: 1,642,863 | J24: 1,559,583 | K24: 1,588,689 | L24: 1,653,238 | M24: 1,750,630
C25: Subtotal gasto de capital | D25: 3,124,662 | E25: 4,412,633 | F25: 2,588,982 | G25: 2,038,383 | H25: 1,865,358 | I25: 1,894,879 | J25: 1,798,823 | K25: 1,832,395 | L25: 1,906,845 | M25: 2,019,177
B26: Total sector gobierno | D26: 28,918,410 | E26: 24,605,150 | F26: 24,021,405 | G26: 20,592,557 | H26: 18,844,592 | I26: 19,142,821 | J26: 18,172,430 | K26: 18,511,586 | L26: 19,263,708 | M26: 20,398,531
B28: Educación superior
C29: Costos laborales | D29: 13,101,526 | E29: 23,986,830 | F29: 25,909,140 | G29: 24,818,661 | H29: 22,813,766 | I29: 23,266,302 | J29: 22,234,694 | K29: 22,627,311 | L29: 23,576,807 | M29: 25,035,744
C30: Otros costos corrientes | D30: 5,888,648 | E30: 9,471,246 | F30: 9,677,883 | G30: 10,570,138 | H30: 9,716,263 | I30: 9,908,996 | J30: 9,469,640 | K30: 9,636,853 | L30: 10,041,239 | M30: 10,662,592
C31: Subtotal gasto corriente | D31: 18,990,174 | E31: 33,458,076 | F31: 35,587,023 | G31: 35,388,798 | H31: 32,530,029 | I31: 33,175,298 | J31: 31,704,334 | K31: 32,264,165 | L31: 33,618,046 | M31: 35,698,337
C32: Terrenos y edificios | D32: 421,193 | E32: 512,475 | F32: 399,829 | G32: 279,025 | H32: 256,485 | I32: 261,573 | J32: 249,975 | K32: 254,389 | L32: 265,063 | M32: 281,466
C33: Instrumentos y equipo | D33: 2,569,247 | E33: 3,178,668 | F33: 4,159,267 | G33: 3,676,788 | H33: 3,379,770 | I33: 3,446,812 | J33: 3,293,983 | K33: 3,352,148 | L33: 3,492,812 | M33: 3,708,948
C34: Subtotal gasto de capital | D34: 2,990,440 | E34: 3,691,143 | F34: 4,559,096 | G34: 3,955,813 | H34: 3,636,255 | I34: 3,708,384 | J34: 3,543,958 | K34: 3,606,537 | L34: 3,757,875 | M34: 3,990,413
B35: Total sector educación superior | D35: 21,980,614 | E35: 37,149,219 | F35: 40,146,119 | G35: 39,344,611 | H35: 36,166,284 | I35: 36,883,683 | J35: 35,248,292 | K35: 35,870,701 | L35: 37,375,921 | M35: 39,688,750
B37: Privado no lucrativo
C38: Costos laborales | D38: 285,875 | E38: 318,066 | F38: 308,374 | G38: 355,827 | H38: 364,413 | I38: 371,152 | J38: 392,868 | K38: 417,022 | L38: 452,730 | M38: 488,273
C39: Otros costos corrientes | D39: 298,589 | E39: 394,905 | F39: 389,781 | G39: 373,218 | H39: 382,224 | I39: 389,292 | J39: 412,069 | K39: 437,404 | L39: 474,857 | M39: 512,137
C40: Subtotal gasto corriente | D40: 584,464 | E40: 712,971 | F40: 698,155 | G40: 729,045 | H40: 746,637 | I40: 760,444 | J40: 804,937 | K40: 854,426 | L40: 927,587 | M40: 1,000,409
C41: Terrenos y edificios | D41: 33,559 | E41: 20,568 | F41: 17,447 | G41: 9,169 | H41: 9,390 | I41: 9,564 | J41: 10,123 | K41: 10,746 | L41: 11,666 | M41: 12,582
C42: Instrumentos y equipo | D42: 55,281 | E42: 27,359 | F42: 27,571 | G42: 34,075 | H42: 34,897 | I42: 35,543 | J42: 37,622 | K42: 39,935 | L42: 43,355 | M42: 46,758
C43: Subtotal gasto de capital | D43: 88,840 | E43: 47,927 | F43: 45,018 | G43: 43,244 | H43: 44,288 | I43: 45,106 | J43: 47,746 | K43: 50,681 | L43: 55,021 | M43: 59,340
B44: Total sector privado no lucrativo | D44: 673,304 | E44: 760,898 | F44: 743,173 | G44: 772,289 | H44: 790,925 | I44: 805,550 | J44: 852,683 | K44: 905,108 | L44: 982,608 | M44: 1,059,750
B46: Total
C47: Costos laborales | D47: 33,144,528 | E47: 41,475,965 | F47: 44,486,084 | G47: 41,978,867 | H47: 38,678,082 | I47: 38,944,389 | J47: 37,395,362 | K47: 37,940,058 | L47: 39,398,956 | M47: 41,488,370
C48: Otros costos corrientes | D48: 23,482,146 | E48: 24,527,137 | F48: 25,838,043 | G48: 26,818,949 | H48: 24,779,775 | I48: 24,661,037 | J48: 23,814,035 | K48: 24,080,966 | L48: 24,926,584 | M48: 26,043,882
C49: Subtotal gasto corriente | D49: 56,626,674 | E49: 66,003,103 | F49: 70,324,127 | G49: 68,797,816 | H49: 63,457,856 | I49: 63,605,426 | J49: 61,209,398 | K49: 62,021,024 | L49: 64,325,541 | M49: 67,532,253
C50: Terrenos y edificios | D50: 2,251,693 | E50: 2,040,406 | F50: 836,432 | G50: 868,760 | H50: 803,189 | I50: 795,284 | J50: 769,385 | K50: 776,623 | L50: 802,497 | M50: 835,437
C51: Instrumentos y equipo | D51: 10,304,264 | E51: 8,065,832 | F51: 8,593,122 | G51: 8,389,076 | H51: 7,752,490 | I51: 7,684,991 | J51: 7,431,339 | K51: 7,499,641 | L51: 7,749,446 | M51: 8,072,788
C52: Subtotal gasto de capital | D52: 12,555,958 | E52: 10,106,238 | F52: 9,429,553 | G52: 9,257,836 | H52: 8,555,679 | I52: 8,480,275 | J52: 8,200,723 | K52: 8,276,264 | L52: 8,551,944 | M52: 8,908,225
B53: Total GIDE | D53: 69,182,632 | E53: 76,109,341 | F53: 79,753,681 | G53: 78,055,652 | H53: 72,013,536 | I53: 72,085,701 | J53: 69,410,121 | K53: 70,297,288 | L53: 72,877,484 | M53: 76,440,478
B54: e/ Cifras estimadas
B55: n.d. No disponible
B56: Los totales pueden no coincidir debido al redondeo de la cifras.
B57: Las cifras del GIDE de 2007 a 2020 fueron calculadas contabilizando el gasto en becas de doctorado registrados en el SNP y, a partir de 2014, se contabiliza el pago a personal adscrito en el Programa de Investigadoras e Investigadores por México.
B58: Fuente: Datos calculados por el Conacyt con base en información proveniente de la Encuesta sobre Investigación y Desarrollo Tecnológico (ESIDET), 2008, 2010, 2012, 2014, 2017 levantada en colaboración con el INEGI y Conacyt; Datos de la Cuenta de la Hacienda Pública Federal.

Sheet A.6.4
B5: A.6.4 GIDE POR SECTOR DE EJECUCIÓN Y TIPO DE GASTO, 2013-2020
B6: Miles de pesos a precios de 2022
B8: Sector de ejecución
B9: Tipo de gasto | D9: 2013 | E9: 2014 | F9: 2015 | G9: 2016 | H9: 2017e/ | I9: 2018e/ | J9: 2019e/ | K9: 2020e/ | L9: 2021e/ | M9: 2022e/
B10: Productivo
C11: Costos laborales | D11: 7,455,391 | E11: 9,078,843 | F11: 9,527,741 | G11: 8,550,084 | H11: 7,496,175 | I11: 6,704,613 | J11: 6,378,931 | K11: 6,035,219 | L11: 5,873,779 | M11: 5,518,116
C12: Otros costos corrientes | D12: 10,114,264 | E12: 8,327,389 | F12: 8,736,447 | G12: 10,747,092 | H12: 9,422,374 | I12: 8,427,413 | J12: 8,018,045 | K12: 7,586,013 | L12: 7,383,090 | M12: 6,936,037
C13: Subtotal gasto corriente | D13: 17,569,656 | E13: 17,406,231 | F13: 18,264,188 | G13: 19,297,176 | H13: 16,918,549 | I13: 15,132,026 | J13: 14,396,976 | K13: 13,621,232 | L13: 13,256,869 | M13: 12,454,152
C14: Terrenos y edificios | D14: 1,658,324 | E14: 259,376 | F14: 176,833 | G14: 422,757 | H14: 370,647 | I14: 331,508 | J14: 315,405 | K14: 298,410 | L14: 290,428 | M14: 272,842
C15: Instrumentos y equipo | D15: 8,254,613 | E15: 2,663,514 | F15: 3,063,320 | G15: 3,976,608 | H15: 3,486,440 | I15: 3,118,287 | J15: 2,966,814 | K15: 2,806,955 | L15: 2,731,870 | M15: 2,566,453
C16: Subtotal gasto de capital | D16: 9,912,937 | E16: 2,922,890 | F16: 3,240,153 | G16: 4,399,365 | H16: 3,857,087 | I16: 3,449,795 | J16: 3,282,219 | K16: 3,105,365 | L16: 3,022,298 | M16: 2,839,295
B17: Total sector productivo | D17: 27,482,593 | E17: 20,329,121 | F17: 21,504,341 | G17: 23,696,542 | H17: 20,775,636 | I17: 18,581,821 | J17: 17,679,195 | K17: 16,726,597 | L17: 16,279,166 | M17: 15,293,447
B19: Gobierno
C20: Costos laborales | D20: 23,377,529 | E20: 16,599,460 | F20: 16,939,550 | G20: 14,406,286 | H20: 12,367,235 | I20: 11,942,123 | J20: 10,869,382 | K20: 10,564,152 | L20: 10,527,223 | M20: 10,446,238
C21: Otros costos corrientes | D21: 16,876,125 | E21: 13,597,235 | F21: 14,111,495 | G21: 10,940,469 | H21: 9,391,966 | I21: 9,069,126 | J21: 8,254,462 | K21: 8,022,663 | L21: 7,994,618 | M21: 7,933,117
C22: Subtotal gasto corriente | D22: 40,253,654 | E22: 30,196,695 | F22: 31,051,044 | G22: 25,346,755 | H22: 21,759,201 | I22: 21,011,249 | J22: 19,123,845 | K22: 18,586,815 | L22: 18,521,841 | M22: 18,379,355
C23: Terrenos y edificios | D23: 1,145,976 | E23: 1,994,795 | F23: 430,435 | G23: 370,350 | H23: 317,931 | I23: 307,003 | J23: 279,425 | K23: 271,579 | L23: 270,629 | M23: 268,547
C24: Instrumentos y equipo | D24: 3,730,363 | E24: 4,604,033 | F24: 3,320,452 | G24: 2,414,273 | H24: 2,072,559 | I24: 2,001,317 | J24: 1,821,542 | K24: 1,770,390 | L24: 1,764,201 | M24: 1,750,630
C25: Subtotal gasto de capital | D25: 4,876,340 | E25: 6,598,828 | F25: 3,750,887 | G25: 2,784,623 | H25: 2,390,491 | I25: 2,308,320 | J25: 2,100,967 | K25: 2,041,969 | L25: 2,034,831 | M25: 2,019,177
B26: Total sector gobierno | D26: 45,129,993 | E26: 36,795,523 | F26: 34,801,931 | G26: 28,131,379 | H26: 24,149,691 | I26: 23,319,569 | J26: 21,224,812 | K26: 20,628,784 | L26: 20,556,671 | M26: 20,398,531
B28: Educación superior
C29: Costos laborales | D29: 20,446,207 | E29: 35,870,864 | F29: 37,536,860 | G29: 33,904,635 | H29: 29,236,260 | I29: 28,342,747 | J29: 25,969,405 | K29: 25,215,231 | L29: 25,159,262 | M29: 25,035,744
C30: Otros costos corrientes | D30: 9,189,808 | E30: 14,163,680 | F30: 14,021,204 | G30: 14,439,807 | H30: 12,451,570 | I30: 12,071,028 | J30: 11,060,234 | K30: 10,739,035 | L30: 10,715,198 | M30: 10,662,592
C31: Subtotal gasto corriente | D31: 29,636,015 | E31: 50,034,543 | F31: 51,558,065 | G31: 48,344,442 | H31: 41,687,830 | I31: 40,413,775 | J31: 37,029,639 | K31: 35,954,266 | L31: 35,874,460 | M31: 35,698,337
C32: Terrenos y edificios | D32: 657,313 | E32: 766,376 | F32: 579,268 | G32: 381,175 | H32: 328,690 | I32: 318,645 | J32: 291,962 | K32: 283,484 | L32: 282,854 | M32: 281,466
C33: Instrumentos y equipo | D33: 4,009,561 | E33: 4,753,507 | F33: 6,025,898 | G33: 5,022,840 | H33: 4,331,238 | I33: 4,198,867 | J33: 3,847,266 | K33: 3,735,538 | L33: 3,727,247 | M33: 3,708,948
C34: Subtotal gasto de capital | D34: 4,666,873 | E34: 5,519,882 | F34: 6,605,165 | G34: 5,404,014 | H34: 4,659,928 | I34: 4,517,512 | J34: 4,139,228 | K34: 4,019,022 | L34: 4,010,101 | M34: 3,990,413
B35: Total sector educación superior | D35: 34,302,888 | E35: 55,554,426 | F35: 58,163,230 | G35: 53,748,456 | H35: 46,347,759 | I35: 44,931,287 | J35: 41,168,868 | K35: 39,973,287 | L35: 39,884,561 | M35: 39,688,750
B37: Privado no lucrativo
C38: Costos laborales | D38: 446,136 | E38: 475,649 | F38: 446,769 | G38: 486,093 | H38: 467,002 | I38: 452,133 | J38: 458,857 | K38: 464,718 | L38: 483,117 | M38: 488,273
C39: Otros costos corrientes | D39: 465,977 | E39: 590,557 | F39: 564,710 | G39: 509,851 | H39: 489,827 | I39: 474,231 | J39: 481,284 | K39: 487,431 | L39: 506,729 | M39: 512,137
C40: Subtotal gasto corriente | D40: 912,113 | E40: 1,066,205 | F40: 1,011,479 | G40: 995,944 | H40: 956,829 | I40: 926,364 | J40: 940,140 | K40: 952,148 | L40: 989,846 | M40: 1,000,409
C41: Terrenos y edificios | D41: 52,373 | E41: 30,758 | F41: 25,277 | G41: 12,526 | H41: 12,034 | I41: 11,651 | J41: 11,824 | K41: 11,975 | L41: 12,449 | M41: 12,582
C42: Instrumentos y equipo | D42: 86,271 | E42: 40,914 | F42: 39,945 | G42: 46,550 | H42: 44,721 | I42: 43,298 | J42: 43,941 | K42: 44,503 | L42: 46,265 | M42: 46,758
C43: Subtotal gasto de capital | D43: 138,643 | E43: 71,672 | F43: 65,222 | G43: 59,075 | H43: 56,755 | I43: 54,948 | J43: 55,765 | K43: 56,478 | L43: 58,714 | M43: 59,340
B44: Total sector privado no lucrativo | D44: 1,050,756 | E44: 1,137,877 | F44: 1,076,700 | G44: 1,055,020 | H44: 1,013,585 | I44: 981,312 | J44: 995,906 | K44: 1,008,626 | L44: 1,048,560 | M44: 1,059,750
B46: Total
C47: Costos laborales | D47: 51,725,263 | E47: 62,024,815 | F47: 64,450,920 | G47: 57,347,099 | H47: 49,566,673 | I47: 47,441,616 | J47: 43,676,576 | K47: 42,279,320 | L47: 42,043,381 | M47: 41,488,370
C48: Otros costos corrientes | D48: 36,646,174 | E48: 36,678,860 | F48: 37,433,856 | G48: 36,637,219 | H48: 31,755,737 | I48: 30,041,798 | J48: 27,814,025 | K48: 26,835,142 | L48: 26,599,635 | M48: 26,043,882
C49: Subtotal gasto corriente | D49: 88,371,437 | E49: 98,703,675 | F49: 101,884,776 | G49: 93,984,318 | H49: 81,322,410 | I49: 77,483,414 | J49: 71,490,601 | K49: 69,114,462 | L49: 68,643,016 | M49: 67,532,253
C50: Terrenos y edificios | D50: 3,513,986 | E50: 3,051,305 | F50: 1,211,813 | G50: 1,186,808 | H50: 1,029,302 | I50: 968,806 | J50: 898,616 | K50: 865,447 | L50: 856,360 | M50: 835,437
C51: Instrumentos y equipo | D51: 16,080,808 | E51: 12,061,967 | F51: 12,449,615 | G51: 11,460,271 | H51: 9,934,959 | I51: 9,361,769 | J51: 8,679,564 | K51: 8,357,386 | L51: 8,269,583 | M51: 8,072,788
C52: Subtotal gasto de capital | D52: 19,594,794 | E52: 15,113,272 | F52: 13,661,427 | G52: 12,647,078 | H52: 10,964,261 | I52: 10,330,576 | J52: 9,578,180 | K52: 9,222,833 | L52: 9,125,943 | M52: 8,908,225
B53: Total GIDE | D53: 107,966,231 | E53: 113,816,947 | F53: 115,546,203 | G53: 106,631,396 | H53: 92,286,670 | I53: 87,813,989 | J53: 81,068,781 | K53: 78,337,295 | L53: 77,768,959 | M53: 76,440,478
B54: e/ Cifras estimadas
B55: n.d. No disponible
B56: Los totales pueden no coincidir debido al redondeo de la cifras.
B57: Las cifras del GIDE de 2007 a 2020 fueron calculadas contabilizando el gasto en becas de doctorado registrados en el SNP y, a partir de 2014, se contabiliza el pago a personal adscrito en el Programa de Investigadoras e Investigadores por México.
B58: Fuente: Datos calculados por el Conacyt con base en información proveniente de la Encuesta sobre Investigación y Desarrollo Tecnológico (ESIDET), 2008, 2010, 2012, 2014, 2017 levantada en colaboración con el INEGI y Conacyt; Datos de la Cuenta de la Hacienda Pública Federal.

Sheet A.6.5
B5: A.6.5 GIDE POR SECTOR DE EJECUCIÓN Y TIPO DE ACTIVIDAD, 2013-2022
B6: Miles de pesos
B8: Sector de ejecución
C9: Actividad | D9: 2013 | E9: 2014 | F9: 2015 | G9: 2016 | H9: 2017e/ | I9: 2018e/ | J9: 2019e/ | K9: 2020e/ | L9: 2021e/ | M9: 2022e/
B10: Productivo
C11: Investigación básica | D11: 755,087 | E11: 687,994 | F11: 783,442 | G11: 1,036,179 | H11: 968,411 | I11: 911,180 | J11: 904,195 | K11: 896,619 | L11: 911,275 | M11: 913,557
C12: Investigación aplicada | D12: 2,607,456 | E12: 2,263,608 | F12: 2,744,902 | G12: 2,979,697 | H12: 2,784,822 | I12: 2,620,243 | J12: 2,600,157 | K12: 2,578,372 | L12: 2,620,518 | M12: 2,627,080
C13: Desarrollo experimental | D13: 14,247,760 | E13: 10,642,472 | F13: 11,314,639 | G13: 13,330,319 | H13: 12,458,501 | I13: 11,722,224 | J13: 11,632,364 | K13: 11,534,902 | L13: 11,723,454 | M13: 11,752,810
B14: Total sector productivo | D14: 17,610,304 | E14: 13,594,074 | F14: 14,842,983 | G14: 17,346,195 | H14: 16,211,734 | I14: 15,253,647 | J14: 15,136,716 | K14: 15,009,893 | L14: 15,255,247 | M14: 15,293,447
B16: Gobierno
C17: Investigación básica | D17: 11,220,941 | E17: 8,550,970 | F17: 8,722,943 | G17: 7,756,352 | H17: 7,097,967 | I17: 7,210,297 | J17: 6,844,792 | K17: 6,972,538 | L17: 7,255,830 | M17: 7,683,271
C18: Investigación aplicada | D18: 9,297,198 | E18: 6,996,388 | F18: 6,924,828 | G18: 5,755,842 | H18: 5,267,267 | I18: 5,350,626 | J18: 5,079,391 | K18: 5,174,188 | L18: 5,384,415 | M18: 5,701,610
C19: Desarrollo experimental | D19: 8,400,272 | E19: 9,057,791 | F19: 8,373,634 | G19: 7,080,363 | H19: 6,479,358 | I19: 6,581,898 | J19: 6,248,248 | K19: 6,364,860 | L19: 6,623,463 | M19: 7,013,651
B20: Total sector gobierno | D20: 28,918,410 | E20: 24,605,150 | F20: 24,021,405 | G20: 20,592,557 | H20: 18,844,592 | I20: 19,142,821 | J20: 18,172,430 | K20: 18,511,586 | L20: 19,263,708 | M20: 20,398,531
B22: Educación superior
C23: Investigación básica | D23: 9,190,253 | E23: 15,038,326 | F23: 15,863,176 | G23: 14,950,392 | H23: 13,742,673 | I23: 14,015,274 | J23: 13,393,849 | K23: 13,630,356 | L23: 14,202,318 | M23: 15,081,160
C24: Investigación aplicada | D24: 10,066,878 | E24: 12,015,877 | F24: 13,311,418 | G24: 14,203,274 | H24: 13,055,909 | I24: 13,314,887 | J24: 12,724,516 | K24: 12,949,204 | L24: 13,492,583 | M24: 14,327,507
C25: Desarrollo experimental | D25: 2,723,483 | E25: 10,095,016 | F25: 10,971,525 | G25: 10,190,945 | H25: 9,367,703 | I25: 9,553,522 | J25: 9,129,927 | K25: 9,291,142 | L25: 9,681,020 | M25: 10,280,083
B26: Total sector educación superior | D26: 21,980,614 | E26: 37,149,219 | F26: 40,146,119 | G26: 39,344,611 | H26: 36,166,284 | I26: 36,883,683 | J26: 35,248,292 | K26: 35,870,701 | L26: 37,375,921 | M26: 39,688,750
B28: Privado no lucrativo
C29: Investigación básica | D29: 164,191 | E29: 88,263 | F29: 71,790 | G29: 81,453 | H29: 83,419 | I29: 84,961 | J29: 89,932 | K29: 95,252 | L29: 103,635 | M29: 111,771
C30: Investigación aplicada | D30: 180,124 | E30: 326,387 | F30: 352,411 | G30: 395,009 | H30: 404,541 | I30: 412,021 | J30: 436,129 | K30: 461,928 | L30: 502,583 | M30: 542,039
C31: Desarrollo experimental | D31: 328,989 | E31: 346,248 | F31: 318,972 | G31: 295,827 | H31: 302,965 | I31: 308,568 | J31: 326,622 | K31: 345,943 | L31: 376,390 | M31: 405,939
B32: Total sector privado no lucrativo | D32: 673,304 | E32: 760,898 | F32: 743,173 | G32: 772,289 | H32: 790,925 | I32: 805,550 | J32: 852,683 | K32: 903,123 | L32: 982,608 | M32: 1,059,750
B34: Total
C35: Investigación básica | D35: 21,330,472 | E35: 24,365,554 | F35: 25,441,352 | G35: 23,824,375 | H35: 21,892,470 | I35: 22,221,712 | J35: 21,232,768 | K35: 21,594,764 | L35: 22,473,059 | M35: 23,789,759
C36: Investigación aplicada | D36: 22,151,656 | E36: 21,602,260 | F36: 23,333,559 | G36: 23,333,823 | H36: 21,512,539 | I36: 21,697,777 | J36: 20,840,193 | K36: 21,163,692 | L36: 22,000,099 | M36: 23,198,236
C37: Desarrollo experimental | D37: 25,700,504 | E37: 30,141,527 | F37: 30,978,770 | G37: 30,897,454 | H37: 28,608,527 | I37: 28,166,211 | J37: 27,337,160 | K37: 27,536,847 | L37: 28,404,326 | M37: 29,452,483
B38: Total Gasto Corriente en IDE | D38: 69,182,632 | E38: 76,109,341 | F38: 79,753,681 | G38: 78,055,652 | H38: 72,013,536 | I38: 72,085,701 | J38: 69,410,121 | K38: 70,295,303 | L38: 72,877,484 | M38: 76,440,478
B39: e/ Cifras estimadas
B40: n.d. No disponible
B41: Los totales pueden no coincidir debido al redondeo de la cifras.
B42: Las cifras del GIDE de 2007 a 2020 fueron calculadas contabilizando el gasto en becas de doctorado registrados en el SNP y, a partir de 2014, se contabiliza el pago a personal adscrito en el Programa de Investigadoras e Investigadores por México.
B43: Fuente: Datos calculados por el Conacyt con base en información proveniente de la Encuesta sobre Investigación y Desarrollo Tecnológico (ESIDET), 2008, 2010, 2012, 2014, 2017 levantada en colaboración con el INEGI y Conacyt; Datos de la Cuenta de la Hacienda Pública Federal.

Sheet A.6.6
B5: A.6.6 GIDE POR SECTOR DE EJECUCIÓN Y TIPO DE ACTIVIDAD, 2013-2022
B6: Miles de pesos a precios de 2022
B8: Sector de ejecución
B9: Actividad | D9: 2013 | E9: 2014 | F9: 2015 | G9: 2016 | H9: 2017e/ | I9: 2018e/ | J9: 2019e/ | K9: 2020e/ | L9: 2021e/ | M9: 2022e/
B10: Productivo
C11: Investigación básica | D11: 1,178,387 | E11: 1,028,854 | F11: 1,135,042 | G11: 1,415,518 | H11: 1,241,037 | I11: 1,109,989 | J11: 1,056,070 | K11: 999,167 | L11: 972,439 | M11: 913,557
C12: Investigación aplicada | D12: 4,069,189 | E12: 3,385,090 | F12: 3,976,782 | G12: 4,070,548 | H12: 3,568,800 | I12: 3,191,951 | J12: 3,036,900 | K12: 2,873,264 | L12: 2,796,405 | M12: 2,627,080
C13: Desarrollo experimental | D13: 22,235,017 | E13: 15,915,177 | F13: 16,392,517 | G13: 18,210,476 | H13: 15,965,798 | I13: 14,279,881 | J13: 13,586,225 | K13: 12,854,167 | L13: 12,510,322 | M13: 11,752,810
B14: Total sector productivo | D14: 27,482,593 | E14: 20,329,121 | F14: 21,504,341 | G14: 23,696,542 | H14: 20,775,636 | I14: 18,581,821 | J14: 17,679,195 | K14: 16,726,597 | L14: 16,279,166 | M14: 15,293,447
M15: 0
B16: Gobierno | M16: 0
C17: Investigación básica | D17: 17,511,370 | E17: 12,787,462 | F17: 12,637,698 | G17: 10,595,910 | H17: 9,096,175 | I17: 8,783,503 | J17: 7,994,496 | K17: 7,769,997 | L17: 7,742,835 | M17: 7,683,271
C18: Investigación aplicada | D18: 14,509,182 | E18: 10,462,678 | F18: 10,032,610 | G18: 7,863,025 | H18: 6,750,100 | I18: 6,518,072 | J18: 5,932,565 | K18: 5,765,968 | L18: 5,745,812 | M18: 5,701,610
C19: Desarrollo experimental | D19: 13,109,441 | E19: 13,545,383 | F19: 12,131,623 | G19: 9,672,444 | H19: 8,303,416 | I19: 8,017,994 | J19: 7,297,752 | K19: 7,092,819 | L19: 7,068,024 | M19: 7,013,651
B20: Total sector gobierno | D20: 45,129,993 | E20: 36,795,523 | F20: 34,801,931 | G20: 28,131,379 | H20: 24,149,691 | I20: 23,319,569 | J20: 21,224,812 | K20: 20,628,784 | L20: 20,556,671 | M20: 20,398,531
M21: 0
B22: Educación superior | M22: 0
C23: Investigación básica | D23: 14,342,284 | E23: 22,488,914 | F23: 22,982,385 | G23: 20,423,648 | H23: 17,611,488 | I23: 17,073,249 | J23: 15,643,583 | K23: 15,189,280 | L23: 15,155,565 | M23: 15,081,160
C24: Investigación aplicada | D24: 15,710,343 | E24: 17,969,022 | F24: 19,285,427 | G24: 19,403,014 | H24: 16,731,387 | I24: 16,220,045 | J24: 14,861,825 | K24: 14,430,224 | L24: 14,398,194 | M24: 14,327,507
C25: Desarrollo experimental | D25: 4,250,261 | E25: 15,096,490 | F25: 15,895,418 | G25: 13,921,794 | H25: 12,004,883 | I25: 11,637,992 | J25: 10,663,460 | K25: 10,353,783 | L25: 10,330,802 | M25: 10,280,083
B26: Total sector educación superior | D26: 34,302,888 | E26: 55,554,426 | F26: 58,163,230 | G26: 53,748,456 | H26: 46,347,759 | I26: 44,931,287 | J26: 41,168,868 | K26: 39,973,287 | L26: 39,884,561 | M26: 39,688,750
M27: 0
B28: Privado no lucrativo | M28: 0
C29: Investigación básica | D29: 256,236 | E29: 131,992 | F29: 104,009 | G29: 111,272 | H29: 106,902 | I29: 103,499 | J29: 105,038 | K29: 106,146 | L29: 110,591 | M29: 111,771
C30: Investigación aplicada | D30: 281,101 | E30: 488,092 | F30: 510,569 | G30: 539,620 | H30: 518,427 | I30: 501,920 | J30: 509,384 | K30: 514,759 | L30: 536,316 | M30: 542,039
C31: Desarrollo experimental | D31: 513,419 | E31: 517,793 | F31: 462,123 | G31: 404,128 | H31: 388,256 | I31: 375,894 | J31: 381,484 | K31: 385,509 | L31: 401,653 | M31: 405,939
B32: Total sector privado no lucrativo | D32: 1,050,756 | E32: 1,137,877 | F32: 1,076,700 | G32: 1,055,020 | H32: 1,013,585 | I32: 981,312 | J32: 995,906 | K32: 1,006,414 | L32: 1,048,560 | M32: 1,059,750
M33: 0
B34: Total | M34: 0
C35: Investigación básica | D35: 33,288,277 | E35: 36,437,222 | F35: 36,859,134 | G35: 32,546,348 | H35: 28,055,603 | I35: 27,070,240 | J35: 24,799,188 | K35: 24,064,590 | L35: 23,981,431 | M35: 23,789,759
C36: Investigación aplicada | D36: 34,569,816 | E36: 32,304,883 | F36: 33,805,388 | G36: 31,876,207 | H36: 27,568,714 | I36: 26,431,988 | J36: 24,340,673 | K36: 23,584,215 | L36: 23,476,727 | M36: 23,198,236
C37: Desarrollo experimental | D37: 40,108,138 | E37: 45,074,843 | F37: 44,881,682 | G37: 42,208,842 | H37: 36,662,354 | I37: 34,311,762 | J37: 31,928,921 | K37: 30,686,278 | L37: 30,310,801 | M37: 29,452,483
B38: Total Gasto Corriente en IDE | D38: 107,966,231 | E38: 113,816,947 | F38: 115,546,203 | G38: 106,631,396 | H38: 92,286,670 | I38: 87,813,989 | J38: 81,068,781 | K38: 78,335,083 | L38: 77,768,959 | M38: 76,440,478
B39: e/ Cifras estimadas
B40: n.d. No disponible
B41: Los totales pueden no coincidir debido al redondeo de la cifras.
B42: Las cifras del GIDE de 2007 a 2020 fueron calculadas contabilizando el gasto en becas de doctorado registrados en el SNP y, a partir de 2014, se contabiliza el pago a personal adscrito en el Programa de Investigadoras e Investigadores por México.
B43: Fuente: Datos calculados por el Conacyt con base en información proveniente de la Encuesta sobre Investigación y Desarrollo Tecnológico (ESIDET), 2008, 2010, 2012, 2014, 2017 levantada en colaboración con el INEGI y Conacyt; Datos de la Cuenta de la Hacienda Pública Federal.

Sheet A.6.7
B5: A.6.7 GIDE POR SECTOR DE EJECUCIÓN Y CAMPO DE LA CIENCIA, 2013-2022
B6: Miles de pesos
B8: Sector de ejecución
C9: Campo de la ciencia | D9: 2013 | E9: 2014 | F9: 2015 | G9: 2016 | H9: 2017e/ | I9: 2018e/ | J9: 2019e/ | K9: 2020e/ | L9: 2021e/ | M9: 2022e/
B10: Productivo
C11: Ciencias naturales e ingeniería | D11: 17,587,754 | E11: 13,480,303 | F11: 14,673,540 | G11: 17,123,786 | H11: 16,003,871 | I11: 15,058,097 | J11: 14,942,636 | K11: 14,817,468 | L11: 15,059,677 | M11: 15,097,387
C12: Ciencias sociales y humanidades | D12: 22,550 | E12: 113,771 | F12: 169,443 | G12: 222,409 | H12: 207,863 | I12: 195,550 | J12: 194,079 | K12: 192,425 | L12: 195,570 | M12: 196,060
B13: Total sector productivo | D13: 17,610,304 | E13: 13,594,074 | F13: 14,842,983 | G13: 17,346,195 | H13: 16,211,734 | I13: 15,253,647 | J13: 15,136,716 | K13: 15,009,893 | L13: 15,255,247 | M13: 15,293,447
B15: Gobierno
C16: Ciencias naturales e ingeniería | D16: 24,174,848 | E16: 21,808,427 | F16: 21,631,011 | G16: 18,432,670 | H16: 16,868,044 | I16: 17,134,993 | J16: 16,266,383 | K16: 16,569,966 | L16: 17,243,200 | M16: 18,258,995
C17: Ciencias sociales y humanidades | D17: 4,743,561 | E17: 2,796,722 | F17: 2,390,394 | G17: 2,159,887 | H17: 1,976,548 | I17: 2,007,829 | J17: 1,906,048 | K17: 1,941,620 | L17: 2,020,508 | M17: 2,139,536
B18: Total sector gobierno | D18: 28,918,410 | E18: 24,605,150 | F18: 24,021,405 | G18: 20,592,557 | H18: 18,844,592 | I18: 19,142,821 | J18: 18,172,430 | K18: 18,511,586 | L18: 19,263,708 | M18: 20,398,531
B20: Educación superior
C21: Ciencias naturales e ingeniería | D21: 16,549,333 | E21: 24,971,758 | F21: 27,546,202 | G21: 26,785,848 | H21: 24,622,040 | I21: 25,110,445 | J21: 23,997,070 | K21: 24,420,807 | L21: 25,445,562 | M21: 27,020,138
C22: Ciencias sociales y humanidades | D22: 5,431,281 | E22: 12,177,461 | F22: 12,599,917 | G22: 12,558,763 | H22: 11,544,244 | I22: 11,773,237 | J22: 11,251,222 | K22: 11,449,894 | L22: 11,930,359 | M22: 12,668,612
B23: Total sector educación superior | D23: 21,980,614 | E23: 37,149,219 | F23: 40,146,119 | G23: 39,344,611 | H23: 36,166,284 | I23: 36,883,683 | J23: 35,248,292 | K23: 35,870,701 | L23: 37,375,921 | M23: 39,688,750
B25: Privado no lucrativo
C26: Ciencias naturales e ingeniería | D26: 576,114 | E26: 619,841 | F26: 605,437 | G26: 608,130 | H26: 622,805 | I26: 634,321 | J26: 671,435 | K26: 712,716 | L26: 773,743 | M26: 834,488
C27: Ciencias sociales y humanidades | D27: 97,190 | E27: 141,057 | F27: 137,736 | G27: 164,159 | H27: 168,120 | I27: 171,229 | J27: 181,248 | K27: 192,391 | L27: 208,865 | M27: 225,262
B28: Total sector privado no lucrativo | D28: 673,304 | E28: 760,898 | F28: 743,173 | G28: 772,289 | H28: 790,925 | I28: 805,550 | J28: 852,683 | K28: 905,108 | L28: 982,608 | M28: 1,059,750
B30: Total
C31: Ciencias naturales e ingeniería | D31: 58,888,049 | E31: 60,880,330 | F31: 64,456,190 | G31: 62,950,434 | H31: 58,116,760 | I31: 57,937,856 | J31: 55,877,524 | K31: 56,520,957 | L31: 58,522,182 | M31: 61,211,008
C32: Ciencias sociales y humanidades | D32: 10,294,582 | E32: 15,229,011 | F32: 15,297,490 | G32: 15,105,218 | H32: 13,896,776 | I32: 14,147,845 | J32: 13,532,596 | K32: 13,776,331 | L32: 14,355,302 | M32: 15,229,470
B33: Total GIDE | D33: 69,182,632 | E33: 76,109,341 | F33: 79,753,681 | G33: 78,055,652 | H33: 72,013,536 | I33: 72,085,701 | J33: 69,410,121 | K33: 70,297,288 | L33: 72,877,484 | M33: 76,440,478
B34: e/ Cifras estimadas
B35: n.d. No disponible
B36: Los totales pueden no coincidir debido al redondeo de la cifras.
B37: Las cifras del GIDE de 2007 a 2020 fueron calculadas contabilizando el gasto en becas de doctorado registrados en el SNP y, a partir de 2014, se contabiliza el pago a personal adscrito en el Programa de Investigadoras e Investigadores por México.
B38: Fuente: Datos calculados por el Conacyt con base en información proveniente de la Encuesta sobre Investigación y Desarrollo Tecnológico (ESIDET), 2008, 2010, 2012, 2014, 2017 levantada en colaboración con el INEGI y Conacyt; Datos de la Cuenta de la Hacienda Pública Federal.

Sheet A.6.8
B5: A.6.8 GIDE POR SECTOR DE EJECUCIÓN Y CAMPO DE LA CIENCIA, 2013-2022
B6: Miles de pesos a precios de 2022
B8: Sector de ejecución
C9: Campo de la ciencia | D9: 2013 | E9: 2014 | F9: 2015 | G9: 2016 | H9: 2017e/ | I9: 2018e/ | J9: 2019e/ | K9: 2020e/ | L9: 2021e/ | M9: 2022e/
B10: Productivo
C11: Ciencias naturales e ingeniería | D11: 27,447,402 | E11: 20,158,984 | F11: 21,258,854 | G11: 23,392,710 | H11: 20,509,256 | I11: 18,343,604 | J11: 17,452,517 | K11: 16,512,165 | L11: 16,070,469 | M11: 15,097,387
C12: Ciencias sociales y humanidades | D12: 35,191 | E12: 170,137 | F12: 245,487 | G12: 303,831 | H12: 266,380 | I12: 238,217 | J12: 226,678 | K12: 214,433 | L12: 208,697 | M12: 196,060
B13: Total sector productivo | D13: 27,482,593 | E13: 20,329,121 | F13: 21,504,341 | G13: 23,696,542 | H13: 20,775,636 | I13: 18,581,821 | J13: 17,679,195 | K13: 16,726,597 | L13: 16,279,166 | M13: 15,293,447
M14: 0
B15: Gobierno | M15: 0
C16: Ciencias naturales e ingeniería | D16: 37,727,204 | E16: 32,613,193 | F16: 31,338,757 | G16: 25,180,769 | H16: 21,616,708 | I16: 20,873,655 | J16: 18,998,610 | K16: 18,465,098 | L16: 18,400,548 | M16: 18,258,995
C17: Ciencias sociales y humanidades | D17: 7,402,789 | E17: 4,182,330 | F17: 3,463,175 | G17: 2,950,609 | H17: 2,532,983 | I17: 2,445,914 | J17: 2,226,202 | K17: 2,163,687 | L17: 2,156,123 | M17: 2,139,536
B18: Total sector gobierno | D18: 45,129,993 | E18: 36,795,523 | F18: 34,801,931 | G18: 28,131,379 | H18: 24,149,691 | I18: 23,319,569 | J18: 21,224,812 | K18: 20,628,784 | L18: 20,556,671 | M18: 20,398,531
M19: 0
B20: Educación superior | M20: 0
C21: Ciencias naturales e ingeniería | D21: 25,826,845 | E21: 37,343,764 | F21: 39,908,617 | G21: 36,591,999 | H21: 31,553,597 | I21: 30,589,262 | J21: 28,027,804 | K21: 27,213,851 | L21: 27,153,446 | M21: 27,020,138
C22: Ciencias sociales y humanidades | D22: 8,476,043 | E22: 18,210,661 | F22: 18,254,613 | G22: 17,156,457 | H22: 14,794,161 | I22: 14,342,025 | J22: 13,141,064 | K22: 12,759,436 | L22: 12,731,115 | M22: 12,668,612
B23: Total sector educación superior | D23: 34,302,888 | E23: 55,554,426 | F23: 58,163,230 | G23: 53,748,456 | H23: 46,347,759 | I23: 44,931,287 | J23: 41,168,868 | K23: 39,973,287 | L23: 39,884,561 | M23: 39,688,750
M24: 0
B25: Privado no lucrativo | M25: 0
C26: Ciencias naturales e ingeniería | D26: 899,082 | E26: 926,935 | F26: 877,150 | G26: 830,763 | H26: 798,136 | I26: 772,723 | J26: 784,214 | K26: 794,231 | L26: 825,676 | M26: 834,488
C27: Ciencias sociales y humanidades | D27: 151,674 | E27: 210,942 | F27: 199,550 | G27: 224,257 | H27: 215,449 | I27: 208,589 | J27: 211,691 | K27: 214,395 | L27: 222,884 | M27: 225,262
B28: Total sector privado no lucrativo | D28: 1,050,756 | E28: 1,137,877 | F28: 1,076,700 | G28: 1,055,020 | H28: 1,013,585 | I28: 981,312 | J28: 995,906 | K28: 1,008,626 | L28: 1,048,560 | M28: 1,059,750
M29: 0
B30: Total | M30: 0
C31: Ciencias naturales e ingeniería | D31: 91,900,533 | E31: 91,042,876 | F31: 93,383,378 | G31: 85,996,242 | H31: 74,477,697 | I31: 70,579,244 | J31: 65,263,145 | K31: 62,985,344 | L31: 62,450,141 | M31: 61,211,008
C32: Ciencias sociales y humanidades | D32: 16,065,698 | E32: 22,774,071 | F32: 22,162,825 | G32: 20,635,155 | H32: 17,808,974 | I32: 17,234,745 | J32: 15,805,636 | K32: 15,351,951 | L32: 15,318,818 | M32: 15,229,470
B33: Total GIDE | D33: 107,966,231 | E33: 113,816,947 | F33: 115,546,203 | G33: 106,631,396 | H33: 92,286,670 | I33: 87,813,989 | J33: 81,068,781 | K33: 78,337,295 | L33: 77,768,959 | M33: 76,440,478
B34: e/ Cifras estimadas
B35: n.d. No disponible
B36: Los totales pueden no coincidir debido al redondeo de la cifras.
B37: Las cifras del GIDE de 2007 a 2020 fueron calculadas contabilizando el gasto en becas de doctorado registrados en el SNP y, a partir de 2014, se contabiliza el pago a personal adscrito en el Programa de Investigadoras e Investigadores por México.
B38: Fuente: Datos calculados por el Conacyt con base en información proveniente de la Encuesta sobre Investigación y Desarrollo Tecnológico (ESIDET), 2008, 2010, 2012, 2014, 2017 levantada en colaboración con el INEGI y Conacyt; Datos de la Cuenta de la Hacienda Pública Federal.

Sheet A.6.9
B5: A.6.9 GIDESP POR INDUSTRIA, 2013-2022
B6: Miles de pesos
B8: Industria | C8: 2013 | D8: 2014 | E8: 2015 | F8: 2016 | G8: 2017e/ | H8: 2018e/ | I8: 2019e/ | J8: 2020e/ | K8: 2021e/ | L8: 2022e/
B10: Agricultura | C10: 0.00 | D10: 0.00 | E10: 0.00 | F10: 0.00 | G10: 0.00 | H10: 0.00 | I10: 0.00 | J10: 0.00 | K10: 0.00 | L10: 0.00
B11: Minería | C11: 154,395 | D11: 49,305 | E11: 150,418 | F11: 96,733 | G11: 90,407 | H11: 85,112 | I11: 84,412 | J11: 83,704.4 | K11: 85,286 | L11: 85,286
B12: Manufactura | C12: 9,495,790 | D12: 8,214,702 | E12: 9,187,266 | F12: 10,657,925 | G12: 9,960,884 | H12: 9,377,499 | I12: 9,300,367 | J12: 9,222,443.9 | K12: 9,396,666 | L12: 9,396,666
B13: Alimentos, bebidas y tabaco | C13: 1,112,942 | D13: 340,863 | E13: 359,694 | F13: 739,409 | G13: 691,051 | H13: 650,577 | I13: 645,226 | J13: 639,820.2 | K13: 651,907 | L13: 651,907
B14: Productos alimenticios y bebidas | C14: 1,112,942 | D14: 340,863 | E14: 359,694 | F14: 739,409 | G14: 691,051 | H14: 650,577 | I14: 645,226 | J14: 639,820.2 | K14: 651,907 | L14: 651,907
B15: Productos del tabaco | C15: 0 | D15: 0 | E15: 0 | F15: 0 | G15: 0 | H15: 0 | I15: 0 | J15: 0.0 | K15: 0 | L15: 0
B16: Textiles, prendas de vestir, piel y cuero | C16: 153,038 | D16: 57,479 | E16: 170,773 | F16: 175,871 | G16: 164,369 | H16: 154,742 | I16: 153,469 | J16: 152,183.5 | K16: 155,058 | L16: 155,058
B17: Textiles | C17: 150,850 | D17: 29,486 | E17: 141,320 | F17: 160,182 | G17: 149,706 | H17: 140,938 | I17: 139,779 | J17: 138,607.6 | K17: 141,226 | L17: 141,226
B18: Prendas de vestir y piel | C18: 1,646 | D18: 0 | E18: 0 | F18: 0 | G18: 0 | H18: 0 | I18: 0 | J18: 0.0 | K18: 0 | L18: 0
B19: Productos de cuero e industria del calzado | C19: 542 | D19: 27,993 | E19: 29,453 | F19: 15,689 | G19: 14,663 | H19: 13,804 | I19: 13,691 | J19: 13,575.9 | K19: 13,832 | L19: 13,832
B20: Madera, papel, imprentas y publicaciones | C20: 170,902 | D20: 61,114 | E20: 156,255 | F20: 201,834 | G20: 188,634 | H20: 177,586 | I20: 176,126 | J20: 174,650.1 | K20: 177,949 | L20: 177,949
B21: Madera y corcho (no muebles) | C21: 35,925 | D21: 1,967 | E21: 5,089 | F21: 13,068 | G21: 12,213 | H21: 11,498 | I21: 11,403 | J21: 11,307.9 | K21: 11,522 | L21: 11,522
B22: Pulpa, papel y productos de papel | C22: 117,616 | D22: 53,981 | E22: 145,629 | F22: 179,084 | G22: 167,372 | H22: 157,569 | I22: 156,273 | J22: 154,963.7 | K22: 157,891 | L22: 157,891
B23: Publicaciones, imprentas y reproducción de medios de grabación | C23: 17,361 | D23: 5,166 | E23: 5,537 | F23: 9,683 | G23: 9,049 | H23: 8,519 | I23: 8,449 | J23: 8,378.4 | K23: 8,537 | L23: 8,537
B24: Carbón, petróleo, energía nuclear, químicos y productos de caucho y plástico | C24: 1,997,261 | D24: 1,715,420 | E24: 1,842,634 | F24: 2,017,517 | G24: 1,885,569 | H24: 1,775,136 | I24: 1,760,535 | J24: 1,745,784.4 | K24: 1,778,764 | L24: 1,778,764
B25: Carbón, productos derivados del petróleo y energía nuclear | C25: 62,023 | D25: 49,823 | E25: 27,578 | F25: 33,887 | G25: 31,671 | H25: 29,816 | I25: 29,571 | J25: 29,322.9 | K25: 29,877 | L25: 29,877
B26: Químicos y productos químicos | C26: 1,828,047 | D26: 1,504,729 | E26: 1,563,482 | F26: 1,697,395 | G26: 1,586,384 | H26: 1,493,473 | I26: 1,481,189 | J26: 1,468,778.8 | K26: 1,496,526 | L26: 1,496,526
B27: Químicos y productos químicos (excepto farmacéuticos) | C27: 482,726 | D27: 537,185 | E27: 482,084 | F27: 627,163 | G27: 586,146 | H27: 551,817 | I27: 547,278 | J27: 542,692.4 | K27: 552,944 | L27: 552,944
B28: Farmacéuticos | C28: 1,345,321 | D28: 967,543 | E28: 1,081,397 | F28: 1,070,233 | G28: 1,000,238 | H28: 941,657 | I28: 933,911 | J28: 926,086.4 | K28: 943,581 | L28: 943,581
B29: Caucho y productos plásticos | C29: 107,191 | D29: 160,869 | E29: 251,574 | F29: 286,235 | G29: 267,515 | H29: 251,847 | I29: 249,775 | J29: 247,682.8 | K29: 252,362 | L29: 252,362
B30: Productos minerales no metálicos | C30: 263,629 | D30: 1,066,213 | E30: 1,003,890 | F30: 944,455 | G30: 882,686 | H30: 830,989 | I30: 824,154 | J30: 817,249.1 | K30: 832,688 | L30: 832,688
B31: Metales básicos | C31: 175,708 | D31: 40,998 | E31: 94,889 | F31: 70,437 | G31: 65,830 | H31: 61,975 | I31: 61,465 | J31: 60,950.1 | K31: 62,101 | L31: 62,101
B32: Metales básicos ferrosos | C32: 142,436 | D32: 30,169 | E32: 79,700 | F32: 42,894 | G32: 40,088 | H32: 37,740 | I32: 37,430 | J32: 37,116.3 | K32: 37,817 | L32: 37,817
B33: Metales básicos no ferrosos | C33: 33,272 | D33: 10,829 | E33: 15,189 | F33: 27,544 | G33: 25,742 | H33: 24,234 | I33: 24,035 | J33: 23,833.8 | K33: 24,284 | L33: 24,284
B34: Productos fabricados de metal (excepto maquinaria y equipo) | C34: 587,347 | D34: 627,188 | E34: 674,155 | F34: 485,287 | G34: 453,549 | H34: 426,985 | I34: 423,473 | J34: 419,925.2 | K34: 427,858 | L34: 427,858
B35: Maquinaria, equipo, instrumentos y equipo de transporte | C35: 5,012,392 | D35: 4,301,346 | E35: 4,877,750 | F35: 6,009,996 | G35: 5,616,935 | H35: 5,287,965 | I35: 5,244,470 | J35: 5,200,529.3 | K35: 5,298,773 | L35: 5,298,773
B36: Maquinaria no especificada en otra parte | C36: 320,975 | D36: 225,140 | E36: 147,417 | F36: 370,845 | G36: 346,591 | H36: 326,292 | I36: 323,609 | J36: 320,897.2 | K36: 326,959 | L36: 326,959
B37: Maquinaria de oficina, contabilidad y computación | C37: 338,996 | D37: 312,433 | E37: 392,077 | F37: 412,585 | G37: 385,601 | H37: 363,018 | I37: 360,032 | J37: 357,015.3 | K37: 363,760 | L37: 363,760
B38: Maquinaria eléctrica | C38: 1,478,147 | D38: 1,498,964 | E38: 1,340,829 | F38: 1,496,720 | G38: 1,398,833 | H38: 1,316,907 | I38: 1,306,075 | J38: 1,295,131.8 | K38: 1,319,598 | L38: 1,319,598
B39: Equipo electrónico (radio, T.V. y comunicaciones) | C39: 147,567 | D39: 157,262 | E39: 248,735 | F39: 239,255 | G39: 223,607 | H39: 210,511 | I39: 208,780 | J39: 207,030.4 | K39: 210,941 | L39: 210,941
B40: Componentes electrónicos (incluye semiconductores) | C40: 11,767 | D40: 20,613 | E40: 7,720 | F40: 3,396 | G40: 3,174 | H40: 2,988 | I40: 2,963 | J40: 2,938.6 | K40: 2,994 | L40: 2,994
B41: Televisión, radio y equipo de comunicaciones | C41: 135,800 | D41: 136,649 | E41: 241,015 | F41: 235,859 | G41: 220,433 | H41: 207,523 | I41: 205,816 | J41: 204,091.8 | K41: 207,947 | L41: 207,947
B42: Instrumentos médicos, de precisión y ópticos, relojes y cronómetros | C42: 29,474 | D42: 35,682 | E42: 101,000 | F42: 42,271 | G42: 39,506 | H42: 37,193 | I42: 36,887 | J42: 36,577.6 | K42: 37,269 | L42: 37,269
B43: Vehículos de motor | C43: 2,546,516 | D43: 1,826,259 | E43: 2,422,164 | F43: 3,148,887 | G43: 2,942,946 | H43: 2,770,585 | I43: 2,747,796 | J43: 2,724,774.0 | K43: 2,776,248 | L43: 2,776,248
B44: Otros equipos de transporte | C44: 150,717 | D44: 245,606 | E44: 225,527 | F44: 299,433 | G44: 279,849 | H44: 263,459 | I44: 261,292 | J44: 259,102.9 | K44: 263,998 | L44: 263,998
B45: Barcos | C45: 0 | D45: 0 | E45: 0 | F45: 0 | G45: 0 | H45: 0 | I45: 0 | J45: 0.0 | K45: 0 | L45: 0
B46: Aviones | C46: 149,145 | D46: 245,406 | E46: 225,437 | F46: 289,314 | G46: 270,393 | H46: 254,556 | I46: 252,462 | J46: 250,347.2 | K46: 255,077 | L46: 255,077
B47: Otros transportes no especificados en otra parte | C47: 1,572 | D47: 200 | E47: 90 | F47: 10,119 | G47: 9,457 | H47: 8,903 | I47: 8,830 | J47: 8,755.7 | K47: 8,921 | L47: 8,921
B48: Muebles y otras manufacturas no especificadas en otra parte | C48: 22,570 | D48: 4,083 | E48: 7,227 | F48: 13,119 | G48: 12,261 | H48: 11,543 | I48: 11,448 | J48: 11,352.0 | K48: 11,566 | L48: 11,566
B49: Muebles | C49: 183 | D49: 2,318 | E49: 3,458 | F49: 4,698 | G49: 4,391 | H49: 4,134 | I49: 4,100 | J49: 4,065.2 | K49: 4,142 | L49: 4,142
B50: Otras manufacturas no especificadas en otra parte | C50: 22,387 | D50: 1,765 | E50: 3,769 | F50: 8,421 | G50: 7,870 | H50: 7,409 | I50: 7,348 | J50: 7,286.8 | K50: 7,424 | L50: 7,424
B51: Reciclaje | C51: 0 | D51: 0 | E51: 0 | F51: 0 | G51: 0 | H51: 0 | I51: 0 | J51: 0.0 | K51: 0 | L51: 0
B52: Electricidad, gas y suministro de agua (servicios públicos) | C52: 93,796 | D52: 0 | E52: 0 | F52: 0 | G52: 0 | H52: 0 | I52: 0 | J52: 0.0 | K52: 0 | L52: 0
B53: Construcción | C53: 67,003 | D53: 48,131 | E53: 81,543 | F53: 374,881 | G53: 350,364 | H53: 329,844 | I53: 327,131 | J53: 324,389.7 | K53: 330,518 | L53: 330,518
B54: Servicios | C54: 7,762,506 | D54: 5,269,393 | E54: 5,414,694 | F54: 6,214,104 | G54: 5,807,695 | H54: 5,467,552 | I54: 5,422,580 | J54: 5,377,146.9 | K54: 5,478,727 | L54: 5,478,727
B55: Ventas al mayoreo y menudeo y reparación de vehículos de motor, etc. | C55: 0 | D55: 0 | E55: 0 | F55: 0 | G55: 0 | H55: 0 | I55: 0 | J55: 0.0 | K55: 0 | L55: 0
B56: Hoteles y restaurantes | C56: 10,071 | D56: 3,054 | E56: 2,397 | F56: 1,181 | G56: 1,104 | H56: 1,039 | I56: 1,031 | J56: 1,022.2 | K56: 1,041 | L56: 1,041
B57: Transporte y almacenamiento | C57: 1,014,027 | D57: 177,928 | E57: 20,274 | F57: 93,102 | G57: 87,013 | H57: 81,917 | I57: 81,243 | J57: 80,562.3 | K57: 82,084 | L57: 82,084
B58: Comunicaciones | C58: 1,311,984 | D58: 1,152,458 | E58: 760,431 | F58: 159,434 | G58: 149,007 | H58: 140,280 | I58: 139,126 | J58: 137,960.2 | K58: 140,566 | L58: 140,566
B59: Correo | C59: 36,360 | D59: 1,294 | E59: 1,006 | F59: 0.0 | G59: 0 | H59: 0 | I59: 0 | J59: 714.7 | K59: 728 | L59: 728
B60: Telecomunicaciones | C60: 1,275,624 | D60: 1,151,164 | E60: 759,425 | F60: 0.0 | G60: 0 | H60: 0 | I60: 0 | J60: 137,245.5 | K60: 139,838 | L60: 139,838
B61: Intermediación financiera; bienes raíces, renta y actividades empresariales; computadoras y, otras actividades empresariales | C61: 5,426,423 | D61: 3,935,954 | E61: 4,631,593 | F61: 5,960,387 | G61: 5,570,571 | H61: 5,244,316 | I61: 5,201,180 | J61: 5,157,602.2 | K61: 5,255,035 | L61: 5,255,035
B62: Intermediación financiera (incluyendo aseguradoras) | C62: 1,342,815 | D62: 208,600 | E62: 277,648 | F62: 255,388 | G62: 238,685 | H62: 224,706 | I62: 222,858 | J62: 220,990.5 | K62: 225,165 | L62: 225,165
B63: Bienes raíces, renta y actividades empresariales | C63: 70,649 | D63: 82,115 | E63: 15,981 | F63: 13,436 | G63: 12,557 | H63: 11,822 | I63: 11,724 | J63: 11,626.2 | K63: 11,846 | L63: 11,846
B64: Computadoras y actividades relacionadas | C64: 160,143 | D64: 508,006 | E64: 620,045 | F64: 762,386 | G64: 712,525 | H64: 670,794 | I64: 665,277 | J64: 659,703.0 | K64: 672,166 | L64: 672,166
B65: Consultorías de software | C65: 160,143 | D65: 508,006 | E65: 620,045 | F65: 762,386 | G65: 712,525 | H65: 670,794 | I65: 665,277 | J65: 659,703.0 | K65: 672,166 | L65: 672,166
B66: Otros servicios de computadoras no especificados en otra parte | C66: 0 | D66: 0 | E66: 0 | F66: 0 | G66: 0 | H66: 0 | I66: 0 | J66: 0.0 | K66: 0 | L66: 0
B67: Investigación y desarrollo | C67: 630,495 | D67: 1,469,643 | E67: 1,720,679 | F67: 1,729,532 | G67: 1,616,419 | H67: 1,521,749 | I67: 1,509,232 | J67: 1,496,587.0 | K67: 1,524,859 | L67: 1,524,859
B68: Otras actividades empresariales no especificadas en otra parte | C68: 0 | D68: 0 | E68: 0 | F68: 0 | G68: 0 | H68: 0 | I68: 0 | J68: 0.0 | K68: 0 | L68: 0
B69: Servicios comunales, sociales y personales | C69: 3,222,322 | D69: 1,667,590 | E69: 1,997,240 | F69: 3,199,645 | G69: 2,990,385 | H69: 2,815,245 | I69: 2,792,089 | J69: 2,768,695.5 | K69: 2,820,999 | L69: 2,820,999
B70: Complemento de Manufacturas | C70: 0 | D70: 0 | E70: 0 | F70: 1,997 | G70: 1,866 | H70: 1,757 | I70: 1,743 | J70: 1,728.0 | K70: 1,761 | L70: 1,761
B71: Complemento de Servicios | C71: 36,815 | D71: 12,542 | E71: 9,062 | F71: 555 | G71: 519 | H71: 488 | I71: 484 | J71: 480.2 | K71: 489 | L71: 489
B72: Total | C72: 17,610,304 | D72: 13,594,074 | E72: 14,842,983 | F72: 17,346,195 | G72: 16,211,734 | H72: 15,262,252 | I72: 15,136,716 | J72: 15,009,893.1 | K72: 15,293,447 | L72: 15,293,447
B73: e/ Cifras estimadas.
B74: Notas:
B75: n1/ Los totales pueden no coincidir debido al redondeo de la cifras.
B76: n2/ Se consideraron cifras registradas en la ESIDET 2017 con información complementaria que capta el INEGI de ramas industriales de interés nacional, por lo tanto, se realizó un ajuste a los datos registrados en 2014, 2015 y 2016.
B77: Fuente: Elaboración propia con base en información proveniente de la Encuesta sobre Investigación y Desarrollo Tecnológico (ESIDET), 2012, 2014, 2017. INEGI-Conacyt.

Sheet A.6.10
B5: A.6.10 GIDESP POR INDUSTRIA, 2013-2022
B6: Miles de pesos a precios de 2022
B8: Industria
C9: 2013 | D9: 2014 | E9: 2015 | F9: 2016 | G9: 2017e/ | H9: 2018e/ | I9: 2019e/ | J9: 2020e/ | K9: 2021e/ | L9: 2022e/
B10: Agricultura | C10: 0.00 | D10: 0.00 | E10: 0.00 | F10: 0.00 | G10: 0.00 | H10: 0.00 | I10: 0.00 | J10: 0.00 | K10: 0.00 | L10: 0.00
B11: Minería | C11: 240,948 | D11: 73,733 | E11: 217,924 | F11: 132,146 | G11: 115,858 | H11: 103,624 | I11: 98,590 | J11: 93,278 | K11: 90,783 | L11: 85,286
B12: Manufactura | C12: 14,819,104 | D12: 12,284,594 | E12: 13,310,404 | F12: 14,559,732 | G12: 12,765,057 | H12: 11,417,123 | I12: 10,862,528 | J12: 10,277,229 | K12: 10,002,316 | L12: 9,396,666
B13: Alimentos, bebidas y tabaco | C13: 1,736,855 | D13: 509,740 | E13: 521,121 | F13: 1,010,102 | G13: 885,594 | H13: 792,079 | I13: 753,603 | J13: 712,997 | K13: 693,925 | L13: 651,907
B14: Productos alimenticios y bebidas | C14: 1,736,855 | D14: 509,740 | E14: 521,121 | F14: 1,010,102 | G14: 885,594 | H14: 792,079 | I14: 753,603 | J14: 712,997 | K14: 693,925 | L14: 651,907
B15: Productos del tabaco | C15: 0 | D15: 0 | E15: 0 | F15: 0 | G15: 0 | H15: 0 | I15: 0 | J15: 0 | K15: 0 | L15: 0
B16: Textiles, prendas de vestir, piel y cuero | C16: 238,831 | D16: 85,956 | E16: 247,414 | F16: 240,256 | G16: 210,642 | H16: 188,399 | I16: 179,247 | J16: 169,589 | K16: 165,053 | L16: 155,058
B17: Textiles | C17: 235,417 | D17: 44,095 | E17: 204,743 | F17: 218,824 | G17: 191,851 | H17: 171,592 | I17: 163,257 | J17: 154,460 | K17: 150,329 | L17: 141,226
B18: Prendas de vestir y piel | C18: 2,568 | D18: 0 | E18: 0 | F18: 0 | G18: 0 | H18: 0 | I18: 0 | J18: 0 | K18: 0 | L18: 0
B19: Productos de cuero e industria del calzado | C19: 846 | D19: 41,861 | E19: 42,671 | F19: 21,433 | G19: 18,791 | H19: 16,807 | I19: 15,990 | J19: 15,129 | K19: 14,724 | L19: 13,832
B20: Madera, papel, imprentas y publicaciones | C20: 266,709 | D20: 91,392 | E20: 226,380 | F20: 275,725 | G20: 241,738 | H20: 216,212 | I20: 205,709 | J20: 194,625 | K20: 189,419 | L20: 177,949
B21: Madera y corcho (no muebles) | C21: 56,064 | D21: 2,942 | E21: 7,373 | F21: 17,852 | G21: 15,652 | H21: 13,999 | I21: 13,319 | J21: 12,601 | K21: 12,264 | L21: 11,522
B22: Pulpa, papel y productos de papel | C22: 183,552 | D22: 80,725 | E22: 210,985 | F22: 244,646 | G22: 214,490 | H22: 191,841 | I22: 182,522 | J22: 172,687 | K22: 168,068 | L22: 157,891
B23: Publicaciones, imprentas y reproducción de medios de grabación | C23: 27,093 | D23: 7,725 | E23: 8,022 | F23: 13,227 | G23: 11,597 | H23: 10,372 | I23: 9,868 | J23: 9,337 | K23: 9,087 | L23: 8,537
B24: Carbón, petróleo, energía nuclear, químicos y productos de caucho y plástico | C24: 3,116,921 | D24: 2,565,307 | E24: 2,669,586 | F24: 2,756,119 | G24: 2,416,392 | H24: 2,161,231 | I24: 2,056,248 | J24: 1,945,452 | K24: 1,893,412 | L24: 1,778,764
B25: Carbón, productos derivados del petróleo y energía nuclear | C25: 96,793 | D25: 74,507 | E25: 39,955 | F25: 46,293 | G25: 40,587 | H25: 36,301 | I25: 34,538 | J25: 32,677 | K25: 31,802 | L25: 29,877
B26: Químicos y productos químicos | C26: 2,852,846 | D26: 2,250,231 | E26: 2,265,154 | F26: 2,318,802 | G26: 2,032,980 | H26: 1,818,306 | I26: 1,729,981 | J26: 1,636,765 | K26: 1,592,982 | L26: 1,496,526
B27: Químicos y productos químicos (excepto farmacéuticos) | C27: 753,342 | D27: 803,328 | E27: 698,438 | F27: 856,764 | G27: 751,156 | H27: 671,838 | I27: 639,203 | J27: 604,761 | K27: 588,584 | L27: 552,944
B28: Farmacéuticos | C28: 2,099,504 | D28: 1,446,903 | E28: 1,566,716 | F28: 1,462,039 | G28: 1,281,824 | H28: 1,146,469 | I28: 1,090,778 | J28: 1,032,004 | K28: 1,004,399 | L28: 943,581
B29: Caucho y productos plásticos | C29: 167,282 | D29: 240,569 | E29: 364,477 | F29: 391,024 | G29: 342,825 | H29: 306,624 | I29: 291,730 | J29: 276,011 | K29: 268,627 | L29: 252,362
B30: Productos minerales no metálicos | C30: 411,419 | D30: 1,594,457 | E30: 1,454,424 | F30: 1,290,214 | G30: 1,131,179 | H30: 1,011,731 | I30: 962,586 | J30: 910,719 | K30: 886,358 | L30: 832,688
B31: Metales básicos | C31: 274,209 | D31: 61,310 | E31: 137,474 | F31: 96,224 | G31: 84,363 | H31: 75,454 | I31: 71,789 | J31: 67,921 | K31: 66,104 | L31: 62,101
B32: Metales básicos ferrosos | C32: 222,285 | D32: 45,116 | E32: 115,468 | F32: 58,597 | G32: 51,374 | H32: 45,949 | I32: 43,717 | J32: 41,361 | K32: 40,255 | L32: 37,817
B33: Metales básicos no ferrosos | C33: 51,924 | D33: 16,194 | E33: 22,006 | F33: 37,627 | G33: 32,989 | H33: 29,506 | I33: 28,072 | J33: 26,560 | K33: 25,849 | L33: 24,284
B34: Productos fabricados de metal (excepto maquinaria y equipo) | C34: 916,613 | D34: 937,921 | E34: 976,708 | F34: 662,948 | G34: 581,231 | H34: 519,856 | I34: 494,603 | J34: 467,953 | K34: 455,435 | L34: 427,858
B35: Maquinaria, equipo, instrumentos y equipo de transporte | C35: 7,822,325 | D35: 6,432,404 | E35: 7,066,827 | F35: 8,210,222 | G35: 7,198,206 | H35: 6,438,107 | I35: 6,125,372 | J35: 5,795,322 | K35: 5,640,299 | L35: 5,298,773
B36: Maquinaria no especificada en otra parte | C36: 500,913 | D36: 336,684 | E36: 213,576 | F36: 506,610 | G36: 444,163 | H36: 397,262 | I36: 377,964 | J36: 357,599 | K36: 348,033 | L36: 326,959
B37: Maquinaria de oficina, contabilidad y computación | C37: 529,036 | D37: 467,225 | E37: 568,037 | F37: 563,630 | G37: 494,155 | H37: 441,975 | I37: 420,506 | J37: 397,848 | K37: 387,205 | L37: 363,760
B38: Maquinaria eléctrica | C38: 2,306,792 | D38: 2,241,610 | E38: 1,942,578 | F38: 2,044,661 | G38: 1,792,630 | H38: 1,603,336 | I38: 1,525,453 | J38: 1,443,258 | K38: 1,404,651 | L38: 1,319,598
B39: Equipo electrónico (radio, T.V. y comunicaciones) | C39: 230,293 | D39: 235,176 | E39: 360,364 | F39: 326,845 | G39: 286,557 | H39: 256,298 | I39: 243,848 | J39: 230,709 | K39: 224,537 | L39: 210,941
B40: Componentes electrónicos (incluye semiconductores) | C40: 18,364 | D40: 30,826 | E40: 11,185 | F40: 4,639 | G40: 4,067 | H40: 3,638 | I40: 3,461 | J40: 3,275 | K40: 3,187 | L40: 2,994
B41: Televisión, radio y equipo de comunicaciones | C41: 211,929 | D41: 204,351 | E41: 349,180 | F41: 322,205 | G41: 282,489 | H41: 252,660 | I41: 240,387 | J41: 227,434 | K41: 221,350 | L41: 207,947
B42: Instrumentos médicos, de precisión y ópticos, relojes y cronómetros | C42: 45,997 | D42: 53,360 | E42: 146,328 | F42: 57,746 | G42: 50,628 | H42: 45,282 | I42: 43,082 | J42: 40,761 | K42: 39,671 | L42: 37,269
B43: Vehículos de motor | C43: 3,974,085 | D43: 2,731,061 | E43: 3,509,202 | F43: 4,301,678 | G43: 3,771,440 | H43: 3,373,193 | I43: 3,209,337 | J43: 3,036,411 | K43: 2,955,188 | L43: 2,776,248
B44: Otros equipos de transporte | C44: 235,209 | D44: 367,289 | E44: 326,741 | F44: 409,053 | G44: 358,632 | H44: 320,762 | I44: 305,181 | J44: 288,737 | K44: 281,013 | L44: 263,998
B45: Barcos | C45: 0 | D45: 0 | E45: 0 | F45: 0 | G45: 0 | H45: 0 | I45: 0 | J45: 0 | K45: 0 | L45: 0
B46: Aviones | C46: 232,755 | D46: 366,990 | E46: 326,610 | F46: 395,230 | G46: 346,513 | H46: 309,923 | I46: 294,868 | J46: 278,980 | K46: 271,517 | L46: 255,077
B47: Otros transportes no especificados en otra parte | C47: 2,453 | D47: 299 | E47: 130 | F47: 13,823 | G47: 12,119 | H47: 10,839 | I47: 10,313 | J47: 9,757 | K47: 9,496 | L47: 8,921
B48: Muebles y otras manufacturas no especificadas en otra parte | C48: 35,222 | D48: 6,106 | E48: 10,470 | F48: 17,922 | G48: 15,713 | H48: 14,054 | I48: 13,371 | J48: 12,650 | K48: 12,312 | L48: 11,566
B49: Muebles | C49: 286 | D49: 3,466 | E49: 5,010 | F49: 6,418 | G49: 5,627 | H49: 5,033 | I49: 4,788 | J49: 4,530 | K49: 4,409 | L49: 4,142
B50: Otras manufacturas no especificadas en otra parte | C50: 34,936 | D50: 2,639 | E50: 5,460 | F50: 11,504 | G50: 10,086 | H50: 9,021 | I50: 8,583 | J50: 8,120 | K50: 7,903 | L50: 7,424
B51: Reciclaje | C51: 0 | D51: 0 | E51: 0 | F51: 0 | G51: 0 | H51: 0 | I51: 0 | J51: 0 | K51: 0 | L51: 0
B52: Electricidad, gas y suministro de agua (servicios públicos) | C52: 146,378 | D52: 0 | E52: 0 | F52: 0 | G52: 0 | H52: 0 | I52: 0 | J52: 0 | K52: 0 | L52: 0
B53: Construcción | C53: 104,565 | D53: 71,978 | E53: 118,139 | F53: 512,123 | G53: 448,997 | H53: 401,585 | I53: 382,078 | J53: 361,491 | K53: 351,821 | L53: 330,518
B54: Servicios | C54: 12,114,146 | D54: 7,880,061 | E54: 7,844,746 | F54: 8,489,053 | G54: 7,442,668 | H54: 6,656,755 | I54: 6,333,398 | J54: 5,992,139 | K54: 5,831,851 | L54: 5,478,727
B55: Ventas al mayoreo y menudeo y reparación de vehículos de motor, etc. | C55: 0 | D55: 0 | E55: 0 | F55: 0 | G55: 0 | H55: 0 | I55: 0 | J55: 0 | K55: 0 | L55: 0
B56: Hoteles y restaurantes | C56: 15,717 | D56: 4,567 | E56: 3,472 | F56: 1,614 | G56: 1,415 | H56: 1,265 | I56: 1,204 | J56: 1,139 | K56: 1,109 | L56: 1,041
B57: Transporte y almacenamiento | C57: 1,582,488 | D57: 266,080 | E57: 29,373 | F57: 127,186 | G57: 111,509 | H57: 99,734 | I57: 94,889 | J57: 89,776 | K57: 87,375 | L57: 82,084
B58: Comunicaciones | C58: 2,047,478 | D58: 1,723,432 | E58: 1,101,703 | F58: 217,802 | G58: 190,955 | H58: 170,791 | I58: 162,495 | J58: 153,739 | K58: 149,626 | L58: 140,566
B59: Correo | C59: 56,743 | D59: 1,935 | E59: 1,457 | F59: 0.0 | G59: 0 | H59: 885 | I59: 842 | J59: 796 | K59: 775 | L59: 728
B60: Telecomunicaciones | C60: 1,990,735 | D60: 1,721,497 | E60: 1,100,246 | F60: 0.0 | G60: 0 | H60: 169,906 | I60: 161,653 | J60: 152,942 | K60: 148,851 | L60: 139,838
B61: Intermediación financiera; bienes raíces, renta y actividades empresariales; computadoras y, otras actividades empresariales | C61: 8,468,462 | D61: 5,885,982 | E61: 6,710,197 | F61: 8,142,452 | G61: 7,138,789 | H61: 6,384,965 | I61: 6,074,810 | J61: 5,747,485 | K61: 5,593,742 | L61: 5,255,035
B62: Intermediación financiera (incluyendo aseguradoras) | C62: 2,095,594 | D62: 311,949 | E62: 402,254 | F62: 348,884 | G62: 305,879 | H62: 273,580 | I62: 260,291 | J62: 246,265 | K62: 239,678 | L62: 225,165
B63: Bienes raíces, renta y actividades empresariales | C63: 110,255 | D63: 122,798 | E63: 23,153 | F63: 18,355 | G63: 16,092 | H63: 14,393 | I63: 13,694 | J63: 12,956 | K63: 12,609 | L63: 11,846
B64: Computadoras y actividades relacionadas | C64: 249,919 | D64: 759,692 | E64: 898,314 | F64: 1,041,492 | G64: 913,114 | H64: 816,694 | I64: 777,022 | J64: 735,154 | K64: 715,489 | L64: 672,166
B65: Consultorías de software | C65: 249,919 | D65: 759,692 | E65: 898,314 | F65: 1,041,492 | G65: 913,114 | H65: 816,694 | I65: 777,022 | J65: 735,154 | K65: 715,489 | L65: 672,166
B66: Otros servicios de computadoras no especificados en otra parte | C66: 0 | D66: 0 | E66: 0 | F66: 0 | G66: 0 | H66: 0 | I66: 0 | J66: 0 | K66: 0 | L66: 0
B67: Investigación y desarrollo | C67: 983,948 | D67: 2,197,763 | E67: 2,492,900 | F67: 2,362,704 | G67: 2,071,470 | H67: 1,852,732 | I67: 1,762,734 | J67: 1,667,754 | K67: 1,623,142 | L67: 1,524,859
B68: Otras actividades empresariales no especificadas en otra parte | C68: 0 | D68: 0 | E68: 0 | F68: 0 | G68: 0 | H68: 0 | I68: 0 | J68: 0 | K68: 0 | L68: 0
B69: Servicios comunales, sociales y personales | C69: 5,028,746 | D69: 2,493,780 | E69: 2,893,578 | F69: 4,371,018 | G69: 3,832,233 | H69: 3,427,566 | I69: 3,261,070 | J69: 3,085,355 | K69: 3,002,823 | L69: 2,820,999
B70: Complemento de Manufacturas | C70: 0 | D70: 0 | E70: 0 | F70: 2,728 | G70: 2,392 | H70: 2,139 | I70: 2,035 | J70: 1,926 | K70: 1,874 | L70: 1,761
B71: Complemento de Servicios | C71: 57,453 | D71: 18,756 | E71: 13,129 | F71: 758 | G71: 665 | H71: 595 | I71: 566 | J71: 535 | K71: 521 | L71: 489
B72: Total | C72: 27,482,593.08 | D72: 20,329,121.18 | E72: 21,504,341.39 | F72: 23,696,541.59 | G72: 20,775,635.63 | H72: 18,581,820.98 | I72: 17,679,195.25 | J72: 16,726,597.33 | K72: 16,279,166.25 | L72: 15,293,447
B73: e/ Cifras estimadas.
B74: Notas:
B75: n1/ Los totales pueden no coincidir debido al redondeo de la cifras.
B76: n2/ Se consideraron cifras registradas en la ESIDET 2017 con información complementaria que capta el INEGI de ramas industriales de interés nacional, por lo tanto, se realizó un ajuste a los datos registrados en 2014, 2015 y 2016.
B77: Fuente: Elaboración propia con base en información proveniente de la Encuesta sobre Investigación y Desarrollo Tecnológico (ESIDET), 2012, 2014, 2017. INEGI-Conacyt.

Sheet A.6.11
B5: A.6.11 GIDE POR PAÍS, 2021
B6: Millones de USD / porcentaje
B8: País | C8: GIDE (millones de USD PPP)1/ | D8: GIDE/PIB (%)
B10: Alemaniae/ | C10: 153,232.3 | D10: 3.13
B11: Austriap/ | C11: 17,120.7 | D11: 3.19
B12: Canadáp/ | C12: 34,452.5 | D12: 1.70
B13: China | C13: 667,638.6 | D13: 2.43
B14: Corea | C14: 119,617.3 | D14: 4.93
B15: Dinamarcap/ | C15: 10,685.5 | D15: 2.81
B16: Eslovenia p/ | C16: 1,982.7 | D16: 2.14
B17: España p/ | C17: 27,550.0 | D17: 1.43
B18: Estados Unidos de Américae/ | C18: 806,013.0 | D18: 3.46
B19: Estonia p/ | C19: 1,013.6 | D19: 1.75
B20: Finlandia | C20: 9,059.3 | D20: 2.99
B21: Franciae/ | C21: 76,952.3 | D21: 2.21
B22: Greciap/ | C22: 4,829.2 | D22: 1.45
B23: Hungría | C23: 5,862.6 | D23: 1.65
B24: Irlandae/ | C24: 6,066.2 | D24: 1.11
B25: Islandia | C25: 608.0 | D25: 2.80
B26: Israele/ | C26: 22,934.4 | D26: 5.56
B27: Italia p/ | C27: 40,939.9 | D27: 1.48
B28: Japón | C28: 176,961.5 | D28: 3.30
B29: Luxemburgop/ | C29: 860.7 | D29: 1.02
B30: Méxicoe/ | C30: 7,006.3 | D30: 0.27
B31: Noruega | C31: 8,578.6 | D31: 1.94
B32: Nueva Zelanda | C32: 3,602.2 | D32: 1.47
B33: Países Bajosp/ | C33: 25,081.0 | D33: 2.26
B34: Polonia | C34: 20,663.5 | D34: 1.44
B35: Portugal | C35: 6,278.5 | D35: 1.66
B36: Reino Unido p/ | C36: 97,792.6 | D36: 2.91
B37: República Checa p/ | C37: 9,566.0 | D37: 2.00
B38: República Eslovaca | C38: 1,721.3 | D38: 0.93
B39: Rumania | C39: 3,280.1 | D39: 0.48
B40: Sueciae/ | C40: 20,974.1 | D40: 3.35
B41: Suiza | C41: 22,213.7 | D41: 3.36
B42: Turquía | C42: 29,168.4 | D42: 1.13
B43: e/ Cifras estimadas.
B44: p/ Cifras provisionales.
B45: 1/ La paridad del poder adquisitivo (PPP por sus siglas en inglés) es la tasa de conversión de moneda que elimina las diferencias en niveles de precios entre países.
B46: Fuentes: Los datos para México están calculados con base en información proveniente de la Encuesta sobre Investigación y Desarrollo Tecnológico (ESIDET) 2017 INEGI-Conacyt. Cuenta de la Hacienda Pública Federal.
B47: OECD, Main Science and Technology Indicators, en https://stats.oecd.org/Index.aspx?DataSetCode=MSTI_PUB consultado 17/05/2024.

Sheet A.6.12
B5: A.6.12 FUENTES DE FINANCIAMIENTO DEL GIDE POR PAÍS, 2021
B6: Porcentaje
B8: País | C8: Fuente de financiamiento
C9: Gobierno | D9: Empresas | E9: Otros1/
B10: Alemania d/ | C10: 29.96 | D10: 62.78 | E10: 7.26
B11: Argentina | C11: 58.55 | D11: 21.08 | E11: 20.37
B12: Austria | C12: 28.46 | D12: 52.96 | E12: 18.58
B13: Bélgica | C13: 17.26 | D13: 64.42 | E13: 18.32
B14: Canadá p/ | C14: 23.39 | D14: 44.04 | E14: 32.57
B15: China | C15: 18.96 | D15: 78.01 | E15: 3.03
B16: Corea | C16: 22.80 | D16: 76.12 | E16: 1.08
B17: Eslovenia | C17: 24.31 | D17: 48.73 | E17: 26.96
B18: España | C18: 37.46 | D18: 50.24 | E18: 12.30
B19: Estonia | C19: 36.98 | D19: 50.95 | E19: 12.07
B20: Estados Unidos de América dp/ | C20: 19.89 | D20: 67.91 | E20: 12.21
B21: Finlandia | C21: 25.58 | D21: 58.08 | E21: 16.34
B22: Francia | C22: 32.46 | D22: 55.43 | E22: 12.11
B23: Grecia | C23: 44.96 | D23: 38.30 | E23: 16.74
B24: Hungría | C24: 35.08 | D24: 50.57 | E24: 14.35
B25: Irlanda b/ | C25: 16.76 | D25: 55.52 | E25: 27.72
B26: Islandia b/ | C26: 24.99 | D26: 48.85 | E26: 26.16
B27: Italia | C27: 35.15 | D27: 53.91 | E27: 10.94
B28: Japón | C28: 15.46 | D28: 78.07 | E28: 6.47
B29: Luxemburgo | C29: 46.99 | D29: 44.18 | E29: 8.83
B30: Méxicoe/ | C30: 77.44 | D30: 17.04 | E30: 5.52
B31: Noruega | C31: 46.55 | D31: 43.45 | E31: 10.00
B32: Nueva Zelanda | C32: 31.62 | D32: 50.13 | E32: 18.25
B33: Países Bajos | C33: 30.68 | D33: 56.52 | E33: 12.80
B34: Polonia | C34: 37.39 | D34: 50.97 | E34: 11.64
B35: Portugal | C35: 35.58 | D35: 53.66 | E35: 10.76
B36: Reino Unido p/ | C36: 19.40 | D36: 58.54 | E36: 22.06
B37: República Checa | C37: 32.32 | D37: 36.05 | E37: 31.63
B38: República Eslovaca | C38: 37.92 | D38: 45.70 | E38: 16.38
B39: Rumania | C39: 31.65 | D39: 55.17 | E39: 13.18
B40: Suecia ev/ | C40: 23.25 | D40: 60.65 | E40: 16.10
B41: Suiza | C41: 26.81 | D41: 65.91 | E41: 7.28
B42: Turquía | C42: 27.45 | D42: 62.42 | E42: 10.13
B43: b/ Ruptura en la serie temporal
B44: d/ Diferente definición
B45: e/ Cifras estimadas.
B46: p/ Cifras provisionales.
B47: v/ La suma del desglose no suma el total
B48: n.d No diponible
B49: 1/ El concepto "Otros" corresponde a contribuciones de los Sectores Educación Superior, Instituciones Privadas no Lucrativas y Fondos del Exterior.
B50: Los totales pueden no coincidir debido al redondeo de las cifras.
B51: Fuentes: Los datos para México están calculados con base en información proveniente de la Encuesta sobre Investigación y Desarrollo Tecnológico (ESIDET) 2017; INEGI-Conacyt. Cuenta de la Hacienda Pública Federal.
B52: OECD, Main Science and Technology Indicators, en https://stats.oecd.org/Index.aspx?DataSetCode=MSTI_PUB, consultado 17/05/2024.

Sheet A.6.13
B5: A.6.13 GIDE EJECUTADO POR EL SECTOR GOBIERNO POR PAÍS, 2021
B7: País | C7: GIDESG (millones de USD PPP)1/ | D7: GIDESG/GIDE (%) | E7: GIDESG/PIB (%)
B8: Alemaniad/ | C8: 22,764.6 | D8: 14.81 | E8: 0.46
B9: Argentina | C9: 2,133.2 | D9: 38.04 | E9: 0.20
B10: Austriap/ | C10: 1,318.5 | D10: 6.43 | E10: 0.25
B11: Bélgica | C11: 2,001.8 | D11: 8.56 | E11: 0.29
B12: Canadáp/ | C12: 2,376.1 | D12: 6.91 | E12: 0.12
B13: China | C13: 102,015.9 | D13: 15.28 | E13: 0.4
B14: Corea | C14: 11,684.4 | D14: 9.77 | E14: 0.48
B15: Dinamarcap/ | C15: 363.4 | D15: 3.40 | E15: 0.09
B16: Eslovenia | C16: 266.7 | D16: 13.50 | E16: 0.29
B17: España | C17: 4,649.0 | D17: 16.87 | E17: 0.24
B18: Estados Unidos de Américadp/ | C18: 66,828.0 | D18: 8.29 | E18: 0.29
B19: Estonia | C19: 94.5 | D19: 9.32 | E19: 0.16
B20: Finlandia | C20: 663.9 | D20: 7.33 | E20: 0.22
B21: Francia | C21: 9,051.0 | D21: 11.72 | E21: 0.26
B22: Grecia | C22: 1,082.1 | D22: 22.31 | E22: 0.32
B23: Hungríad/ | C23: 597.9 | D23: 10.20 | E23: 0.17
B24: Irlanda | C24: 212.4 | D24: 3.50 | E24: 0.04
B25: Islandia | C25: 17.2 | D25: 2.83 | E25: 0.08
B26: Israeld/ | C26: 253.5 | D26: 1.11 | E26: 0.06
B27: Italia | C27: 5,604.5 | D27: 13.96 | E27: 0.20
B28: Japón | C28: 14,826.0 | D28: 8.36 | E28: 0.28
B29: Luxemburgo | C29: 213.9 | D29: 24.39 | E29: 0.25
B30: Méxicoe/ | C30: 1,852.0 | D30: 26.43 | E30: 0.07
B31: Noruega | C31: 1,130.5 | D31: 13.17 | E31: 0.26
B32: Nueva Zelanda | C32: 616.8 | D32: 17,12 | E32: 0.3
B33: Países Bajosd/ | C33: 1,403.2 | D33: 5.47 | E33: 0.12
B34: Polonia | C34: 422.6 | D34: 2.04 | E34: 0.03
B35: Portugal | C35: 299.2 | D35: 4.71 | E35: 0.08
B36: Reino Unido/p | C36: 4,973.3 | D36: 5.09 | E36: 0.15
B37: República Checa | C37: 1,593.5 | D37: 16.65 | E37: 0.33
B38: República Eslovaca | C38: 318.4 | D38: 18.50 | E38: 0.17
B39: Rumania | C39: 985.4 | D39: 30.04 | E39: 0.14
B40: Sueciav/ | C40: 944.5 | D40: 4.41 | E40: 0.15
B41: Suiza d/ | C41: 208.7 | D41: 0.94 | E41: 0.03
B42: Turquía | C42: 1,632.4 | D42: 4.51 | E42: 0.06
B43: d/ Diferente definición.
B44: e/ Cifras estimadas.
B45: p/ Cifras provisionales.
B46: v/ La suma del desglose no suma al total.
B47: 1/ La paridad del poder adquisitivo (PPP por sus siglas en inglés) es la tasa de conversión de moneda que elimina las diferencias en niveles de precios entre países.
B48: n.d: No diponible
B49: Fuentes: Los datos para México están calculados con base en información proveniente de la Encuesta sobre Investigación y Desarrollo Tecnológico (ESIDET) 2017; INEGI-Conacyt. Cuenta de la Hacienda Pública Federal.
B50: OECD, Main Science and Technology Indicator, en https://stats.oecd.org/Index.aspx?DataSetCode=MSTI_PUB consultado 17/05/2024.
B51: * RICYT, Indicadores en http://www.ricyt.org/category/indicadores/ consultado 17/05/2024
B52: **UNESCO, Institute for Statistics en Data extracted, consultado 17/05/2024 from UIS.Stat

Sheet A.6.14
B5: A.6.14 GIDE EJECUTADO POR EL SECTOR INSTITUCIONES DE EDUCACIÓN SUPERIOR POR PAÍS, 2021
B7: País | C7: GIDESES (millones de USD PPP)1/ | D7: GIDESES/GIDE (%) | E7: GIDESES/PIB (%)
B8: Alemania | C8: 20,661.4 | D8: 18.25 | E8: 0.57
B9: Argentina | C9: 51,977.2 | D9: 21.70 | E9: 0.11
B10: Austria | C10: 3,054.3 | D10: 23.09 | E10: 0.75
B11: Bélgica | C11: 2,799.2 | D11: 16.24 | E11: 0.56
B12: Canadáp/ | C12: 16,067.0 | D12: 37.72 | E12: 0.64
B13: China | C13: 218,049.3 | D13: 7.80 | E13: 0.19
B14: Corea | C14: 9,330,614.9 | D14: 9.14 | E14: 0.45
B15: Dinamarcap/ | C15: 24,019.0 | D15: 34.10 | E15: 0.94
B16: Eslovenia | C16: 137.2 | D16: 12.34 | E16: 0.26
B17: España | C17: 4,587.0 | D17: 26.59 | E17: 0.38
B18: Estados Unidos de Américad/ | C18: 84,035.0 | D18: 10.43 | E18: 0.36
B19: Estonia | C19: 185.2 | D19: 33.62 | E19: 0.59
B20: Finlandia | C20: 1,731.3 | D20: 23.11 | E20: 0.69
B21: Francia | C21: 11,368.3 | D21: 20.48 | E21: 0.45
B22: Grecia | C22: 795.2 | D22: 30.05 | E22: 0.44
B23: Hungríad/ | C23: 125,009.8 | D23: 13.78 | E23: 0.23
B24: Irlanda b/ | C24: 773.2 | D24: 16.04 | E24: 0.18
B25: Islandia | C25: 23,229.2 | D25: 25.52 | E25: 0.72
B26: Israeld/ | C26: 6,264.5 | D26: 7.14 | E26: 0.40
B27: Italia | C27: 6,231.7 | D27: 23.98 | E27: 0.35
B28: Japón | C28: 2,149,630.0 | D28: 11.87 | E28: 0.39
B29: Luxemburgo | C29: 188.1 | D29: 24.97 | E29: 0.26
B30: Méxicoe/ | C30: 3,593.2 | D30: 51.29 | E30: 0.14
B31: Noruega | C31: 26,904.2 | D31: 32.96 | E31: 0.64
B32: Nueva Zelanda | C32: 1,254.0 | D32: 23.86 | E32: 0.35
B33: Países Bajos | C33: 5,623.0 | D33: 28.47 | E33: 0.65
B34: Polonia | C34: 13,059.0 | D34: 34.66 | E34: 0.50
B35: Portugal | C35: 1,202.4 | D35: 33.31 | E35: 0.56
B36: Reino Unido | C36: 14,905.0 | D36: 22.52 | E36: 0.66
B37: República Checa | C37: 24,748.0 | D37: 20.30 | E37: 0.41
B38: República Eslovaca | C38: 233.4 | D38: 25.42 | E38: 0.23
B39: Rumania | C39: 515.2 | D39: 9.17 | E39: 0.04
B40: Suecia | C40: 42,981.0 | D40: 23.03 | E40: 0.78
B41: Suiza | C41: 6,925.5 | D41: 28.18 | E41: 0.95
B42: Turquía | C42: 34,754.1 | D42: 34.16 | E42: 0.48
B43: d/ Diferente definición.
B44: b/ Ruptura de la serie de tiempo.
B45: e/ Cifras estimadas.
B46: p/ Cifras provisionales.
B47: 1/ La paridad del poder adquisitivo (PPP por sus siglas en inglés) es la tasa de conversión de moneda que elimina las diferencias en niveles de precios entre países.
B48: n.d: No diponible
B49: Fuentes: Los datos para México están calculados con base en información proveniente de la Encuesta sobre Investigación y Desarrollo Tecnológico (ESIDET) 2017; INEGI-Conacyt. Cuenta de la Hacienda Pública Federal.
B50: OECD, Main Science and Technology Indicator, en https://stats.oecd.org/Index.aspx?DataSetCode=MSTI_PUB consultado 17/05/2024.
B51: * RICYT, Indicadores en http://www.ricyt.org/category/indicadores/ consultado 17/05/2024
B52: **UNESCO, Institute for Statistics en Data extracted, consultado 17/05/2024 from UIS.Stat

Sheet A.6.15
B5: A.6.15 GIDE EJECUTADO POR EL SECTOR EMPRESARIAL POR PAÍS, 2021
B7: País | C7: GIDESP (millones de USD PPP)1/ | D7: GIDESP/GIDE (%) | E7: GIDESP/PIB (%)
B8: Alemania | C8: 102,897.66 | D8: 66.94 | E8: 2.09
B9: Argentina | C9: 2,189.97 | D9: 39.05 | E9: 0.20
B10: Austria | C10: 12,042.44 | D10: 68.87 | E10: 2.24
B11: Bélgica | C11: 17,474.24 | D11: 74.69 | E11: 2.56
B12: Canadáp/ | C12: 18,923.30 | D12: 55.01 | E12: 0.93
B13: China | C13: 513,549.20 | D13: 76.92 | E13: 1.87
B14: Corea | C14: 94,611.87 | D14: 79.12 | E14: 3.90
B15: Dinamarcap/ | C15: 6,641.92 | D15: 62.14 | E15: 1.72
B16: Eslovenia | C16: 1,448.49 | D16: 73.33 | E16: 1.56
B17: España | C17: 15,490.32 | D17: 56.21 | E17: 0.80
B18: Estonia | C18: 566.14 | D18: 55.84 | E18: 0.98
B19: Estados Unidos de Américap/ | C19: 625,486.00 | D19: 77.60 | E19: 2.68
B20: Finlandia | C20: 6,232.99 | D20: 68.78 | E20: 2.05
B21: Francia | C21: 50,757.50 | D21: 65.73 | E21: 1.46
B22: Grecia | C22: 2,282.48 | D22: 47.06 | E22: 0.69
B23: Hungríad/ | C23: 4,424.76 | D23: 75.46 | E23: 1.24
B24: Irlanda | C24: 4,880.90 | D24: 80.46 | E24: 0.89
B25: Islandia/d | C25: 435.80 | D25: 71.66 | E25: 2.01
B26: Israeld/ | C26: 20,861.32 | D26: 90.98 | E26: 5.06
B27: Italia | C27: 24,160.52 | D27: 60.19 | E27: 0.88
B28: Japón | C28: 139,386.90 | D28: 78.56 | E28: 2.59
B29: Luxemburgo | C29: 444.26 | D29: 50.64 | E29: 0.53
B30: Méxicoe/ | C30: 1,466.60 | D30: 20.93 | E30: 0.06
B31: Noruega | C31: 4,621.76 | D31: 53.86 | E31: 1.04
B32: Nueva Zelanda | C32: 2,125.95 | D32: 59.02 | E32: 0.87
B33: Países Bajos | C33: 16,946.48 | D33: 66.06 | E33: 1.50
B34: Polonia | C34: 13,039.55 | D34: 63.09 | E34: 0.90
B35: Portugal | C35: 3,793.76 | D35: 59.67 | E35: 1.00
B36: Reino Unido/p | C36: 69,354.09 | D36: 70.92 | E36: 2.07
B37: República Checa | C37: 6,007.61 | D37: 62.79 | E37: 1.25
B38: República Eslovaca | C38: 964.88 | D38: 56.04 | E38: 0.51
B39: Rumania | C39: 1,982.52 | D39: 60.44 | E39: 0.29
B40: Suecia | C40: 15,505.23 | D40: 72.45 | E40: 2.46
B41: Suiza | C41: 15,165.79 | D41: 68.27 | E41: 2.29
B42: Turquía | C42: 22,223.24 | D42: 61.33 | E42: 0.86
B43: d/ Diferente definición
B44: e/ Cifras estimadas.
B45: p/ Cifras provisionales.
B46: 1/ La paridad del poder adquisitivo (PPP por sus siglas en inglés) es la tasa de conversión de moneda que elimina las diferencias en niveles de precios entre países.
B47: n.d: No diponible
B48: Fuentes: Los datos para México están calculados con base en información proveniente de la Encuesta sobre Investigación y Desarrollo Tecnológico (ESIDET) 2017; INEGI-Conacyt. Cuenta de la Hacienda Pública Federal.
B49: OECD, Main Science and Technology Indicator, en https://stats.oecd.org/Index.aspx?DataSetCode=MSTI_PUB consultado 17/05/2024.
B50: * RICYT, Indicadores en http://www.ricyt.org/category/indicadores/ consultado 17/05/2024
B51: **UNESCO, Institute for Statistics en Data extracted, consultado 17/05/2024 from UIS.Stat

Sheet A.6.16
B5: A.6.16 GIDE POR PAÍS, 2013-2021
B6: Millones de USD PPP1/
B8: País | C8: 2013 | E8: 2014 | G8: 2015 | I8: 2016 | K8: 2017 | M8: 2018 | O8: 2019 | Q8: 2020 | S8: 2021
B9: Alemania | C9: 102,905 | E9: 109,563 | G9: 114,098 | I9: 122,472 | K9: 133,668 | M9: 142,320 | O9: 151,081 | Q9: 146,996 | R9: (e) | S9: 153,232
B10: Argentina | C10: 5,287 | D10: p/ | E10: 4,976 | F10: p/ | G10: 5,364 | I10: 4,693 | K10: 5,782 | M10: 5,123 | O10: 4,886 | Q10: 4,898 | S10: 5,608
B11: Austria | C11: 12,008 | E11: 12,863 | F11: e/ | G11: 13,143 | I11: 14,345 | J11: (e) | K11: 14,567 | M11: 15,563 | N11: (e) | O11: 16,607 | Q11: 16,344 | R11: (e) | S11: 17,121
B12: Bélgica | C12: 11,359 | E12: 11,936 | G12: 12,648 | I12: 13,896 | K12: 15,301 | M12: 17,169 | O12: 20,238 | Q12: 21,121 | R12: (e) | S12: 23,396
B13: Brasil* | C13: 37,471 | E13: 40,467 | G13: 41,331 | I13: 37,807 | K13: 33,733 | M13: 36,735 | O13: 39,250 | Q13: 36,798 | S13: n.d.
B14: Canadá | C14: 26,504 | E14: 27,794 | F14: b/ | G14: 27,005 | I14: 29,015 | K14: 29,789 | M14: 32,190 | O14: 32,898 | Q14: 34,040 | S14: 34,453 | T14: (p)
B15: Chile | C15: 1,533 | E15: 1,518 | F15: b/ | G15: 1,553 | I15: 1,576 | J15: (b) | K15: 1,609 | M15: 1,765 | N15: (e) | O15: 1,667 | P15: (e) | Q15: 1,613 | R15: (e) | S15: n.d.
B16: China | C16: 323,356 | E16: 346,266 | G16: 366,081 | I16: 393,015 | K16: 420,816 | M16: 465,287 | O16: 526,183 | Q16: 583,755 | S16: 667,639
B17: Corea | C17: 68,234 | E17: 73,100 | G17: 76,922 | I17: 80,816 | K17: 90,290 | M17: 100,283 | O17: 103,975 | Q17: 111,116 | S17: 119,617
B18: España | C18: 19,282 | E18: 19,356 | G18: 19,815 | I18: 20,633 | K18: 22,293 | M18: 23,656 | O18: 25,404 | Q18: 25,375 | S18: 27,550
B19: Estados Unidos de América | C19: 455,128 | D19: d/ | E19: 477,003 | F19: d/ | G19: 507,401 | H19: (bd) | I19: 533,465 | J19: (bd) | K19: 565,685 | L19: (d) | M19: 618,066 | N19: (d) | O19: 677,881 | P19: (d) | Q19: 730,329 | R19: (d) | S19: 806,013 | T19: (d)
B20: Finlandia | C20: 7,383 | E20: 7,178 | G20: 6,688 | I20: 6,727 | K20: 7,148 | M20: 7,541 | O20: 8,009 | Q20: 8,423 | S20: 9,062
B21: Francia | C21: 58,353 | E21: 60,586 | F21: b/ | G21: 60,541 | I21: 63,651 | K21: 65,593 | M21: 68,654 | O21: 74,590 | Q21: 74,926 | S21: 76,952
B22: Grecia | C22: 2,322 | E22: 2,436 | G22: 2,797 | I22: 2,980 | K22: 3,545 | M22: 3,858 | O22: 4,259 | Q22: 4,584 | S22: 4,829
B23: India* | C23: 45,758.51 | E23: 47,574.69 | G23: 49,624.34 | I23: 51,811.99 | K23: 55,126.97 | M23: 58,721.38 | O23: n.d. | Q23: n.d. | S23: n.d.
B24: Irlanda | C24: 3,468 | D24: e/ | E24: 3,623 | F24: e/ | G24: 3,839 | H24: (e) | I24: 3,997 | J24: (e) | K24: 4,692 | L24: (e) | M24: 4,812 | N24: (ep) | O24: 5,424 | P24: (ep) | Q24: 5,772 | R24: (ep) | S24: 6,066 | T24: (b)
B25: Italia | C25: 28,459 | E25: 29,448 | F25: e/ | G25: 29,995 | I25: 33,077 | J25: (b) | K25: 34,489 | M25: 37,040 | O25: 39,983 | Q25: 38,638 | S25: 40,940
B26: Japón | C26: 164,656 | D26: b/ | E26: 169,554 | G26: 168,514 | I26: 160,269 | K26: 166,622 | M26: 172,036 | N26: (b) | O26: 172,246 | Q26: 171,652 | S26: 176,961
B27: México | C27: 8,775 | E27: 9,460 | G27: 9,579 | I27: 8,988 | K27: 7,965 | L27: (e) | M27: 7,684 | N27: (e) | O27: 7,183 | P27: (e) | Q27: 7,002 | R27: (e) | S27: 7,006
B28: Noruega | C28: 5,620 | E28: 5,806 | G28: 6,062 | I28: 6,308 | K28: 7,095 | M28: 7,594 | O28: 7,987 | Q28: 7,863 | S28: 8,579
B29: Países Bajos | C29: 17,841 | D29: b/ | E29: 18,045 | G29: 18,282 | I29: 19,153 | K29: 20,560 | M29: 21,312 | O29: 22,811 | Q29: 24,224 | S29: 25,081
B30: Portugal | C30: 3,870 | E30: 3,856 | G30: 3,820 | I30: 4,180 | K30: 4,490 | M30: 4,848 | O30: 5,355 | Q30: 5,809 | S30: 6,278
B31: Reino Unido | C31: 41,532 | E31: 43,811 | F31: e/ | G31: 62,973 | H31: (ep) | I31: 67,116 | J31: (ep) | K31: 70,755 | L31: (ep) | M31: 84,852 | N31: (bep) | O31: 87,808 | P31: (p) | Q31: 90,094 | R31: (p) | S31: 97,793 | T31: (p)
B32: Rusia | C32: 38,440 | E32: 40,361 | G32: 38,819 | I32: 39,013 | K32: 42,246 | M32: 41,896 | O32: 45,687 | Q32: 47,954 | S32: n.d.
B33: Sudáfrica | C33: 4,846 | E33: 5,267 | G33: 5,551 | I33: 5,795 | K33: 6,026 | M33: 5,637 | O33: 5,148 | Q33: 4,798 | S33: n.d.
B34: Suecia | C34: 14,496 | D34: e/ | E34: 14,191 | F34: e/ | G34: 15,489 | H34: (v) | I34: 16,251 | J34: (e) | K34: 17,570 | L34: (v) | M34: 18,086 | N34: (e) | O34: 19,640 | P34: (v) | Q34: 20,281 | S34: 20,974
B35: Suiza | C35: n.d. | E35: n.d. | G35: 16,640 | I35: .. | K35: 17,721 | M35: n.d. | O35: 19,892 | Q35: n.d. | S35: 22,214
B36: Turquía | C36: 13,835 | E36: 15,933 | G36: 17,734 | I36: 19,855 | K36: 21,572 | M36: 23,602 | O36: 24,653 | Q36: 25,391 | S36: 29,168
B37: d/ Diferente definición
B38: b/ Ruptura de la serie de tiempo.
B39: e/ Cifras estimadas.
B40: p/ Cifras provisionales.
B41: v/ la suma del desglose no suma el total
B42: 1/ La paridad del poder adquisitivo (PPP por sus siglas en inglés) es la tasa de conversión de moneda que elimina las diferencias en niveles de precios entre países.
B43: n.d: No diponible
B44: Fuentes: Los datos para México están calculados con base en información proveniente de la Encuesta sobre Investigación y Desarrollo Tecnológico (ESIDET) 2017; INEGI-Conacyt. Cuenta de la Hacienda Pública Federal.
B45: OECD, Main Science and Technology Indicator, en https://stats.oecd.org/Index.aspx?DataSetCode=MSTI_PUB consultado 17/05/2024.
B46: * RICYT, Indicadores en http://www.ricyt.org/category/indicadores/ consultado 17/05/2024
B47: **UNESCO, Institute for Statistics en Data extracted, consultado 17/05/2024 from UIS.Stat

Sheet A.6.17
B5: A.6.17 GIDE PER CÁPITA POR PAÍS, 2013-2021
B6: Millones de USD PPP1/
B8: País | C8: 2013 | E8: 2014 | G8: 2015 | I8: 2016 | K8: 2017 | M8: 2018 | O8: 2019 | Q8: 2020 | S8: 2021
B9: Alemania | C9: 1,276 | E9: 1,353 | G9: 1,397 | I9: 1,487 | K9: 1,617 | M9: 1,717 | O9: 1,818 | Q9: 1,768 | R9: e/ | S9: 1,842 | T9: p/
B10: Argentina | C10: 125 | D10: p/ | E10: 117 | F10: p/ | G10: 124 | I10: 108 | K10: 131 | M10: 115 | O10: 109 | Q10: 112 | S10: 122
B11: Australia | C11: 1,000 | D11: e/ | E11: n.d. | G11: 888 | H11: e/ | I11: n.d. | K11: 910 | L11: e/ | M11: n.d. | O11: 948 | P11: e/ | Q11: n.d | S11: n.d
B12: Brasil* | C12: 148 | E12: 155 | G12: 121 | I12: 113 | K12: 112 | M12: 107 | O12: 108 | Q12: 80 | S12: n.d
B13: Canadá | C13: 755 | D13: b/ | E13: 784 | G13: 756 | I13: 804 | K13: 815 | M13: 868 | O13: 875 | Q13: 896 | R13: p/ | S13: 900 | T13: p/
B14: Chile | C14: 87 | E14: 85 | F14: b/ | G14: 86 | I14: 87 | J14: b/ | K14: 87 | M14: 94 | N14: e/ | O14: 87 | P14: e/ | Q14: 83 | S14: n.d
B15: China | C15: 238 | E15: 253 | G15: 265 | I15: 282 | K15: 301 | M15: 331 | O15: 373 | Q15: 413 | S15: 473
B16: Corea | C16: 1,353 | E16: 1,440 | G16: 1,508 | I16: 1,578 | K16: 1,758 | M16: 1,944 | O16: 2,009 | Q16: 2,144 | S16: 2,312
B17: España | C17: 414 | E17: 417 | G17: 427 | I17: 444 | K17: 479 | M17: 506 | O17: 539 | Q17: 536 | S17: 582 | T17: p/
B18: Estados Unidos de América | C18: 1,439 | D18: d/ | E18: 1,497 | F18: d/ | G18: 1,575 | H18: bd/ | I18: 1,643 | J18: bd/ | K18: 1,731 | L18: d/ | M18: 1,880 | N18: d/ | O18: 2,051 | Q18: 2,201 | R18: d/ | S18: 2,426 | T18: dp/
B19: Finlandia | C19: 1,357 | E19: 1,314 | G19: 1,220 | I19: 1,224 | K19: 1,298 | M19: 1,367 | O19: 1,451 | Q19: 1,523 | S19: 1,635
B20: Francia | C20: 884 | E20: 914 | F20: b/ | G20: 909 | I20: 952 | K20: 977 | L20: p/ | M20: 1,018 | O20: 1,101 | P20: ep/ | Q20: 1,102 | R20: e/ | S20: 1,128
B21: Grecia | C21: 212 | E21: 224 | G21: 259 | I21: 277 | K21: 330 | M21: 359 | O21: 397 | Q21: 428 | S21: 454 | T21: p/
B22: Irlanda | C22: 751 | D22: e/ | E22: 779 | F22: e/ | G22: 818 | H22: e/ | I22: 842 | J22: e/ | K22: 977 | L22: e/ | M22: 990 | N22: ep/ | O22: 1,101 | P22: e/ | Q22: 1,159 | R22: e/ | S22: 1,128 | T22: bp/
B23: Italia | C23: 469 | E23: 484 | F23: e/ | G23: 498 | I23: 550 | J23: b/ | K23: 575 | M23: 619 | O23: 669 | Q23: 650 | R23: p/ | S23: 692 | T23: p/
B24: Japón | C24: 1,293 | E24: 1,332 | G24: 1,326 | I24: 1,263 | K24: 1,315 | M24: 1,361 | N24: b/ | O24: 1,365 | Q24: 1,365 | S24: 1,410
B25: México | C25: 74 | E25: 79 | G25: 79 | I25: 73 | J25: e/ | K25: 64 | L25: e/ | M25: 61 | N25: e/ | O25: 57 | P25: e/ | Q25: 55 | R25: e/ | S25: 55 | T25: e/
B26: Noruega | C26: 1,106 | E26: 1,130 | G26: 1,168 | I26: 1,205 | K26: 1,345 | M26: 1,430 | O26: 1,493 | Q26: 1,462 | S26: 1,586 | T26: p/
B27: Países Bajos | C27: 1,062 | D27: b/ | E27: 1,070 | G27: 1,079 | I27: 1,125 | K27: 1,200 | M27: 1,237 | O27: 1,315 | Q27: 1,389 | R27: p/ | S27: 1,431 | T27: p/
B28: Portugal | C28: 370 | E28: 371 | G28: 369 | I28: 405 | K28: 436 | M28: 471 | O28: 521 | Q28: 564 | S28: 610 | T28: p/
B29: Reino Unido | C29: 648 | E29: 678 | F29: e/ | G29: 967 | H29: ep/ | I29: 1,022 | J29: ep/ | K29: 1,071 | L29: ep/ | M29: 1,277 | N29: ep/ | O29: 1,315 | P29: p/ | Q29: 1,343 | R29: p/ | S29: 1,448 | T29: p/
B30: Rusia | C30: 268 | E30: 276 | G30: 265 | I30: 266 | K30: 288 | M30: 285 | O30: 311 | Q30: 327 | S30: n.d
B31: Sudáfrica | C31: 91 | E31: 98 | G31: 102 | I31: 105 | K31: 108 | M31: 100 | O31: 90 | Q31: 83 | S31: n.d.
B32: Suecia | C32: 1,510 | D32: e/ | E32: 1,464 | F32: e/ | G32: 1,581 | H32: v/ | I32: 1,638 | J32: e/ | K32: 1,747 | L32: v/ | M32: 1,777 | N32: e/ | O32: 1,911 | P32: v/ | Q32: 1,959 | S32: 2,014
B33: Suiza | C33: n.d. | E33: n.d. | G33: 2,009 | I33: n.d. | K33: 2,097 | M33: n.d. | O33: 2,320 | Q33: n.d. | S33: 2,552
B34: Turquía | C34: 182 | E34: 206 | G34: 227 | I34: 250 | K34: 269 | M34: 290 | O34: 299 | Q34: 305 | S34: 347
B36: d/ Diferente definición
B37: b/ Ruptura de la serie de tiempo.
B38: e/ Cifras estimadas.
B39: p/ Cifras provisionales.
B40: v/ la suma del desglose no suma el total
B41: 1/ La paridad del poder adquisitivo (PPP por sus siglas en inglés) es la tasa de conversión de moneda que elimina las diferencias en niveles de precios entre países.
B42: n.d: No diponible
B43: Fuentes: Los datos para México están calculados con base en información proveniente de la Encuesta sobre Investigación y Desarrollo Tecnológico (ESIDET) 2017; INEGI-Conacyt. Cuenta de la Hacienda Pública Federal.
B44: OECD, Main Science and Technology Indicator, en https://stats.oecd.org/Index.aspx?DataSetCode=MSTI_PUB consultado 17/05/2024.
B45: * RICYT, Indicadores en http://www.ricyt.org/category/indicadores/ consultado 17/05/2024
B46: **UNESCO, Institute for Statistics en Data extracted, consultado 17/05/2024 from UIS.Stat

Sheet A.6.18
B5: A.6.18 GIDE COMO RELACIÓN DEL PIB POR PAÍS, 2013-2021
B6: Porcentaje
B8: País | C8: 2013 | E8: 2014 | G8: 2015 | I8: 2016 | K8: 2017 | M8: 2018 | O8: 2019 | Q8: 2020 | S8: 2021
B9: Alemania | C9: 2.84 | E9: 2.88 | G9: 2.93 | I9: 2.94 | K9: 3.05 | M9: 3.11 | O9: 3.17 | Q9: 3.13 | R9: (e) | S9: 3.13 | T9: (p)
B10: Argentina | C10: 0.62 | D10: p/ | E10: 0.59 | F10: p/ | G10: 0.62 | I10: 0.53 | K10: 0.56 | M10: 0.49 | O10: 0.48 | Q10: 0.54 | S10: 0.52
B11: Australia | C11: 2.09 | D11: e/ | E11: n.d. | G11: 1.88 | H11: (e) | I11: n.d. | K11: 1.79 | L11: (e) | M11: n.d. | O11: 1.80 | P11: (e) | Q11: n.d | S11: n.d.
B12: Brasil* | C12: 1.20 | E12: 1.27 | G12: 1.37 | I12: 1.29 | K12: 1.12 | M12: 1.19 | O12: 1.23 | Q12: 1.17 | S12: n.d.
B13: Canadá | C13: 1.71 | E13: 1.71 | F13: b/ | G13: 1.69 | I13: 1.73 | K13: 1.69 | M13: 1.74 | O13: 1.76 | Q13: 1.89 | S13: 1.70 | T13: (p)
B14: Chile | C14: 0.39 | E14: 0.38 | F14: b/ | G14: 0.38 | I14: 0.37 | J14: (b) | K14: 0.36 | M14: 0.37 | N14: (e) | O14: 0.34 | P14: (e) | Q14: 0.34 | R14: (e) | S14: n.d.
B15: China | C15: 2.00 | E15: 2.02 | G15: 2.06 | I15: 2.10 | K15: 2.12 | M15: 2.14 | O15: 2.24 | Q15: 2.41 | S15: 2.43
B16: Corea | C16: 3.95 | E16: 4.08 | G16: 3.98 | I16: 3.99 | K16: 4.29 | M16: 4.52 | O16: 4.63 | Q16: 4.80 | S16: 4.93
B17: España | C17: 1.28 | E17: 1.24 | G17: 1.22 | I17: 1.19 | K17: 1.21 | M17: 1.24 | O17: 1.25 | Q17: 1.41 | S17: 1.43
B18: Estados Unidos de América | C18: 2.71 | D18: d/ | E18: 2.72 | F18: d/ | G18: 2.79 | H18: (bd) | I18: 2.85 | J18: (bd) | K18: 2.90 | L18: (d) | M18: 3.01 | N18: (d) | O18: 3.17 | P18: (d) | Q18: 3.47 | R18: (d) | S18: 3.46 | T18: (d)
B19: Finlandia | C19: 3.27 | E19: 3.15 | G19: 2.87 | I19: 2.72 | K19: 2.73 | M19: 2.76 | O19: 2.80 | Q19: 2.91 | S19: 2.99
B20: Francia | C20: 2.24 | E20: 2.28 | F20: b/ | G20: 2.23 | I20: 2.22 | K20: 2.20 | M20: 2.20 | O20: 2.19 | Q20: 2.30 | S20: 2.22
B21: Grecia | C21: 0.82 | E21: 0.84 | G21: 0.97 | I21: 1.01 | K21: 1.15 | M21: 1.21 | O21: 1.27 | Q21: 1.51 | S21: 1.46
B22: India** | C22: 0.71 | E22: 0.70 | G22: 0.69 | I22: 0.67 | K22: 0.67 | M22: 0.65 | O22: n.d. | Q22: n.d | S22: n.d.
B23: Irlanda | C23: 1.57 | D23: e/ | E23: 1.52 | F23: e/ | G23: 1.18 | H23: (e) | I23: 1.18 | J23: (e) | K23: 1.25 | L23: (e) | M23: 1.17 | N23: (ep) | O23: 1.23 | P23: (ep) | Q23: 1.22 | R23: (ep) | S23: 1.11 | T23: (b)
B24: Italia | C24: 1.30 | E24: 1.34 | F24: e/ | G24: 1.34 | I24: 1.37 | J24: (b) | K24: 1.37 | M24: 1.42 | O24: 1.46 | Q24: 1.51 | S24: 1.45
B25: Japón | C25: 3.31 | D25: b/ | E25: 3.40 | G25: 3.24 | I25: 3.11 | K25: 3.17 | M25: 3.22 | N25: (b) | O25: 3.22 | Q25: 3.27 | S25: 3.30
B26: México | C26: 0.41 | E26: 0.42 | G26: 0.41 | I26: 0.38 | K26: 0.32 | L26: (e) | M26: 0.30 | N26: (e) | O26: 0.28 | P26: (e) | Q26: 0.29 | R26: (e) | S26: 0.27
B27: Noruega | C27: 1.65 | E27: 1.72 | G27: 1.92 | I27: 2.03 | K27: 2.08 | M27: 2.03 | O27: 2.14 | Q27: 2.24 | S27: 1.94
B28: Países Bajos | C28: 2.16 | E28: 2.17 | G28: 2.15 | I28: 2.15 | K28: 2.18 | M28: 2.14 | O28: 2.18 | Q28: 2.32 | S28: 2.27
B29: Portugal | C29: 1.32 | E29: 1.29 | G29: 1.24 | I29: 1.28 | K29: 1.32 | M29: 1.35 | O29: 1.40 | Q29: 1.61 | S29: 1.68
B30: Reino Unido | C30: 1.62 | E30: 1.64 | F30: e/ | G30: 2.27 | H30: (ep) | I30: 2.31 | J30: (ep) | K30: 2.32 | L30: (ep) | M30: 2.70 | N30: (bep) | O30: 2.67 | P30: (p) | Q30: 2.93 | R30: (p) | S30: 2.91 | T30: (p)
B31: Rusia | C31: 1.03 | E31: 1.07 | G31: 1.10 | I31: 1.10 | K31: 1.11 | M31: 0.99 | O31: 1.04 | Q31: 1.10 | S31: n.d.
B32: Sudáfrica | C32: 0.72 | E32: 0.77 | G32: 0.80 | I32: 0.82 | K32: 0.83 | M32: 0.75 | O32: 0.68 | Q32: n.d | S32: n.d.
B33: Suecia | C33: 3.26 | D33: e/ | E33: 3.10 | F33: e/ | G33: 3.22 | H33: (v) | I33: 3.25 | J33: (e) | K33: 3.36 | L33: (v) | M33: 3.32 | N33: (e) | O33: 3.39 | P33: (v) | Q33: 3.49 | S33: 3.40 | T33: (e)
B34: Suiza | C34: n.d. | E34: n.d. | G34: 3.08 | I34: n.d. | K34: 3.07 | M34: n.d. | O34: 3.19 | Q34: n.d | S34: 3.36
B35: Turquía | C35: 0.81 | E35: 0.86 | G35: 0.88 | I35: 1.12 | J35: b/ | K35: 1.18 | M35: 1.27 | O35: 1.32 | Q35: 1.37 | S35: 1.40
B36: e/ Cifras estimadas.
B37: p/ Cifras provisionales.
B38: b/ Ruptura de la serie de tiempo.
B39: d/ Diferente definición
B40: v/ la suma del desglose no suma el total
B41: n.d: No diponible
B42: Fuentes: Los datos para México están calculados con base en información proveniente de la Encuesta sobre Investigación y Desarrollo Tecnológico (ESIDET) 2017; INEGI-Conacyt. Cuenta de la Hacienda Pública Federal.
B43: OECD, Main Science and Technology Indicator, en https://stats.oecd.org/Index.aspx?DataSetCode=MSTI_PUB consultado 17/05/2024.
B44: * RICYT, Indicadores en http://www.ricyt.org/category/indicadores/ consultado 17/05/2024
B45: **UNESCO, Institute for Statistics en Data extracted, consultado 17/05/2024 from UIS.Stat

Sheet A.6.19
B5: A.6.19 GIDE FINANCIADO POR LAS EMPRESAS POR PAÍSES, 2013-2022
B6: Porcentaje
B8: País | C8: 2013 | E8: 2014 | G8: 2015 | I8: 2016 | K8: 2017 | M8: 2018 | O8: 2019 | Q8: 2020 | S8: 2021
B9: Alemania | C9: 65.44 | D9: d/ | E9: 65.98 | F9: d/ | G9: 65.67 | H9: (d) | I9: 65.22 | J9: (d) | K9: 66.18 | L9: (d) | M9: 66.01 | N9: (d) | O9: 64.46 | P9: (d) | Q9: 62.61 | R9: (e) | S9: 62.78
B10: Argentina | C10: n.d. | E10: n.d. | G10: 17.22 | I10: 18.24 | K10: 17.82 | M10: 21.29 | O10: 23.63 | Q10: 23.43 | S10: 21.08
B11: Brasil* | C11: 40.35 | E11: 45.03 | G11: 53.22 | I11: 44.25 | K11: 38.87 | M11: 42.51 | O11: 48.88 | Q11: 43.23 | S11: n.d.
B12: Canadá | C12: 46.70 | E12: 45.75 | F12: b/ | G12: 43.95 | I12: 42.65 | K12: 43.06 | M12: 44.29 | O12: 43.90 | Q12: 43.35 | S12: 44.04 | T12: (p)
B13: Chile | C13: 34.17 | E13: 31.85 | F13: b/ | G13: 32.77 | I13: 35.07 | J13: (b) | K13: 31.40 | M13: 30.65 | N13: (e) | O13: 31.01 | P13: (e) | Q13: 34.74 | R13: (e) | S13: n.d.
B14: China | C14: 74.60 | E14: 75.42 | G14: 74.73 | I14: 76.06 | K14: 76.48 | M14: 76.63 | O14: 76.26 | Q14: 77.46 | S14: 78.01
B15: Corea | C15: 75.68 | E15: 75.33 | G15: 74.55 | I15: 75.42 | K15: 76.23 | M15: 76.64 | O15: 76.95 | Q15: 76.57 | S15: 76.12
B16: España | C16: 46.30 | E16: 46.41 | G16: 45.85 | I16: 46.70 | K16: 47.79 | M16: 49.49 | O16: 49.09 | Q16: 49.18 | S16: 50.24
B17: Estados Unidos de América | C17: 61.08 | D17: d/ | E17: 61.94 | F17: d/ | G17: 63.30 | H17: (bd) | I17: 64.03 | J17: (bd) | K17: 63.45 | L17: (d) | M17: 64.10 | N17: (d) | O17: 65.65 | P17: (d) | Q17: 66.30 | R17: (d) | S17: 67.91 | T17: (d)
B18: Finlandia | C18: 60.84 | E18: 53.53 | G18: 54.76 | I18: 56.99 | K18: 58.01 | M18: 55.80 | O18: 54.33 | Q18: 55.96 | S18: 58.08
B19: Francia | C19: 55.07 | E19: 54.50 | F19: b/ | G19: 55.01 | H19: (s) | I19: 55.97 | K19: 56.19 | L19: (s) | M19: 56.63 | N19: (s) | O19: 56.75 | Q19: 56.44 | S19: 55.43
B20: Grecia | C20: 30.28 | E20: 29.84 | G20: 31.40 | I20: 40.22 | K20: 44.77 | M20: 42.50 | O20: 41.43 | Q20: 39.95 | S20: 38.30
B21: Irlanda | C21: 52.61 | D21: e/ | E21: 52.16 | F21: e/ | G21: 48.69 | H21: (e) | I21: 49.00 | J21: (e) | K21: 51.34 | L21: (e) | M21: 50.47 | N21: (ep) | O21: 62.78 | P21: (ep) | Q21: n.d. | S21: 55.52 | T21: (b)
B22: Italia | C22: 45.19 | E22: 47.28 | F22: e/ | G22: 49.99 | I22: 52.08 | J22: (b) | K22: 53.68 | M22: 54.50 | O22: 55.94 | Q22: 52.84 | S22: 53.91
B23: Japón | C23: 75.48 | D23: b/ | E23: 77.26 | G23: 77.97 | I23: 78.09 | K23: 78.27 | M23: 79.06 | N23: (b) | O23: 78.91 | Q23: 78.31 | S23: 78.07
B24: México | C24: 20.55 | E24: 15.73 | G24: 17.39 | I24: 18.79 | K24: 19.05 | L24: (e) | M24: 17.50 | N24: (e) | O24: 18.16 | P24: (e) | Q24: 17.57 | R24: (e) | S24: 17.04
B25: Noruega | C25: 43.14 | E25: n.d. | G25: 44.23 | I25: 43.20 | K25: 42.83 | M25: 42.03 | O25: 43.23 | Q25: 44.48 | S25: 43.45
B26: Países Bajos | C26: 55.44 | D26: b/ | E26: 55.44 | G26: 54.42 | I26: 55.83 | K26: 56.41 | M26: 56.74 | O26: 57.60 | Q26: 56.88 | S26: 56.52
B27: Portugal | C27: 42.28 | E27: 41.80 | G27: 42.65 | I27: 44.40 | K27: 46.51 | M27: 47.33 | O27: 48.26 | Q27: 52.15 | S27: 53.66
B28: Reino Unido | C28: 46.21 | E28: 48.04 | F28: e/ | G28: n.d. | I28: n.d. | K28: n.d. | M28: 58.16 | N28: (bep) | O28: 58.97 | P28: (p) | Q28: 57.49 | R28: (p) | S28: 58.54 | T28: (p)
B29: Rusia | C29: 28.16 | E29: 27.07 | G29: 26.47 | I29: 28.11 | K29: 30.17 | M29: 29.49 | O29: 30.21 | Q29: 29.23 | S29: 58.54
B30: Sudáfrica | C30: 41.37 | E30: 40.83 | G30: 38.90 | I30: 39.35 | K30: 41.49 | M30: 39.51 | O30: 27.14 | Q30: 26.93 | S30: n.d.
B31: Suecia | C31: 60.96 | D31: e/ | E31: n.d. | G31: 57.26 | H31: (v) | I31: n.d. | K31: 60.76 | L31: (v) | M31: n.d. | O31: 62.42 | P31: (v) | Q31: n.d. | S31: 60.65 | T31: (e)
B32: Suiza | C32: n.d. | E32: n.d. | G32: 61.93 | I32: n.d. | K32: 64.49 | M32: n.d. | O32: 64.67 | Q32: n.d. | S32: 65.91
B33: Turquía | C33: 43.39 | E33: 45.26 | G33: 44.57 | I33: 43.07 | K33: 43.75 | M33: 47.29 | O33: 49.57 | Q33: 49.62 | S33: 54.58
B34: b/ Ruptura de la serie de tiempo.
B35: d/ Diferente definición
B36: e/ Cifras estimadas.
B37: p/ Cifras provisionales.
B38: v/ La suma del desglose no suma el total
B39: n.d: No diponible
B40: Fuentes: Los datos para México están calculados con base en información proveniente de la Encuesta sobre Investigación y Desarrollo Tecnológico (ESIDET) 2017; INEGI-Conacyt. Cuenta de la Hacienda Pública Federal.
B41: OECD, Main Science and Technology Indicator, en https://stats.oecd.org/Index.aspx?DataSetCode=MSTI_PUB consultado 17/05/2024.
B42: * RICYT, Indicadores en http://www.ricyt.org/category/indicadores/ consultado 17/05/2024
B43: **UNESCO, Institute for Statistics en Data extracted, consultado 17/05/2024 from UIS.Stat

Sheet A.6.20
B5: A.6.20 GIDE FINANCIADO POR EL GOBIERNO POR PAÍSES, 2013-2021
B6: Porcentaje
B8: País | C8: 2013 | E8: 2014 | G8: 2015 | I8: 2016 | K8: 2017 | M8: 2018 | O8: 2019 | Q8: 2020 | S8: 2021
B9: Alemania | C9: 29.10 | D9: d/ | E9: 28.71 | F9: d/ | G9: 27.90 | H9: (d) | I9: 28.52 | J9: (d) | K9: 27.72 | L9: (d) | M9: 27.85 | N9: (d) | O9: 27.80 | P9: (d) | Q9: 29.70 | R9: (e) | S9: 29.96 | T9: (d)
B10: Argentina | C10: n.d. | E10: n.d. | G10: 76.39 | I10: 73.08 | K10: 70.68 | M10: 65.12 | O10: 60.71 | Q10: 57.71 | S10: 58.55
B11: Brasil* | C11: 57.70 | E11: 52.78 | G11: 53.22 | I11: 53.24 | K11: 50.08 | M11: 54.64 | O11: 48.27 | Q11: 53.80 | S11: n.d.
B12: Canadá | C12: 33.75 | D12: e/ | E12: 32.06 | F12: b/ | G12: 30.82 | H12: (e) | I12: 30.90 | J12: (e) | K12: 32.45 | L12: (e) | M12: 31.33 | N12: (e) | O12: 31.51 | P12: (e) | Q12: 31.66 | R12: (e) | S12: 30.87 | T12: (ep)
B13: Chile | C13: 38.37 | E13: 44.16 | F13: b/ | G13: 42.60 | I13: 45.48 | J13: (b) | K13: 47.06 | M13: 47.67 | N13: (e) | O13: 45.29 | P13: (e) | Q13: 39.29 | R13: (e) | S13: n.d.
B14: China | C14: 21.11 | E14: 20.25 | G14: 21.26 | I14: 20.03 | K14: 19.81 | M14: 20.22 | O14: 20.49 | Q14: 19.78 | S14: 18.96
B15: Corea | C15: 22.83 | E15: 22.96 | G15: 23.66 | I15: 22.68 | K15: 21.58 | M15: 20.56 | O15: 20.68 | Q15: 22.40 | S15: 22.80
B16: España | C16: 41.63 | E16: 41.36 | G16: 40.93 | I16: 39.95 | K16: 38.90 | M16: 37.61 | O16: 37.89 | Q16: 38.51 | S16: 37.46
B17: Estados Unidos de América | C17: 27.52 | D17: d/ | E17: 25.91 | F17: d/ | G17: 24.68 | H17: (bd) | I17: 23.27 | J17: (bd) | K17: 22.75 | L17: (d) | M17: 22.31 | N17: (d) | O17: 21.09 | P17: (d) | Q17: 21.25 | R17: (d) | S17: 19.89 | T17: (dp)
B18: Finlandia | C18: 26.03 | E18: 27.50 | G18: 28.89 | I18: 28.87 | K18: 29.01 | M18: 28.27 | O18: 27.79 | Q18: 27.68 | S18: 25.58
B19: Francia | C19: 35.30 | E19: 34.35 | F19: b/ | G19: 35.44 | H19: (s) | I19: 32.44 | K19: 32.48 | L19: (s) | M19: 31.53 | N19: (s) | O19: 31.35 | Q19: 31.76 | S19: 32.46
B20: Grecia | C20: 52.27 | E20: 53.28 | G20: 53.06 | I20: 42.57 | K20: 37.62 | M20: 40.62 | O20: 41.14 | Q20: 42.67 | S20: 44.46
B21: Irlanda | C21: 27.48 | D21: e/ | E21: 27.44 | F21: e/ | G21: 26.11 | H21: (e) | I21: 25.81 | J21: (e) | K21: 23.81 | L21: (e) | M21: 24.71 | N21: (ep) | O21: 22.61 | P21: (ep) | Q21: n.d | S21: 16.76 | T21: (b)
B22: Italia | C22: 41.44 | E22: 39.71 | F22: e/ | G22: 37.98 | I22: 35.23 | J22: (b) | K22: 32.28 | M22: 32.76 | O22: 32.32 | Q22: 33.69 | S22: 35.15
B23: Japón | C23: 17.30 | D23: b/ | E23: 16.02 | F23: e/ | G23: 15.41 | H23: (e) | I23: 15.02 | J23: (e) | K23: 15.00 | L23: (e) | M23: 14.56 | N23: (be) | O23: 14.67 | P23: (e) | Q23: 15.19 | R23: (e) | S23: 15.46 | T23: (e)
B24: México | C24: 76.81 | E24: 81.29 | G24: 79.69 | I24: 77.60 | K24: 76.79 | M24: 78.14 | O24: 76.74 | Q24: 77.17 | S24: 77.44
B25: Noruega | C25: 45.84 | E25: n.d. | G25: 44.92 | I25: 45.65 | K25: 46.67 | M25: 48.03 | O25: 46.97 | Q25: 46.13 | S25: 46.55
B26: Países Bajos | C26: 31.21 | D26: b/ | E26: 31.28 | G26: 31.55 | I26: 30.22 | K26: 29.40 | M26: 29.58 | O26: 29.40 | Q26: 30.30 | S26: 30.68
B27: Portugal | C27: 46.55 | E27: 47.14 | G27: 44.30 | I27: 42.64 | K27: 41.04 | M27: 40.58 | O27: 40.24 | Q27: 37.29 | S27: 35.58
B28: Reino Unido | C28: 29.12 | E28: 28.36 | F28: e/ | G28: n.d. | I28: n.d. | K28: n.d. | M28: 18.20 | N28: (bep) | O28: 17.97 | P28: (p) | Q28: 19.62 | R28: (p) | S28: 19.40 | T28: (p)
B29: Rusia | C29: 67.64 | E29: 69.22 | G29: 69.52 | I29: 68.17 | K29: 66.17 | M29: 67.03 | O29: 66.29 | Q29: 67.80 | S29: n.d.
B30: Sudáfrica | C30: 42.89 | E30: 43.87 | G30: 44.61 | I30: 46.02 | K30: 46.69 | M30: 47.51 | O30: 56.31 | Q30: 56.26 | S30: n.d.
B31: Suecia | C31: 28.27 | D31: e/ | E31: n.d. | G31: n.d. | H31: (c) | I31: n.d. | K31: 25.02 | L31: (v) | M31: n.d. | O31: 24.24 | P31: (v) | Q31: n.d | S31: 23.25 | T31: (ev)
B32: Suiza | C32: n.d. | E32: n.d. | G32: 27.06 | I32: n.d. | K32: 27.74 | M32: n.d. | O32: 27.36 | Q32: n.d | S32: 26.81
B33: Turquía | C33: 39.32 | E33: 37.41 | G33: 38.47 | I33: 38.47 | K33: 34.10 | M33: 32.83 | O33: 32.23 | Q33: 30.09 | S33: 27.45
B35: b/ Ruptura de serie de tiempo.
B36: d/ Diferencia en la definición.
B37: e/ Cifras estimadas.
B38: p/ Cifras provisionales.
B39: v/ La suma del desglose no suma al total.
B40: s/ El desglose no revisado no se suma al total revisado.
B41: n.d: No diponible
B42: Fuentes: Los datos para México están calculados con base en información proveniente de la Encuesta sobre Investigación y Desarrollo Tecnológico (ESIDET) 2017; INEGI-Conacyt. Cuenta de la Hacienda Pública Federal.
B43: OECD, Main Science and Technology Indicator, en https://stats.oecd.org/Index.aspx?DataSetCode=MSTI_PUB, consultado 17/05/2024.
B44: * RICYT, Indicadores en http://www.ricyt.org/category/indicadores/ consultado 17/05/2024

Sheet A.6.21
B5: A.6.21 GIDE FINANCIADO POR OTROS SECTORES NACIONALES POR PAÍSES, 2013-2021
B6: Porcentaje
B8: País | C8: 2013 | E8: 2014 | G8: 2015 | I8: 2016 | K8: 2017 | M8: 2018 | O8: 2019 | Q8: 2020 | S8: 2021
B9: Alemania | C9: 5.46 | D9: d/ | E9: 5.31 | F9: d/ | G9: 6.43 | H9: (d) | I9: 6.26 | J9: (d) | K9: 6.10 | L9: (d) | M9: 6.14 | N9: (d) | O9: 7.74 | P9: (d) | Q9: 7.68 | R9: (e) | S9: 7.26
B10: Argentina* | C10: n.d. | E10: n.d. | G10: 6.39 | I10: 8.68 | K10: 11.50 | M10: 13.59 | O10: 15.66 | Q10: 17.33 | S10: 20.37
B11: Brasil* | C11: 1.95 | E11: 2.18 | G11: 2.17 | I11: 2.51 | K11: 3.05 | M11: 2.85 | O11: 2.85 | Q11: 2.97 | S11: n.d.
B12: Canadá | C12: 19.54 | D12: e/ | E12: 22.19 | F12: b/ | G12: 25.23 | H12: (e) | I12: 26.45 | J12: (e) | K12: 24.49 | L12: (e) | M12: 24.38 | N12: (e) | O12: 24.59 | P12: (e) | Q12: 24.99 | R12: (e) | S12: 25.09 | T12: (ep)
B13: Chile | C13: 27.46 | E13: 23.99 | F13: b/ | G13: 24.63 | I13: 19.44 | J13: (b) | K13: 21.55 | M13: 21.68 | N13: (e) | O13: 23.70 | P13: (e) | Q13: 25.97 | R13: (e) | S13: n.d.
B14: Corea | C14: 1.49 | E14: 1.71 | G14: 1.79 | I14: 1.90 | K14: 2.18 | M14: 2.80 | O14: 2.37 | Q14: 1.02 | S14: 1.08
B15: España | C15: 12.07 | E15: 12.24 | G15: 13.23 | I15: 13.34 | K15: 13.31 | M15: 12.90 | O15: 13.01 | Q15: 12.31 | S15: 12.30
B16: Estados Unidos de América | C16: 11.40 | D16: d/ | E16: 12.15 | F16: d/ | G16: 12.02 | H16: (bd) | I16: 12.70 | J16: (bd) | K16: 13.80 | L16: (d) | M16: 13.60 | N16: (d) | O16: 13.26 | P16: (d) | Q16: 12.45 | R16: (d) | S16: 12.21 | T16: (dp)
B17: Finlandia | C17: 13.13 | E17: 18.97 | G17: 16.35 | I17: 14.14 | K17: 12.98 | M17: 15.93 | O17: 17.88 | Q17: 16.36 | S17: 16.34
B18: Francia | C18: 9.63 | E18: 11.15 | F18: b/ | G18: 11.35 | H18: (s) | I18: 11.59 | K18: 11.53 | L18: (s) | M18: 11.69 | N18: (s) | O18: 11.90 | Q18: 11.70 | S18: 12.11
B19: Grecia | C19: 17.44 | E19: 16.88 | G19: 15.54 | I19: 17.21 | K19: 17.61 | M19: 16.88 | O19: 17.42 | Q19: 17.38 | S19: 16.74 | T19: (p)
B20: Irlanda | C20: 19.91 | D20: e/ | E20: 20.40 | F20: e/ | G20: 25.20 | H20: (e) | I20: 25.18 | J20: (e) | K20: 24.85 | L20: (e) | M20: 24.83 | N20: (ep) | O20: 14.61 | P20: (ep) | Q20: n.d. | S20: 27.72
B21: Italia | C21: 13.37 | E21: 13.01 | F21: e/ | G21: 12.03 | I21: 12.69 | J21: (b) | K21: 14.04 | M21: 12.74 | O21: 11.74 | Q21: 13.46 | S21: 10.94
B22: Japón | C22: 7.22 | D22: b/ | E22: 6.72 | F22: e/ | G22: 6.61 | H22: (e) | I22: 6.90 | J22: (e) | K22: 6.73 | L22: (e) | M22: 6.38 | N22: (be) | O22: 6.42 | P22: (e) | Q22: 6.50 | R22: (e) | S22: 6.47 | T22: (e)
B23: México | C23: 2.64 | E23: 2.98 | G23: 2.92 | I23: 3.61 | K23: 4.16 | L23: (e) | M23: 4.36 | N23: (e) | O23: 5.10 | P23: (e) | Q23: 5.26 | R23: (e) | S23: 5.52
B24: Noruega | C24: 11.02 | E24: n.d. | G24: 10.84 | I24: 11.15 | K24: 10.50 | M24: 9.94 | O24: 9.81 | Q24: 9.39 | S24: 10.00
B25: Países Bajos | C25: 13.34 | D25: b/ | E25: 13.28 | G25: 14.03 | I25: 13.95 | K25: 14.18 | M25: 13.68 | O25: 13.01 | Q25: 12.81 | S25: 12.80
B26: Portugal | C26: 11.17 | E26: 11.06 | G26: 13.05 | I26: 12.96 | K26: 12.45 | M26: 12.09 | O26: 11.51 | Q26: 10.55 | S26: 10.76
B27: Reino Unido | C27: 24.67 | E27: 23.59 | F27: e/ | G27: n.d. | I27: n.d. | K27: n.d. | M27: 23.64 | N27: (bep) | O27: 23.06 | P27: (p) | Q27: 22.97 | R27: (p) | S27: 22.06
B28: Rusia | C28: 4.20 | E28: 3.71 | G28: 4.01 | I28: 3.72 | K28: 3.66 | M28: 3.48 | O28: 3.50 | Q28: 2.97 | S28: n.d.
B29: Sudáfrica | C29: 15.73 | E29: 15.30 | G29: 16.49 | I29: 14.62 | K29: 11.82 | M29: 12.98 | O29: 16.56 | Q29: n.d. | S29: n.d.
B30: Suecia | C30: 10.77 | D30: e/ | E30: n.d. | G30: n.d. | H30: (v) | I30: n.d. | K30: 14.10 | L30: (v) | M30: n.d. | O30: 13.09 | P30: (v) | Q30: n.d. | S30: 16.10
B31: Suiza | C31: n.d. | E31: n.d. | G31: 11.02 | I31: n.d. | K31: 7.77 | M31: n.d. | O31: 7.97 | Q31: n.d. | S31: 7.28
B32: Turquía | C32: 17.29 | E32: 17.33 | G32: 16.96 | I32: 18.19 | K32: 16.95 | M32: 14.12 | O32: 14.30 | Q32: 14.36 | S32: 10.13
B34: b/ Ruptura de serie de tiempo.
B35: d/ Diferencia en la definición.
B36: e/ Cifras estimadas.
B37: p/ Cifras provisionales.
B38: s/ El desglose no revisado no se suma al total revisado.
B39: v/ La suma del desglose no suma al total.
B40: n.d: No disponible.
B41: Fuentes: Los datos para México están calculados con base en información proveniente de la Encuesta sobre Investigación y Desarrollo Tecnológico (ESIDET) 2017; INEGI-Conacyt. Cuenta de la Hacienda Pública Federal.
B42: OECD, Main Science and Technology Indicator, en https://stats.oecd.org/Index.aspx?DataSetCode=MSTI_PUB, consultado 17/05/2024.
B43: * RICYT, Indicadores en http://www.ricyt.org/category/indicadores/ consultado 17/05/2024.

Sheet A.6.22
B5: A.6.22 GIDE EJECUTADO POR LAS EMPRESAS POR PAÍSES, 2013-2021
B6: Porcentaje
B8: País | C8: 2013 | E8: 2014 | G8: 2015 | I8: 2016 | K8: 2017 | M8: 2018 | O8: 2019 | Q8: 2020 | S8: 2021
B9: Alemania | C9: 67.18 | E9: 67.65 | G9: 68.65 | I9: 68.16 | K9: 69.10 | M9: 68.89 | O9: 68.92 | Q9: 66.64 | R9: (e) | S9: 66.94
B10: Argentina | C10: 24.22 | D10: p/ | E10: 20.06 | F10: p/ | G10: 21.25 | H10: b/ | I10: 23.90 | K10: 27.07 | M10: 31.31 | O10: 36.20 | Q10: 39.71 | S10: 39.05
B11: Australia | C11: 56.31 | D11: e/ | E11: n.d. | G11: 53.43 | H11: e/ | I11: n.d. | K11: 52.74 | L11: (e) | M11: .. | O11: 51.04 | P11: (e) | Q11: n.d. | S11: n.d.
B12: Canadá | C12: 51.16 | D12: d/ | E12: 53.24 | F12: b/ | G12: 53.27 | I12: 53.47 | K12: 52.70 | M12: 53.70 | O12: 53.96 | Q12: 54.07 | S12: 55.01 | T12: (p)
B13: Chile | C13: 35.00 | D13: b/ | E13: 33.38 | F13: b/ | G13: 34.30 | I13: 37.69 | J13: b/ | K13: 34.20 | M13: 33.50 | N13: (e) | O13: 33.59 | P13: (e) | Q13: 35.57 | R13: (e) | S13: n.d.
B14: China | C14: 76.61 | E14: 77.30 | G14: 76.79 | I14: 77.46 | K14: 77.59 | M14: 77.42 | O14: 76.42 | Q14: 76.55 | S14: 76.92
B15: Corea | C15: 78.51 | E15: 78.22 | G15: 77.53 | I15: 77.74 | K15: 79.41 | M15: 80.29 | O15: 80.30 | Q15: 79.08 | S15: 79.12
B16: España | C16: 53.08 | E16: 52.92 | G16: 52.54 | I16: 53.74 | K16: 54.96 | M16: 56.50 | O16: 56.13 | Q16: 55.60 | S16: 56.21
B17: Estados Unidos de América | C17: 70.87 | D17: d/ | E17: 71.43 | F17: d/ | G17: 71.75 | H17: d/ | I17: 72.62 | J17: d/ | K17: 73.65 | L17: (d) | M17: 74.08 | N17: (d) | O17: 75.00 | P17: (d) | Q17: 75.96 | R17: (d) | S17: 77.60 | T17: (dp)
B18: Finlandia | C18: 68.86 | E18: 67.71 | G18: 66.67 | I18: 65.84 | K18: 65.25 | M18: 65.66 | O18: 65.64 | Q18: 66.99 | S18: 68.78
B19: Francia | C19: 64.59 | E19: 63.63 | F19: b/ | G19: 63.72 | I19: 65.11 | K19: 65.37 | M19: 65.54 | O19: 65.92 | Q19: 65.67 | S19: 65.73
B20: Grecia | C20: 33.34 | E20: 33.88 | G20: 32.96 | I20: 42.21 | K20: 48.76 | M20: 48.16 | O20: 46.11 | Q20: 46.10 | S20: 47.25
B21: Irlanda | C21: 71.87 | D21: e/ | E21: 71.00 | F21: e/ | G21: 71.83 | H21: e/ | I21: 72.21 | J21: e/ | K21: 74.32 | L21: (e) | M21: 72.86 | N21: (ep) | O21: 74.50 | P21: (ep) | Q21: 73.80 | R21: (ep) | S21: 80.46 | T21: (b)
B22: Italia | C22: 54.71 | E22: 56.67 | F22: e/ | G22: 58.16 | I22: 60.80 | J22: b/ | K22: 62.37 | M22: 63.15 | O22: 63.17 | Q22: 61.80 | S22: 60.19
B23: Japón | C23: 76.09 | D23: b/ | E23: 77.76 | G23: 78.49 | I23: 78.75 | K23: 78.80 | M23: 79.42 | N23: (b) | O23: 79.15 | Q23: 78.65 | S23: 78.56
B24: México | C24: 25.45 | E24: 17.86 | G24: 18.61 | I24: 22.22 | K24: 22.51 | L24: (e) | M24: 21.16 | N24: (e) | O24: 21.81 | P24: (e) | Q24: 21.35 | R24: (e) | S24: 20.93
B25: Noruega | C25: 52.49 | E25: 53.72 | G25: 53.89 | I25: 53.27 | K25: 52.61 | M25: 51.52 | O25: 52.99 | Q25: 54.33 | S25: 53.86
B26: Países Bajos | C26: 65.30 | D26: b/ | E26: 64.71 | G26: 64.26 | I26: 65.69 | K26: 66.33 | M26: 66.44 | O26: 66.70 | Q26: 66.58 | S26: 66.06
B27: Portugal | C27: 47.51 | E27: 46.41 | G27: 46.39 | I27: 48.42 | K27: 50.42 | M27: 51.45 | O27: 52.49 | Q27: 56.97 | S27: 59.67
B28: Reino Unido | C28: 63.89 | E28: 65.15 | F28: e/ | G28: 66.04 | I28: 67.08 | J28: e/ | K28: 77.08 | L28: (ep) | M28: 70.25 | N28: (bep) | O28: 70.70 | P28: (p) | Q28: 71.22 | R28: (p) | S28: 70.92 | T28: (p)
B29: Rusia | C29: 60.60 | E29: 59.61 | G29: 59.21 | I29: 58.71 | K29: 60.14 | M29: 55.59 | O29: 60.66 | Q29: 56.60 | S29: n.d.
B30: Sudáfrica | C30: 45.92 | E30: 45.29 | G30: 42.72 | I30: 41.41 | K30: 40.95 | M30: 39.28 | O30: 31.04 | Q30: 29.96 | S30: n.d.
B31: Suecia | C31: 68.95 | D31: e/ | E31: 67.04 | F31: e/ | G31: 69.69 | I31: 69.58 | J31: e/ | K31: 71.32 | L31: (v) | M31: 70.95 | N31: (e) | O31: 71.70 | P31: (v) | Q31: 72.35 | S31: 72.45 | T31: (ev)
B32: Suiza | C32: n.d. | E32: n.d. | G32: 70.99 | I32: n.d. | K32: 67.09 | M32: n.d. | O32: 67.53 | Q32: n.d. | S32: 68.27
B33: Turquía | C33: 47.49 | E33: 49.78 | G33: 50.01 | I33: 49.58 | K33: 49.96 | M33: 52.98 | O33: 56.06 | Q33: 55.77 | S33: 61.33
B35: b/ Ruptura de serie de tiempo.
B36: d/ Diferencia en la definición.
B37: e/ Cifras estimadas.
B38: p/ Cifras provisionales.
B39: n.d: No disponible.
B40: Se presenta el comparativo internacional hasta 2021 debido a que son los últimos datos publicados por la OCDE y la UNESCO.
B41: Fuentes: Los datos para México están calculados con base en información proveniente de la Encuesta sobre Investigación y Desarrollo Tecnológico (ESIDET) 2017; INEGI-Conacyt. Cuenta de la Hacienda Pública Federal.
B42: OECD, Main Science and Technology Indicator, en https://stats.oecd.org/Index.aspx?DataSetCode=MSTI_PUB, consultado 17/05/2024.

Sheet A.6.23
B5: A.6.23 GIDE EJECUTADO POR EL GOBIERNO POR PAÍSES, 2013-2021
B6: Porcentaje
B8: País | C8: 2013 | E8: 2014 | G8: 2015 | I8: 2016 | K8: 2017 | M8: 2018 | O8: 2019 | Q8: 2020 | S8: 2021
B9: Alemania | C9: 14.88 | D9: d/ | E9: 14.62 | F9: d/ | G9: 14.06 | H9: (d) | I9: 13.80 | J9: (d) | K9: 13.54 | L9: (d) | M9: 13.54 | N9: (d) | O9: 13.65 | P9: d/ | Q9: 14.63 | R9: (de) | S9: 14.81 | T9: (d)
B10: Argentina | C10: 44.97 | D10: p/ | E10: 47.73 | F10: p/ | G10: 51.17 | I10: 49.53 | K10: 46.81 | M10: n.d. | O10: 37.77 | Q10: 36.20 | S10: 38.04
B11: Australia | C11: 11.21 | D11: e/ | E11: n.d. | G11: 12.70 | H11: (e) | I11: n.d. | K11: 10.07 | L11: (e) | M11: n.d. | N11: (e) | O11: 9.51 | Q11: n.d. | S11: n.d
B12: Canadá | C12: 8.88 | E12: 8.61 | F12: b/ | G12: 6.96 | I12: 6.64 | K12: 7.04 | M12: 6.90 | O12: 6.66 | P12: p/ | Q12: 7.59 | S12: 6.91 | T12: (p)
B13: Chile | C13: 8.40 | D13: b/ | E13: 8.14 | F13: b/ | G13: 7.81 | I13: 12.90 | J13: (b) | K13: 13.12 | M13: 12.63 | N13: (e) | O13: 11.29 | Q13: 11.05 | R13: (e) | S13: n.d
B14: China | C14: 16.16 | E14: 15.80 | G14: 16.16 | I14: 15.70 | K14: 15.22 | M14: 15.18 | O14: 15.47 | Q14: 15.73 | S14: 15.28
B15: Corea | C15: 10.91 | E15: 11.21 | G15: 11.74 | I15: 11.54 | K15: 10.70 | M15: 10.07 | O15: 9.99 | Q15: 10.11 | S15: 9.77
B16: España | C16: 18.72 | E16: 18.79 | G16: 19.13 | I16: 18.50 | K16: 17.74 | M16: 16.83 | O16: 17.00 | P16: p/ | Q16: 17.46 | S16: 16.87
B17: Estados Unidos de América | C17: 11.51 | D17: d/ | E17: 11.34 | F17: d/ | G17: 10.77 | H17: (bd) | I17: 9.84 | J17: (bd) | K17: 9.57 | L17: (d) | M17: 9.91 | N17: (d) | O17: 9.56 | P17: d/ | Q17: 9.12 | R17: (d) | S17: 8.29 | T17: (dp)
B18: Finlandia | C18: 8.92 | E18: 8.65 | G18: 8.17 | I18: 8.16 | K18: 8.54 | M18: 8.31 | O18: 8.09 | Q18: 7.63 | S18: 7.33
B19: Francia | C19: 13.06 | E19: 12.74 | F19: b/ | G19: 12.97 | I19: 12.71 | K19: 12.42 | M19: 12.46 | O19: 12.33 | P19: e/ | Q19: 11.83 | S19: 11.72
B20: Grecia | C20: 27.98 | E20: 27.72 | G20: 28.13 | I20: 25.02 | K20: 22.13 | M20: 22.40 | O20: 22.41 | P20: p/ | Q20: 21.54 | S20: 22.31 | T20: (p)
B21: Irlanda | C21: 4.59 | D21: e/ | E21: 4.39 | F21: e/ | G21: 4.38 | H21: (e) | I21: 4.20 | J21: (e) | K21: 3.82 | L21: (e) | M21: 4.16 | N21: (ep) | O21: 3.77 | P21: e/ | Q21: 3.60 | R21: (ep) | S21: 3.50 | T21: (b)
B22: Italia | C22: 14.00 | E22: 13.59 | F22: e/ | G22: 13.14 | I22: 12.56 | J22: (b) | K22: 12.35 | M22: 12.43 | O22: 12.59 | P22: p/ | Q22: 13.21 | S22: 13.96
B23: Japón | C23: 9.17 | D23: b/ | E23: 8.33 | G23: 7.90 | I23: 7.55 | K23: 7.81 | M23: 7.75 | O23: 7.81 | Q23: 8.28 | S23: 8.36
B24: México | C24: 41.80 | E24: 32.33 | G24: 30.12 | I24: 26.38 | K24: 26.17 | L24: (e) | M24: 26.56 | N24: (e) | O24: 26.18 | P24: e/ | Q24: 26.33 | R24: (e) | S24: 26.43
B25: Noruega | C25: 15.98 | E25: 15.24 | G25: 15.04 | I25: 14.15 | K25: 13.68 | M25: 13.85 | O25: 12.73 | Q25: 12.44 | S25: 13.17 | T25: (p)
B26: Países Bajos | C26: 5.96 | D26: b/ | E26: 6.09 | F26: b/ | G26: 6.08 | H26: (d) | I26: 6.06 | J26: (d) | K26: 5.64 | L26: (d) | M26: 5.87 | N26: (d) | O26: 5.71 | P26: d/ | Q26: 5.61 | R26: (d) | S26: 5.47 | T26: (dp)
B27: Portugal | C27: 6.52 | E27: 6.26 | G27: 6.48 | I27: 5.26 | K27: 5.48 | M27: 5.31 | O27: 5.13 | Q27: 4.95 | S27: 4.71 | T27: (p)
B28: Reino Unido | C28: 7.90 | E28: 7.26 | F28: e/ | G28: 4.80 | H28: (ep) | I28: 4.70 | J28: (ep) | K28: 4.55 | L28: (ep) | M28: 6.64 | N28: (p) | O28: 4.46 | P28: p/ | Q28: 4.98 | R28: (p) | S28: 5.09 | T28: (p)
B29: Rusia | C29: 30.26 | E29: 30.48 | G29: 31.07 | I29: 31.97 | K29: 30.42 | M29: 34.43 | O29: 28.29 | Q29: 32.83 | S29: n.d
B30: Sudáfrica | C30: 23.39 | E30: 23.51 | G30: 23.98 | I30: 23.07 | K30: 22.31 | M30: 20.84 | O30: 23.47 | Q30: 24.27 | S30: n.d
B31: Suecia | C31: 3.68 | D31: e/ | E31: 3.75 | F31: e/ | G31: 3.42 | H31: (v) | I31: 3.40 | J31: (e) | K31: 3.62 | L31: (v) | M31: 3.62 | N31: (bv) | O31: 4.51 | P31: b/ | Q31: 4.40 | R31: e/ | S31: 4.41 | T31: (ev)
B32: Suiza | C32: n.d. | E32: n.d. | G32: 0.94 | H32: (d) | I32: .. | K32: 0.88 | L32: (d) | M32: n.d. | O32: 0.94 | Q32: n.d | S32: 0.94
B33: Turquía | C33: 10.42 | E33: 9.69 | G33: 10.34 | I33: 7.95 | J33: (d) | K33: 7.75 | L33: (d) | M33: 7.45 | N33: (d) | O33: 5.34 | Q33: 5.38 | R33: (d) | S33: 4.51 | T33: (d)
B35: b/ Ruptura de serie de tiempo.
B36: d/ Diferencia en la definición.
B37: e/ Cifras estimadas.
B38: p/ Cifras provisionales.
B39: v/ La suma del desglose no suma al total.
B40: n.d: No disponible.
B41: Se presenta el comparativo internacional hasta 2021 debido a que son los últimos datos publicados por la OCDE y la UNESCO.
B42: Fuentes: Los datos para México están calculados con base en información proveniente de la Encuesta sobre Investigación y Desarrollo Tecnológico (ESIDET) 2017; INEGI-Conacyt. Cuenta de la Hacienda Pública Federal.
B43: OECD, Main Science and Technology Indicator, en https://stats.oecd.org/Index.aspx?DataSetCode=MSTI_PUB, consultado 17/05/2024.

Sheet A.6.24
B5: A.6.24 GIDE EJECUTADO POR INSTITUCIONES DE EDUCACIÓN SUPERIOR POR PAÍSES, 2013-2021
B6: Porcentaje
B8: País | C8: 2013 | E8: 2014 | G8: 2015 | I8: 2016 | K8: 2017 | M8: 2018 | O8: 2019 | Q8: 2020 | S8: 2021
B9: Alemania | C9: 17.94 | E9: 17.72 | G9: 17.28 | I9: 18.04 | J9: (b) | K9: 17.36 | M9: 17.58 | O9: 17.43 | Q9: 18.73 | R9: (e) | S9: 18.25
B10: Argentina | C10: 29.14 | D10: p/ | E10: 30.47 | F10: p/ | G10: 25.98 | I10: 25.81 | K10: 25.22 | M10: 26.44 | O10: 24.90 | Q10: 22.98 | S10: 21.70
B11: Australia | C11: 29.63 | E11: n.d. | G11: 30.63 | H11: (e) | I11: n.d. | K11: 33.98 | L11: (e) | M11: n.d. | O11: 35.71 | P11: (e) | Q11: n.d. | S11: n.d.
B12: Canadá | C12: 39.47 | E12: 37.70 | F12: b/ | G12: 39.30 | I12: 39.45 | K12: 39.78 | M12: 38.89 | O12: 38.92 | Q12: 37.94 | S12: 37.72 | T12: (p)
B13: Chile | C13: 39.32 | E13: 38.96 | F13: b/ | G13: 38.53 | I13: 43.06 | J13: (bp) | K13: 45.85 | M13: 47.02 | N13: (e) | O13: 49.12 | P13: (e) | Q13: 47.59 | R13: (e) | S13: n.d.
B14: China | C14: 7.23 | E14: 6.90 | G14: 7.05 | I14: 6.84 | K14: 7.19 | M14: 7.41 | O14: 8.11 | Q14: 7.72 | S14: 7.80
B15: Corea | C15: 9.24 | E15: 9.05 | G15: 9.09 | I15: 9.13 | K15: 8.48 | M15: 8.22 | O15: 8.28 | Q15: 8.98 | S15: 9.14
B16: España | C16: 28.03 | E16: 28.13 | G16: 28.12 | I16: 27.52 | K16: 27.08 | M16: 26.40 | O16: 26.59 | Q16: 26.65 | S16: 26.59
B17: Estados Unidos de América | C17: 13.52 | D17: d/ | E17: 13.07 | F17: d/ | G17: 12.74 | H17: (bd) | I17: 12.71 | J17: (bd) | K17: 12.57 | L17: (d) | M17: 12.11 | N17: (d) | O17: 11.53 | P17: (d) | Q17: 11.07 | R17: (d) | S17: 10.43 | T17: (dp)
B18: Finlandia | C18: 21.52 | E18: 22.87 | G18: 24.39 | I18: 25.14 | K18: 25.39 | M18: 25.22 | O18: 25.38 | Q18: 24.56 | S18: 23.11
B19: Francia | C19: 20.88 | E19: 22.12 | F19: b/ | G19: 20.79 | I19: 20.54 | K19: 20.64 | M19: 20.45 | O19: 20.11 | Q19: 20.52 | S19: 20.48
B20: Grecia | C20: 37.43 | E20: 37.16 | G20: 37.78 | I20: 31.89 | K20: 28.30 | M20: 28.38 | O20: 30.63 | Q20: 31.78 | S20: 30.05
B21: Irlanda | C21: 23.54 | D21: e/ | E21: 24.61 | F21: e/ | G21: 23.78 | H21: (e) | I21: 23.58 | J21: (e) | K21: 21.86 | L21: (e) | M21: 22.98 | N21: (ep) | O21: 21.73 | P21: (ep) | Q21: 22.61 | R21: (ep) | S21: 16.04 | T21: (be)
B22: Italia | C22: 28.30 | E22: 26.70 | F22: e/ | G22: 25.51 | H22: (e) | I22: 24.15 | J22: (be) | K22: 23.57 | L22: (e) | M22: 22.80 | N22: (e) | O22: 22.46 | P22: (e) | Q22: 23.09 | R22: (e) | S22: 23.98 | T22: (e)
B23: Japón | C23: 13.47 | D23: b/ | E23: 12.58 | G23: 12.28 | I23: 12.32 | K23: 12.01 | M23: 11.56 | N23: (b) | O23: 11.69 | Q23: 11.70 | S23: 11.87
B24: México | C24: 31.77 | E24: 48.81 | G24: 50.34 | I24: 50.41 | K24: 50.22 | L24: (e) | M24: 51.17 | N24: (e) | O24: 50.78 | P24: (e) | Q24: 51.03 | R24: (e) | S24: 51.29
B25: Noruega | C25: 31.53 | E25: 31.04 | G25: 31.07 | I25: 32.58 | K25: 33.71 | M25: 34.63 | O25: 34.28 | Q25: 33.23 | S25: 32.96
B26: Países Bajos | C26: 28.74 | D26: b/ | E26: 29.20 | G26: 29.67 | I26: 28.25 | K26: 28.02 | M26: 27.70 | O26: 27.59 | Q26: 27.80 | S26: 28.47
B27: Portugal | C27: 44.64 | D27: b/ | E27: 45.61 | G27: 45.54 | I27: 44.72 | K27: 42.54 | M27: 41.63 | O27: 40.46 | Q27: 36.00 | S27: 33.31
B28: Reino Unido | C28: 26.42 | E28: 25.78 | F28: e/ | G28: 17.59 | H28: (ep) | I28: 16.68 | J28: (ep) | K28: 16.81 | L28: (ep) | M28: 23.95 | N28: (bep) | O28: 23.46 | P28: (p) | Q28: 22.43 | R28: (p) | S28: 22.52 | T28: (p)
B29: Rusia | C29: 9.01 | E29: 9.78 | G29: 9.59 | I29: 9.10 | K29: 9.02 | M29: 9.68 | O29: 10.63 | Q29: 9.85 | S29: n.d.
B30: Sudáfrica | C30: 28.42 | E30: 28.55 | G30: 30.54 | I30: 32.67 | K30: 33.60 | M30: 35.84 | O30: 41.12 | Q30: 41.10 | S30: n.d.
B31: Suecia | C31: 27.14 | D31: e/ | E31: 28.97 | F31: e/ | G31: 26.71 | H31: (v) | I31: 26.82 | J31: (e) | K31: 24.93 | L31: (v) | M31: 25.32 | N31: (e) | O31: 23.67 | P31: (bv) | Q31: 23.14 | R31: (e) | S31: 23.03 | T31: (ev)
B32: Suiza | C32: n.d. | E32: n.d. | G32: 28.62 | I32: n.d. | K32: 29.54 | M32: n.d. | O32: 28.87 | Q32: n.d. | S32: 28.18
B33: Turquía | C33: 42.09 | E33: 40.53 | G33: 39.66 | I33: 42.47 | K33: 42.29 | M33: 39.57 | O33: 38.60 | Q33: 38.84 | S33: 34.16
B35: b/ Ruptura de serie de tiempo.
B36: d/ Diferencia en la definición.
B37: e/ Cifras estimadas.
B38: p/ Cifras provisionales.
B39: v/ La suma del desglose no suma al total.
B40: n.d: No disponible.
B41: Se presenta el comparativo internacional hasta 2021 debido a que son los últimos datos publicados por la OCDE y la UNESCO.
B42: Fuentes: Los datos para México están calculados con base en información proveniente de la Encuesta sobre Investigación y Desarrollo Tecnológico (ESIDET) 2017; INEGI-Conacyt. Cuenta de la Hacienda Pública Federal.
B43: OECD, Main Science and Technology Indicator, en https://stats.oecd.org/Index.aspx?DataSetCode=MSTI_PUB, consultado 17/05/20234

Sheet A.6.25
B5: A.6.25 GASTO EN INVESTIGACIÓN BÁSICA POR PAÍSES COMO PORCENTAJE DEL PIB, 2013-2021
B6: Porcentaje
B8: País | C8: 2013 | E8: 2014 | G8: 2015 | I8: 2016 | K8: 2017 | M8: 2018 | O8: 2019 | Q8: 2020 | S8: 2021
B9: Chile | C9: 0.11 | D9: m/ | E9: 0.11 | F9: b/ | G9: 0.13 | H9: (m) | I9: 0.11 | J9: (bm) | K9: 0.11 | L9: (m) | M9: 0.12 | N9: (s) | O9: n.d. | Q9: n.d. | S9: n.d.
B10: China | C10: 0.09 | E10: 0.10 | G10: 0.10 | I10: 0.11 | K10: 0.12 | M10: 0.12 | O10: 0.14 | Q10: 0.14 | S10: 0.16
B11: Corea | C11: 0.71 | E11: 0.72 | G11: 0.69 | I11: 0.64 | K11: 0.62 | M11: 0.64 | O11: 0.68 | Q11: 0.69 | S11: 0.73
B12: España | C12: 0.29 | D12: e/ | E12: 0.28 | F12: e/ | G12: 0.27 | H12: (e) | I12: 0.26 | J12: (e) | K12: 0.26 | M12: 0.26 | O12: 0.29 | Q12: 0.33 | S12: 0.32
B13: Estados Unidos de América | C13: 0.47 | D13: d/ | E13: 0.47 | F13: d/ | G13: 0.47 | H13: (d) | I13: 0.47 | J13: (d) | K13: 0.46 | L13: (d) | M13: 0.48 | N13: (d) | O13: 0.49 | P13: (d) | Q13: 0.53 | R13: (d) | S13: 0.51 | T13: (dp)
B14: Francia | C14: 0.54 | E14: 0.54 | G14: 0.54 | I14: 0.50 | J14: (e) | K14: 0.50 | L14: (s) | M14: 0.50 | N14: (es) | O14: 0.50 | P14: (e) | Q14: 0.52 | S14: 0.51
B15: Grecia | C15: 0.28 | E15: n.d. | G15: 0.35 | I15: n.d. | K15: 0.36 | M15: n.d. | O15: 0.41 | Q15: 0.52 | S15: 0.54
B16: Irlanda | C16: 0.30 | D16: e/ | E16: n.d. | G16: 0.22 | H16: (e) | I16: n.d. | K16: 0.20 | L16: (e) | M16: n.d. | O16: n.d. | Q16: n.d. | S16: 0.22
B17: Italia | C17: 0.33 | E17: 0.32 | F17: e/ | G17: 0.33 | I17: 0.32 | J17: (b) | K17: 0.30 | M17: 0.31 | O17: 0.31 | Q17: 0.33 | S17: 0.34
B18: Japón | C18: 0.42 | D18: b/ | E18: 0.42 | G18: 0.39 | I18: 0.39 | K18: 0.42 | M18: 0.40 | N18: (b) | O18: 0.40 | Q18: 0.40 | S18: 0.42
B19: México | C19: 0.13 | D19: (e) | E19: 0.13 | F19: (e) | G19: 0.13 | H19: (e) | I19: 0.11 | J19: (e) | K19: 0.10 | L19: (e) | M19: 0.09 | N19: (e) | O19: 0.08 | P19: (e) | Q19: 0.09 | R19: (e) | S19: 0.08 | T19: (e)
B20: Noruega | C20: 0.29 | E20: n.d. | G20: 0.36 | I20: n.d. | K20: 0.38 | M20: n.d. | O20: 0.39 | Q20: n.d. | S20: 0.35
B21: Países Bajos | C21: 0.55 | D21: b/ | E21: 0.54 | G21: 0.55 | I21: 0.55 | K21: 0.54 | M21: 0.55 | O21: 0.55 | Q21: n.d. | S21: n.d.
B22: Portugal | C22: 0.30 | E22: 0.30 | G22: 0.29 | I22: 0.29 | K22: 0.29 | M22: 0.29 | O22: 0.30 | Q22: 0.31 | S22: 0.31
B23: Rusia | C23: 0.16 | D23: m/ | E23: 0.17 | F23: m/ | G23: 0.16 | H23: (d) | I23: 0.15 | J23: (d) | K23: 0.15 | L23: (d) | M23: 0.16 | N23: (d) | O23: 0.17 | P23: (d) | Q23: 0.19 | R23: (d) | S23: n.d.
B24: Sudáfrica | C24: 0.17 | E24: 0.19 | G24: 0.19 | I24: 0.20 | K24: 0.20 | M24: 0.19 | O24: 0.20 | Q24: 0.18 | S24: n.d.
B25: Suecia | C25: n.d. | E25: n.d. | G25: n.d. | I25: n.d. | K25: n.d. | M25: n.d. | O25: n.d. | Q25: n.d. | S25: 0.48
B26: Suiza | C26: n.d. | E26: n.d. | G26: 1.26 | I26: n.d. | K26: 1.36 | M26: n.d. | O26: 1.34 | Q26: n.d. | S26: n.d.
B28: b/ Ruptura de serie de tiempo.
B29: d/ Diferencia en la definición.
B30: e/ Cifras estimadas.
B31: m/ Subestimado o basado en datos subestimados.
B32: p/ Cifras provisionales.
B33: s/ El desglose no revisado no se suma al total revisado.
B34: n.d: No disponible.
B35: Se presenta el comparativo internacional hasta 2021 debido a que son los últimos datos publicados por la OCDE y la UNESCO.
B36: Fuentes: Los datos para México están calculados con base en información proveniente de la Encuesta sobre Investigación y Desarrollo Tecnológico (ESIDET) 2017; INEGI-Conacyt. Cuenta de la Hacienda Pública Federal.
B37: OECD, Main Science and Technology Indicator, en https://stats.oecd.org/Index.aspx?DataSetCode=MSTI_PUB, consultado 17/05/2024.

Sheet A.7.1
B5: A.7.1 GASTO FEDERAL EN CIENCIA, TECNOLOGÍA E INNOVACIÓN -GFCyT-, 2013-2022
B6: Millones de pesos
C8: GFCyT | E8: PIB | H8: GPSPF | K8: FBCFP
B9: Año | C9: A precios corrientes | D9: A precios de 2022 | E9: A precios corrientes 1/ | F9: A precios de 2022 | G9: GFCyT/PIB | H9: A precios corrientes | I9: A precios de 2022 | J9: GFCyT/GPSPF | K9: A precios corrientes 2/ | L9: A precios de 2022 | M9: GFCyT/FBCFP
B10: 2013 | C10: 68,317 | D10: 106,615 | E10: 16,277,187 | F10: 25,402,135 | G10: 0.42 | H10: 3,343,529 | I10: 5,217,902 | J10: 2.04 | K10: 717,644 | L10: 1,119,954 | M10: 9.52
B11: 2014 | C11: 83,551 | D11: 124,945 | E11: 17,484,306 | F11: 26,146,729 | G11: 0.48 | H11: 3,612,055 | I11: 5,401,611 | J11: 2.31 | K11: 722,764 | L11: 1,080,850 | M11: 11.56
B12: 2015 | C12: 85,156 | D12: 123,373 | E12: 18,572,109 | F12: 26,907,056 | G12: 0.46 | H12: 3,853,982 | I12: 5,583,604 | J12: 2.21 | K12: 675,662 | L12: 978,891 | M12: 12.60
B13: 2016 | C13: 84,184 | D13: 115,004 | E13: 20,129,057 | F13: 27,498,194 | G13: 0.42 | H13: 4,190,238 | I13: 5,724,261 | J13: 2.01 | K13: 712,574 | L13: 973,444 | M13: 11.81
B14: 2017 | C14: 86,214 | D14: 110,485 | E14: 21,934,168 | F14: 28,109,039 | G14: 0.39 | H14: 3,931,022 | I14: 5,037,676 | J14: 2.19 | K14: 674,443 | L14: 864,311 | M14: 12.78
B15: 2018 | C15: 88,517 | D15: 107,830 | E15: 23,524,390 | F15: 28,657,147 | G15: 0.38 | H15: 4,091,257 | I15: 4,983,924 | J15: 2.16 | K15: 714,039 | L15: 869,834 | M15: 12.40
B16: 2019 | C16: 88,688 | D16: 103,585 | E16: 24,445,735 | F16: 28,551,830 | G16: 0.36 | H16: 4,257,378 | I16: 4,972,480 | J16: 2.08 | K16: 621,731 | L16: 726,162 | M16: 14.26
B17: 2020 | C17: 98,148 | D17: 109,373 | E17: 23,434,430 | F17: 26,114,661 | G17: 0.42 | H17: 4,463,821 | I17: 4,974,355 | J17: 2.20 | K17: 629,214 | L17: 701,179 | M17: 15.60
B18: 2021 | C18: 100,612 | D18: 107,365 | E18: 25,837,330 | F18: 27,571,510 | G18: 0.39 | H18: 5,139,777 | I18: 5,484,755 | J18: 1.96 | K18: 690,587 | L18: 736,939 | M18: 14.57
B19: 2022 | C19: 106,864 | D19: 106,864 | E19: 28,483,642 | F19: 28,483,642 | G19: 0.38 | H19: 5,709,228 | I19: 5,709,228 | J19: 1.87 | K19: 812,061 | L19: 812,061 | M19: 13.16
B20: Nota: Cifras actualizadas del PIB con año base 2013, del Sistema de Cuentas Nacionales de México.
B21: 1/ Los datos corresponden a promedios anuales de observaciones trimestrales.
B22: 2/ Cifras actualizadas con año base 2013. Cifras prelimiares a partir de 2020.
B23: Fuentes: SHCP, Cuenta de la Hacienda Pública Federal, 2013-2022.
B24: NEGI, Sistema de Cuentas Nacionales de México.
B25: PIB= Producto Interno Bruto.
B26: GPSPF= Gasto Programable del Sector Público Federal.
B27: FBCFP= Formación Bruta de Capital Fijo Público.

Sheet A.7.2
B5: A.7.2 GFCyT POR RAMO ADMINISTRATIVO, 2013-2022
B6: Millones de pesos
B8: Ramo Administrativo | D8: 2013 | E8: 2014 | F8: 2015 | G8: 2016 | H8: 2017 | I8: 2018 | J8: 2019 | K8: 2020 | L8: 2021 | M8: 2022
B9: 08 | C9: Agricultura y Desarrollo Rural | D9: 3,356 | E9: 7,090 | F9: 7,492 | G9: 6,661 | H9: 6,958 | I9: 6,696 | J9: 4,619 | K9: 3,955 | L9: 4,007 | M9: 4,354
B10: 09 | C10: Infraestructura, Comunicaciones y Transportes 1/ | D10: 231 | E10: 316 | F10: 323 | G10: 328 | H10: 318 | I10: 282 | J10: 273 | K10: 206 | L10: 233 | M10: 218
B11: 10 | C11: Economía | D11: 1,551 | E11: 2,130 | F11: 2,013 | G11: 1,895 | H11: 1,600 | I11: 1,780 | J11: 1,510 | K11: 1,045 | L11: 1,234 | M11: 1,287
B12: 11 | C12: Educación Pública | D12: 17,629 | E12: 20,061 | F12: 21,100 | G12: 22,689 | H12: 31,155 | I12: 32,721 | J12: 37,938 | K12: 43,662 | L12: 47,007 | M12: 49,632
B13: 12 | C13: Salud y Seguridad Social 2/ | D13: 5,887 | E13: 6,071 | F13: 6,427 | G13: 6,880 | H13: 6,735 | I13: 7,290 | J13: 7,153 | K13: 7,755 | L13: 8,257 | M13: 9,122
B14: 13 | C14: Marina | D14: 536 | E14: 383 | F14: 140 | G14: 206 | H14: 341 | I14: 172 | J14: 210 | K14: 239 | L14: 142 | M14: 177
B15: 16 | C15: Medio Ambiente y Recursos Naturales | D15: 645 | E15: 812 | F15: 837 | G15: 730 | H15: 765 | I15: 740 | J15: 490 | K15: 505 | L15: 463 | M15: 496
B16: 18 | C16: Energía | D16: 10,641 | E16: 12,693 | F16: 11,165 | G16: 9,152 | H16: 7,852 | I16: 8,047 | J16: 8,421 | K16: 7,418 | L16: 5,812 | M16: 6,768
B17: 38 | C17: Conacyt | D17: 27,511 | E17: 33,660 | F17: 35,271 | G17: 35,250 | H17: 30,002 | I17: 30,269 | J17: 27,591 | K17: 28,924 | L17: 31,537 | M17: 32,383
B18: 49 | C18: Fiscalía General de la República | D18: 123 | E18: 130 | F18: 182 | G18: 206 | H18: 176 | I18: 170 | J18: 139 | K18: 126 | L18: 133 | M18: 105
C19: Otros 3/ | D19: 204 | E19: 204 | F19: 208 | G19: 189 | H19: 312 | I19: 351 | J19: 344 | K19: 4,314 | L19: 1,787 | M19: 2,322
C20: TOTAL | D20: 68,317 | E20: 83,551 | F20: 85,156 | G20: 84,184 | H20: 86,214 | I20: 88,517 | J20: 88,688 | K20: 98,148 | L20: 100,612 | M20: 106,864
B21: 1/ Hasta 2021 el Ramo 09 se denominó Comunicaciones y Transportes.
B22: 2/ Incluye al Instituto Mexicano del Seguro Social y al Instituto de Seguridad y Servicios Sociales de los Trabajadores del Estado.
B23: 3/ Incluye a los ramos administrativos 05 Relaciones Exteriores, 21 Turismo, 07 Defensa Nacional. A partir de 2017 incluye al Ramo 48 Cultura al sectorizarse el Instituto Nacional de Antropología e Historia en ese Ramo, que hasta 2018 se sectorizó en el Ramo 11 Educación Pública. A partir de 2019 incluye al Ramo 36 Seguridad y Protección Ciudadana al sectorizarse el Centro Nacional de Prevención de Desastres en ese Ramo, que hasta 2018 se sectorizó en el Ramo 04 Gobernación. A partir de 2020 incluye a la Comisión Federal de Electricidad.
B24: Fuente: SHCP, Cuenta de la Hacienda Pública Federal, 2013-2022.

Sheet A.7.3
B5: A.7.3 GFCyT POR RAMO ADMINISTRATIVO, 2013-2022
B6: Millones de pesos a precios de 2022
B8: Ramo Administrativo | D8: 2013 | E8: 2014 | F8: 2015 | G8: 2016 | H8: 2017 | I8: 2018 | J8: 2019 | K8: 2020 | L8: 2021 | M8: 2022
B9: 08 | C9: Agricultura y Desarrollo Rural | D9: 5,238 | E9: 10,602 | F9: 10,854 | G9: 9,100 | H9: 8,917 | I9: 8,156 | J9: 5,395 | K9: 4,407 | L9: 4,276 | M9: 4,354
B10: 09 | C10: Infraestructura, Comunicaciones y Transportes 1/ | D10: 361 | E10: 473 | F10: 468 | G10: 448 | H10: 408 | I10: 344 | J10: 319 | K10: 229 | L10: 249 | M10: 218
B11: 10 | C11: Economía | D11: 2,421 | E11: 3,185 | F11: 2,916 | G11: 2,589 | H11: 2,050 | I11: 2,168 | J11: 1,764 | K11: 1,164 | L11: 1,317 | M11: 1,287
B12: 11 | C12: Educación Pública | D12: 27,511 | E12: 30,001 | F12: 30,569 | G12: 30,995 | H12: 39,925 | I12: 39,861 | J12: 44,310 | K12: 48,656 | L12: 50,162 | M12: 49,632
B13: 12 | C13: Salud y Seguridad Social 2/ | D13: 9,187 | E13: 9,078 | F13: 9,311 | G13: 9,398 | H13: 8,631 | I13: 8,880 | J13: 8,355 | K13: 8,642 | L13: 8,811 | M13: 9,122
B14: 13 | C14: Marina | D14: 837 | E14: 573 | F14: 202 | G14: 281 | H14: 437 | I14: 209 | J14: 246 | K14: 266 | L14: 152 | M14: 177
B15: 16 | C15: Medio Ambiente y Recursos Naturales | D15: 1,007 | E15: 1,215 | F15: 1,213 | G15: 997 | H15: 981 | I15: 901 | J15: 572 | K15: 563 | L15: 494 | M15: 496
B16: 18 | C16: Energía | D16: 16,607 | E16: 18,982 | F16: 16,176 | G16: 12,502 | H16: 10,062 | I16: 9,802 | J16: 9,836 | K16: 8,266 | L16: 6,202 | M16: 6,768
B17: 38 | C17: Conacyt | D17: 42,933 | E17: 50,337 | F17: 51,100 | G17: 48,155 | H17: 38,448 | I17: 36,874 | J17: 32,225 | K17: 32,232 | L17: 33,654 | M17: 32,383
B18: 49 | C18: Fiscalía General de la República | D18: 193 | E18: 194 | F18: 263 | G18: 281 | H18: 226 | I18: 207 | J18: 162 | K18: 140 | L18: 142 | M18: 105
C19: Otros 3/ | D19: 319 | E19: 306 | F19: 301 | G19: 258 | H19: 399 | I19: 428 | J19: 401 | K19: 4,807 | L19: 1,907 | M19: 2,322
C20: TOTAL | D20: 106,615 | E20: 124,945 | F20: 123,373 | G20: 115,004 | H20: 110,485 | I20: 107,830 | J20: 103,585 | K20: 109,373 | L20: 107,365 | M20: 106,864
B21: 1/ Hasta 2021 el Ramo 09 se denominó Comunicaciones y Transportes.
B22: 2/ Incluye al Instituto Mexicano del Seguro Social y al Instituto de Seguridad y Servicios Sociales de los Trabajadores del Estado.
B23: 3/ Incluye a los ramos administrativos 05 Relaciones Exteriores, 21 Turismo, 07 Defensa Nacional. A partir de 2017 incluye al Ramo 48 Cultura al sectorizarse el Instituto Nacional de Antropología e Historia en ese Ramo, que hasta 2018 se sectorizó en el Ramo 11 Educación Pública. A partir de 2019 incluye al Ramo 36 Seguridad y Protección Ciudadana al sectorizarse el Centro Nacional de Prevención de Desastres en ese Ramo, que hasta 2018 se sectorizó en el Ramo 04 Gobernación. A partir de 2020 incluye a la Comisión Federal de Electricidad.
B24: Fuentes: SHCP, Cuenta de la Hacienda Pública Federal, 2013-2022.
B25: INEGI, Sistema de Cuentas Nacionales de México.

Sheet A.7.4
C5: A.7.4 PARTICIPACIÓN DE LOS RAMOS ADMINISTRATIVOS Y PRINCIPALES ENTIDADES EN EL GFCyT, 2013-2022
C6: Millones de pesos
C8: Ramo administrativo | E8: 2013 | F8: 2014 | G8: 2015 | H8: 2016 | I8: 2017 | J8: 2018 | K8: 2019 | L8: 2020 | M8: 2021 | N8: 2022
C9: Entidad
C10: 11 Educación Pública | E10: =SUM(E11:E19) -> 17,629 | F10: 20,061 | G10: 21,100 | H10: 22,689 | I10: 31,154 | J10: 32,721 | K10: 37,938 | L10: 43,662 | M10: 47,007 | N10: 49,632
C11: Universidad Nacional Autónoma de México | E11: 9,562 | F11: 10,606 | G11: 11,416 | H11: 11,682 | I11: 14,174 | J11: 13,857 | K11: 14,897 | L11: 15,183 | M11: 17,056 | N11: 18,741
C12: Centro de Investigación y de Estudios Avanzados | E12: 2,642 | F12: 2,618 | G12: 2,797 | H12: 2,968 | I12: 3,302 | J12: 3,457 | K12: 3,219 | L12: 2,898 | M12: 3,299 | N12: 3,258
C13: Universidad Autónoma Metropolitana | E13: 1,744 | F13: 1,957 | G13: 2,325 | H13: 2,420 | I13: 3,861 | J13: 3,155 | K13: 3,416 | L13: 3,329 | M13: 3,760 | N13: 4,053
C14: Dirección General de Educación Superior Universitaria e Intercultural1/ | E14: 1,050 | F14: 1,261 | G14: 270 | H14: 1,149 | I14: 3,064 | J14: 5,141 | K14: 7,960 | L14: 8,351 | M14: 8,965 | N14: 9,146
C15: Tecnológico Nacional de México | E15: 0 | F15: 84 | G15: 187 | H15: 201 | I15: 1,164 | J15: 1,766 | K15: 2,225 | L15: 6,684 | M15: 7,009 | N15: 6,958
C16: Instituto Politécnico Nacional | E16: 1,221 | F16: 2,022 | G16: 2,721 | H16: 2,958 | I16: 4,037 | J16: 3,552 | K16: 4,219 | L16: 4,173 | M16: 4,782 | N16: 5,070
C17: El Colegio de México, A.C. | E17: 612 | F17: 651 | G17: 723 | H17: 659 | I17: 771 | J17: 853 | K17: 774 | L17: 781 | M17: 876 | N17: 916
C18: Universidad Autónoma Agraria Antonio Narro | E18: 142 | F18: 154 | G18: 191 | H18: 199 | I18: 333 | J18: 315 | K18: 298 | L18: 1,186 | M18: 201 | N18: 205
C19: Otros | E19: 656 | F19: 709 | G19: 471 | H19: 451 | I19: 448 | J19: 625 | K19: 932 | L19: 1,078 | M19: 1,060 | N19: 1,285
C20: 18 Energía | E20: =SUM(E21:E25) -> 10,641 | F20: 12,693 | G20: 11,165 | H20: 9,152 | I20: 7,852 | J20: 8,047 | K20: 8,421 | L20: 7,418 | M20: =SUM(M21:M25) -> 5,812 | N20: 6,768
C21: Instituto Mexicano del Petróleo | E21: 5,242 | F21: 6,240 | G21: 5,305 | H21: 4,712 | I21: 4,011 | J21: 3,835 | K21: 3,828 | L21: 3,580 | M21: 3,834 | N21: 4,954
C22: Instituto Nacional de Electricidad y Energías Limpias | E22: 805 | F22: 906 | G22: 921 | H22: 926 | I22: 868 | J22: 801 | K22: 789 | L22: 710 | M22: 732 | N22: 664
C23: Instituto Nacional de Investigaciones Nucleares | E23: 746 | F23: 749 | G23: 761 | H23: 819 | I23: 825 | J23: 875 | K23: 919 | L23: 835 | M23: 840 | N23: 881
C24: Petróleos Mexicanos | E24: 3,849 | F24: 4,798 | G24: 4,177 | H24: 2,685 | I24: 2,138 | J24: 2,524 | K24: 2,877 | L24: 2,281 | M24: 0 | N24: 0
C25: Otros1/ | H25: 10 | I25: 11 | J25: 12 | K25: 9 | L25: 12 | M25: 406 | N25: 269
C26: 08 Agricultura y Desarrollo Rural | E26: =SUM(E27:E31) -> 3,356 | F26: 7,090 | G26: 7,492 | H26: 6,661 | I26: 6,958 | J26: 6,696 | K26: 4,619 | L26: 3,955 | M26: 4,007 | N26: 4,354
C27: Instituto Nacional de Investigaciones Forestales, Agrícolas y Pecuarias | E27: 1,331 | F27: 1,536 | G27: 1,495 | H27: 1,500 | I27: 1,409 | J27: 1,505 | K27: 1,411 | L27: 1,429 | M27: 1,429 | N27: 1,615
C28: Colegio de Postgraduados | E28: 1,085 | F28: 1,286 | G28: 1,242 | H28: 1,318 | I28: 1,425 | J28: 1,442 | K28: 1,431 | L28: 1,379 | M28: 1,369 | N28: 1,437
C29: Universidad Autónoma Chapingo | E29: 239 | F29: 445 | G29: 265 | H29: 614 | I29: 589 | J29: 605 | K29: 628 | L29: 653 | M29: 695 | N29: 746
C30: Instituto Nacional de Pesca y Acuacultura | E30: 640 | F30: 476 | G30: 478 | H30: 538 | I30: 576 | J30: 569 | K30: 541 | L30: 493 | M30: 513 | N30: 517
C31: Otros | E31: 61 | F31: 3,346 | G31: 4,011 | H31: 2,692 | I31: 2,958 | J31: 2,575 | K31: 608 | L31: 1 | M31: 1 | N31: 40
C32: 12 Salud y Seguridad Social | E32: =SUM(E33:E38) -> 5,887 | F32: 6,071 | G32: 6,427 | H32: 6,880 | I32: 6,735 | J32: 7,290 | K32: 7,153 | L32: 7,755 | M32: 8,257 | N32: 9,122
C33: Institutos Nacionales de Salud 2/ | E33: 2,625 | F33: 2,676 | G33: 2,717 | H33: 2,849 | I33: 2,751 | J33: 3,000 | K33: 2,714 | L33: 3,222 | M33: 3,119 | N33: 3,272
C34: Instituto Mexicano del Seguro Social | E34: 477 | F34: 513 | G34: 691 | H34: 705 | I34: 624 | J34: 651 | K34: 706 | L34: 710 | M34: 706 | N34: 767
C35: Instituto de Seguridad y Servicios Sociales de los Trabajadores del Estado | E35: 82 | F35: 71 | G35: 67 | H35: 91 | I35: 109 | J35: 121 | K35: 95 | L35: 84 | M35: 113 | N35: 96
C36: Dirección General de Calidad y Educación en Salud | E36: 2,285 | F36: 2,413 | G36: 2,398 | H36: 2,505 | I36: 2,629 | J36: 2,703 | K36: 2,848 | L36: 2,946 | M36: 3,541 | N36: 4,170
C37: Hospitales Generales y Regionales | E37: 223 | F37: 220 | G37: 419 | H37: 569 | I37: 503 | J37: 661 | K37: 652 | L37: 691 | M37: 672 | N37: 701
C38: Otras unidades centralizadas y descentralizadas | E38: 195 | F38: 179 | G38: 134 | H38: 161 | I38: 119 | J38: 154 | K38: 137 | L38: 102 | M38: 106 | N38: 117
C39: 38 Conahcyt | E39: =SUM(E40:E41) -> 27,511 | F39: 33,660 | G39: 35,271 | H39: 35,250 | I39: 30,002 | J39: 30,269 | K39: 27,591 | L39: 28,924 | M39: 31,537 | N39: 32,383
C40: Consejo Nacional de Humanidades, Ciencias y Tecnologías | E40: 18,421 | F40: 23,903 | G40: 25,109 | H40: 25,180 | I40: 21,399 | J40: 21,512 | K40: 19,583 | L40: 19,847 | M40: 20,262 | N40: 22,564
C41: Centros Públicos de Investigación - Conahcyt | E41: 9,089 | F41: 9,757 | G41: 10,161 | H41: 10,069 | I41: 8,603 | J41: 8,757 | K41: 8,008 | L41: 9,077 | M41: 11,275 | N41: 9,819
C42: Otros ramos administrativos 3/ | E42: 3,293 | F42: 3,976 | G42: 3,702 | H42: 3,553 | I42: 3,513 | J42: 3,494 | K42: 2,966 | L42: 6,433 | M42: 3,992 | N42: 4,604
C43: Total | E43: =E10+E20+E26+E32+E39+E42 -> 68,317 | F43: 83,551 | G43: 85,156 | H43: 84,184 | I43: 86,214 | J43: 88,517 | K43: 88,688 | L43: 98,148 | M43: 100,612 | N43: 106,864
C44: 1/ Hasta 2021 se denominó Dirección General de Educación Superior Universitaria.
C45: 2/ Se incluye en el grupo de Institutos Nacionales de Salud al Hospital Infantil de México Federico Gómez.
C46: 3/ Incluye a los ramos administrativos 05 Relaciones Exteriores, 07 Defensa Nacional, 09 Comunicaciones y Transportes, que a partir de 2022 cambia de nombre a Infraestructura, Comunicaciones y Transportes, 10 Economía, 13 Marina, 16 Medio Ambiente y Recursos Naturales, 21 Turismo. A partir de 2017 incluye al Ramo 48 Cultura al sectorizarse el Instituto Nacional de Antropología e Historia en ese Ramo, que hasta 2018 se sectorizó en el Ramo 11 Educación Pública. A partir de 2019 incluye al Ramo 36 Seguridad y Protección Ciudadana al sectorizarse el Centro Nacional de Prevención de Desastres en ese Ramo, que hasta 2018 se sectorizó en el Ramo 04 Gobernación. A partir de 2020 incluye al Ramo 49 Fiscalía General de la República al sectorizarse al Instituto Nacional de Ciencias Penales en ese ramo, que hasta 2019 se sectorizó en el Ramo 17 Procuraduría General de la República. A partir de 2020 incluye a la Comisión Federal de Electricidad.
C47: Fuente: SHCP, Cuenta de la Hacienda Pública Federal, 2013-2022.

Sheet A.7.5
B5: A.7.5 PARTICIPACIÓN DE LOS RAMOS ADMINISTRATIVOS Y PRINCIPALES ENTIDADES EN EL GFCyT, 2013-2022
B6: Millones de pesos a precios de 2022
B8: Ramo administrativo | D8: 2013 | E8: 2014 | F8: 2015 | G8: 2016 | H8: 2017 | I8: 2018 | J8: 2019 | K8: 2020 | L8: 2021 | M8: 2022
C9: Entidad
B10: 11 Educación Pública | D10: 27,511 | E10: 30,001 | F10: 30,569 | G10: 30,995 | H10: 39,925 | I10: 39,861 | J10: 44,310 | K10: 48,656 | L10: 50,162 | M10: 49,632
C11: Universidad Nacional Autónoma de México | D11: 14,923 | E11: 15,861 | F11: 16,539 | G11: 15,959 | H11: 18,164 | I11: 16,880 | J11: 17,399 | K11: 16,919 | L11: 18,200 | M11: 18,741
C12: Centro de Investigación y de Estudios Avanzados | D12: 4,122 | E12: 3,915 | F12: 4,052 | G12: 4,055 | H12: 4,232 | I12: 4,211 | J12: 3,759 | K12: 3,229 | L12: 3,520 | M12: 3,258
C13: Universidad Autónoma Metropolitana | D13: 2,722 | E13: 2,926 | F13: 3,368 | G13: 3,307 | H13: 4,947 | I13: 3,843 | J13: 3,990 | K13: 3,710 | L13: 4,012 | M13: 4,053
C14: Dirección General de Educación Superior Universitaria e Intercultural1/ | D14: 1,638 | E14: 1,885 | F14: 391 | G14: 1,570 | H14: 3,927 | I14: 6,263 | J14: 9,297 | K14: 9,306 | L14: 9,567 | M14: 9,146
C15: Tecnológico Nacional de México | D15: 0 | E15: 126 | F15: 270 | G15: 275 | H15: 1,491 | I15: 2,152 | J15: 2,598 | K15: 7,449 | L15: 7,479 | M15: 6,958
C16: Instituto Politécnico Nacional | D16: 1,906 | E16: 3,024 | F16: 3,942 | G16: 4,041 | H16: 5,174 | I16: 4,327 | J16: 4,927 | K16: 4,651 | L16: 5,103 | M16: 5,070
C17: El Colegio de México, A.C. | D17: 956 | E17: 973 | F17: 1,047 | G17: 900 | H17: 988 | I17: 1,039 | J17: 904 | K17: 870 | L17: 935 | M17: 916
C18: Universidad Autónoma Agraria Antonio Narro | D18: 222 | E18: 231 | F18: 277 | G18: 273 | H18: 427 | I18: 384 | J18: 348 | K18: 1,321 | L18: 214 | M18: 205
C19: Otros | D19: 1,023 | E19: 1,060 | F19: 683 | G19: 616 | H19: 575 | I19: 762 | J19: 1,089 | K19: 1,202 | L19: 1,131 | M19: 1,285
B20: 18 Energía | D20: 16,607 | E20: 18,982 | F20: 16,176 | G20: 12,502 | H20: 10,062 | I20: 9,802 | J20: 9,836 | K20: 8,266 | L20: 6,202 | M20: 6,768
C21: Instituto Mexicano del Petróleo | D21: 8,180 | E21: 9,332 | F21: 7,687 | G21: 6,437 | H21: 5,140 | I21: 4,672 | J21: 4,472 | K21: 3,990 | L21: 4,091 | M21: 4,954
C22: Instituto Nacional de Electricidad y Energías Limpias | D22: 1,256 | E22: 1,354 | F22: 1,334 | G22: 1,265 | H22: 1,112 | I22: 975 | J22: 921 | K22: 791 | L22: 781 | M22: 664
C23: Instituto Nacional de Investigaciones Nucleares | D23: 1,164 | E23: 1,121 | F23: 1,103 | G23: 1,118 | H23: 1,057 | I23: 1,066 | J23: 1,073 | K23: 930 | L23: 897 | M23: 881
C24: Petróleos Mexicanos | D24: 6,006 | E24: 7,175 | F24: 6,052 | G24: 3,669 | H24: 2,739 | I24: 3,074 | J24: 3,360 | K24: 2,542 | L24: 0 | M24: 0
C25: Otros | D25: 0 | E25: 0 | F25: 0 | G25: 14 | H25: 14 | I25: 15 | J25: 10 | K25: 14 | L25: 433 | M25: 269
B26: 08 Agricultura y Desarrollo Rural | D26: 5,238 | E26: 10,602 | F26: 10,854 | G26: 9,100 | H26: 8,917 | I26: 8,156 | J26: 5,395 | K26: 4,407 | L26: 4,276 | M26: 4,354
C27: Instituto Nacional de Investigaciones Forestales, Agrícolas y Pecuarias | D27: 2,078 | E27: 2,298 | F27: 2,166 | G27: 2,050 | H27: 1,806 | I27: 1,833 | J27: 1,648 | K27: 1,593 | L27: 1,525 | M27: 1,615
C28: Colegio de Postgraduados | D28: 1,694 | E28: 1,923 | F28: 1,800 | G28: 1,800 | H28: 1,826 | I28: 1,757 | J28: 1,671 | K28: 1,537 | L28: 1,460 | M28: 1,437
C29: Universidad Autónoma Chapingo | D29: 372 | E29: 665 | F29: 384 | G29: 838 | H29: 755 | I29: 737 | J29: 734 | K29: 728 | L29: 742 | M29: 746
C30: Instituto Nacional de Pesca y Acuacultura | D30: 998 | E30: 712 | F30: 693 | G30: 735 | H30: 739 | I30: 693 | J30: 632 | K30: 549 | L30: 548 | M30: 517
C31: Otros | D31: 96 | E31: 5,003 | F31: 5,811 | G31: 3,677 | H31: 3,791 | I31: 3,137 | J31: 710 | K31: 1 | L31: 1 | M31: 40
B32: 12 Salud y Seguridad Social | D32: 9,187 | E32: 9,078 | F32: 9,311 | G32: 9,398 | H32: 8,631 | I32: 8,880 | J32: 8,355 | K32: 8,642 | L32: 8,811 | M32: 9,122
C33: Institutos Nacionales de Salud 2/ | D33: 4,097 | E33: 4,001 | F33: 3,937 | G33: 3,892 | H33: 3,525 | I33: 3,654 | J33: 3,170 | K33: 3,590 | L33: 3,328 | M33: 3,272
C34: Instituto Mexicano del Seguro Social | D34: 744 | E34: 767 | F34: 1,002 | G34: 963 | H34: 800 | I34: 793 | J34: 825 | K34: 791 | L34: 754 | M34: 767
C35: Instituto de Seguridad y Servicios Sociales de los Trabajadores del Estado | D35: 128 | E35: 106 | F35: 97 | G35: 124 | H35: 140 | I35: 147 | J35: 111 | K35: 93 | L35: 120 | M35: 96
C36: Dirección General de Calidad y Educación en Salud | D36: 3,567 | E36: 3,608 | F36: 3,475 | G36: 3,422 | H36: 3,369 | I36: 3,293 | J36: 3,326 | K36: 3,283 | L36: 3,778 | M36: 4,170
C37: Hospitales Generales y Regionales | D37: 348 | E37: 328 | F37: 606 | G37: 777 | H37: 644 | I37: 805 | J37: 762 | K37: 770 | L37: 717 | M37: 701
C38: Otras unidades centralizadas y descentralizadas | D38: 304 | E38: 267 | F38: 194 | G38: 220 | H38: 153 | I38: 188 | J38: 160 | K38: 114 | L38: 114 | M38: 117
B39: 38 Conahcyt | D39: 42,933 | E39: 50,337 | F39: 51,100 | G39: 48,155 | H39: 38,448 | I39: 36,874 | J39: 32,225 | K39: 32,232 | L39: 33,654 | M39: 32,383
C40: Consejo Nacional de Humanidades, Ciencias y Tecnologías | D40: 28,748 | E40: 35,746 | F40: 36,378 | G40: 34,399 | H40: 27,423 | I40: 26,206 | J40: 22,872 | K40: 22,117 | L40: 21,622 | M40: 22,564
C41: Centros Públicos de Investigación - Conahcyt | D41: 14,185 | E41: 14,591 | F41: 14,722 | G41: 13,756 | H41: 11,025 | I41: 10,667 | J41: 9,353 | K41: 10,115 | L41: 12,032 | M41: 9,819
B42: Otros ramos administrativos 3/ | D42: 5,138 | E42: 5,945 | F42: 5,363 | G42: 4,853 | H42: 4,502 | I42: 4,257 | J42: 3,464 | K42: 7,169 | L42: 4,260 | M42: 4,604
B43: Total | D43: 106,615 | E43: 124,945 | F43: 123,373 | G43: 115,004 | H43: 110,485 | I43: 107,830 | J43: 103,585 | K43: 109,373 | L43: 107,365 | M43: 106,864
B44: 1/ Hasta 2021 se denominó Dirección General de Educación Superior Universitaria.
B45: 2/ Se incluye en el grupo de Institutos Nacionales de Salud al Hospital Infantil de México Federico Gómez.
B46: 3/ Incluye a los ramos administrativos 05 Relaciones Exteriores, 07 Defensa Nacional, 09 Comunicaciones y Transportes, que a partir de 2022 cambia de nombre a Infraestructura, Comunicaciones y Transportes, 10 Economía, 13 Marina, 16 Medio Ambiente y Recursos Naturales, 21 Turismo. A partir de 2017 incluye al Ramo 48 Cultura al sectorizarse el Instituto Nacional de Antropología e Historia en ese Ramo, que hasta 2018 se sectorizó en el Ramo 11 Educación Pública. A partir de 2019 incluye al Ramo 36 Seguridad y Protección Ciudadana al sectorizarse el Centro Nacional de Prevención de Desastres en ese Ramo, que hasta 2018 se sectorizó en el Ramo 04 Gobernación. A partir de 2020 incluye al Ramo 49 Fiscalía General de la República al sectorizarse al Instituto Nacional de Ciencias Penales en ese ramo, que hasta 2019 se sectorizó en el Ramo 17 Procuraduría General de la República. A partir de 2020 incluye a la Comisión Federal de Electricidad.
B47: Fuentes: SHCP, Cuenta de la Hacienda Pública Federal, 2013-2022.
C48: INEGI, Sistema de Cuentas Nacionales de México.

Sheet A.7.6
B5: A.7.6 GFCyT POR SECTOR DE ASIGNACIÓN, 2013-2022
B6: Millones de pesos
B8: Año | C8: Administración Central 1/, 2/ | D8: Centros de Enseñanza Superior Públicos2/ | E8: Empresas Públicas 3/ | F8: Total
B9: 2013 | C9: 52,923 | D9: 14,653 | E9: 740 | F9: 68,317
B10: 2014 | C10: 65,356 | D10: 17,347 | E10: 848 | F10: 83,551
B11: 2015 | C11: 65,332 | D11: 19,115 | E11: 709 | F11: 85,156
B12: 2016 | C12: 63,619 | D12: 20,097 | E12: 468 | F12: 84,184
B13: 2017 | C13: 59,281 | D13: 26,445 | E13: 487 | F13: 86,214
B14: 2018 | C14: 62,430 | D14: 25,672 | E14: 415 | F14: 88,517
B15: 2019 | C15: 60,376 | D15: 28,032 | E15: 281 | F15: 88,688
B16: 2020 | C16: 60,350 | D16: 33,528 | E16: 4,270 | F16: 98,148
B17: 2021 | C17: 62,784 | D17: 35,911 | E17: 1,917 | F17: 100,612
B18: 2022 | C18: 66,258 | D18: 38,319 | E18: 2,287 | F18: 106,864
B19: 1/ Incluye Entidades de Servicio Institucional.
B20: 2/ De 2013 a 2021 cifras revisadas por la entidad responsable.
B21: 3/ De 2017 a 2021 cifras revisadas por la entidad responsable.
B22: Fuente: SHCP, Cuenta de la Hacienda Pública Federal, 2013-2022.

Sheet A.7.7
B5: A.7.7 GFCyT POR SECTOR DE ASIGNACIÓN, 2013-2022
B6: Millones de pesos a precios de 2022
B8: Año | C8: Administración Central 1/, 2/ | D8: Centros de Enseñanza Superior Públicos2/ | E8: Empresas Públicas 3/ | F8: Total
B9: 2013 | C9: 82,592 | D9: 22,868 | E9: 1,154 | F9: 106,615
B10: 2014 | C10: 97,736 | D10: 25,941 | E10: 1,267 | F10: 124,945
B11: 2015 | C11: 94,652 | D11: 27,694 | E11: 1,027 | F11: 123,373
B12: 2016 | C12: 86,909 | D12: 27,454 | E12: 640 | F12: 115,004
B13: 2017 | C13: 75,970 | D13: 33,890 | E13: 624 | F13: 110,485
B14: 2018 | C14: 76,051 | D14: 31,273 | E14: 506 | F14: 107,830
B15: 2019 | C15: 70,517 | D15: 32,740 | E15: 328 | F15: 103,585
B16: 2020 | C16: 67,253 | D16: 37,362 | E16: 4,758 | F16: 109,373
B17: 2021 | C17: 66,998 | D17: 38,321 | E17: 2,046 | F17: 107,365
B18: 2022 | C18: 66,258 | D18: 38,319 | E18: 2,287 | F18: 106,864
B19: 1/ Incluye Entidades de Servicio Institucional.
B20: 2/ De 2013 a 2021 cifras revisadas por la entidad responsable.
B21: 3/ De 2017 a 2021 cifras revisadas por la entidad responsable.
B22: Fuentes: SHCP, Cuenta de la Hacienda Pública Federal, 2013-2022.
B23: INEGI, Sistema de Cuentas Nacionales de México.

Sheet A.7.8
B5: A.7.8 GFIDE POR SECTOR DE ASIGNACIÓN, 2013-2022
B6: Millones de pesos a precios de 2022
B8: Año | C8: Administración Central 1/, 2/ | D8: Centros de Enseñanza Superior Públicos 2/ | E8: Empresas Públicas 3/ | F8: GFIDE | G8: GFIDE/GFCyT % | H8: GFIDE/PIB % | I8: GFIDE/GPSPF %
B9: 2013 | C9: 59,802 | D9: 16,832 | E9: 1,141 | F9: 77,775 | G9: 72.9 | H9: 0.31 | I9: 1.49
B10: 2014 | C10: 67,025 | D10: 18,162 | E10: 1,254 | F10: 86,442 | G10: 69.2 | H10: 0.33 | I10: 1.60
B11: 2015 | C11: 64,264 | D11: 20,290 | E11: 1,014 | F11: 85,568 | G11: 69.4 | H11: 0.32 | I11: 1.53
B12: 2016 | C12: 56,315 | D12: 19,176 | E12: 632 | F12: 76,123 | G12: 66.2 | H12: 0.28 | I12: 1.33
B13: 2017 | C13: 45,026 | D13: 19,119 | E13: 617 | F13: 64,762 | G13: 58.6 | H13: 0.23 | I13: 1.29
B14: 2018 | C14: 43,782 | D14: 18,098 | E14: 498 | F14: 62,378 | G14: 57.8 | H14: 0.22 | I14: 1.25
B15: 2019 | C15: 37,911 | D15: 18,121 | E15: 322 | F15: 56,353 | G15: 54.4 | H15: 0.20 | I15: 1.13
B16: 2020 | C16: 36,540 | D16: 17,977 | E16: 292 | F16: 54,809 | G16: 50.1 | H16: 0.21 | I16: 1.10
B17: 2021 | C17: 37,408 | D17: 18,018 | E17: 489 | F17: 55,915 | G17: 52.1 | H17: 0.20 | I17: 1.02
B18: 2022 | C18: 36,080 | D18: 18,458 | E18: 318 | F18: 54,856 | G18: 51.3 | H18: 0.19 | I18: 0.96
B19: 1/ Incluye Entidades de Servicio Institucional.
B20: 2/ De 2013 a 2021 cifras actualizadas por la entidad responsable.
B21: 3/ De 2017 a 2021 cifras actualizadas por la entidad responsable.
B22: Fuentes: SHCP, Cuenta de la Hacienda Pública Federal, 2013-2022.
B23: INEGI, Sistema de Cuentas Nacionales de México.

Sheet A.7.9
B5: A.7.9 GFEECyT POR SECTOR DE ASIGNACIÓN, 2013-2022
B6: Millones de pesos a precios de 2022
B8: Año | C8: Administración Central 1/, 2/ | D8: Centros de Enseñanza Superior Públicos 2/ | E8: Empresas Públicas | F8: GFEECyT | G8: GFEECyT/GFCyT % | H8: GFEECyT/PIB % | I8: GFEECyT/GPSPF %
B9: 2013 | C9: 17,773 | D9: 6,025 | E9: 4 | F9: 23,802 | G9: 22.3 | H9: 0.09 | I9: 0.46
B10: 2014 | C10: 19,980 | D10: 7,762 | E10: 4 | F10: 27,746 | G10: 22.2 | H10: 0.11 | I10: 0.51
B11: 2015 | C11: 19,024 | D11: 7,384 | E11: 3 | F11: 26,411 | G11: 21.4 | H11: 0.10 | I11: 0.47
B12: 2016 | C12: 20,967 | D12: 8,273 | E12: 0 | F12: 29,239 | G12: 25.4 | H12: 0.11 | I12: 0.51
B13: 2017 | C13: 23,101 | D13: 14,766 | E13: 0 | F13: 37,867 | G13: 34.3 | H13: 0.13 | I13: 0.75
B14: 2018 | C14: 24,759 | D14: 13,165 | E14: 0 | F14: 37,924 | G14: 35.2 | H14: 0.13 | I14: 0.76
B15: 2019 | C15: 28,250 | D15: 14,602 | E15: 0 | F15: 42,852 | G15: 41.4 | H15: 0.15 | I15: 0.86
B16: 2020 | C16: 27,576 | D16: 19,370 | E16: 0 | F16: 46,946 | G16: 42.9 | H16: 0.18 | I16: 0.94
B17: 2021 | C17: 27,838 | D17: 20,288 | E17: 0 | F17: 48,126 | G17: 44.8 | H17: 0.17 | I17: 0.88
B18: 2022 | C18: 28,435 | D18: 19,846 | E18: 0 | F18: 48,281 | G18: 45.2 | H18: 0.17 | I18: 0.85
B19: 1/ Incluye Entidades de Servicio Institucional.
B20: 2/ De 2013 a 2021 cifras actualizadas por la entidad responsable.
B21: Fuentes: SHCP, Cuenta de la Hacienda Pública Federal, 2013-2022.
B22: INEGI, Sistema de Cuentas Nacionales de México.
A60: BASE DE DATOS 1990-2022 REVISADO
B61: 2009 | C61: 7,971 | D61: 3,404 | E61: 1 | F61: =SUM(C61:E61) -> 11,376 | G61: =H61/1000000 -> 11,376 | H61: 11,376,437,081 | I61: =F61-G61 -> 0
B62: 2010 | C62: 8,360 | D62: 2,694 | E62: 2 | F62: =SUM(C62:E62) -> 11,056 | G62: =H62/1000000 -> 11,056 | H62: 11,056,046,111 | I62: =F62-G62 -> 0
B63: 2011 | C63: 9,595 | D63: 3,940 | E63: 1 | F63: =SUM(C63:E63) -> 13,536 | G63: 13,536 | H63: 13,535,689,487 | I63: 0
B64: 2012 | C64: 10,171 | D64: 3,399 | E64: 2 | F64: =SUM(C64:E64) -> 13,572 | G64: 13,572 | H64: 13,572,354,528 | I64: 0
B65: 2013 | C65: 12,541 | D65: 2,709 | E65: 3 | F65: =SUM(C65:E65) -> 15,252 | G65: 15,252 | H65: 15,251,702,754 | I65: 0
B66: 2014 | C66: 14,689 | D66: 3,862 | E66: 3 | F66: 18,554 | G66: 18,554 | H66: 18,553,708,676 | I66: 0
B67: 2015 | C67: 14,433 | D67: 3,795 | E67: 2 | F67: 18,230 | G67: 18,230 | H67: 18,229,816,781 | I67: 0
B68: 2016 | C68: 16,722 | D68: 4,681 | E68: 0 | F68: 21,404 | G68: 21,404 | H68: 21,403,588,284 | I68: 0
B69: 2017 | C69: 19,529 | D69: 10,020 | E69: 0 | F69: 29,549 | G69: 29,549 | H69: 29,548,932,156 | I69: 0
B70: 2018 | C70: 21,903 | D70: 9,228 | E70: 0 | F70: 31,131 | G70: 31,131 | H70: 31,131,203,232 | I70: 0
B71: 2019 | C71: 25,725 | D71: 10,964 | E71: 0 | F71: 36,690 | G71: 36,690 | H71: 36,689,655,885 | I71: 0
B72: 2020 | C72: 26,200 | D72: 15,928 | E72: 0 | F72: 42,128 | G72: 42,128 | H72: 42,127,931,938 | I72: 0
B73: 2021 | C73: 34,343 | D73: 10,756 | E73: 0 | F73: 45,099 | G73: 45,099 | H73: 45,098,987,155 | I73: 0

Sheet A.7.10
B5: A.7.10 GFSCyT POR SECTOR DE ASIGNACIÓN, 2013-2022
B6: Millones de pesos a precios de 2022
B8: Año | C8: Administración Central 1/, 2/ | D8: Centros de Enseñanza Superior Públicos 2/ | E8: Empresas Públicas | F8: GFSCyT | G8: GFSCyT/GFCyT % | H8: GFSCyT/PIB % | I8: GFSCyT/GPSPF %
B9: 2013 | C9: 2,799 | D9: 11 | E9: 10 | F9: 2,820 | G9: 2.6 | H9: 0.01 | I9: 0.05
B10: 2014 | C10: 3,444 | D10: 17 | E10: 9 | F10: 3,469 | G10: 2.8 | H10: 0.01 | I10: 0.06
B11: 2015 | C11: 4,476 | D11: 20 | E11: 10 | F11: 4,506 | G11: 3.7 | H11: 0.02 | I11: 0.08
B12: 2016 | C12: 5,845 | D12: 6 | E12: 8 | F12: 5,859 | G12: 5.1 | H12: 0.02 | I12: 0.10
B13: 2017 | C13: 4,144 | D13: 5 | E13: 8 | F13: 4,157 | G13: 3.8 | H13: 0.01 | I13: 0.08
B14: 2018 | C14: 4,400 | D14: 10 | E14: 8 | F14: 4,418 | G14: 4.1 | H14: 0.02 | I14: 0.09
B15: 2019 | C15: 3,911 | D15: 17 | E15: 6 | F15: 3,935 | G15: 3.8 | H15: 0.01 | I15: 0.08
B16: 2020 | C16: 3,136 | D16: 15 | E16: 4,466 | F16: 7,618 | G16: 7.0 | H16: 0.03 | I16: 0.15
B17: 2021 | C17: 1,752 | D17: 15 | E17: 1,558 | F17: 3,324 | G17: 3.1 | H17: 0.01 | I17: 0.06
B18: 2022 | C18: 1,743 | D18: 14 | E18: 1,969 | F18: 3,726 | G18: 3.5 | H18: 0.01 | I18: 0.07
B19: 1/ Incluye Entidades de Servicio Institucional.
B20: 2/ De 2013 a 2021 cifras actualizadas por la entidad responsable.
B21: Fuentes: SHCP, Cuenta de la Hacienda Pública Federal, 2013-2022.
B22: INEGI, Sistema de Cuentas Nacionales de México.

Sheet A.7.11
B5: A.7.11 GFCyT POR TIPO DE ACTIVIDAD, 2013-2022
B6: Millones de pesos
B8: Año | C8: Investigación Científica y Desarrollo Experimental | D8: Educación y Enseñanza Científica y Técnica | E8: Servicios Científicos y Tecnológicos | F8: Innovación | G8: Total
B9: 2013 | C9: 49,837 | D9: 15,252 | E9: 1,807 | F9: 1,421 | G9: 68,317
B10: 2014 | C10: 57,803 | D10: 18,554 | E10: 2,320 | F10: 4,873 | G10: 83,551
B11: 2015 | C11: 59,062 | D11: 18,230 | E11: 3,110 | F11: 4,754 | G11: 85,156
B12: 2016 | C12: 55,723 | D12: 21,404 | E12: 4,289 | F12: 2,769 | G12: 84,184
B13: 2017 | C13: 50,535 | D13: 29,549 | E13: 3,244 | F13: 2,886 | G13: 86,214
B14: 2018 | C14: 51,206 | D14: 31,131 | E14: 3,627 | F14: 2,553 | G14: 88,517
B15: 2019 | C15: 48,249 | D15: 36,690 | E15: 3,369 | F15: 381 | G15: 88,688
B16: 2020 | C16: 49,184 | D16: 42,128 | E16: 6,836 | F16: 0 | G16: 98,148
B17: 2021 | C17: 52,398 | D17: 45,099 | E17: 3,115 | F17: 0 | G17: 100,612
B18: 2022 | C18: 54,856 | D18: 48,281 | E18: 3,726 | F18: 0 | G18: 106,864
B19: Fuente: SHCP, Cuenta de la Hacienda Pública Federal, 2013-2022.

Sheet A.7.12
B5: A.7.12 GFCyT POR TIPO DE ACTIVIDAD, 2013-2022
B6: Millones de pesos a precios de 2022
B8: Año | C8: Investigación Científica y Desarrollo Experimental | D8: Educación y Enseñanza Científica y Técnica | E8: Servicios Científicos y Tecnológicos | F8: Innovación | G8: Total
B9: 2013 | C9: 77,775 | D9: 23,802 | E9: 2,820 | F9: 2,218 | G9: 106,615
B10: 2014 | C10: 86,442 | D10: 27,746 | E10: 3,469 | F10: 7,288 | G10: 124,945
B11: 2015 | C11: 85,568 | D11: 26,411 | E11: 4,506 | F11: 6,888 | G11: 123,373
B12: 2016 | C12: 76,123 | D12: 29,239 | E12: 5,859 | F12: 3,782 | G12: 115,004
B13: 2017 | C13: 64,762 | D13: 37,867 | E13: 4,157 | F13: 3,698 | G13: 110,485
B14: 2018 | C14: 62,378 | D14: 37,924 | E14: 4,418 | F14: 3,110 | G14: 107,830
B15: 2019 | C15: 56,353 | D15: 42,852 | E15: 3,935 | F15: 445 | G15: 103,585
B16: 2020 | C16: 54,809 | D16: 46,946 | E16: 7,618 | F16: 0 | G16: 109,373
B17: 2021 | C17: 55,915 | D17: 48,126 | E17: 3,324 | F17: 0 | G17: 107,365
B18: 2022 | C18: 54,856 | D18: 48,281 | E18: 3,726 | F18: 0 | G18: 106,864
B19: Fuentes: SHCP, Cuenta de la Hacienda Pública Federal, 2013-2022.
B20: INEGI, Sistema de Cuentas Nacionales de México.

Sheet A.7.13
B5: A.7.13 PARTICIPACIÓN DE LOS RAMOS ADMINISTRATIVOS Y PRINCIPALES ENTIDADES EN EL GFIDE, 2013-2022
B6: Millones de pesos
B8: Ramo administrativo | D8: 2013 | E8: 2014 | F8: 2015 | G8: 2016 | H8: 2017 | I8: 2018 | J8: 2019 | K8: 2020 | L8: 2021 | M8: 2022
B9: Entidad
B10: 11 Educación Pública | D10: =SUM(D11:D19) -> 13,826 | E10: 14,527 | F10: 16,325 | G10: 16,357 | H10: 17,228 | I10: 17,359 | J10: 17,658 | K10: 17,477 | L10: 18,954 | M10: 20,496
C11: Universidad Nacional Autónoma de México | D11: 8,273 | E11: 8,830 | F11: 9,993 | G11: 9,979 | H11: 10,574 | I11: 10,668 | J11: 10,937 | K11: 11,075 | L11: 11,905 | M11: 13,217
C12: Centro de Investigación y de Estudios Avanzados | D12: 2,388 | E12: 1,640 | F12: 1,810 | G12: 1,909 | H12: 2,170 | I12: 2,340 | J12: 2,001 | K12: 1,704 | L12: 1,988 | M12: 1,951
C13: Universidad Autónoma Metropolitana | D13: 1,078 | E13: 1,210 | F13: 1,318 | G13: 1,333 | H13: 1,394 | I13: 1,474 | J13: 1,507 | K13: 1,639 | L13: 1,726 | M13: 1,855
C14: Instituto Politécnico Nacional | D14: 660 | E14: 1,162 | F14: 1,631 | G14: 1,804 | H14: 1,659 | I14: 1,661 | J14: 2,056 | K14: 1,933 | L14: 2,127 | M14: 2,171
C15: El Colegio de México, A.C. | D15: 539 | E15: 597 | F15: 649 | G15: 598 | H15: 690 | I15: 708 | J15: 652 | K15: 691 | L15: 749 | M15: 816
C16: Universidad Autónoma Agraria "Antonio Narro" | D16: 88 | E16: 87 | F16: 93 | G16: 97 | H16: 106 | I16: 101 | J16: 102 | K16: 106 | L16: 109 | M16: 112
C17: Tecnológico Nacional de México | D17: 0 | E17: 69 | F17: 161 | G17: 184 | H17: 456 | I17: 214 | J17: 232 | K17: 199 | L17: 235 | M17: 254
C18: Dirección General de Educación Superior Universitaria Dirección General de Educación Superior Universitaria e Intercultural | D18: 283 | E18: 433 | F18: 270 | G18: 70 | H18: 0 | I18: 30 | J18: 0 | K18: 0 | L18: 0 | M18: 0
C19: Otros | D19: 517 | E19: 500 | F19: 400 | G19: 384 | H19: 178 | I19: 165 | J19: 171 | K19: 131 | L19: 116 | M19: 121
B20: 18 Energía | D20: =SUM(D21:D24) -> 10,580 | E20: =SUM(E21:E24) -> 12,627 | F20: =SUM(F21:F24) -> 11,102 | G20: =G21+G22+G23+G24+10.37586171 -> 9,086 | H20: =H21+H22+H23+H24+10.68975217 -> 7,794 | I20: =I21+I22+I23+I24+12.22925972 -> 7,980 | J20: =J21+J22+J23+J24+8.62714184 -> 8,361 | K20: =K21+K22+K23+K24+12.47314843 -> 7,355 | L20: =L21+L22+L23+L24+13.008542+392.729225 -> 5,759 | M20: =+M21+M22+M23+M24+10.113803+258.547293 -> 6,713
C21: Instituto Mexicano del Petróleo | D21: 5,205 | E21: 6,200 | F21: 5,266 | G21: 4,671 | H21: 3,979 | I21: 3,795 | J21: 3,793 | K21: 3,543 | L21: 3,795 | M21: 4,913
C22: Instituto Nacional de Electricidad y Energías Limpias | D22: 794 | E22: 893 | F22: 909 | G22: 913 | H22: 855 | I22: 787 | J22: 776 | K22: 698 | L22: 732 | M22: 664
C23: Instituto Nacional de Investigaciones Nucleares | D23: 732 | E23: 736 | F23: 750 | G23: 806 | H23: 812 | I23: 861 | J23: 906 | K23: 822 | L23: 827 | M23: 867
C24: Petróleos Mexicanos | D24: 3,849 | E24: 4,798 | F24: 4,177 | G24: 2,685 | H24: 2,138 | I24: 2,524 | J24: 2,877 | K24: 2,281 | L24: 0 | M24: 0
C25: Otros | G25: 10 | H25: 11 | I25: 12 | J25: 9 | K25: 12 | L25: 406 | M25: 269
B26: 08 Agricultura y Desarrollo Rural | D26: 2,142 | E26: 2,487 | F26: 2,672 | G26: 2,490 | H26: 2,487 | I26: 2,527 | J26: 2,175 | K26: 2,345 | L26: 1,937 | M26: 2,125
C27: Instituto Nacional de Investigaciones Forestales, Agrícolas y Pecuarias | D27: 1,325 | E27: 1,531 | F27: 1,489 | G27: 1,495 | H27: 1,403 | I27: 1,499 | J27: 1,406 | K27: 1,423 | L27: 1,423 | M27: 1,608
C28: Universidad Autónoma Chapingo | D28: 116 | E28: 125 | F28: 128 | G28: 11 | H28: 1 | I28: 0 | J28: 1 | K28: 456 | L28: 0 | M28: 0
C29: Instituto Nacional de Pesca y Acuacultura | D29: 640 | E29: 473 | F29: 477 | G29: 536 | H29: 576 | I29: 569 | J29: 541 | K29: 466 | L29: 513 | M29: 517
C30: Otros | D30: 61 | E30: 359 | F30: 579 | G30: 447 | H30: 507 | I30: 460 | J30: 227 | K30: 1 | L30: 1 | M30: 1
B31: 12 Salud y Seguridad Social | D31: 2,845 | E31: 2,910 | F31: 3,208 | G31: 3,430 | H31: 3,205 | I31: 3,468 | J31: 3,037 | K31: 3,375 | L31: 3,427 | M31: 3,498
C32: Institutos Nacionales de Salud 1/ | D32: 2,066 | E32: 2,089 | F32: 2,124 | G32: 2,226 | H32: 2,137 | I32: 2,289 | J32: 1,837 | K32: 2,198 | L32: 2,220 | M32: 2,261
C33: Instituto Mexicano del Seguro Social | D33: 477 | E33: 513 | F33: 691 | G33: 705 | H33: 624 | I33: 651 | J33: 706 | K33: 710 | L33: 706 | M33: 767
C34: Instituto de Seguridad y Servicios Sociales para los Trabajadores del Estado | D34: 82 | E34: 71 | F34: 67 | G34: 91 | H34: 109 | I34: 121 | J34: 95 | K34: 84 | L34: 113 | M34: 96
C35: Hospitales Generales y Regionales | D35: 153 | E35: 140 | F35: 245 | G35: 328 | H35: 275 | I35: 342 | J35: 354 | K35: 352 | L35: 356 | M35: 336
C36: Otras unidades centralizadas | D36: 67 | E36: 97 | F36: 80 | G36: 80 | H36: 59 | I36: 66 | J36: 45 | K36: 32 | L36: 31 | M36: 39
B37: 38 Conahcyt | D37: 18,554 | E37: 23,018 | F37: 23,957 | G37: 22,641 | H37: 17,806 | I37: 18,042 | J37: 15,459 | K37: 17,120 | L37: 20,864 | M37: 20,515
C38: Consejo Nacional de Humanidades, Ciencias y Tecnologías | D38: 9,885 | E38: 13,731 | F38: 14,305 | G38: 12,834 | H38: 9,473 | I38: 9,584 | J38: 7,766 | K38: 8,277 | L38: 9,900 | M38: 11,117
C39: Centros Públicos de Investigación - Conahcyt | D39: 8,669 | E39: 9,287 | F39: 9,652 | G39: 9,806 | H39: 8,333 | I39: 8,459 | J39: 7,693 | K39: 8,843 | L39: 10,963 | M39: 9,399
B40: Otros ramos administrativos 2/ | D40: 1,890 | E40: 2,234 | F40: 1,797 | G40: 1,719 | H40: 2,017 | I40: 1,830 | J40: 1,559 | K40: 1,510 | L40: 1,457 | M40: 1,509
B41: TOTAL | D41: 49,837 | E41: 57,803 | F41: 59,062 | G41: 55,723 | H41: 50,535 | I41: 51,206 | J41: 48,249 | K41: 49,184 | L41: 52,398 | M41: 54,856
B42: 1/ Se incluye en el grupo de Institutos Nacionales de Salud al Hospital Infantil de México Federico Gómez.
B43: 2/ Incluye a los ramos administrativos 07 Defensa Nacional; 09 Comunicaciones y Transportes que en 2022 cambia a Infraestructura, Comunicaciones y Transportes, 10 Economía, 13 Marina, 16 Medio Ambiente y Recursos Naturales, 17 Procuraduría General de la República que en 2020 cambia a Ramo 49 Fiscalía General de la República, 21 Turismo. A partir de 2020 incluye el Ramo 48 Cultura.
B44: Fuente: SHCP, Cuenta de la Hacienda Pública Federal, 2013-2022.

Sheet A.7.14
B5: A.7.14 PARTICIPACIÓN DE LOS RAMOS ADMINISTRATIVOS Y PRINCIPALES ENTIDADES EN EL GFIDE, 2013-2022
B6: Millones de pesos a precios de 2022
B8: Ramo administrativo | D8: 2013 | E8: 2014 | F8: 2015 | G8: 2016 | H8: 2017 | I8: 2018 | J8: 2019 | K8: 2020 | L8: 2021 | M8: 2022
B9: Entidad
B10: 11 Educación Pública | D10: 21,577 | E10: 21,725 | F10: 23,652 | G10: 22,345 | H10: 22,078 | I10: 21,146 | J10: 20,624 | K10: 19,476 | L10: 20,226 | M10: 20,496
C11: Universidad Nacional Autónoma de México | D11: 12,911 | E11: 13,204 | F11: 14,478 | G11: 13,632 | H11: 13,551 | I11: 12,995 | J11: 12,774 | K11: 12,341 | L11: 12,704 | M11: 13,217
C12: Centro de Investigación y de Estudios Avanzados | D12: 3,727 | E12: 2,452 | F12: 2,623 | G12: 2,608 | H12: 2,781 | I12: 2,850 | J12: 2,337 | K12: 1,898 | L12: 2,121 | M12: 1,951
C13: Universidad Autónoma Metropolitana | D13: 1,682 | E13: 1,809 | F13: 1,909 | G13: 1,821 | H13: 1,787 | I13: 1,795 | J13: 1,760 | K13: 1,827 | L13: 1,842 | M13: 1,855
C14: Instituto Politécnico Nacional | D14: 1,030 | E14: 1,737 | F14: 2,363 | G14: 2,464 | H14: 2,125 | I14: 2,024 | J14: 2,401 | K14: 2,154 | L14: 2,270 | M14: 2,171
C15: El Colegio de México, A.C. | D15: 841 | E15: 893 | F15: 940 | G15: 817 | H15: 884 | I15: 862 | J15: 761 | K15: 770 | L15: 799 | M15: 816
C16: Universidad Autónoma Agraria Antonio Narro | D16: 137 | E16: 131 | F16: 135 | G16: 132 | H16: 136 | I16: 122 | J16: 120 | K16: 118 | L16: 116 | M16: 112
C17: Tecnológico Nacional de México | D17: 0 | E17: 103 | F17: 233 | G17: 251 | H17: 584 | I17: 261 | J17: 271 | K17: 222 | L17: 250 | M17: 254
C18: Dirección General de Educación Superior Universitaria Dirección General de Educación Superior Universitaria e Intercultural | D18: 442 | E18: 647 | F18: 391 | G18: 96 | H18: 0 | I18: 37 | J18: 0 | K18: 0 | L18: 0 | M18: 0
C19: Otros | D19: 807 | E19: 748 | F19: 579 | G19: 525 | H19: 229 | I19: 200 | J19: 200 | K19: 146 | L19: 123 | M19: 121
B20: 18 Energía | D20: 16,511 | E20: 18,883 | F20: 16,084 | G20: 12,412 | H20: 9,988 | I20: 9,721 | J20: 9,765 | K20: 8,196 | L20: 6,146 | M20: 6,713
C21: Instituto Mexicano del Petróleo | D21: 8,123 | E21: 9,272 | F21: 7,630 | G21: 6,381 | H21: 5,099 | I21: 4,624 | J21: 4,431 | K21: 3,948 | L21: 4,050 | M21: 4,913
C22: Instituto Nacional de Electricidad y Energías Limpias | D22: 1,240 | E22: 1,336 | F22: 1,316 | G22: 1,247 | H22: 1,096 | I22: 959 | J22: 906 | K22: 777 | L22: 781 | M22: 664
C23: Instituto Nacional de Investigaciones Nucleares | D23: 1,143 | E23: 1,100 | F23: 1,086 | G23: 1,101 | H23: 1,040 | I23: 1,049 | J23: 1,058 | K23: 915 | L23: 882 | M23: 867
C24: Petróleos Mexicanos | D24: 6,006 | E24: 7,175 | F24: 6,052 | G24: 3,669 | H24: 2,739 | I24: 3,074 | J24: 3,360 | K24: 2,542 | L24: 0 | M24: 0
C25: Otros | G25: 14 | H25: 14 | I25: 15 | J25: 10 | K25: 14 | L25: 433 | M25: 269
B26: 08 Agricultura y Desarrollo Rural | D26: 3,343 | E26: 3,720 | F26: 3,872 | G26: 3,402 | H26: 3,187 | I26: 3,079 | J26: 2,540 | K26: 2,614 | L26: 2,067 | M26: 2,125
C27: Instituto Nacional de Investigaciones Forestales, Agrícolas y Pecuarias | D27: 2,068 | E27: 2,289 | F27: 2,158 | G27: 2,043 | H27: 1,798 | I27: 1,826 | J27: 1,642 | K27: 1,586 | L27: 1,518 | M27: 1,608
C28: Universidad Autónoma Chapingo | D28: 180 | E28: 187 | F28: 185 | G28: 16 | H28: 1 | I28: 0 | J28: 1 | K28: 508 | L28: 0 | M28: 0
C29: Instituto Nacional de Pesca y Acuacultura | D29: 998 | E29: 708 | F29: 690 | G29: 733 | H29: 738 | I29: 693 | J29: 632 | K29: 519 | L29: 548 | M29: 517
C30: Otros | D30: 96 | E30: 537 | F30: 838 | G30: 611 | H30: 650 | I30: 560 | J30: 265 | K30: 1 | L30: 1 | M30: 1
B31: 12 Salud y Seguridad Social | D31: 4,440 | E31: 4,351 | F31: 4,648 | G31: 4,686 | H31: 4,108 | I31: 4,225 | J31: 3,547 | K31: 3,762 | L31: 3,657 | M31: 3,498
C32: Institutos Nacionales de Salud1/ | D32: 3,224 | E32: 3,124 | F32: 3,078 | G32: 3,041 | H32: 2,739 | I32: 2,788 | J32: 2,145 | K32: 2,449 | L32: 2,369 | M32: 2,261
C33: Instituto Mexicano del Seguro Social | D33: 744 | E33: 767 | F33: 1,002 | G33: 963 | H33: 800 | I33: 793 | J33: 825 | K33: 791 | L33: 754 | M33: 767
C34: Instituto de Seguridad y Servicios Sociales para los Trabajadores del Estado | D34: 128 | E34: 106 | F34: 97 | G34: 124 | H34: 140 | I34: 147 | J34: 111 | K34: 93 | L34: 120 | M34: 96
C35: Hospitales Generales y Regionales | D35: 238 | E35: 209 | F35: 354 | G35: 448 | H35: 353 | I35: 417 | J35: 413 | K35: 392 | L35: 380 | M35: 336
C36: Otras unidades centralizadas | D36: 105 | E36: 144 | F36: 116 | G36: 109 | H36: 76 | I36: 80 | J36: 53 | K36: 36 | L36: 34 | M36: 39
B37: 38 Conahcyt | D37: 28,955 | E37: 34,422 | F37: 34,709 | G37: 30,929 | H37: 22,818 | I37: 21,979 | J37: 18,056 | K37: 19,079 | L37: 22,264 | M37: 20,515
C38: Consejo Nacional de Humanidades, Ciencias y Tecnologías | D38: 15,426 | E38: 20,534 | F38: 20,725 | G38: 17,533 | H38: 12,139 | I38: 11,675 | J38: 9,071 | K38: 9,224 | L38: 10,565 | M38: 11,117
C39: Centros Públicos de Investigación - Conahcyt | D39: 13,529 | E39: 13,889 | F39: 13,984 | G39: 13,396 | H39: 10,679 | I39: 10,304 | J39: 8,985 | K39: 9,855 | L39: 11,699 | M39: 9,399
B40: Otros ramos administrativos 2/ | D40: 2,950 | E40: 3,341 | F40: 2,603 | G40: 2,349 | H40: 2,584 | I40: 2,229 | J40: 1,821 | K40: 1,682 | L40: 1,555 | M40: 1,509
B41: TOTAL | D41: 77,775 | E41: 86,442 | F41: 85,568 | G41: 76,123 | H41: 64,762 | I41: 62,378 | J41: 56,353 | K41: 54,809 | L41: 55,915 | M41: 54,856
B42: 1/ Se incluye en el grupo de Institutos Nacionales de Salud al Hospital Infantil de México Federico Gómez.
B43: 2/ Incluye a los ramos administrativos 07 Defensa Nacional; 09 Comunicaciones y Transportes que en 2022 cambia a Infraestructura, Comunicaciones y Transportes, 10 Economía, 13 Marina, 16 Medio Ambiente y Recursos Naturales, 17 Procuraduría General de la República que en 2020 cambia a Ramo 49 Fiscalía General de la República, 21 Turismo. A partir de 2020 incluye el Ramo 48 Cultura.
B44: Fuentes: SHCP, Cuenta de la Hacienda Pública Federal, 2013-2022
B45: INEGI, Sistema de Cuentas Nacionales de México.

Sheet A.7.15
B5: A.7.15 PARTICIPACIÓN DE LOS RAMOS ADMINISTRATIVOS Y PRINCIPALES ENTIDADES EN EL GFEECyT, 2013-2022
B6: Millones de pesos
B8: Ramo administrativo | D8: 2013 | E8: 2014 | F8: 2015 | G8: 2016 | H8: 2017 | I8: 2018 | J8: 2019 | K8: 2020 | L8: 2021 | M8: 2022
B9: Entidad
B10: 11 Educación Pública | D10: =SUM(D11:D19) -> 3,796 | E10: 5,519 | F10: 4,767 | G10: 6,324 | H10: 13,919 | I10: 15,354 | J10: 20,266 | K10: 26,169 | L10: 28,035 | M10: 29,118
C11: Universidad Nacional Autónoma de México | D11: 1,289 | E11: 1,776 | F11: 1,422 | G11: 1,703 | H11: 3,599 | I11: 3,189 | J11: 3,960 | K11: 4,108 | L11: 5,150 | M11: 5,524
C12: Centro de Investigación y de Estudios Avanzados | D12: 249 | E12: 964 | F12: 981 | G12: 1,054 | H12: 1,126 | I12: 1,111 | J12: 1,213 | K12: 1,188 | L12: 1,303 | M12: 1,298
C13: Universidad Autónoma Metropolitana | D13: 666 | E13: 747 | F13: 1,007 | G13: 1,088 | H13: 2,466 | I13: 1,681 | J13: 1,909 | K13: 1,690 | L13: 2,034 | M13: 2,198
C14: Instituto Politécnico Nacional | D14: 561 | E14: 860 | F14: 1,089 | G14: 1,155 | H14: 2,379 | I14: 1,891 | J14: 2,163 | K14: 2,240 | L14: 2,655 | M14: 2,899
C15: El Colegio de México, A.C. | D15: 72 | E15: 52 | F15: 72 | G15: 59 | H15: 79 | I15: 142 | J15: 112 | K15: 80 | L15: 117 | M15: 90
C16: Universidad Autónoma Agraria Antonio Narro | D16: 54 | E16: 67 | F16: 98 | G16: 103 | H16: 227 | I16: 215 | J16: 196 | K16: 1,080 | L16: 92 | M16: 93
C17: Tecnológico Nacional de México | D17: 0 | E17: 15 | F17: 26 | G17: 17 | H17: 708 | I17: 1,552 | J17: 1,993 | K17: 6,485 | L17: 6,774 | M17: 6,705
C18: Dirección General de Educación Superior Universitaria e Intercultural 1/ | D18: 767 | E18: 828 | F18: 0 | G18: 1,079 | H18: 3,064 | I18: 5,111 | J18: 7,960 | K18: 8,351 | L18: 8,965 | M18: 9,146
C19: Otros | D19: 138 | E19: 209 | F19: 71 | G19: 67 | H19: 270 | I19: 461 | J19: 761 | K19: 947 | L19: 944 | M19: 1,164
B20: 08 Agricultura y Desarrollo Rural | D20: =SUM(D21:D22) -> 1,203 | E20: 1,597 | F20: 1,368 | G20: 1,918 | H20: 2,011 | I20: 2,042 | J20: 2,054 | K20: 1,572 | L20: 2,059 | M20: =SUM(M21:M23) -> 2,218
C21: Colegio de Postgraduados | D21: 1,080 | E21: 1,277 | F21: 1,230 | G21: 1,315 | H21: 1,423 | I21: 1,437 | J21: 1,426 | K21: 1,374 | L21: 1,364 | M21: 1,433
C22: Universidad Autónoma Chapingo | D22: 123 | E22: 320 | F22: 137 | G22: 602 | H22: 589 | I22: 605 | J22: 628 | K22: 198 | L22: 695 | M22: 746
C23: Colegio Superior Agropecuario del Estado de Guerrero | M23: 39
B24: 12 Salud y Seguridad Social | D24: =SUM(D25:D28) -> 3,042 | E24: 3,161 | F24: 3,219 | G24: 3,449 | H24: 3,530 | I24: 3,822 | J24: 4,116 | K24: 4,380 | L24: 4,830 | M24: 5,624
C25: Institutos Nacionales de Salud 2/ | D25: 559 | E25: 587 | F25: 593 | G25: 622 | H25: 614 | I25: 711 | J25: 878 | K25: 1,024 | L25: 898 | M25: 1,011
C26: Dirección General de Calidad y Educación en Salud | D26: 2,285 | E26: 2,413 | F26: 2,398 | G26: 2,505 | H26: 2,629 | I26: 2,703 | J26: 2,848 | K26: 2,946 | L26: 3,541 | M26: 4,170
C27: Hospitales Generales y Regionales | D27: 70 | E27: 80 | F27: 174 | G27: 241 | H27: 227 | I27: 319 | J27: 299 | K27: 339 | L27: 316 | M27: 364
C28: Otras Unidades centralizadas | D28: 127 | E28: 82 | F28: 54 | G28: 81 | H28: 60 | I28: 89 | J28: 92 | K28: 70 | L28: 75 | M28: 79
B29: 38 Conahcyt | D29: =SUM(D30:D31) -> 7,188 | E29: 8,248 | F29: 8,824 | G29: 9,641 | H29: 10,045 | I29: 9,868 | J29: 10,218 | K29: 10,007 | L29: 10,175 | M29: 11,322
C30: Consejo Nacional de Humanidades,Ciencias y Tecnologías | D30: 6,821 | E30: 7,834 | F30: 8,369 | G30: 9,434 | H30: 9,836 | I30: 9,635 | J30: 9,959 | K30: 9,837 | L30: 9,926 | M30: 10,972
C31: Centros Públicos de Investigación - Conahcyt | D31: 367 | E31: 413 | F31: 455 | G31: 207 | H31: 209 | I31: 233 | J31: 260 | K31: 170 | L31: 249 | M31: 349
B32: 49 Fiscalía General de la República | D32: 22 | E32: 29 | F32: 53 | G32: 72 | H32: 43 | I32: 46 | J32: 36 | K32: 0 | L32: 0 | M32: 0
B33: TOTAL | D33: =+D32+D29+D24+D20+D10 -> 15,252 | E33: 18,554 | F33: 18,230 | G33: 21,404 | H33: 29,549 | I33: 31,131 | J33: 36,690 | K33: 42,128 | L33: 45,099 | M33: 48,281
B34: 1/ Hasta 2021 se denominó Dirección General de Educación Superior Universitaria.
B35: 2/ Se incluye en el grupo de Institutos Nacionales de Salud al Hospital Infantil de México Federico Gómez.
B36: Fuente: SHCP, Cuenta de la Hacienda Pública Federal, 2013-2022.

Sheet A.7.16
B5: A.7.16 PARTICIPACIÓN DE LOS RAMOS ADMINISTRATIVOS Y PRINCIPALES ENTIDADES EN EL GFEECyT, 2013-2022
B6: Millones de pesos a precios de 2022
B8: Ramo administrativo | D8: 2013 | E8: 2014 | F8: 2015 | G8: 2016 | H8: 2017 | I8: 2018 | J8: 2019 | K8: 2020 | L8: 2021 | M8: 2022
B9: Entidad
B10: 11 Educación Pública | D10: 5,924 | E10: 8,253 | F10: 6,906 | G10: 8,639 | H10: 17,837 | I10: 18,704 | J10: 23,669 | K10: 29,162 | L10: 29,917 | M10: 29,118
C11: Universidad Nacional Autónoma de México | D11: 2,011 | E11: 2,657 | F11: 2,061 | G11: 2,327 | H11: 4,612 | I11: 3,885 | J11: 4,625 | K11: 4,578 | L11: 5,496 | M11: 5,524
C12: Centro de Investigación y de Estudios Avanzados | D12: 388 | E12: 1,442 | F12: 1,421 | G12: 1,439 | H12: 1,443 | I12: 1,354 | J12: 1,417 | K12: 1,324 | L12: 1,391 | M12: 1,298
C13: Universidad Autónoma Metropolitana | D13: 1,040 | E13: 1,117 | F13: 1,459 | G13: 1,486 | H13: 3,160 | I13: 2,048 | J13: 2,230 | K13: 1,883 | L13: 2,170 | M13: 2,198
C14: Instituto Politécnico Nacional | D14: 876 | E14: 1,286 | F14: 1,578 | G14: 1,577 | H14: 3,049 | I14: 2,304 | J14: 2,526 | K14: 2,496 | L14: 2,833 | M14: 2,899
C15: El Colegio de México, A.C. | D15: 112 | E15: 78 | F15: 104 | G15: 81 | H15: 101 | I15: 173 | J15: 131 | K15: 89 | L15: 125 | M15: 90
C16: Universidad Autónoma Agraria Antonio Narro | D16: 85 | E16: 100 | F16: 142 | G16: 140 | H16: 291 | I16: 262 | J16: 229 | K16: 1,204 | L16: 98 | M16: 93
C17: Tecnológico Nacional de México | D17: 0 | E17: 23 | F17: 37 | G17: 23 | H17: 907 | I17: 1,891 | J17: 2,327 | K17: 7,227 | L17: 7,229 | M17: 6,705
C18: Dirección General de Educación Superior Universitaria e Intercultural 1/ | D18: 1,196 | E18: 1,238 | F18: 0 | G18: 1,474 | H18: 3,927 | I18: 6,226 | J18: 9,297 | K18: 9,306 | L18: 9,567 | M18: 9,146
C19: Otros | D19: 216 | E19: 312 | F19: 104 | G19: 91 | H19: 346 | I19: 561 | J19: 889 | K19: 1,056 | L19: 1,008 | M19: 1,164
B20: 08 Agricultura y Desarrollo Rural | D20: 1,878 | E20: 2,388 | F20: 1,981 | G20: 2,620 | H20: 2,578 | I20: 2,487 | J20: 2,399 | K20: 1,752 | L20: 2,197 | M20: 2,218
C21: Colegio de Postgraduados | D21: 1,686 | E21: 1,909 | F21: 1,783 | G21: 1,797 | H21: 1,823 | I21: 1,750 | J21: 1,666 | K21: 1,532 | L21: 1,456 | M21: 1,433
C22: Universidad Autónoma Chapingo | D22: 192 | E22: 479 | F22: 199 | G22: 823 | H22: 754 | I22: 737 | J22: 733 | K22: 220 | L22: 742 | M22: 746
C23: Colegio Superior Agropecuario del Estado de Guerrero | D23: 0 | E23: 0 | F23: 0 | G23: 0 | H23: 0 | I23: 0 | J23: 0 | K23: 0 | L23: 0 | M23: 39
B24: 12 Salud y Seguridad Social | D24: 4,748 | E24: 4,727 | F24: 4,663 | G24: 4,712 | H24: 4,523 | I24: 4,655 | J24: 4,807 | K24: 4,881 | L24: 5,154 | M24: 5,624
C25: Institutos Nacionales de Salud 2/ | D25: 873 | E25: 877 | F25: 859 | G25: 850 | H25: 786 | I25: 866 | J25: 1,025 | K25: 1,141 | L25: 958 | M25: 1,011
C26: Dirección General de Calidad y Educación en Salud | D26: 3,567 | E26: 3,608 | F26: 3,475 | G26: 3,422 | H26: 3,369 | I26: 3,293 | J26: 3,326 | K26: 3,283 | L26: 3,778 | M26: 4,170
C27: Hospitales Generales y Regionales | D27: 110 | E27: 119 | F27: 252 | G27: 329 | H27: 291 | I27: 388 | J27: 349 | K27: 378 | L27: 337 | M27: 364
C28: Otras Unidades centralizadas | D28: 199 | E28: 123 | F28: 78 | G28: 111 | H28: 77 | I28: 108 | J28: 107 | K28: 78 | L28: 80 | M28: 79
B29: 38 Conahcyt | D29: 11,218 | E29: 12,334 | F29: 12,784 | G29: 13,170 | H29: 12,873 | I29: 12,021 | J29: 11,935 | K29: 11,151 | L29: 10,858 | M29: 11,322
C30: Consejo Nacional de Humanidades, Ciencias y Tecnologías | D30: 10,644 | E30: 11,716 | F30: 12,125 | G30: 12,887 | H30: 12,605 | I30: 11,737 | J30: 11,631 | K30: 10,962 | L30: 10,592 | M30: 10,972
C31: Centros Públicos de Investigación - Conahcyt | D31: 573 | E31: 618 | F31: 659 | G31: 283 | H31: 268 | I31: 284 | J31: 303 | K31: 190 | L31: 265 | M31: 349
B32: 49 Fiscalía General de la República | D32: 35 | E32: 44 | F32: 77 | G32: 98 | H32: 56 | I32: 56 | J32: 42 | K32: 0 | L32: 0 | M32: 0
B33: TOTAL | D33: 23,802 | E33: 27,746 | F33: 26,411 | G33: 29,239 | H33: 37,867 | I33: 37,924 | J33: 42,852 | K33: 46,946 | L33: 48,126 | M33: 48,281
B34: 1/ Hasta 2021 se denominó Dirección General de Educación Superior Universitaria.
B35: 2/ Se incluye en el grupo de Institutos Nacionales de Salud al Hospital Infantil de México Federico Gómez.
B36: Fuentes: SHCP, Cuenta de la Hacienda Pública Federal, 2013-2022.
B37: INEGI, Sistema de Cuentas Nacionales de México.

Sheet A.7.17
B5: A.7.17 PARTICIPACIÓN DE LOS RAMOS ADMINISTRATIVOS Y PRINCIPALES ENTIDADES EN EL GFSCyT, 2013-2022
B6: Millones de pesos
B8: Ramo administrativo | D8: 2012 | E8: 2013 | F8: 2014 | G8: 2015 | H8: 2016 | I8: 2017 | J8: 2018 | K8: 2019 | L8: 2020 | M8: 2021 | N8: 2022
B9: Entidad
B10: 11 Educación Pública | D10: 44 | E10: 7 | F10: 16 | G10: 8 | H10: 8 | I10: 8 | J10: 8 | K10: 14 | L10: 16 | M10: 17 | N10: =+N11+N12 -> 18
C11: Centro de Investigación y de Estudios Avanzados | D11: 5 | E11: 5 | F11: 14 | G11: 6 | H11: 6 | I11: 6 | J11: 5 | K11: 4 | L11: 6 | M11: 8 | N11: 8
C12: El Colegio de México, A.C. | D12: 39 | E12: 2 | F12: 2 | G12: 2 | H12: 2 | I12: 2 | J12: 3 | K12: 10 | L12: 9 | M12: 10 | N12: 10
B13: 18 Energía | D13: 63 | E13: 61 | F13: 66 | G13: 63 | H13: 66 | I13: 58 | J13: 67 | K13: 61 | L13: 63 | M13: 53 | N13: =SUM(N14:N16) -> 55
C14: Instituto Mexicano del Petróleo | D14: 41 | E14: 37 | F14: 40 | G14: 39 | H14: 40 | I14: 32 | J14: 40 | K14: 35 | L14: 37 | M14: 39 | N14: 41
C15: Instituto Nacional de Electricidad y Energías Limpias 1/ | D15: 11 | E15: 10 | F15: 12 | G15: 12 | H15: 13 | I15: 13 | J15: 14 | K15: 13 | L15: 12 | M15: 0 | N15: 0
C16: Instituto Nacional de Investigaciones Nucleares 1/ | D16: 11 | E16: 14 | F16: 14 | G16: 12 | H16: 13 | I16: 13 | J16: 13 | K16: 13 | L16: 13 | M16: 14 | N16: 14
B17: 10 Economía | D17: 1,159 | E17: 1,004 | F17: 1,262 | G17: 1,638 | H17: 1,647 | I17: 1,347 | J17: 1,500 | K17: 1,277 | L17: 833 | M17: 998 | N17: =SUM(N18:N21) -> 1,034
C18: Centro Nacional de Metrología | D18: 190 | E18: 116 | F18: 61 | G18: 26 | H18: 24 | I18: 20 | J18: 25 | K18: 19 | L18: 20 | M18: 18 | N18: 20
C19: Servicio Geológico Mexicano | D19: 88 | E19: 48 | F19: 334 | G19: 580 | H19: 609 | I19: 932 | J19: 1,052 | K19: 726 | L19: 659 | M19: 845 | N19: 853
C20: Instituto Mexicano de la Propiedad Industrial | D20: 117 | E20: 135 | F20: 132 | G20: 177 | H20: 152 | I20: 129 | J20: 166 | K20: 158 | L20: 150 | M20: 132 | N20: 157
C21: Otros | D21: 764 | E21: 705 | F21: 734 | G21: 856 | H21: 862 | I21: 266 | J21: 257 | K21: 373 | L21: 4 | M21: 3 | N21: 4
B22: 38 Conahcyt | D22: 584 | E22: 627 | F22: 858 | G22: 1,277 | H22: 1,507 | I22: 1,717 | J22: 1,921 | K22: 1,913 | L22: 1,797 | M22: 499 | N22: 547
C23: Consejo Nacional de Humanidades, Ciencias y Tecnologías | D23: 540 | E23: 574 | F23: 802 | G23: 1,222 | H23: 1,451 | I23: 1,656 | J23: 1,856 | K23: 1,858 | L23: 1,734 | M23: 436 | N23: 475
C24: Centros Públicos de Investigación - Conahcyt | D24: 44 | E24: 53 | F24: 56 | G24: 55 | H24: 56 | I24: 61 | J24: 65 | K24: 55 | L24: 63 | M24: 63 | N24: 72
B25: Otros ramos administrativos 2/ | D25: 147 | E25: 109 | F25: 118 | G25: 124 | H25: 1,062 | I25: 114 | J25: 130 | K25: 104 | L25: 4,128 | M25: 1,548 | N25: 2,072
B26: TOTAL | D26: =+D25+D22+D17+D13+D10 -> 1,996 | E26: 1,807 | F26: 2,320 | G26: 3,110 | H26: 4,289 | I26: 3,244 | J26: 3,627 | K26: 3,369 | L26: 6,836 | M26: 3,115 | N26: 3,726
B27: 1/ Para 2018 y 2021 cifras actualizadas por la entidad responsable.
B28: 2/ Incluye a los ramos administrativos 05 Relaciones Exteriores, 08 Agricultura y Desarrollo Rural, 09 Comunicaciones y Transportres que a partir de 2022 cambia a Infraestructura, Comunicaciones y Trasportes, 16 Medio Ambiente y Recursos Naturales. A partir de 2019 el Centro Nacional de Prevención de Desastres sectorizado hasta 2018 en el Ramo 04 Gobernación, se sectoriza en el Ramo 36 Seguridad y Protección Ciudadana. A partir de 2020 El Instituto Nacional de Ciencia Penales sectorizado en el Ramo 17 Procuraduría General de la República se sectoriza en el Ramo 49 Fiscalía General de la República. A partir de 2020 incluye a la Comisión Federal de Electricidad.
B29: Fuente: SHCP, Cuenta de la Hacienda Pública Federal, 2013-2022.

Sheet A.7.18
B5: A.7.18 PARTICIPACIÓN DE LOS RAMOS ADMINISTRATIVOS Y PRINCIPALES ENTIDADES EN EL GFSCyT, 2013-2022
B6: Millones de pesos a precios de 2022
B8: Ramo administrativo | D8: 2013 | E8: 2014 | F8: 2015 | G8: 2016 | H8: 2017 | I8: 2018 | J8: 2019 | K8: 2020 | L8: 2021 | M8: 2022
B9: Entidad
B10: 11 Educación Pública | D10: 10.5 | E10: 23 | F10: 11 | G10: 10 | H10: 10 | I10: 10 | J10: 17 | K10: 17 | L10: 19 | M10: 18
C11: Centro de Investigación y de Estudios Avanzados | D11: 7.5 | E11: 21 | F11: 9 | G11: 8 | H11: 8 | I11: 7 | J11: 5 | K11: 7 | L11: 8 | M11: 8
C12: El Colegio de México, A.C. | D12: 3.0 | E12: 3 | F12: 3 | G12: 3 | H12: 2 | I12: 4 | J12: 12 | K12: 11 | L12: 10 | M12: 10
B13: 18 Energía | D13: 95 | E13: 99 | F13: 92 | G13: 90 | H13: 75 | I13: 82 | J13: 71 | K13: 70 | L13: 56 | M13: 55
C14: Instituto Mexicano del Petróleo | D14: 58 | E14: 60 | F14: 57 | G14: 55 | H14: 41 | I14: 48 | J14: 41 | K14: 42 | L14: 42 | M14: 41
C15: Instituto Nacional de Electricidad y Energías Limpias | D15: 16 | E15: 18 | F15: 18 | G15: 18 | H15: 16 | I15: 17 | J15: 15 | K15: 14 | L15: 0 | M15: 0
C16: Instituto Nacional de Investigaciones Nucleares | D16: 21 | E16: 20 | F16: 17 | G16: 17 | H16: 17 | I16: 16 | J16: 15 | K16: 15 | L16: 15 | M16: 14
B17: 10 Economía | D17: 1,566 | E17: 1,888 | F17: 2,373 | G17: 2,250 | H17: 1,726 | I17: 1,828 | J17: 1,491 | K17: 928 | L17: 1,065 | M17: 1,034
C18: Centro Nacional de Meteorología | D18: 180 | E18: 92 | F18: 37 | G18: 32 | H18: 26 | I18: 31 | J18: 23 | K18: 23 | L18: 19 | M18: 20
C19: Servicio Geológico Mexicano | D19: 76 | E19: 500 | F19: 840 | G19: 832 | H19: 1,194 | I19: 1,281 | J19: 848 | K19: 734 | L19: 901 | M19: 853
C20: Instituto Mexicano de la Propiedad Industrial | D20: 211 | E20: 198 | F20: 256 | G20: 208 | H20: 165 | I20: 202 | J20: 185 | K20: 168 | L20: 141 | M20: 157
C21: Otros | D21: 1,099 | E21: 1,098 | F21: 1,240 | G21: 1,178 | H21: 341 | I21: 313 | J21: 436 | K21: 4 | L21: 4 | M21: 4
B22: 38 Conahcyt | D22: 978 | E22: 1,283 | F22: 1,850 | G22: 2,058 | H22: 2,200 | I22: 2,340 | J22: 2,234 | K22: 2,002 | L22: 533 | M22: 547
C23: Consejo Nacional de Humanidades, Ciencias y Tecnologías | D23: 896 | E23: 1,199 | F23: 1,771 | G23: 1,982 | H23: 2,122 | I23: 2,261 | J23: 2,170 | K23: 1,932 | L23: 465 | M23: 475
C24: Centros Públicos de Investigación - Conahcyt | D24: 82 | E24: 84 | F24: 79 | G24: 76 | H24: 78 | I24: 79 | J24: 65 | K24: 70 | L24: 68 | M24: 72
B25: Otros ramos administrativos 1/ | D25: 170 | E25: 177 | F25: 179 | G25: 1,450 | H25: 146 | I25: 158 | J25: 121 | K25: 4,600 | L25: 1,652 | M25: 2,072
B26: TOTAL | D26: 2,820 | E26: 3,469 | F26: 4,506 | G26: 5,859 | H26: 4,157 | I26: 4,418 | J26: 3,935 | K26: 7,618 | L26: 3,324 | M26: 3,726
B27: 1/ Incluye a los ramos administrativos 05 Relaciones Exteriores, 08 Agricultura y Desarrollo Rural, 09 Comunicaciones y Transportres que a partir de 2022 cambia a Infraestructura, Comunicaciones y Trasportes, 16 Medio Ambiente y Recursos Naturales. A partir de 2019 el Centro Nacional de Prevención de Desastres sectorizado hasta 2018 en el Ramo 04 Gobernación, se sectoriza en el Ramo 36 Seguridad y Protección Ciudadana. A partir de 2020 El Instituto Nacional de Ciencia Penales sectorizado en el Ramo 17 Procuraduría General de la República se sectoriza en el Ramo 49 Fiscalía General de la República. A partir de 2020 incluye a la Comisión Federal de Electricidad.
B28: Fuentes: SHCP, Cuenta de la Hacienda Pública Federal, 2013-2022.
B29: INEGI, Sistema de Cuentas Nacionales de México.

Sheet A.7.19
B5: A.7.19 GFCyT POR OBJETIVO SOCIO-ECONÓMICO, 2013-2022
B6: Millones de pesos
B8: Objetivo | C8: 2013 | D8: 2014 | E8: 2015 | F8: 2016 | G8: 2017 | H8: 2018 | I8: 2019 | J8: 2020 | K8: 2021 | L8: 2022
B9: Exploración y explotación de la Tierra | C9: 2,969 | D9: 3,098 | E9: 2,672 | F9: 2,729 | G9: 2,600 | H9: 2,489 | I9: 2,420 | J9: 2,388 | K9: 2,459 | L9: 2,600
B10: Medio ambiente | C10: 589 | D10: 626 | E10: 666 | F10: 664 | G10: 693 | H10: 679 | I10: 553 | J10: 590 | K10: 558 | L10: 605
B11: Exploración y explotación del espacio | C11: 61 | D11: 105 | E11: 107 | F11: 93 | G11: 94 | H11: 81 | I11: 112 | J11: 53 | K11: 67 | L11: 52
B12: Transporte, telecomunicación y otras infraestructuras | C12: 171 | D12: 212 | E12: 216 | F12: 235 | G12: 225 | H12: 201 | I12: 161 | J12: 153 | K12: 166 | L12: 166
B13: Energía | C13: 10,641 | D13: 12,693 | E13: 11,165 | F13: 9,152 | G13: 7,852 | H13: 8,047 | I13: 8,421 | J13: 11,420 | K13: 7,267 | L13: 8,732
B14: Producción y tecnología industrial 1/ | C14: 5,137 | D14: 6,106 | E14: 6,220 | F14: 5,958 | G14: 5,076 | H14: 5,110 | I14: 4,287 | J14: 5,019 | K14: 6,753 | L14: 5,206
B15: Salud | C15: 5,887 | D15: 6,071 | E15: 6,427 | F15: 6,880 | G15: 6,735 | H15: 7,290 | I15: 7,153 | J15: 7,755 | K15: 8,257 | L15: 9,122
B16: Agricultura | C16: 2,032 | D16: 5,359 | E16: 5,984 | F16: 4,730 | G16: 4,944 | H16: 4,648 | I16: 2,560 | J16: 1,923 | K16: 1,943 | L16: 2,171
B17: Cultura, recreación, religión y medios masivos de comunicación | C17: 213 | D17: 243 | E17: 267 | F17: 229 | G17: 126 | H17: 164 | I17: 153 | J17: 128 | K17: 145 | L17: 170
B18: Sistemas, estructuras y procesos políticos y sociales | C18: 1,730 | D18: 1,928 | E18: 2,133 | F18: 2,208 | G18: 1,797 | H18: 1,920 | I18: 1,819 | J18: 1,767 | K18: 2,219 | L18: 2,137
B19: Avance general del conocimiento Fondos Generales Universitarios 1/ | C19: 20,360 | D19: 23,110 | E19: 24,093 | F19: 26,045 | G19: 34,596 | H19: 36,299 | I19: 41,364 | J19: 46,999 | K19: 50,405 | L19: 53,236
B20: Avance general del conocimiento otros no Fondos Generales Universitarios | C20: 18,421 | D20: 23,903 | E20: 25,109 | F20: 25,180 | G20: 21,399 | H20: 21,512 | I20: 19,583 | J20: 19,847 | K20: 20,262 | L20: 22,564
B21: Defensa | C21: 104 | D21: 98 | E21: 96 | F21: 83 | G21: 79 | H21: 76 | I21: 103 | J21: 105 | K21: 110 | L21: 104
B22: TOTAL | C22: 68,317 | D22: 83,551 | E22: 85,156 | F22: 84,184 | G22: 86,214 | H22: 88,517 | I22: 88,688 | J22: 98,148 | K22: 100,612 | L22: 106,864
B23: Nota: La clasificación y nomenclatura de los objetivos socio-económicos está basada en la metodología propuesta por la OCDE en la versión 2015 del Manual Frascati, relativo a la medición de los recursos destinados a Investigación Científica y Desarrollo Experimental.
B24: 1/ De 2017 a 2021, cifras actualizadas por la entidad responsable.
B25: Fuente: SHCP, Cuenta de la Hacienda Pública Federal, 2013-2022.

Sheet A.7.20
B5: A.7.20 GFCyT POR OBJETIVO SOCIO-ECONÓMICO, 2013-2022
B6: Millones de pesos a precios de 2022
B8: Objetivo | C8: 2013 | D8: 2014 | E8: 2015 | F8: 2016 | G8: 2017 | H8: 2018 | I8: 2019 | J8: 2020 | K8: 2021 | L8: 2022
B9: Exploración y explotación de la Tierra | C9: 4,633 | D9: 4,632 | E9: 3,871 | F9: 3,728 | G9: 3,332 | H9: 3,033 | I9: 2,827 | J9: 2,661 | K9: 2,624 | L9: 2,600
B10: Medio ambiente | C10: 920 | D10: 936 | E10: 965 | F10: 907 | G10: 888 | H10: 827 | I10: 646 | J10: 657 | K10: 596 | L10: 605
B11: Exploración y explotación del espacio | C11: 95 | D11: 157 | E11: 155 | F11: 127 | G11: 120 | H11: 99 | I11: 130 | J11: 59 | K11: 71 | L11: 52
B12: Transporte, telecomunicación y otras infraestructuras | C12: 266 | D12: 317 | E12: 312 | F12: 320 | G12: 288 | H12: 245 | I12: 188 | J12: 170 | K12: 178 | L12: 166
B13: Energía | C13: 16,607 | D13: 18,982 | E13: 16,176 | F13: 12,502 | G13: 10,062 | H13: 9,802 | I13: 9,836 | J13: 12,726 | K13: 7,755 | L13: 8,732
B14: Producción y tecnología industrial 1/ | C14: 8,018 | D14: 9,131 | E14: 9,012 | F14: 8,139 | G14: 6,504 | H14: 6,225 | I14: 5,007 | J14: 5,593 | K14: 7,206 | L14: 5,206
B15: Salud | C15: 9,187 | D15: 9,078 | E15: 9,311 | F15: 9,398 | G15: 8,631 | H15: 8,880 | I15: 8,355 | J15: 8,642 | K15: 8,811 | L15: 9,122
B16: Agricultura | C16: 3,172 | D16: 8,013 | E16: 8,670 | F16: 6,462 | G16: 6,335 | H16: 5,663 | I16: 2,990 | J16: 2,143 | K16: 2,074 | L16: 2,171
B17: Cultura, recreación, religión y medios masivos de comunicación | C17: 333 | D17: 364 | E17: 386 | F17: 312 | G17: 162 | H17: 200 | I17: 179 | J17: 143 | K17: 154 | L17: 170
B18: Sistemas, estructuras y procesos políticos y sociales | C18: 2,700 | D18: 2,883 | E18: 3,090 | F18: 3,016 | G18: 2,303 | H18: 2,339 | I18: 2,124 | J18: 1,969 | K18: 2,368 | L18: 2,137
B19: Avance general del conocimiento Fondos Generales Universitarios | C19: 31,774 | D19: 34,559 | E19: 34,906 | F19: 35,580 | G19: 44,335 | H19: 44,219 | I19: 48,311 | J19: 52,375 | K19: 53,788 | L19: 53,236
B20: Avance general del conocimiento otros no Fondos Generales Universitarios | C20: 28,748 | D20: 35,746 | E20: 36,378 | F20: 34,399 | G20: 27,423 | H20: 26,206 | I20: 22,872 | J20: 22,117 | K20: 21,622 | L20: 22,564
B21: Defensa | C21: 163 | D21: 146 | E21: 140 | F21: 113 | G21: 102 | H21: 92 | I21: 120 | J21: 117 | K21: 118 | L21: 104
B22: TOTAL | C22: 106,615 | D22: 124,945 | E22: 123,373 | F22: 115,004 | G22: 110,485 | H22: 107,830 | I22: 103,585 | J22: 109,373 | K22: 107,365 | L22: 106,864
B23: Nota: La clasificación y nomenclatura de los objetivos socio-económicos está basada en la metodología propuesta por la OCDE en la versión 2015 del Manual Frascati, relativo a la medición de los recursos destinados a Investigación Científica y Desarrollo Experimental.
B24: 1/ De 2017 a 2021, cifras actualizadas por la entidad responsable.
B25: Fuentes: SHCP, Cuenta de la Hacienda Pública Federal, 2013-2022.
B26: INEGI, Sistema de Cuentas Nacionales de México.

Sheet A.7.21
B5: A.7.21 GFIDE POR OBJETIVO SOCIO-ECONÓMICO, 2013-2022
B6: Millones de pesos
B8: Objetivo | C8: 2013 | D8: 2014 | E8: 2015 | F8: 2016 | G8: 2017 | H8: 2018 | I8: 2019 | J8: 2020 | K8: 2021 | L8: 2022
B9: Exploración y explotación de la Tierra | C9: 2,925 | D9: 3,023 | E9: 2,618 | F9: 2,714 | G9: 2,585 | H9: 2,472 | I9: 2,405 | J9: 2,372 | K9: 2,444 | L9: 2,582
B10: Medio ambiente | C10: 578 | D10: 615 | E10: 655 | F10: 660 | G10: 690 | H10: 677 | I10: 550 | J10: 586 | K10: 555 | L10: 601
B11: Exploración y explotación del espacio | C11: 61 | D11: 105 | E11: 107 | F11: 89 | G11: 92 | H11: 79 | I11: 110 | J11: 53 | K11: 67 | L11: 52
B12: Transporte, telecomunicación y otras infraestructuras | C12: 156 | D12: 199 | E12: 200 | F12: 217 | G12: 210 | H12: 182 | I12: 146 | J12: 134 | K12: 151 | L12: 150
B13: Energía | C13: 10,580 | D13: 12,627 | E13: 11,102 | F13: 9,086 | G13: 7,794 | H13: 7,980 | I13: 8,361 | J13: 7,355 | K13: 5,759 | L13: 6,713
B14: Producción y tecnología industrial | C14: 3,802 | D14: 4,422 | E14: 4,420 | F14: 4,288 | G14: 3,698 | H14: 3,571 | I14: 2,972 | J14: 4,147 | K14: 5,714 | L14: 4,145
B15: Salud | C15: 2,845 | D15: 2,910 | E15: 3,208 | F15: 3,430 | G15: 3,205 | H15: 3,468 | I15: 3,037 | J15: 3,375 | K15: 3,427 | L15: 3,498
B16: Agricultura | C16: 2,026 | D16: 2,363 | E16: 2,544 | F16: 2,479 | G16: 2,486 | H16: 2,527 | I16: 2,174 | J16: 1,890 | K16: 1,937 | L16: 2,125
B17: Cultura, recreación, religión y medios masivos de comunicación | C17: 213 | D17: 243 | E17: 267 | F17: 229 | G17: 126 | H17: 164 | I17: 153 | J17: 128 | K17: 145 | L17: 170
B18: Sistemas, estructuras y procesos políticos y sociales | C18: 1,427 | D18: 1,599 | E18: 1,752 | F18: 1,828 | G18: 1,448 | H18: 1,535 | I18: 1,439 | J18: 1,521 | K18: 1,898 | L18: 1,699
B19: Avance general del conocimiento Fondos Generales Universitarios | C19: 15,234 | D19: 15,870 | E19: 17,786 | F19: 17,785 | G19: 18,650 | H19: 18,890 | I19: 19,033 | J19: 19,240 | K19: 20,291 | L19: 21,900
B20: Avance general del conocimiento otros no Fondos Generales Universitarios | C20: 9,885 | D20: 13,731 | E20: 14,305 | F20: 12,834 | G20: 9,473 | H20: 9,584 | I20: 7,766 | J20: 8,277 | K20: 9,900 | L20: 11,117
B21: Defensa | C21: 104 | D21: 98 | E21: 96 | F21: 83 | G21: 79 | H21: 76 | I21: 103 | J21: 105 | K21: 110 | L21: 104
B22: TOTAL | C22: 49,837 | D22: 57,803 | E22: 59,062 | F22: 55,723 | G22: 50,535 | H22: 51,206 | I22: 48,249 | J22: 49,184 | K22: 52,398 | L22: 54,856
B23: Nota: La clasificación de los objetivos socio-económicos está basada en la metodología propuesta por la OCDE en la versión 2015 del Manual Frascati, relativo a la medición de los recursos destinados a Investigación Científica y Desarrollo Experimental.
B24: Fuentes: SHCP, Cuenta de la Hacienda Pública Federal, 2013-2022.

Sheet A.7.22
B5: A.7.22 GFIDE POR OBJETIVO SOCIO-ECONÓMICO, 2013-2022
B6: Millones de pesos a precios de 2022
B8: Objetivo | C8: 2013 | D8: 2014 | E8: 2015 | F8: 2016 | G8: 2017 | H8: 2018 | I8: 2019 | J8: 2020 | K8: 2021 | L8: 2022
B9: Exploración y explotación de la Tierra | C9: 4,564 | D9: 4,521 | E9: 3,793 | F9: 3,708 | G9: 3,312 | H9: 3,012 | I9: 2,809 | J9: 2,643 | K9: 2,608 | L9: 2,582
B10: Medio ambiente | C10: 902 | D10: 920 | E10: 949 | F10: 902 | G10: 884 | H10: 825 | I10: 642 | J10: 653 | K10: 592 | L10: 601
B11: Exploración y explotación del espacio | C11: 95 | D11: 157 | E11: 155 | F11: 121 | G11: 117 | H11: 96 | I11: 129 | J11: 59 | K11: 71 | L11: 52
B12: Transporte, telecomunicación y otras infraestructuras | C12: 244 | D12: 298 | E12: 290 | F12: 297 | G12: 269 | H12: 222 | I12: 170 | J12: 150 | K12: 161 | L12: 150
B13: Energía | C13: 16,511 | D13: 18,883 | E13: 16,084 | F13: 12,412 | G13: 9,988 | H13: 9,721 | I13: 9,765 | J13: 8,196 | K13: 6,146 | L13: 6,713
B14: Producción y tecnología industrial | C14: 5,933 | D14: 6,613 | E14: 6,404 | F14: 5,858 | G14: 4,739 | H14: 4,351 | I14: 3,471 | J14: 4,621 | K14: 6,098 | L14: 4,145
B15: Salud | C15: 4,440 | D15: 4,351 | E15: 4,648 | F15: 4,686 | G15: 4,108 | H15: 4,225 | I15: 3,547 | J15: 3,762 | K15: 3,657 | L15: 3,498
B16: Agricultura | C16: 3,162 | D16: 3,533 | E16: 3,686 | F16: 3,386 | G16: 3,186 | H16: 3,079 | I16: 2,539 | J16: 2,106 | K16: 2,067 | L16: 2,125
B17: Cultura, recreación, religión y medios masivos de comunicación | C17: 333 | D17: 364 | E17: 386 | F17: 312 | G17: 162 | H17: 200 | I17: 179 | J17: 143 | K17: 154 | L17: 170
B18: Sistemas, estructuras y procesos políticos y sociales | C18: 2,227 | D18: 2,390 | E18: 2,539 | F18: 2,498 | G18: 1,855 | H18: 1,870 | I18: 1,681 | J18: 1,695 | K18: 2,025 | L18: 1,699
B19: Avance general del conocimiento Fondos Generales Universitarios | C19: 23,775 | D19: 23,733 | E19: 25,769 | F19: 24,296 | G19: 23,901 | H19: 23,012 | I19: 22,230 | J19: 21,441 | K19: 21,653 | L19: 21,900
B20: Avance general del conocimiento otros no Fondos Generales Universitarios | C20: 15,426 | D20: 20,534 | E20: 20,725 | F20: 17,533 | G20: 12,139 | H20: 11,675 | I20: 9,071 | J20: 9,224 | K20: 10,565 | L20: 11,117
B21: Defensa | C21: 163 | D21: 146 | E21: 140 | F21: 113 | G21: 102 | H21: 92 | I21: 120 | J21: 117 | K21: 118 | L21: 104
B22: TOTAL | C22: 77,775 | D22: 86,442 | E22: 85,568 | F22: 76,123 | G22: 64,762 | H22: 62,378 | I22: 56,353 | J22: 54,809 | K22: 55,915 | L22: 54,856
B23: Nota: La clasificación de los objetivos socio-económicos está basada en la metodología propuesta por la OCDE en la versión 2015 del Manual Frascati, relativo a la medición de los recursos destinados a Investigación Científica y Desarrollo Experimental.
B24: Fuentes: SHCP, Cuenta de la Hacienda Pública Federal, 2013-2022.
B25: INEGI, Sistema de Cuentas Nacionales de México.

Sheet A.7.23
B5: A.7.23 GFEECyT POR OBJETIVO SOCIO-ECONÓMICO, 2013-2022
B6: Millones de pesos
B8: Objetivo | C8: 2013 | D8: 2014 | E8: 2015 | F8: 2016 | G8: 2017 | H8: 2018 | I8: 2019 | J8: 2020 | K8: 2021 | L8: 2022
B9: Exploración y explotación de la Tierra | C9: 29 | D9: 61 | E9: 40 | F9: 0 | G9: 0 | H9: 0 | I9: 0 | J9: 0 | K9: 0 | L9: 0
B10: Medio ambiente | C10: 8 | D10: 8 | E10: 8 | F10: 0 | G10: 0 | H10: 0 | I10: 0 | J10: 0 | K10: 0 | L10: 0
B11: Exploración y explotación del espacio | C11: 0 | D11: 0 | E11: 0 | F11: 0 | G11: 0 | H11: 0 | I11: 0 | J11: 0 | K11: 0 | L11: 0
B12: Transporte, telecomunicación y otras infraestructuras | C12: 0 | D12: 0 | E12: 0 | F12: 0 | G12: 0 | H12: 0 | I12: 0 | J12: 0 | K12: 0 | L12: 0
B13: Energía | C13: 0 | D13: 0 | E13: 0 | F13: 0 | G13: 0 | H13: 0 | I13: 0 | J13: 0 | K13: 0 | L13: 0
B14: Producción y tecnología industrial 1/ | C14: 31 | D14: 48 | E14: 29 | F14: 0 | G14: 7 | H14: 13 | I14: 17 | J14: 18 | K14: 18 | L14: 0
B15: Salud | C15: 3,042 | D15: 3,161 | E15: 3,219 | F15: 3,449 | G15: 3,530 | H15: 3,822 | I15: 4,116 | J15: 4,380 | K15: 4,830 | L15: 5,624
B16: Agricultura | C16: 0 | D16: 0 | E16: 0 | F16: 0 | G16: 0 | H16: 0 | I16: 0 | J16: 0 | K16: 0 | L16: 39
B17: Cultura, recreación, religión y medios masivos de comunicación | C17: 0 | D17: 0 | E17: 0 | F17: 0 | G17: 0 | H17: 0 | I17: 0 | J17: 0 | K17: 0 | L17: 0
B18: Sistemas, estructuras y procesos políticos y sociales | C18: 213 | D18: 236 | E18: 286 | F18: 279 | G18: 253 | H18: 279 | I18: 295 | J18: 170 | K18: 249 | L18: 349
B19: Avance general del conocimiento Fondos Generales Universitarios 1/ | C19: 5,106 | D19: 7,206 | E19: 6,279 | F19: 8,242 | G19: 15,924 | H19: 17,383 | I19: 22,303 | J19: 27,724 | K19: 30,076 | L19: 31,296
B20: Avance general del conocimiento otros no Fondos Generales Universitarios | C20: 6,821 | D20: 7,834 | E20: 8,369 | F20: 9,434 | G20: 9,836 | H20: 9,635 | I20: 9,959 | J20: 9,837 | K20: 9,926 | L20: 10,972
B21: Defensa | C21: 0 | D21: 0 | E21: 0 | F21: 0 | G21: 0 | H21: 0 | I21: 0 | J21: 0 | K21: 0 | L21: 0
B22: TOTAL | C22: 15,252 | D22: 18,554 | E22: 18,230 | F22: 21,404 | G22: 29,549 | H22: 31,131 | I22: 36,690 | J22: 42,128 | K22: 45,099 | L22: 48,281
B23: Nota: La clasificación de los objetivos socio-económicos está basada en la metodología propuesta por la OCDE en la versión 2015 del Manual Frascati, relativo a la medición de los recursos destinados a Investigación Científica y Desarrollo Experimental.
B24: 1/ De 2017 a 2021, cifras actualizadas por la entidad responsable.
B25: Fuentes: SHCP, Cuenta de la Hacienda Pública Federal, 2013-2022.

Sheet A.7.24
B5: A.7.24 GFEECyT POR OBJETIVO SOCIO-ECONÓMICO, 2013-2022
B6: Millones de pesos a precios de 2022
B8: Objetivo | C8: 2013 | D8: 2014 | E8: 2015 | F8: 2016 | G8: 2017 | H8: 2018 | I8: 2019 | J8: 2020 | K8: 2021 | L8: 2022
B9: Exploración y explotación de la Tierra | C9: 46 | D9: 91 | E9: 58 | F9: 0 | G9: 0 | H9: 0 | I9: 0 | J9: 0 | K9: 0 | L9: 0
B10: Medio ambiente | C10: 13 | D10: 11 | E10: 12 | F10: 0 | G10: 0 | H10: 0 | I10: 0 | J10: 0 | K10: 0 | L10: 0
B11: Exploración y explotación del espacio | C11: 0 | D11: 0 | E11: 0 | F11: 0 | G11: 0 | H11: 0 | I11: 0 | J11: 0 | K11: 0 | L11: 0
B12: Transporte, telecomunicación y otras infraestructuras | C12: 0 | D12: 0 | E12: 0 | F12: 0 | G12: 0 | H12: 0 | I12: 0 | J12: 0 | K12: 0 | L12: 0
B13: Energía | C13: 0 | D13: 0 | E13: 0 | F13: 0 | G13: 0 | H13: 0 | I13: 0 | J13: 0 | K13: 0 | L13: 0
B14: Producción y tecnología industrial | C14: 49 | D14: 72 | E14: 42 | F14: 0 | G14: 8 | H14: 16 | I14: 20 | J14: 20 | K14: 20 | L14: 0
B15: Salud | C15: 4,748 | D15: 4,727 | E15: 4,663 | F15: 4,712 | G15: 4,523 | H15: 4,655 | I15: 4,807 | J15: 4,881 | K15: 5,154 | L15: 5,624
B16: Agricultura | C16: 0 | D16: 0 | E16: 0 | F16: 0 | G16: 0 | H16: 0 | I16: 0 | J16: 0 | K16: 0 | L16: 39
B17: Cultura, recreación, religión y medios masivos de comunicación | C17: 0 | D17: 0 | E17: 0 | F17: 0 | G17: 0 | H17: 0 | I17: 0 | J17: 0 | K17: 0 | L17: 0
B18: Sistemas, estructuras y procesos políticos y sociales | C18: 333 | D18: 353 | E18: 414 | F18: 381 | G18: 324 | H18: 340 | I18: 345 | J18: 190 | K18: 265 | L18: 349
B19: Avance general del conocimiento Fondos Generales Universitarios | C19: 7,969 | D19: 10,776 | E19: 9,097 | F19: 11,259 | G19: 20,407 | H19: 21,176 | I19: 26,049 | J19: 30,894 | K19: 32,095 | L19: 31,296
B20: Avance general del conocimiento otros no Fondos Generales Universitarios | C20: 10,644 | D20: 11,716 | E20: 12,125 | F20: 12,887 | G20: 12,605 | H20: 11,737 | I20: 11,631 | J20: 10,962 | K20: 10,592 | L20: 10,972
B21: Defensa | C21: 0 | D21: 0 | E21: 0 | F21: 0 | G21: 0 | H21: 0 | I21: 0 | J21: 0 | K21: 0 | L21: 0
B22: TOTAL | C22: 23,802 | D22: 27,746 | E22: 26,411 | F22: 29,239 | G22: 37,867 | H22: 37,924 | I22: 42,852 | J22: 46,946 | K22: 48,126 | L22: 48,281
B23: Nota: La clasificación de los objetivos socio-económicos está basada en la metodología propuesta por la OCDE en la versión 2015 del Manual Frascati, relativo a la medición de los recursos destinados a Investigación Científica y Desarrollo Experimental.
B24: Fuentes: SHCP, Cuenta de la Hacienda Pública Federal, 2013-2022.
B25: INEGI, Sistema de Cuentas Nacionales de México.

Sheet A.7.25
B5: A.7.25 GFSCyT POR OBJETIVO SOCIO-ECONÓMICO, 2013-2022
B6: Millones de pesos
B8: Objetivo | C8: 2013 | D8: 2014 | E8: 2015 | F8: 2016 | G8: 2017 | H8: 2018 | I8: 2019 | J8: 2020 | K8: 2021 | L8: 2022
B9: Exploración y explotación de la Tierra | C9: 14 | D9: 14 | E9: 14 | F9: 14 | G9: 15 | H9: 17 | I9: 15 | J9: 16 | K9: 15 | L9: 17
B10: Medio ambiente | C10: 3 | D10: 3 | E10: 3 | F10: 3 | G10: 3 | H10: 2 | I10: 3 | J10: 3 | K10: 3 | L10: 3
B11: Exploración y explotación del espacio | C11: 0 | D11: 0 | E11: 0 | F11: 4 | G11: 2 | H11: 2 | I11: 1 | J11: 0 | K11: 0 | L11: 0
B12: Transporte, telecomunicación y otras infraestructuras | C12: 14 | D12: 13 | E12: 15 | F12: 17 | G12: 14 | H12: 19 | I12: 15 | J12: 19 | K12: 15 | L12: 15
B13: Energía | C13: 61 | D13: 66 | E13: 63 | F13: 66 | G13: 58 | H13: 67 | I13: 61 | J13: 4,065 | K13: 1,508 | L13: 2,019
B14: Producción y tecnología industrial | C14: 1,025 | D14: 1,286 | E14: 1,661 | F14: 1,669 | G14: 1,371 | H14: 1,525 | I14: 1,298 | J14: 855 | K14: 1,021 | L14: 1,061
B15: Salud | C15: 0 | D15: 0 | E15: 0 | F15: 0 | G15: 0 | H15: 0 | I15: 0 | J15: 0 | K15: 0 | L15: 0
B16: Agricultura | C16: 6 | D16: 9 | E16: 8 | F16: 945 | G16: 6 | H16: 6 | I16: 5 | J16: 33 | K16: 6 | L16: 7
B17: Cultura, recreación, religión y medios masivos de comunicación | C17: 0 | D17: 0 | E17: 0 | F17: 0 | G17: 0 | H17: 0 | I17: 0 | J17: 0 | L17: 0
B18: Sistemas, estructuras y procesos políticos y sociales | C18: 90 | D18: 94 | E18: 95 | F18: 100 | G18: 96 | H18: 106 | I18: 84 | J18: 76 | K18: 73 | L18: 88
B19: Avance general del conocimiento Fondos Generales Universitarios | C19: 19 | D19: 34 | E19: 28 | F19: 18 | G19: 21 | H19: 26 | I19: 28 | J19: 35 | K19: 38 | L19: 40
B20: Avance general del conocimiento otros no Fondos Generales Universitarios | C20: 574 | D20: 802 | E20: 1,222 | F20: 1,451 | G20: 1,656 | H20: 1,856 | I20: 1,858 | J20: 1,734 | K20: 436 | L20: 475
B21: Defensa | C21: 0 | D21: 0 | E21: 0 | F21: 0 | G21: 0 | H21: 0 | I21: 0 | J21: 0 | K21: 0 | L21: 0
B22: TOTAL | C22: 1,807 | D22: 2,320 | E22: 3,110 | F22: 4,289 | G22: 3,244 | H22: 3,627 | I22: 3,369 | J22: 6,836 | K22: 3,115 | L22: 3,726
B23: Nota: La clasificación de los objetivos socio-económicos está basada en la metodología propuesta por la OCDE en la versión 2015 del Manual Frascati, relativo a la medición de los recursos destinados a Investigación Científica y Desarrollo Experimental.
B24: Fuentes: SHCP, Cuenta de la Hacienda Pública Federal, 2013-2022.

Sheet A.7.26
B5: A.7.26 GFSCyT POR OBJETIVO SOCIO-ECONÓMICO, 2013-2022
B6: Millones de pesos a precios de 2022
B8: Objetivo | C8: 2013 | D8: 2014 | E8: 2015 | F8: 2016 | G8: 2017 | H8: 2018 | I8: 2019 | J8: 2020 | K8: 2021 | L8: 2022
B9: Exploración y explotación de la Tierra | C9: 23 | D9: 21 | E9: 20 | F9: 20 | G9: 19 | H9: 21 | I9: 18 | J9: 18 | K9: 16 | L9: 17
B10: Medio ambiente | C10: 5 | D10: 5 | E10: 4 | F10: 5 | G10: 4 | H10: 2 | I10: 4 | J10: 4 | K10: 4 | L10: 3
B11: Exploración y explotación del espacio | C11: 0 | D11: 0 | E11: 0 | F11: 6 | G11: 3 | H11: 3 | I11: 1 | J11: 0 | K11: 0 | L11: 0
B12: Transporte, telecomunicación y otras infraestructuras | C12: 22 | D12: 19 | E12: 22 | F12: 24 | G12: 18 | H12: 23 | I12: 18 | J12: 21 | K12: 16 | L12: 15
B13: Energía | C13: 95 | D13: 99 | E13: 92 | F13: 90 | G13: 75 | H13: 82 | I13: 71 | J13: 4,530 | K13: 1,609 | L13: 2,019
B14: Producción y tecnología industrial | C14: 1,600 | D14: 1,924 | E14: 2,406 | F14: 2,280 | G14: 1,757 | H14: 1,858 | I14: 1,516 | J14: 953 | K14: 1,089 | L14: 1,061
B15: Salud | C15: 0 | D15: 0 | E15: 0 | F15: 0 | G15: 0 | H15: 0 | I15: 0 | J15: 0 | K15: 0 | L15: 0
B16: Agricultura | C16: 10 | D16: 13 | E16: 12 | F16: 1,291 | G16: 8 | H16: 7 | I16: 6 | J16: 37 | K16: 7 | L16: 7
B17: Cultura, recreación, religión y medios masivos de comunicación | C17: 0 | D17: 0 | E17: 0 | F17: 0 | G17: 0 | H17: 0 | I17: 0 | J17: 0 | K17: 0 | L17: 0
B18: Sistemas, estructuras y procesos políticos y sociales | C18: 140 | D18: 140 | E18: 137 | F18: 137 | G18: 123 | H18: 129 | I18: 99 | J18: 85 | K18: 78 | L18: 88
B19: Avance general del conocimiento Fondos Generales Universitarios | C19: 30 | D19: 50 | E19: 41 | F19: 25 | G19: 27 | H19: 31 | I19: 33 | J19: 39 | K19: 40 | L19: 40
B20: Avance general del conocimiento otros no Fondos Generales Universitarios | C20: 896 | D20: 1,199 | E20: 1,771 | F20: 1,982 | G20: 2,122 | H20: 2,261 | I20: 2,170 | J20: 1,932 | K20: 465 | L20: 475
B21: Defensa | C21: 0 | D21: 0 | E21: 0 | F21: 0 | G21: 0 | H21: 0 | I21: 0 | J21: 0 | K21: 0 | L21: 0
B22: TOTAL | C22: 2,820 | D22: 3,469 | E22: 4,506 | F22: 5,859 | G22: 4,157 | H22: 4,418 | I22: 3,935 | J22: 7,618 | K22: 3,324.50 | L22: 3,726.18
B23: Nota: La clasificación de los objetivos socio-económicos está basada en la metodología propuesta por la OCDE en la versión 2015 del Manual Frascati, relativo a la medición de los recursos destinados a Investigación Científica y Desarrollo Experimental.
B24: Fuentes: SHCP, Cuenta de la Hacienda Pública Federal, 2013-2022.
B25: INEGI, Sistema de Cuentas Nacionales de México.

Sheet A.7.27
B5: A.7.27 PARTICIPACIÓN DE LOS RAMOS ADMINISTRATIVOS Y PRINCIPALES ENTIDADES EN EL GFCyT POR ACTIVIDAD, 2022
B6: Millones de pesos
B8: Ramo administrativo | D8: Gasto Federal en Investigación Científica y Desarrollo Experimental | H8: Gasto Federal en Educación y Enseñanza Científica y Técnica | L8: Gasto Federal en Servicios Científicos y Tecnológicos | P8: Gasto Federal en Innovación | T8: Gasto Federal en Ciencia, Tecnología e Innovación
B9: Entidad | D9: Monto | E9: Participación Ramo/Total % | F9: Participación Entidad/Ramo % | H9: Monto | I9: Participación Ramo/Total % | J9: Participación Entidad/Ramo % | L9: Monto | M9: Participación Ramo/Total % | N9: Participación Entidad/Ramo % | P9: Monto | Q9: Participación Ramo/Total % | R9: Participación Entidad/Ramo % | T9: Total | U9: Participación Sector/Total % | V9: Participación Entidad/Ramo %
B10: Educación Pública | D10: =SUM(D11:D19) -> 20,496 | E10: =+D10/$D$47*100 -> 37.4 | F10: =SUM(F11:F19) -> 100.0 | H10: =SUM(H11:H19) -> 29,118 | I10: =+H10/$H$47*100 -> 60.3 | J10: 100 | L10: =SUM(L11:L18) -> 18 | M10: =+L10/$L$47*100 -> 0.5 | N10: =SUM(N11:N19) -> 100.0 | T10: =P10+L10+H10+D10 -> 49,632 | U10: =+T10/$T$47*100 -> 46.4 | V10: =SUM(V11:V19) -> 100.0
C11: Universidad Nacional Autónoma de México | D11: 13,217 | F11: =+D11/$D$10*100 -> 64.5 | H11: 5,524 | J11: =+H11/$H$10*100 -> 19 | N11: =L11/$L$10*100 -> 0.0 | T11: 18,741 | V11: =T11/$T$10*100 -> 37.8
C12: Centro de Investigación y de Estudios Avanzados | D12: 1,951 | F12: =+D12/$D$10*100 -> 9.5 | H12: 1,298 | J12: =+H12/$H$10*100 -> 4 | L12: 8 | N12: =L12/$L$10*100 -> 45.5 | T12: 3,258 | V12: =T12/$T$10*100 -> 6.6
C13: Universidad Autónoma Metropolitana | D13: 1,855 | F13: 9.0 | H13: 2,198 | J13: 8 | N13: 0.0 | T13: 4,053 | V13: 8.2
C14: Instituto Politécnico Nacional | D14: 2,171 | F14: 10.6 | H14: 2,899 | J14: 10 | N14: 0.0 | T14: 5,070 | V14: 10.2
C15: El Colegio de México, A.C. | D15: 816 | F15: 4.0 | H15: 90 | J15: 0 | L15: 10 | N15: 54.5 | T15: 916 | V15: 1.8
C16: Universidad Autónoma Agraria "Antonio Narro" | D16: 112 | F16: 0.5 | H16: 93 | J16: 0 | N16: 0.0 | T16: 205 | V16: 0.4
C17: Tecnológico Nacional de México | D17: 254 | F17: 1.2 | H17: 6,705 | J17: 23 | N17: 0.0 | T17: 6,958 | V17: 14.0
C18: Dirección General de Educación Superior Universitaria e Intercultural | D18: 0 | F18: 0.0 | H18: 9,146 | J18: 31 | N18: 0.0 | T18: 9,146 | V18: 18.4
C19: Otros | D19: 121 | F19: 0.6 | H19: 1,164 | J19: 4 | N19: 0.0 | T19: 1,285 | V19: 2.6
B20: Energía | D20: =SUM(D21:D24) -> 6,713 | E20: =+D20/$D$47*100 -> 12.2 | F20: =SUM(F21:F24) -> 100.0 | H20: 0 | I20: =+H20/$H$47*100 -> 0.0 | J20: 0 | L20: =SUM(L21:L24) -> 55 | M20: =+L20/$L$47*100 -> 1.5 | N20: =SUM(N21:N24) -> 100.0 | T20: 6,768 | U20: =+T20/$T$47*100 -> 6.3 | V20: =SUM(V21:V24) -> 100.0
C21: Instituto Mexicano del Petróleo | D21: 4,913 | F21: =+D21/$D$20*100 -> 73.2 | H21: 0 | J21: 0 | L21: 40.9 | N21: =+L21/$L$20*100 -> 74.7 | T21: 4,954 | V21: =T21/$T$20*100 -> 73.2
C22: Instituto Nacional de Electricidad y Energías Limpias | D22: 664 | F22: =+D22/$D$20*100 -> 9.9 | H22: 0 | J22: 0 | L22: 0.0 | N22: =+L22/$L$20*100 -> 0.0 | T22: 664 | V22: =T22/$T$20*100 -> 9.8
C23: Instituto Nacional de Investigaciones Nucleares | D23: 867 | F23: 12.9 | H23: 0 | J23: 0 | L23: 13.9 | N23: 25.3 | T23: 881 | V23: 13.0
C24: Otros | D24: =10.113803+258.547296 -> 269 | F24: 4.0 | H24: 0 | J24: 0 | L24: 0 | N24: 0.0 | T24: 269 | V24: 4.0
B25: Agricultura y Desarrollo Rural | D25: =SUM(D26:D30) -> 2,125 | E25: =+D25/$D$47*100 -> 3.9 | F25: =SUM(F26:F30) -> 100.0 | H25: =SUM(H26:H30) -> 2,218 | I25: =+H25/$H$47*100 -> 4.6 | J25: =SUM(J26:J30) -> 100 | L25: =SUM(L26:L29) -> 11 | M25: =+L25/$L$47*100 -> 0.3 | N25: =SUM(N26:N30) -> 100.0 | T25: 4,354 | U25: =+T25/$T$47*100 -> 4.1 | V25: =SUM(V26:V30) -> 100.0
C26: Instituto Nacional de Investigaciones Forestales, Agrícolas y Pecuarias | D26: 1,608 | F26: =D26/$D$25*100 -> 75.7 | J26: =+H26/$H$25*100 -> 0 | L26: 6.7 | N26: =+L26/$L$25*100 -> 61.0 | T26: 1,615 | V26: =T26/$T$25*100 -> 37.1
C27: Colegio de Postgraduados | D27: 0 | F27: =D27/$D$25*100 -> 0.0 | H27: 1,433 | J27: 65 | L27: 4.3 | N27: =+L27/$L$25*100 -> 39.0 | T27: 1,437 | V27: =T27/$T$25*100 -> 33.0
C28: Universidad Autónoma Chapingo | D28: 0 | F28: 0.0 | H28: 746 | J28: 34 | L28: 0 | N28: 0.0 | T28: 746 | V28: 17.1
C29: Instituto Nacional de Pesca y Acuacultura | D29: 517 | F29: 24.3 | J29: 0 | L29: 0 | N29: 0.0 | T29: 517 | V29: 11.9
C30: Otros | D30: 1 | F30: 0.0 | H30: 39 | J30: 2 | L30: 0 | N30: 0.0 | T30: 40 | V30: 0.9
B31: Salud y Seguridad Social | D31: =SUM(D32:D37) -> 3,498 | E31: =+D31/$D$47*100 -> 6.4 | F31: =SUM(F32:F37) -> 100.0 | H31: =SUM(H32:H37) -> 5,624 | I31: =+H31/$H$47*100 -> 11.6 | J31: 100 | L31: 0 | M31: =+L31/$L$47*100 -> 0.0 | N31: 0.0 | T31: 9,122 | U31: =+T31/$T$47*100 -> 8.5 | V31: =SUM(V32:V37) -> 100.0
C32: Institutos Nacionales de Salud1/ | D32: 2,261 | F32: =D32/$D$31*100 -> 64.6 | H32: 1,011 | J32: 19 | L32: 0 | N32: 0.0 | T32: 3,272 | V32: =T32/$T$31*100 -> 35.9
C33: Instituto Mexicano del Seguro Social | D33: 767 | F33: =D33/$D$31*100 -> 21.9 | H33: 0 | L33: 0 | N33: 0.0 | T33: 767 | V33: =T33/$T$31*100 -> 8.4
C34: Instituto de Seguridad y Servicios Sociales para los Trabajadores del Estado | D34: 96 | F34: 2.7 | H34: 0 | L34: 0 | N34: 0.0 | T34: 96 | V34: 1.1
C35: Dirección General de Calidad y Educación en Salud | D35: 0 | F35: 0.0 | H35: 4,170 | J35: 73 | L35: 0 | N35: 0.0 | T35: 4,170 | V35: 45.7
C36: Hospitales Generales y Regionales | D36: 336 | F36: 9.6 | H36: 364 | J36: 7 | L36: 0 | N36: 0.0 | T36: 701 | V36: 7.7
C37: Otras unidades centralizadas | D37: 39 | F37: 1.1 | H37: 79 | J37: 2 | L37: 0 | N37: 0.0 | T37: 117 | V37: 1.3
B38: Economía | D38: =SUM(D39:D41) -> 252 | E38: =+D38/$D$47*100 -> 0.5 | F38: =SUM(F39:F42) -> 100.0 | H38: 0 | I38: =+H38/$H$47*100 -> 0.0 | L38: =SUM(L39:L42) -> 1,034 | M38: =+L38/$L$47*100 -> 27.8 | N38: =SUM(N39:N42) -> 100.0 | T38: 1,287 | U38: =+T38/$T$47*100 -> 1.2 | V38: =SUM(V39:V42) -> 100.0
C39: Centro Nacional de Meteorología | D39: 252 | F39: =D39/$D$38*100 -> 100.0 | L39: 20.0 | N39: =L39/$L$38*100 -> 1.9 | T39: 272 | V39: =+T39/$T$38*100 -> 21.2
C40: Servicio Geológico Mexicano | D40: 0 | F40: =D40/$D$38*100 -> 0.0 | L40: 853.0 | N40: =L40/$L$38*100 -> 82.5 | T40: 853 | V40: =+T40/$T$38*100 -> 66.3
C41: Instituto Mexicano de la Propiedad Industrial | D41: 0 | F41: 0.0 | L41: 157.4 | N41: 15.2 | T41: 157 | V41: 12.2
C42: Otros | D42: 0 | F42: 0.0 | L42: 3.8 | N42: 0.4 | T42: 4 | V42: 0.3
B43: Conahcyt | D43: =SUM(D44:D45) -> 20,515 | E43: =+D43/$D$47*100 -> 37.4 | F43: =+F44+F45 -> 100.0 | H43: =SUM(H44:H45) -> 11,322 | I43: =+H43/$H$47*100 -> 23.4 | J43: 100 | L43: =SUM(L44:L45) -> 547 | M43: =+L43/$L$47*100 -> 14.7 | N43: =SUM(N44:N45) -> 100.0 | T43: 32,383 | U43: =+T43/$T$47*100 -> 30.3 | V43: =SUM(V44:V45) -> 100.0
C44: Consejo Nacional de Humanidades, Ciencias y Tecnologías | D44: 11,117 | F44: =D44/$D$43*100 -> 54.2 | H44: 10,972 | J44: 98 | L44: 475.1 | N44: =L44/$L$43*100 -> 86.9 | T44: 22,564 | V44: =+T44/T43*100 -> 69.7
C45: Centros Públicos de Investigación - Conahcyt | D45: 9,399 | F45: =D45/$D$43*100 -> 45.8 | H45: 349 | J45: 2 | L45: 71.5 | N45: =L45/$L$43*100 -> 13.1 | T45: 9,819 | V45: =T45/T43*100 -> 30.3
B46: Otros sectores 2/ | D46: 1,256 | E46: =+D46/$D$47*100 -> 2.3 | H46: 0 | I46: =+H46/$H$47*100 -> 0.0 | L46: 2,061.2 | M46: =+L46/$L$47*100 -> 55.3 | T46: 3,318 | U46: =+T46/$T$47*100 -> 3.1
B47: TOTAL | D47: =D43+D46+D38+D31+D25+D20+D10 -> 54,856 | E47: =E43+E46+E38+E31+E25+E20+E10 -> 100.0 | H47: =+H43+H46+H38+H31+H25+H20+H10 -> 48,281 | I47: =I43+I46+I38+I31+I25+I20+I10 -> 100.0 | L47: =+L43+L46+L38+L31+L25+L20+L10 -> 3,726 | M47: =M43+M46+M38+M31+M25+M20+M10 -> 100.0 | T47: 106,864 | U47: =U43+U46+U38+U31+U25+U20+U10 -> 100.0
B48: Participación Actividad/Total (%) | D48: =+D47/$T$47*100 -> 51 | H48: =+H47/$T$47*100 -> 45 | L48: =+L47/$T$47*100 -> 3 | T48: 100.0
B49: 1/ Se incluye en el grupo de Institutos Nacionales de Salud al Hospital Infantil de México Federico Gómez.
B50: 2/ Incluye a los ramos administrativos 36 Seguridad y Protección Ciudadana, 05 Relaciones Exteriores, 07 Defensa Nacional, 09 Infraestructura, Comunicaciones y Transportes, antes de 2022 era Comunicaciones y Transportes, 13 Marina, 16 Medio Ambiente y Recursos Naturales, 49 Fiscalía General de la República, 21 Turismo, 48 Cultura y a la Comisión Federal de Electricidad.
B51: Fuente: SHCP, Cuenta de la Hacienda Pública Federal, 2022.

Sheet A.7.28
B5: A.7.28 COMPARACIÓN INTERNACIONAL DE LAS ASIGNACIONES PRESUPUESTALES DEL GOBIERNO A LA IDE (GBARD), 2013-2022
B6: Millones de dólares de EUA PPP
B8: País | C8: 2013 | D8: 2014 | E8: 2015 | F8: 2016 | G8: 2017 | H8: 2018 | I8: 2019 | J8: 2020 | K8: 2021 | L8: 2022
B9: Estados Unidos de América 1/ | C9: 109,608.0 | D9: 112,502.0 | E9: 115,220.0 | F9: 126,093.0 | G9: 127,306.0 | H9: 144,459.0 | I9: 149,971.0 | J9: 169,901.0 | K9: 161,885.0 | L9: 169,938.0
B10: Alemania 2/ | C10: 32,745.9 | D10: 33,186.3 | E10: 34,098.5 | F10: 37,667.8 | G10: 40,496.1 | H10: 43,184.5 | I10: 46,680.2 | J10: 51,265.4 | K10: 54,926.8 | L10: 59,293.6
B11: Japón 3/ | C11: 35,633.5 | D11: 35,431.8 | E11: 33,610.4 | F11: 33,802.9 | G11: 42,399.7 | H11: 45,814.1 | I11: 54,996.0 | J11: 89,617.5 | K11: 79,944.5 | L11: 98,423.6
B12: Francia 3/ | C12: 18,457.1 | D12: 18,349.2 | E12: 17,526.4 | F12: 18,009.5 | G12: 19,150.4 | H12: 20,577.9 | I12: 22,591.2 | J12: 23,941.6 | K12: 24,566.9 | L12: nd
B13: Reino Unido 4/ | C13: 14,362.8 | D13: 14,571.5 | E13: 14,608.7 | F13: 15,006.9 | G13: 16,000.0 | H13: 17,184.5 | I13: 17,920.1 | J13: 20,402.8 | K13: nd | L13: nd
B14: Rusia | C14: 21,804.1 | D14: 20,823.7 | E14: 18,647.9 | F14: 16,646.7 | G14: 15,664.0 | H14: 17,132.1 | I14: 19,693.7 | J14: 22,439.3 | K14: nd | L14: nd
B15: España 3/ | C15: 8,420.5 | D15: 8,721.4 | E15: 9,089.8 | F15: 9,422.4 | G15: 9,505.6 | H15: 9,922.0 | I15: 10,575.7 | J15: 11,205.6 | K15: 11,966.8 | L15: nd
B16: China | C16: 7,233.1 | D16: 7,192.0 | E16: 7,434.9 | F16: 7,647.0 | G16: 7,817.0 | H16: 7,643.1 | I16: 8,097.8 | J16: 8,177.2 | K16: 8,146.4 | L16: nd
B17: Turquía 5/ | C17: 6,403.2 | D17: 6,095.5 | E17: 6,913.4 | F17: 7,345.4 | G17: 7,738.7 | H17: 7,977.7 | I17: 8,006.2 | J17: 6,621.3 | K17: 7,209.5 | L17: 5,223.1
B18: México 6/ | C18: 6,321.0 | D18: 7,184.7 | E18: 7,092.3 | F18: 6,597.6 | G18: 5,669.5 | H18: 5,520.0 | I18: 4,993.0 | J18: 4,899.2 | K18: 5,039.0 | L18: 5,609.3
B19: Israel 5/ | C19: 1,686.1 | D19: 1,749.9 | E19: 1,837.6 | F19: 1,997.4 | G19: 2,062.3 | H19: 2,173.3 | I19: 2,236.9 | J19: 2,458.8 | K19: 2,319.6 | L19: nd
B20: Chile | C20: 801.4 | D20: 843.3 | E20: 822.1 | F20: 936.8 | G20: 976.5 | H20: 1,045.4 | I20: 1,017.9 | J20: nd | K20: nd | L20: nd
B21: NOTA: La conversión a dólares de EUA se hizo con la Paridad del Poder Adquisitivo (PPP) calculada por la OCDE.
B22: Fuente: Main Science and Technology Indicators, OECD, 2023/1.
B23: nd: No disponible.
B24: 1/ Cifra revisada de 2018.
B25: 2/ Cifra revisada de 2020 y 2021.
B26: 3/ Cifras revisadas de 2019-2021
B27: 4/ Cifras revisadas de 2016 a 2020.
B28: 5/ Cifras revisadas 2019 y 2020.
B29: 6/ Cifras revisadas de 2018-2021.

Sheet A.7.29
B5: A.7.29 PRESUPUESTO ADMINISTRADO POR EL RAMO 38 CONACYT, 2013-2022
B6: Millones de pesos
B8: Año | C8: Consejo Nacional de Humanidades, Ciencias y Tecnologías | D8: Centros Públicos de Investigación - Conahcyt | E8: Total
B9: 2013 | C9: 18,421 | D9: 9,089 | E9: 27,510.5
B10: 2014 | C10: 23,903 | D10: 9,757 | E10: 33,660.1
B11: 2015 | C11: 25,109 | D11: 10,161 | E11: 35,270.6
B12: 2016 | C12: 25,180 | D12: 10,069 | E12: 35,249.9
B13: 2017 | C13: 21,399 | D13: 8,603 | E13: 30,002.0
B14: 2018 | C14: 21,512 | D14: 8,757 | E14: 30,269.2
B15: 2019 | C15: 19,583 | D15: 8,008 | E15: 27,590.5
B16: 2020 | C16: 19,847 | D16: 9,077 | E16: 28,924.0
B17: 2021 | C17: 20,262 | D17: 11,275 | E17: 31,537.4
B18: 2022 | C18: 22,564 | D18: 9,819 | E18: 32,383.4
B19: Fuente: SHCP, Cuenta de la Hacienda Pública Federal, 2013-2022.

Sheet A.7.30
B5: A.7.30 PRESUPUESTO ADMINISTRADO POR EL RAMO 38 CONACYT, 2013-2022
B6: Millones de pesos a precios de 2022
B8: Año | C8: Consejo Nacional de Humanidades, Ciencias y Tecnologías | D8: Centros Públicos de Investigación - Conahcyt | E8: Total
B9: 2013 | C9: 28,748 | D9: 14,185 | E9: 42,933
B10: 2014 | C10: 35,746 | D10: 14,591 | E10: 50,337
B11: 2015 | C11: 36,378 | D11: 14,722 | E11: 51,100
B12: 2016 | C12: 34,399 | D12: 13,756 | E12: 48,155
B13: 2017 | C13: 27,423 | D13: 11,025 | E13: 38,448
B14: 2018 | C14: 26,206 | D14: 10,667 | E14: 36,874
B15: 2019 | C15: 22,872 | D15: 9,353 | E15: 32,225
B16: 2020 | C16: 22,117 | D16: 10,115 | E16: 32,232
B17: 2021 | C17: 21,622 | D17: 12,032 | E17: 33,654
B18: 2022 | C18: 22,564 | D18: 9,819 | E18: 32,383
B19: Fuentes: SHCP, Cuenta de la Hacienda Pública Federal, 2013-2022.
B20: INEGI, Sistema de Cuentas Nacionales de México.

Sheet A.7.31
B5: A.7.31 PRESUPUESTO ADMINISTRADO POR EL CONAHCYT, 2013-2022
B6: Milones de pesos
B8: Año | C8: A precios corrientes | D8: A precios de 2022 | E8: Variación real %
B9: 2013 | C9: 18,421 | D9: 28,748 | E9: 28.3
B10: 2014 | C10: 23,903 | D10: 35,746 | E10: 24.3
B11: 2015 | C11: 25,109 | D11: 36,378 | E11: 1.8
B12: 2016 | C12: 25,180 | D12: 34,399 | E12: -5.4
B13: 2017 | C13: 21,399 | D13: 27,423 | E13: -20.3
B14: 2018 | C14: 21,512 | D14: 26,206 | E14: -4.4
B15: 2019 | C15: 19,583 | D15: 22,872 | E15: -12.7
B16: 2020 | C16: 19,847 | D16: 22,117 | E16: -3.3
B17: 2021 | C17: 20,262 | D17: 21,622 | E17: -2.2
B18: 2022 | C18: 22,564 | D18: 22,564 | E18: 4.4
B19: Fuente: SHCP, Cuenta de la Hacienda Pública Federal, 2013-2022.
B20: INEGI, Sistema de Cuentas Nacionales de México.

Sheet A.7.32
B5: A.7.32 PRESUPUESTO ADMINISTRADO POR EL CONAHCYT POR ACTIVIDAD, 2013-2022 1/
B6: Millones de pesos
B8: Año | C8: Investigación científica y desarrollo experimental | D8: Educación y enseñanza científica y técnica | E8: Servicios científicos y tecnológicos | F8: Innovación | G8: Total
B9: 2013 | C9: 9,884.6 | D9: 6,820.6 | E9: 573.8 | F9: 1,142.3 | G9: =SUM(C9:F9) -> 18,421.3
B10: 2014 | C10: 13,730.9 | D10: 7,834.5 | E10: 801.8 | F10: 1,536.3 | G10: 23,903.5
B11: 2015 | C11: 14,305.4 | D11: 8,369.0 | E11: 1,222.5 | F11: 1,212.4 | G11: 25,109.3
B12: 2016 | C12: 12,834.4 | D12: 9,433.6 | E12: 1,450.6 | F12: 1,461.9 | G12: 25,180.5
B13: 2017 | C13: 9,472.5 | D13: 9,835.8 | E13: 1,655.9 | F13: 434.4 | G13: 21,398.6
B14: 2018 | C14: 9,583.9 | D14: 9,634.6 | E14: 1,856.0 | F14: 438.0 | G14: 21,512.4
B15: 2019 | C15: 7,766.4 | D15: 9,958.6 | E15: 1,857.8 | F15: 0.0 | G15: 19,582.8
B16: 2020 | C16: 8,277.1 | D16: 9,836.6 | E16: 1,733.8 | F16: 0.0 | G16: 19,847.5
B17: 2021 | C17: 9,900.0 | D17: 9,926.1 | E17: 435.9 | F17: 0.0 | G17: 20,262.0
B18: 2022 | C18: 11,116.5 | D18: 10,972.4 | E18: 475.1 | F18: 0.0 | G18: 22,563.9
B19: 1/ Clasificación de acuerdo al Manual Frascati de la OCDE.
B20: Fuente: SHCP, Cuenta de la Hacienda Pública Federal, 2013-2022.

Sheet A.7.33
B5: A.7.33 PRESUPUESTO ADMINISTRADO POR EL CONAHCYT POR ACTIVIDAD, 2013-2022 1/
B6: Millones de pesos a precios de 2022
B8: Año | C8: Investigación científica y desarrollo experimental | D8: Educación y enseñanza científica y técnica | E8: Servicios científicos y tecnológicos | F8: Innovación | G8: Total
B9: 2012 | C9: =+'[2]5.32'!#REF!/'[2]5.1'!#REF!*100 ->  | D9: =+'[2]5.32'!#REF!/'[2]5.1'!#REF!*100 ->  | E9: =+'[2]5.32'!#REF!/'[2]5.1'!#REF!*100 ->  | F9: =+'[2]5.32'!#REF!/'[2]5.1'!#REF!*100 ->  | G9: =+'[2]5.32'!#REF!/'[2]5.1'!#REF!*100 -> 
B10: 2013 | C10: 15,425.9 | D10: 10,644.2 | E10: 895.5 | F10: 1,782.6 | G10: 28,748.3
B11: 2014 | C11: 20,533.7 | D11: 11,716.0 | E11: 1,199.0 | F11: 2,297.4 | G11: 35,746.2
B12: 2015 | C12: 20,725.5 | D12: 12,125.0 | E12: 1,771.1 | F12: 1,756.5 | G12: 36,378.0
B13: 2016 | C13: 17,533.0 | D13: 12,887.2 | E13: 1,981.6 | F13: 1,997.1 | G13: 34,398.9
B14: 2017 | C14: 12,139.2 | D14: 12,604.7 | E14: 2,122.0 | F14: 556.7 | G14: 27,422.7
B15: 2018 | C15: 11,674.9 | D15: 11,736.7 | E15: 2,260.9 | F15: 533.6 | G15: 26,206.2
B16: 2019 | C16: 9,070.9 | D16: 11,631.3 | E16: 2,169.9 | F16: 0 | G16: 22,872.1
B17: 2020 | C17: 9,223.8 | D17: 10,961.6 | E17: 1,932.1 | F17: 0 | G17: 22,117.5
B18: 2021 | C18: 10,564.5 | D18: 10,592.3 | E18: 465.2 | F18: 0 | G18: 21,622.0
B19: 2022 | C19: 11,116.5 | D19: 10,972.4 | E19: 475.1 | F19: 0 | G19: 22,563.9
B20: 1/ Clasificación de acuerdo al Manual Frascati de la OCDE.
B21: Fuentes: SHCP, Cuenta de la Hacienda Pública Federal, 2013-2022.
B22: INEGI, Sistema de Cuentas Nacionales de México.

Sheet A.8.1
B5: A.8.1 PRESUPUESTO ESTATAL EN CIENCIA, TECNOLOGÍA E INNOVACIÓN, 2009-2022
B6: Millones de pesos
B8: ENTIDAD FEDERATIVA | C8: 2009 | D8: 2010 | E8: 2011 | F8: 2012 | G8: 2013 | H8: 2014 | I8: 2015 | J8: 2016 | K8: 2017 | L8: 2018 | M8: 2019 | N8: 2020 | O8: 2021 | P8: 2022 | Q8: TOTAL 2009-2022
B9: AGUASCALIENTES | C9: 32 | D9: 35 | E9: 39 | F9: 19 | G9: 35 | H9: 39 | I9: 72 | J9: 66 | K9: 72 | L9: 85 | M9: 97 | N9: 91 | O9: 47 | P9: 47 | Q9: =SUM(C9:P9) -> 774
B10: BAJA CALIFORNIA | C10: 0 | D10: 10 | E10: 47 | F10: 35 | G10: 35 | H10: 39 | I10: 45 | J10: 104 | K10: 82 | L10: 90 | M10: 58 | N10: 68 | O10: 79 | P10: 171 | Q10: =SUM(C10:P10) -> 864
B11: BAJA CALIFORNIA SUR | C11: 0 | D11: 0 | E11: 58 | F11: 70 | G11: 7 | H11: 5 | I11: 5 | J11: 7 | K11: 6 | L11: 6 | M11: 568 | N11: 584 | O11: 588 | P11: 607 | Q11: 2,512
B12: CAMPECHE | C12: 2 | D12: 2 | E12: 132 | F12: 14 | G12: 23 | H12: 6 | I12: 47 | J12: 331 | K12: 66 | L12: 63 | M12: 50 | N12: 58 | O12: 130 | P12: 26 | Q12: 951
B13: CHIAPAS | C13: 40 | D13: 49 | E13: 52 | F13: 23 | G13: 45 | H13: 48 | I13: 126 | J13: 102 | K13: 70 | L13: 55 | M13: 67 | N13: 47 | O13: 47 | P13: 47 | Q13: 820
B14: CHIHUAHUA | C14: 61 | D14: 133 | E14: 148 | F14: 185 | G14: 192 | H14: 196 | I14: 420 | J14: 443 | K14: 547 | L14: 502 | M14: 717 | N14: 816 | O14: 1,370 | P14: 559 | Q14: 6,290
B15: CIUDAD DE MÉXICO | C15: 663 | D15: 777 | E15: 792 | F15: 610 | G15: 488 | H15: 614 | I15: 666 | J15: 693 | K15: 727 | L15: 737 | M15: 359 | N15: 410 | O15: 147 | P15: 65 | Q15: 7,748
B16: COAHUILA | C16: 21 | D16: 19 | E16: 19 | F16: 15 | G16: 36 | H16: 17 | I16: 35 | J16: 14 | K16: 14 | L16: 14 | M16: 169 | N16: 13 | O16: 10 | P16: 10 | Q16: 404
B17: COLIMA | C17: 0 | D17: 0 | E17: 7 | F17: 8 | G17: 13 | H17: 7 | I17: 14 | J17: 11 | K17: 45 | L17: 44 | M17: 27 | N17: 26 | O17: 20 | P17: 16 | Q17: 238
B18: DURANGO | C18: 25 | D18: 24 | E18: 21 | F18: 60 | G18: 64 | H18: 109 | I18: 116 | J18: 116 | K18: 116 | L18: 104 | M18: 287 | N18: 147 | O18: 120 | P18: 60 | Q18: 1,368
B19: GUANAJUATO | C19: 73 | D19: 47 | E19: 47 | F19: 48 | G19: 53 | H19: 65 | I19: 166 | J19: 146 | K19: 225 | L19: 289 | M19: 581 | N19: 640 | O19: 410 | P19: 493 | Q19: 3,281
B20: GUERRERO | C20: 2 | D20: 5 | E20: 32 | F20: 20 | G20: 3 | H20: 3 | I20: 3 | J20: 3 | K20: 4 | L20: 4 | M20: 4 | N20: 5 | O20: 4 | P20: 4 | Q20: 97
B21: HIDALGO | C21: 4 | D21: 4 | E21: 5 | F21: 5 | G21: 7 | H21: 9 | I21: 92 | J21: 168 | K21: 185 | L21: 136 | M21: 633 | N21: 122 | O21: 114 | P21: 106 | Q21: 1,593
B22: JALISCO | C22: 263 | D22: 217 | E22: 533 | F22: 366 | G22: 495 | H22: 544 | I22: 817 | J22: 891 | K22: 1,058 | L22: 1,025 | M22: 1,124 | N22: 1,193 | O22: 1,172 | P22: 1,538 | Q22: 11,235
B23: MÉXICO | C23: 262 | D23: 306 | E23: 336 | F23: 493 | G23: 493 | H23: 521 | I23: 766 | J23: 784 | K23: 1,119 | L23: 1,547 | M23: 701 | N23: 726 | O23: 685 | P23: 807 | Q23: 9,545
B24: MICHOACÁN | C24: 37 | D24: 54 | E24: 51 | F24: 53 | G24: 29 | H24: 20 | I24: 11 | J24: 611 | K24: 54 | L24: 30 | M24: 11 | N24: 22 | O24: 9 | P24: 19 | Q24: 1,013
B25: MORELOS | C25: 26 | D25: 26 | E25: 11 | F25: 11 | G25: 30 | H25: 22 | I25: 42 | J25: 52 | K25: 54 | L25: 34 | M25: 25 | N25: 12 | O25: 31 | P25: 0 | Q25: 376
B26: NAYARIT | C26: 34 | D26: 23 | E26: 63 | F26: 7 | G26: 16 | H26: 16 | I26: 22 | J26: 16 | K26: 7 | L26: 9 | M26: 11 | N26: 10 | O26: 10 | P26: 11 | Q26: 254
B27: NUEVO LEÓN | C27: 280 | D27: 364 | E27: 301 | F27: 347 | G27: 240 | H27: 221 | I27: 172 | J27: 178 | K27: 134 | L27: 160 | M27: 131 | N27: 84 | O27: 60 | P27: 40 | Q27: 2,711
B28: OAXACA | C28: 0 | D28: 0 | E28: 39 | F28: 15 | G28: 5 | H28: 13 | I28: 12 | J28: 176 | K28: 155 | L28: 535 | M28: 185 | N28: 205 | O28: 181 | P28: 182 | Q28: 1,702
B29: PUEBLA | C29: 5 | D29: 5 | E29: 6 | F29: 16 | G29: 40 | H29: 35 | I29: 64 | J29: 71 | K29: 53 | L29: 61 | M29: 119 | N29: 190 | O29: 118 | P29: 91 | Q29: 874
B30: QUERÉTARO | C30: 15 | D30: 15 | E30: 18 | F30: 19 | G30: 20 | H30: 21 | I30: 23 | J30: 22 | K30: 24 | L30: 26 | M30: 23 | N30: 23 | O30: 24 | P30: 25 | Q30: 297
B31: QUINTANA ROO | C31: 18 | D31: 18 | E31: 19 | F31: 21 | G31: 24 | H31: 20 | I31: 20 | J31: 22 | K31: 32 | L31: 38 | M31: 56 | N31: 50 | O31: 49 | P31: 49 | Q31: 436
B32: SAN LUIS POTOSÍ | C32: 9 | D32: 11 | E32: 12 | F32: 12 | G32: 13 | H32: 237 | I32: 17 | J32: 19 | K32: 237 | L32: 240 | M32: 23 | N32: 16 | O32: 16 | P32: 479 | Q32: 1,341
B33: SINALOA | C33: 84 | D33: 0 | E33: 0 | F33: 143 | G33: 181 | H33: 188 | I33: 191 | J33: 150 | K33: 178 | L33: 237 | M33: 216 | N33: 260 | O33: 259 | P33: 227 | Q33: 2,314
B34: SONORA | C34: 20 | D34: 5 | E34: 72 | F34: 89 | G34: 136 | H34: 6 | I34: 120 | J34: 41 | K34: 136 | L34: 95 | M34: 95 | N34: 111 | O34: 109 | P34: 140 | Q34: 1,174
B35: TABASCO | C35: 14 | D35: 16 | E35: 13 | F35: 17 | G35: 17 | H35: 18 | I35: 21 | J35: 29 | K35: 29 | L35: 81 | M35: 19 | N35: 18 | O35: 13 | P35: 14 | Q35: 320
B36: TAMAULIPAS | C36: 0 | D36: 0 | E36: 0 | F36: 0 | G36: 0 | H36: 0 | I36: 8 | J36: 8 | K36: 9 | L36: 22 | M36: 24 | N36: 20 | O36: 25 | P36: 20 | Q36: 136
B37: TLAXCALA | C37: 11 | D37: 11 | E37: 11 | F37: 11 | G37: 11 | H37: 11 | I37: 11 | J37: 11 | K37: 14 | L37: 15 | M37: 16 | N37: 16 | O37: 16 | P37: 16 | Q37: 185
B38: VERACRUZ | C38: 38 | D38: 39 | E38: 42 | F38: 42 | G38: 43 | H38: 59 | I38: 91 | J38: 129 | K38: 147 | L38: 97 | M38: 178 | N38: 215 | O38: 197 | P38: 196 | Q38: 1,513
B39: YUCATÁN | C39: 505 | D39: 18 | E39: 16 | F39: 13 | G39: 20 | H39: 4 | I39: 4 | J39: 19 | K39: 159 | L39: 150 | M39: 219 | N39: 74 | O39: 36 | P39: 598 | Q39: 1,836
B40: ZACATECAS | C40: 21 | D40: 12 | E40: 6 | F40: 74 | G40: 54 | H40: 45 | I40: 48 | J40: 80 | K40: 90 | L40: 87 | M40: 64 | N40: 116 | O40: 75 | P40: 40 | Q40: 811
B41: TOTAL | C41: 2,568 | D41: 2,245 | E41: 2,948 | F41: 2,861 | G41: 2,868 | H41: 3,160 | I41: 4,267 | J41: 5,512 | K41: 5,847 | L41: 6,614 | M41: 6,858 | N41: 6,391 | O41: 6,170 | P41: 6,703 | Q41: 65,013
B42: Fuente: Páginas Web de las 32 entidades federativas.- Presupuesto de Egresos Estatal 2009-2022.
B66: 1/ Datos preliminares.
B67: Fuente: Decretos de Presupuestos de Egresos de las 32 entidades federativas, 2009-2021.

Sheet A.8.2
B5: A.8.2 PRESUPUESTO ESTATAL EN CIENCIA, TECNOLOGÍA E INNOVACIÓN, 2009-2022
B6: Millones de pesos a precios de 2022
B8: ENTIDAD FEDERATIVA | C8: 2009 | D8: 2010 | E8: 2011 | F8: 2012 | G8: 2013 | H8: 2014 | I8: 2015 | J8: 2016 | K8: 2017 | L8: 2018 | M8: 2019 | N8: 2020 | O8: 2021 | P8: 2022 | Q8: TOTAL 2009-2022
B9: AGUASCALIENTES | C9: 58 | D9: 61 | E9: 64 | F9: 30 | G9: 54 | H9: 59 | I9: 104 | J9: 91 | K9: 92 | L9: 103 | M9: 114 | N9: 101 | O9: 50 | P9: 47 | Q9: 1,028
B10: BAJA CALIFORNIA | C10: 0 | D10: 18 | E10: 78 | F10: 56 | G10: 55 | H10: 59 | I10: 65 | J10: 142 | K10: 106 | L10: 110 | M10: 68 | N10: 75 | O10: 85 | P10: 171 | Q10: 1,086
B11: BAJA CALIFORNIA SUR | C11: 0 | D11: 0 | E11: 97 | F11: 111 | G11: 11 | H11: 7 | I11: 7 | J11: 9 | K11: 8 | L11: 7 | M11: 663 | N11: 651 | O11: 627 | P11: 607 | Q11: 2,807
B12: CAMPECHE | C12: 4 | D12: 4 | E12: 220 | F12: 22 | G12: 35 | H12: 9 | I12: 68 | J12: 452 | K12: 85 | L12: 77 | M12: 59 | N12: 65 | O12: 138 | P12: 26 | Q12: 1,264
B13: CHIAPAS | C13: 74 | D13: 87 | E13: 86 | F13: 37 | G13: 70 | H13: 72 | I13: 183 | J13: 140 | K13: 89 | L13: 67 | M13: 79 | N13: 52 | O13: 50 | P13: 47 | Q13: 1,133
B14: CHIHUAHUA | C14: 113 | D14: 233 | E14: 245 | F14: 294 | G14: 300 | H14: 293 | I14: 609 | J14: 605 | K14: 701 | L14: 611 | M14: 838 | N14: 910 | O14: 1,462 | P14: 559 | Q14: 7,773
B15: CIUDAD DE MÉXICO | C15: 1,214 | D15: 1,363 | E15: 1,314 | F15: 967 | G15: 762 | H15: 918 | I15: 965 | J15: 947 | K15: 931 | L15: 897 | M15: 420 | N15: 457 | O15: 157 | P15: 65 | Q15: 11,378
B16: COAHUILA | C16: 39 | D16: 32 | E16: 31 | F16: 24 | G16: 56 | H16: 26 | I16: 51 | J16: 19 | K16: 18 | L16: 17 | M16: 197 | N16: 14 | O16: 11 | P16: 10 | Q16: 544
B17: COLIMA | C17: 1 | D17: 1 | E17: 11 | F17: 12 | G17: 20 | H17: 10 | I17: 21 | J17: 15 | K17: 58 | L17: 53 | M17: 32 | N17: 29 | O17: 21 | P17: 16 | Q17: 300
B18: DURANGO | C18: 45 | D18: 43 | E18: 35 | F18: 94 | G18: 100 | H18: 162 | I18: 168 | J18: 159 | K18: 149 | L18: 127 | M18: 335 | N18: 164 | O18: 128 | P18: 60 | Q18: 1,769
B19: GUANAJUATO | C19: 134 | D19: 82 | E19: 77 | F19: 76 | G19: 83 | H19: 97 | I19: 240 | J19: 199 | K19: 289 | L19: 352 | M19: 678 | N19: 713 | O19: 437 | P19: 493 | Q19: 3,951
B20: GUERRERO | C20: 4 | D20: 9 | E20: 54 | F20: 32 | G20: 5 | H20: 5 | I20: 5 | J20: 4 | K20: 5 | L20: 5 | M20: 5 | N20: 5 | O20: 4 | P20: 4 | Q20: 145
B21: HIDALGO | C21: 7 | D21: 7 | E21: 9 | F21: 8 | G21: 11 | H21: 14 | I21: 133 | J21: 230 | K21: 237 | L21: 166 | M21: 740 | N21: 136 | O21: 122 | P21: 106 | Q21: 1,927
B22: JALISCO | C22: 481 | D22: 381 | E22: 884 | F22: 580 | G22: 772 | H22: 814 | I22: 1,183 | J22: 1,218 | K22: 1,355 | L22: 1,248 | M22: 1,313 | N22: 1,330 | O22: 1,250 | P22: 1,538 | Q22: 14,348
B23: MÉXICO | C23: 480 | D23: 537 | E23: 558 | F23: 783 | G23: 770 | H23: 779 | I23: 1,110 | J23: 1,071 | K23: 1,434 | L23: 1,884 | M23: 818 | N23: 809 | O23: 731 | P23: 807 | Q23: 12,570
B24: MICHOACÁN | C24: 68 | D24: 94 | E24: 85 | F24: 85 | G24: 45 | H24: 30 | I24: 17 | J24: 835 | K24: 69 | L24: 37 | M24: 13 | N24: 25 | O24: 10 | P24: 19 | Q24: 1,431
B25: MORELOS | C25: 48 | D25: 46 | E25: 18 | F25: 17 | G25: 47 | H25: 32 | I25: 60 | J25: 71 | K25: 69 | L25: 41 | M25: 29 | N25: 14 | O25: 33 | P25: 0 | Q25: 526
B26: NAYARIT | C26: 63 | D26: 41 | E26: 105 | F26: 11 | G26: 26 | H26: 25 | I26: 31 | J26: 22 | K26: 9 | L26: 10 | M26: 13 | N26: 11 | O26: 10 | P26: 11 | Q26: 386
B27: NUEVO LEÓN | C27: 513 | D27: 638 | E27: 500 | F27: 550 | G27: 375 | H27: 331 | I27: 249 | J27: 243 | K27: 171 | L27: 194 | M27: 153 | N27: 94 | O27: 64 | P27: 40 | Q27: 4,115
B28: OAXACA | C28: 0 | D28: 0 | E28: 65 | F28: 23 | G28: 7 | H28: 19 | I28: 17 | J28: 240 | K28: 198 | L28: 652 | M28: 217 | N28: 228 | O28: 193 | P28: 182 | Q28: 2,041
B29: PUEBLA | C29: 10 | D29: 9 | E29: 9 | F29: 26 | G29: 62 | H29: 52 | I29: 93 | J29: 97 | K29: 68 | L29: 74 | M29: 139 | N29: 212 | O29: 126 | P29: 91 | Q29: 1,067
B30: QUERÉTARO | C30: 28 | D30: 26 | E30: 29 | F30: 30 | G30: 31 | H30: 31 | I30: 34 | J30: 30 | K30: 31 | L30: 31 | M30: 26 | N30: 26 | O30: 26 | P30: 25 | Q30: 404
B31: QUINTANA ROO | C31: 33 | D31: 32 | E31: 32 | F31: 33 | G31: 37 | H31: 30 | I31: 30 | J31: 30 | K31: 41 | L31: 46 | M31: 65 | N31: 56 | O31: 53 | P31: 49 | Q31: 566
B32: SAN LUIS POTOSÍ | C32: 16 | D32: 20 | E32: 20 | F32: 20 | G32: 20 | H32: 354 | I32: 25 | J32: 26 | K32: 304 | L32: 292 | M32: 27 | N32: 18 | O32: 17 | P32: 479 | Q32: 1,636
B33: SINALOA | C33: 154 | D33: 0 | E33: 0 | F33: 227 | G33: 282 | H33: 282 | I33: 276 | J33: 205 | K33: 228 | L33: 288 | M33: 252 | N33: 290 | O33: 277 | P33: 227 | Q33: 2,988
B34: SONORA | C34: 37 | D34: 8 | E34: 120 | F34: 141 | G34: 213 | H34: 9 | I34: 173 | J34: 56 | K34: 174 | L34: 116 | M34: 111 | N34: 123 | O34: 116 | P34: 140 | Q34: 1,537
B35: TABASCO | C35: 26 | D35: 28 | E35: 22 | F35: 27 | G35: 27 | H35: 28 | I35: 30 | J35: 39 | K35: 37 | L35: 99 | M35: 22 | N35: 21 | O35: 14 | P35: 14 | Q35: 434
B36: TAMAULIPAS | C36: 0 | D36: 0 | E36: 0 | F36: 0 | G36: 0 | H36: 0 | I36: 12 | J36: 11 | K36: 12 | L36: 27 | M36: 28 | N36: 23 | O36: 26 | P36: 20 | Q36: 158
B37: TLAXCALA | C37: 20 | D37: 19 | E37: 19 | F37: 18 | G37: 18 | H37: 17 | I37: 17 | J37: 16 | K37: 18 | L37: 19 | M37: 18 | N37: 18 | O37: 18 | P37: 16 | Q37: 251
B38: VERACRUZ | C38: 70 | D38: 68 | E38: 70 | F38: 67 | G38: 66 | H38: 88 | I38: 132 | J38: 176 | K38: 189 | L38: 118 | M38: 208 | N38: 240 | O38: 210 | P38: 196 | Q38: 1,898
B39: YUCATÁN | C39: 924 | D39: 31 | E39: 26 | F39: 21 | G39: 31 | H39: 6 | I39: 6 | J39: 26 | K39: 204 | L39: 183 | M39: 256 | N39: 83 | O39: 39 | P39: 598 | Q39: 2,435
B40: ZACATECAS | C40: 38 | D40: 21 | E40: 10 | F40: 118 | G40: 84 | H40: 67 | I40: 69 | J40: 109 | K40: 115 | L40: 106 | M40: 75 | N40: 130 | O40: 80 | P40: 40 | Q40: 1,061
B41: TOTAL | C41: 4,700 | D41: 3,937 | E41: 4,894 | F41: 4,541 | G41: 4,476 | H41: 4,725 | I41: 6,182 | J41: 7,530 | K41: 7,493 | L41: 8,058 | M41: 8,010 | N41: 7,122 | O41: 6,584 | P41: 6,703 | Q41: 84,955
B42: Fuente: Páginas Web de las 32 entidades federativas.- Presupuesto de Egresos Estatal 2009-2022.

Sheet A.8.3
B5: A.8.3 PRESUPUESTO DE EGRESOS ESTATAL 2009-2022
B6: Millones de pesos
B8: ENTIDAD FEDERATIVA | C8: 2009 | D8: 2010 | E8: 2011 | F8: 2012 | G8: 2013 | H8: 2014 | I8: 2015 | J8: 2016 | K8: 2017 | L8: 2018 | M8: 2019 | N8: 2020 | O8: 2021 | P8: 2022 | Q8: TOTAL 2009-2022
B9: AGUASCALIENTES | C9: 11,467 | D9: 11,644 | E9: 12,521 | F9: 13,739 | G9: 14,576 | H9: 15,097 | I9: 17,015 | J9: 18,079 | K9: 19,417 | L9: 20,960 | M9: 25,805 | N9: 27,020 | O9: 26,478 | P9: 28,233 | Q9: 262,051
B10: BAJA CALIFORNIA | C10: 28,169 | D10: 30,614 | E10: 33,199 | F10: 35,770 | G10: 37,110 | H10: 39,623 | I10: 33,054 | J10: 44,402 | K10: 44,947 | L10: 50,159 | M10: 54,934 | N10: 53,912 | O10: 58,525 | P10: 66,940 | Q10: 611,357
B11: BAJA CALIFORNIA SUR | C11: 7,484 | D11: 8,057 | E11: 8,675 | F11: 9,869 | G11: 9,106 | H11: 9,877 | I11: 12,994 | J11: 12,647 | K11: 13,910 | L11: 16,416 | M11: 16,910 | N11: 18,402 | O11: 17,271 | P11: 18,665 | Q11: 180,283
B12: CAMPECHE | C12: 12,021 | D12: 12,488 | E12: 13,562 | F12: 14,658 | G12: 15,647 | H12: 17,461 | I12: 18,782 | J12: 19,642 | K12: 19,278 | L12: 19,591 | M12: 21,180 | N12: 21,983 | O12: 21,454 | P12: 22,350 | Q12: 250,097
B13: CHIAPAS | C13: 46,956 | D13: 55,437 | E13: 57,839 | F13: 62,522 | G13: 66,870 | H13: 78,062 | I13: 80,393 | J13: 81,215 | K13: 81,891 | L13: 89,270 | M13: 91,845 | N13: 95,123 | O13: 96,180 | P13: 104,576 | Q13: 1,088,178
B14: CHIHUAHUA | C14: 35,410 | D14: 37,173 | E14: 41,826 | F14: 45,488 | G14: 50,175 | H14: 53,800 | I14: 58,000 | J14: 62,000 | K14: 61,955 | L14: 66,850 | M14: 72,217 | N14: 78,377 | O14: 74,225 | P14: 81,353 | Q14: 818,848
B15: CIUDAD DE MÉXICO | C15: 122,626 | D15: 129,434 | E15: 137,013 | F15: 138,043 | G15: 144,143 | H15: 156,838 | I15: 169,223 | J15: 181,334 | K15: 198,966 | L15: 213,265 | M15: 234,016 | N15: 238,976 | O15: 217,962 | P15: 234,001 | Q15: 2,515,839
B16: COAHUILA | C16: 24,969 | D16: 29,712 | E16: 31,165 | F16: 32,296 | G16: 35,161 | H16: 38,166 | I16: 41,807 | J16: 43,763 | K16: 43,698 | L16: 47,629 | M16: 49,370 | N16: 49,735 | O16: 52,670 | P16: 56,888 | Q16: 577,030
B17: COLIMA | C17: 6,700 | D17: 6,850 | E17: 7,457 | F17: 8,187 | G17: 8,550 | H17: 10,880 | I17: 12,653 | J17: 13,340 | K17: 15,518 | L17: 16,730 | M17: 18,138 | N17: 17,024 | O17: 17,546 | P17: 18,565 | Q17: 178,138
B18: DURANGO | C18: 16,126 | D18: 17,882 | E18: 18,506 | F18: 18,803 | G18: 20,281 | H18: 26,765 | I18: 29,323 | J18: 30,729 | K18: 30,307 | L18: 31,649 | M18: 31,681 | N18: 33,131 | O18: 33,275 | P18: 35,820 | Q18: 374,278
B19: GUANAJUATO | C19: 40,359 | D19: 40,523 | E19: 44,184 | F19: 46,922 | G19: 47,552 | H19: 62,155 | I19: 67,157 | J19: 71,435 | K19: 75,299 | L19: 81,236 | M19: 83,416 | N19: 87,301 | O19: 89,299 | P19: 92,670 | Q19: 929,507
B20: GUERRERO | C20: 30,903 | D20: 32,923 | E20: 36,878 | F20: 38,186 | G20: 41,102 | H20: 41,808 | I20: 43,573 | J20: 49,247 | K20: 50,134 | L20: 55,522 | M20: 59,875 | N20: 61,806 | O20: 61,642 | P20: 67,691 | Q20: 671,288
B21: HIDALGO | C21: 21,224 | D21: 21,712 | E21: 23,473 | F21: 27,689 | G21: 27,137 | H21: 28,453 | I21: 31,930 | J21: 34,144 | K21: 38,795 | L21: 42,147 | M21: 46,272 | N21: 50,243 | O21: 50,273 | P21: 54,893 | Q21: 498,387
B22: JALISCO | C22: 65,000 | D22: 61,184 | E22: 65,840 | F22: 74,549 | G22: 77,668 | H22: 83,292 | I22: 87,695 | J22: 90,466 | K22: 100,924 | L22: 108,309 | M22: 116,946 | N22: 123,013 | O22: 124,281 | P22: 137,287 | Q22: 1,316,454
B23: MÉXICO | C23: 124,359 | D23: 134,029 | E23: 148,343 | F23: 165,643 | G23: 174,408 | H23: 195,304 | I23: 211,944 | J23: 221,286 | K23: 260,319 | L23: 280,706 | M23: 291,059 | N23: 301,185 | O23: 303,120 | P23: 322,125 | Q23: 3,133,831
B24: MICHOACÁN | C24: 38,714 | D24: 41,151 | E24: 44,571 | F24: 48,277 | G24: 56,718 | H24: 57,641 | I24: 57,804 | J24: 59,034 | K24: 61,798 | L24: 65,605 | M24: 70,018 | N24: 75,915 | O24: 75,617 | P24: 81,546 | Q24: 834,409
B25: MORELOS | C25: 15,006 | D25: 14,699 | E25: 16,170 | F25: 17,789 | G25: 21,180 | H25: 19,454 | I25: 18,291 | J25: 20,492 | K25: 21,516 | L25: 22,792 | M25: 24,653 | N25: 26,801 | O25: 27,145 | P25: 0 | Q25: 265,988
B26: NAYARIT | C26: 12,197 | D26: 12,579 | E26: 14,505 | F26: 19,326 | G26: 15,528 | H26: 15,956 | I26: 17,731 | J26: 19,361 | K26: 19,645 | L26: 21,036 | M26: 23,223 | N26: 23,725 | O26: 23,542 | P26: 25,082 | Q26: 263,437
B27: NUEVO LEÓN | C27: 42,690 | D27: 46,627 | E27: 56,790 | F27: 59,675 | G27: 62,115 | H27: 68,096 | I27: 75,442 | J27: 77,077 | K27: 89,589 | L27: 95,656 | M27: 101,459 | N27: 105,145 | O27: 107,167 | P27: 118,194 | Q27: 1,105,723
B28: OAXACA | C28: 35,602 | D28: 38,856 | E28: 42,051 | F28: 46,223 | G28: 48,021 | H28: 51,731 | I28: 57,182 | J28: 60,495 | K28: 62,219 | L28: 67,020 | M28: 69,787 | N28: 76,689 | O28: 76,194 | P28: 83,808 | Q28: 815,879
B29: PUEBLA | C29: 43,316 | D29: 48,809 | E29: 52,535 | F29: 54,497 | G29: 58,572 | H29: 65,947 | I29: 67,689 | J29: 72,322 | K29: 78,367 | L29: 85,882 | M29: 91,735 | N29: 95,016 | O29: 96,525 | P29: 104,094 | Q29: 1,015,307
B30: QUERÉTARO | C30: 6,223 | D30: 17,570 | E30: 19,120 | F30: 20,479 | G30: 22,053 | H30: 24,097 | I30: 26,564 | J30: 29,018 | K30: 31,011 | L30: 40,107 | M30: 37,582 | N30: 40,685 | O30: 39,326 | P30: 45,898 | Q30: 399,735
B31: QUINTANA ROO | C31: 13,132 | D31: 16,735 | E31: 15,557 | F31: 19,655 | G31: 22,391 | H31: 20,769 | I31: 37,963 | J31: 24,486 | K31: 26,417 | L31: 28,416 | M31: 34,579 | N31: 35,193 | O31: 33,861 | P31: 34,611 | Q31: 363,765
B32: SAN LUIS POTOSÍ | C32: 23,966 | D32: 25,435 | E32: 26,914 | F32: 28,695 | G32: 31,006 | H32: 41,581 | I32: 37,516 | J32: 39,539 | K32: 41,581 | L32: 43,835 | M32: 47,853 | N32: 50,228 | O32: 48,988 | P32: 53,122 | Q32: 540,258
B33: SINALOA | C33: 27,871 | D33: 30,074 | E33: 32,390 | F33: 36,901 | G33: 38,372 | H33: 39,637 | I33: 43,130 | J33: 44,364 | K33: 47,984 | L33: 51,874 | M33: 54,073 | N33: 55,547 | O33: 56,012 | P33: 58,139 | Q33: 616,370
B34: SONORA | C34: 31,498 | D34: 32,788 | E34: 34,605 | F34: 36,861 | G34: 42,592 | H34: 46,443 | I34: 48,594 | J34: 54,629 | K34: 56,452 | L34: 64,017 | M34: 68,432 | N34: 70,262 | O34: 67,515 | P34: 67,931 | Q34: 722,619
B35: TABASCO | C35: 29,298 | D35: 29,491 | E35: 31,902 | F35: 34,645 | G35: 36,567 | H35: 39,653 | I35: 43,462 | J35: 45,481 | K35: 46,843 | L35: 48,269 | M35: 51,176 | N35: 52,964 | O35: 51,099 | P35: 55,954 | Q35: 596,806
B36: TAMAULIPAS | C36: 27,330 | D36: 28,563 | E36: 31,107 | F36: 32,092 | G36: 34,670 | H36: 37,109 | I36: 41,668 | J36: 43,653 | K36: 46,329 | L36: 49,859 | M36: 54,933 | N36: 59,514 | O36: 63,580 | P36: 65,090 | Q36: 615,497
B37: TLAXCALA | C37: 8,679 | D37: 9,136 | E37: 11,027 | F37: 11,574 | G37: 11,908 | H37: 12,242 | I37: 12,676 | J37: 14,262 | K37: 17,051 | L37: 18,136 | M37: 18,705 | N37: 20,779 | O37: 20,668 | P37: 22,620 | Q37: 209,463
B38: VERACRUZ | C38: 62,290 | D38: 70,250 | E38: 81,965 | F38: 86,676 | G38: 90,043 | H38: 94,972 | I38: 102,574 | J38: 98,535 | K38: 101,989 | L38: 113,655 | M38: 128,362 | N38: 129,535 | O38: 128,421 | P38: 135,763 | Q38: 1,425,028
B39: YUCATÁN | C39: 16,741 | D39: 17,108 | E39: 25,423 | F39: 27,168 | G39: 28,860 | H39: 33,033 | I39: 35,812 | J39: 36,939 | K39: 39,923 | L39: 40,813 | M39: 40,587 | N39: 44,096 | O39: 41,136 | P39: 46,038 | Q39: 473,676
B40: ZACATECAS | C40: 16,365 | D40: 17,943 | E40: 19,185 | F40: 24,975 | G40: 22,579 | H40: 24,309 | I40: 25,914 | J40: 27,552 | K40: 35,031 | L40: 30,463 | M40: 29,833 | N40: 29,965 | O40: 30,226 | P40: 33,735 | Q40: 368,075
B41: TOTAL | C41: 1,044,691 | D41: 1,127,478 | E41: 1,236,297 | F41: 1,337,873 | G41: 1,412,661 | H41: 1,550,250 | I41: 1,665,556 | J41: 1,740,970 | K41: 1,879,102 | L41: 2,027,874 | M41: 2,160,654 | N41: 2,249,290 | O41: 2,231,224 | P41: 2,373,684 | Q41: 24,037,603
B42: Fuente: Páginas Web de las 32 entidades federativas.- Presupuesto de Egresos Estatal 2009-2022.
B96: 1/ Datos preliminares.
B97: Fuente: Decretos de Presupuestos de Egresos de las 32 entidades federativas, 2009-2021.

Sheet A.8.4
B5: A.8.4 PRESUPUESTO DE EGRESO ESTATAL 2009-2022
B6: Millones de pesos a precios de 2022
B8: ENTIDAD FEDERATIVA | C8: 2009 | D8: 2010 | E8: 2011 | F8: 2012 | G8: 2013 | H8: 2014 | I8: 2015 | J8: 2016 | K8: 2017 | L8: 2018 | M8: 2019 | N8: 2020 | O8: 2021 | P8: 2022 | Q8: TOTAL 2009-2022
B9: AGUASCALIENTES | C9: 20,990 | D9: 20,419 | E9: 20,785 | F9: 21,807 | G9: 22,748 | H9: 22,576 | I9: 24,652 | J9: 24,698 | K9: 24,884 | L9: 25,533 | M9: 30,139 | N9: 30,110 | O9: 28,255 | P9: 28,233 | Q9: 345,828
B10: BAJA CALIFORNIA | C10: 51,562 | D10: 53,686 | E10: 55,110 | F10: 56,775 | G10: 57,914 | H10: 59,254 | I10: 47,888 | J10: 60,658 | K10: 57,600 | L10: 61,103 | M10: 64,161 | N10: 60,078 | O10: 62,453 | P10: 66,940 | Q10: 815,181
B11: BAJA CALIFORNIA SUR | C11: 13,700 | D11: 14,129 | E11: 14,400 | F11: 15,664 | G11: 14,211 | H11: 14,771 | I11: 18,825 | J11: 17,277 | K11: 17,826 | L11: 19,998 | M11: 19,751 | N11: 20,507 | O11: 18,430 | P11: 18,665 | Q11: 238,152
B12: CAMPECHE | C12: 22,004 | D12: 21,899 | E12: 22,513 | F12: 23,266 | G12: 24,419 | H12: 26,111 | I12: 27,212 | J12: 26,833 | K12: 24,705 | L12: 23,866 | M12: 24,737 | N12: 24,497 | O12: 22,894 | P12: 22,350 | Q12: 337,306
B13: CHIAPAS | C13: 85,952 | D13: 97,215 | E13: 96,011 | F13: 99,236 | G13: 104,357 | H13: 116,736 | I13: 116,473 | J13: 110,947 | K13: 104,945 | L13: 108,748 | M13: 107,272 | N13: 106,003 | O13: 102,636 | P13: 104,576 | Q13: 1,461,107
B14: CHIHUAHUA | C14: 64,817 | D14: 65,188 | E14: 69,430 | F14: 72,200 | G14: 78,302 | H14: 80,455 | I14: 84,030 | J14: 84,698 | K14: 79,396 | L14: 81,436 | M14: 84,347 | N14: 87,341 | O14: 79,207 | P14: 81,353 | Q14: 1,092,199
B15: CIUDAD DE MÉXICO | C15: 224,465 | D15: 226,977 | E15: 227,438 | F15: 219,106 | G15: 224,949 | H15: 234,541 | I15: 245,168 | J15: 247,720 | K15: 254,979 | L15: 259,797 | M15: 273,323 | N15: 266,308 | O15: 232,592 | P15: 234,001 | Q15: 3,371,362
B16: COAHUILA | C16: 45,705 | D16: 52,103 | E16: 51,733 | F16: 51,262 | G16: 54,872 | H16: 57,076 | I16: 60,569 | J16: 59,784 | K16: 56,000 | L16: 58,021 | M16: 57,662 | N16: 55,424 | O16: 56,205 | P16: 56,888 | Q16: 773,305
B17: COLIMA | C17: 12,264 | D17: 12,012 | E17: 12,378 | F17: 12,995 | G17: 13,344 | H17: 16,270 | I17: 18,332 | J17: 18,224 | K17: 19,886 | L17: 20,381 | M17: 21,184 | N17: 18,971 | O17: 18,724 | P17: 18,565 | Q17: 233,529
B18: DURANGO | C18: 29,518 | D18: 31,359 | E18: 30,720 | F18: 29,844 | G18: 31,650 | H18: 40,026 | I18: 42,483 | J18: 41,979 | K18: 38,839 | L18: 38,554 | M18: 37,003 | N18: 36,921 | O18: 35,508 | P18: 35,820 | Q18: 500,222
B19: GUANAJUATO | C19: 73,876 | D19: 71,062 | E19: 73,344 | F19: 74,477 | G19: 74,209 | H19: 92,949 | I19: 97,296 | J19: 97,587 | K19: 96,498 | L19: 98,961 | M19: 97,427 | N19: 97,286 | O19: 95,292 | P19: 92,670 | Q19: 1,232,932
B20: GUERRERO | C20: 56,567 | D20: 57,733 | E20: 61,216 | F20: 60,610 | G20: 64,144 | H20: 62,521 | I20: 63,128 | J20: 67,276 | K20: 64,247 | L20: 67,636 | M20: 69,932 | N20: 68,875 | O20: 65,779 | P20: 67,691 | Q20: 897,356
B21: HIDALGO | C21: 38,851 | D21: 38,075 | E21: 38,965 | F21: 43,949 | G21: 42,351 | H21: 42,550 | I21: 46,260 | J21: 46,644 | K21: 49,716 | L21: 51,343 | M21: 54,044 | N21: 55,989 | O21: 53,648 | P21: 54,893 | Q21: 657,278
B22: JALISCO | C22: 118,981 | D22: 107,294 | E22: 109,294 | F22: 118,327 | G22: 121,208 | H22: 124,558 | I22: 127,051 | J22: 123,585 | K22: 129,336 | L22: 131,941 | M22: 136,589 | N22: 137,083 | O22: 132,623 | P22: 137,287 | Q22: 1,755,155
B23: MÉXICO | C23: 227,637 | D23: 235,036 | E23: 246,246 | F23: 262,913 | G23: 272,181 | H23: 292,065 | I23: 307,062 | J23: 302,297 | K23: 333,604 | L23: 341,953 | M23: 339,948 | N23: 335,632 | O23: 323,465 | P23: 322,125 | Q23: 4,142,165
B24: MICHOACÁN | C24: 70,866 | D24: 72,162 | E24: 73,987 | F24: 76,627 | G24: 88,514 | H24: 86,199 | I24: 83,746 | J24: 80,646 | K24: 79,195 | L24: 79,920 | M24: 81,778 | N24: 84,597 | O24: 80,692 | P24: 81,546 | Q24: 1,120,475
B25: MORELOS | C25: 27,469 | D25: 25,777 | E25: 26,842 | F25: 28,236 | G25: 33,053 | H25: 29,092 | I25: 26,499 | J25: 27,994 | K25: 27,574 | L25: 27,765 | M25: 28,794 | N25: 29,866 | O25: 28,967 | P25: 0 | Q25: 367,927
B26: NAYARIT | C26: 22,326 | D26: 22,058 | E26: 24,078 | F26: 30,676 | G26: 24,233 | H26: 23,862 | I26: 25,688 | J26: 26,450 | K26: 25,176 | L26: 25,626 | M26: 27,124 | N26: 26,438 | O26: 25,123 | P26: 25,082 | Q26: 353,939
B27: NUEVO LEÓN | C27: 78,144 | D27: 81,766 | E27: 94,270 | F27: 94,718 | G27: 96,937 | H27: 101,833 | I27: 109,299 | J27: 105,295 | K27: 114,811 | L27: 116,527 | M27: 118,501 | N27: 117,171 | O27: 114,360 | P27: 118,194 | Q27: 1,461,825
B28: OAXACA | C28: 65,169 | D28: 68,139 | E28: 69,803 | F28: 73,367 | G28: 74,941 | H28: 77,360 | I28: 82,845 | J28: 82,642 | K28: 79,735 | L28: 81,643 | M28: 81,508 | N28: 85,460 | O28: 81,308 | P28: 83,808 | Q28: 1,087,730
B29: PUEBLA | C29: 79,290 | D29: 85,592 | E29: 87,206 | F29: 86,499 | G29: 91,407 | H29: 98,619 | I29: 98,067 | J29: 98,799 | K29: 100,429 | L29: 104,620 | M29: 107,144 | N29: 105,884 | O29: 103,004 | P29: 104,094 | Q29: 1,350,655
B30: QUERÉTARO | C30: 11,391 | D30: 30,810 | E30: 31,739 | F30: 32,505 | G30: 34,416 | H30: 36,036 | I30: 38,486 | J30: 39,642 | K30: 39,741 | L30: 48,858 | M30: 43,895 | N30: 45,339 | O30: 41,966 | P30: 45,898 | Q30: 520,722
B31: QUINTANA ROO | C31: 24,038 | D31: 29,348 | E31: 25,825 | F31: 31,196 | G31: 34,943 | H31: 31,059 | I31: 55,001 | J31: 33,450 | K31: 33,853 | L31: 34,616 | M31: 40,388 | N31: 39,218 | O31: 36,134 | P31: 34,611 | Q31: 483,678
B32: SAN LUIS POTOSÍ | C32: 43,869 | D32: 44,603 | E32: 44,676 | F32: 45,546 | G32: 48,387 | H32: 62,182 | I32: 54,353 | J32: 54,015 | K32: 53,287 | L32: 53,399 | M32: 55,890 | N32: 55,973 | O32: 52,276 | P32: 53,122 | Q32: 721,578
B33: SINALOA | C33: 51,018 | D33: 52,739 | E33: 53,767 | F33: 58,570 | G33: 59,883 | H33: 59,275 | I33: 62,487 | J33: 60,606 | K33: 61,492 | L33: 63,193 | M33: 63,156 | N33: 61,900 | O33: 59,772 | P33: 58,139 | Q33: 825,996
B34: SONORA | C34: 57,657 | D34: 57,497 | E34: 57,443 | F34: 58,507 | G34: 66,469 | H34: 69,453 | I34: 70,403 | J34: 74,628 | K34: 72,344 | L34: 77,985 | M34: 79,927 | N34: 78,297 | O34: 72,047 | P34: 67,931 | Q34: 960,587
B35: TABASCO | C35: 53,630 | D35: 51,716 | E35: 52,957 | F35: 54,990 | G35: 57,066 | H35: 59,298 | I35: 62,967 | J35: 62,131 | K35: 60,031 | L35: 58,801 | M35: 59,772 | N35: 59,022 | O35: 54,529 | P35: 55,954 | Q35: 802,864
B36: TAMAULIPAS | C36: 50,026 | D36: 50,089 | E36: 51,637 | F36: 50,938 | G36: 54,105 | H36: 55,494 | I36: 60,369 | J36: 59,633 | K36: 59,372 | L36: 60,737 | M36: 64,160 | N36: 66,320 | O36: 67,848 | P36: 65,090 | Q36: 815,820
B37: TLAXCALA | C37: 15,887 | D37: 16,021 | E37: 18,304 | F37: 18,370 | G37: 18,584 | H37: 18,307 | I37: 18,365 | J37: 19,483 | K37: 21,852 | L37: 22,093 | M37: 21,847 | N37: 23,156 | O37: 22,055 | P37: 22,620 | Q37: 276,944
B38: VERACRUZ | C38: 114,021 | D38: 123,191 | E38: 136,060 | F38: 137,575 | G38: 140,520 | H38: 142,025 | I38: 148,608 | J38: 134,608 | K38: 130,700 | L38: 138,453 | M38: 149,923 | N38: 144,350 | O38: 137,040 | P38: 135,763 | Q38: 1,912,837
B39: YUCATÁN | C39: 30,644 | D39: 30,000 | E39: 42,202 | F39: 43,121 | G39: 45,039 | H39: 49,399 | I39: 51,884 | J39: 50,463 | K39: 51,162 | L39: 49,718 | M39: 47,404 | N39: 49,140 | O39: 43,897 | P39: 46,038 | Q39: 630,110
B40: ZACATECAS | C40: 29,956 | D40: 31,465 | E40: 31,846 | F40: 39,642 | G40: 35,236 | H40: 36,352 | I40: 37,544 | J40: 37,639 | K40: 44,892 | L40: 37,110 | M40: 34,844 | N40: 33,392 | O40: 32,255 | P40: 33,735 | Q40: 495,909
B41: TOTAL | C41: 1,912,288 | D41: 1,977,162 | E41: 2,052,224 | F41: 2,123,513 | G41: 2,204,594 | H41: 2,318,305 | I41: 2,413,038 | J41: 2,378,329 | K41: 2,408,104 | L41: 2,470,334 | M41: 2,523,574 | N41: 2,506,544 | O41: 2,380,981 | P41: 2,373,684 | Q41: 32,042,676
B42: Fuente: Páginas Web de las 32 entidades federativas.- Presupuesto de Egresos Estatal 2009-2022.
B82: 1/ Datos preliminares.
B83: Fuente: Decretos de Presupuestos de Egresos de las 32 entidades federativas, 2009-2021.

Sheet A.8.5
B5: A.8.5 PROPORCIÓN DEL PRESUPUESTO ESTATAL DESTINADO A CIENCIA, TECNOLOGÍA E INNOVACIÓN, 2009-2022
B6: Porcentaje
B8: ENTIDAD FEDERATIVA | C8: 2009 | D8: 2010 | E8: 2011 | F8: 2012 | G8: 2013 | H8: 2014 | I8: 2015 | J8: 2016 | K8: 2017 | L8: 2018 | M8: 2019 | N8: 2020 | O8: 2021 | P8: 2022 | Q8: Total 2009-2022
B9: AGUASCALIENTES | C9: 0.28 | D9: 0.30 | E9: 0.31 | F9: 0.14 | G9: 0.24 | H9: 0.26 | I9: 0.42 | J9: 0.37 | K9: 0.37 | L9: 0.41 | M9: 0.38 | N9: 0.34 | O9: 0.18 | P9: 0.17 | Q9: 0.30
B10: BAJA CALIFORNIA | C10: 0 | D10: 0.03 | E10: 0.14 | F10: 0.10 | G10: 0.09 | H10: 0.10 | I10: 0.14 | J10: 0.23 | K10: 0.18 | L10: 0.18 | M10: 0.11 | N10: 0.13 | O10: 0.14 | P10: 0.25 | Q10: 0.14
B11: BAJA CALIFORNIA SUR | C11: 0 | D11: 0 | E11: 0.67 | F11: 0.71 | G11: 0.08 | H11: 0.05 | I11: 0.04 | J11: 0.05 | K11: 0.04 | L11: 0.04 | M11: 3.36 | N11: 3.17 | O11: 3.40 | P11: 3.25 | Q11: 1.39
B12: CAMPECHE | C12: 0.02 | D12: 0.02 | E12: 0.98 | F12: 0.09 | G12: 0.14 | H12: 0.04 | I12: 0.25 | J12: 1.68 | K12: 0.34 | L12: 0.32 | M12: 0.24 | N12: 0.26 | O12: 0.60 | P12: 0.12 | Q12: 0.38
B13: CHIAPAS | C13: 0.09 | D13: 0.09 | E13: 0.09 | F13: 0.04 | G13: 0.07 | H13: 0.06 | I13: 0.16 | J13: 0.13 | K13: 0.08 | L13: 0.06 | M13: 0.07 | N13: 0.05 | O13: 0.05 | P13: 0.05 | Q13: 0.08
B14: CHIHUAHUA | C14: 0.17 | D14: 0.36 | E14: 0.35 | F14: 0.41 | G14: 0.38 | H14: 0.36 | I14: 0.72 | J14: 0.71 | K14: 0.88 | L14: 0.75 | M14: 0.99 | N14: 1.04 | O14: 1.85 | P14: 0.69 | Q14: 0.77
B15: CIUDAD DE MÉXICO | C15: 0.54 | D15: 0.60 | E15: 0.58 | F15: 0.44 | G15: 0.34 | H15: 0.39 | I15: 0.39 | J15: 0.38 | K15: 0.37 | L15: 0.35 | M15: 0.15 | N15: 0.17 | O15: 0.07 | P15: 0.03 | Q15: 0.31
B16: COAHUILA | C16: 0.09 | D16: 0.06 | E16: 0.06 | F16: 0.05 | G16: 0.10 | H16: 0.05 | I16: 0.08 | J16: 0.03 | K16: 0.03 | L16: 0.03 | M16: 0.34 | N16: 0.03 | O16: 0.02 | P16: 0.02 | Q16: 0.07
B17: COLIMA | C17: 0.01 | D17: 0.01 | E17: 0.09 | F17: 0.09 | G17: 0.15 | H17: 0.06 | I17: 0.11 | J17: 0.08 | K17: 0.29 | L17: 0.26 | M17: 0.15 | N17: 0.16 | O17: 0.11 | P17: 0.09 | Q17: 0.13
B18: DURANGO | C18: 0.15 | D18: 0.14 | E18: 0.11 | F18: 0.32 | G18: 0.31 | H18: 0.41 | I18: 0.40 | J18: 0.38 | K18: 0.38 | L18: 0.33 | M18: 0.91 | N18: 0.44 | O18: 0.36 | P18: 0.17 | Q18: 0.37
B19: GUANAJUATO | C19: 0.18 | D19: 0.12 | E19: 0.11 | F19: 0.10 | G19: 0.11 | H19: 0.10 | I19: 0.25 | J19: 0.20 | K19: 0.30 | L19: 0.36 | M19: 0.70 | N19: 0.73 | O19: 0.46 | P19: 0.53 | Q19: 0.35
B20: GUERRERO | C20: 0.01 | D20: 0.02 | E20: 0.09 | F20: 0.05 | G20: 0.01 | H20: 0.01 | I20: 0.01 | J20: 0.01 | K20: 0.01 | L20: 0.01 | M20: 0.01 | N20: 0.01 | O20: 0.01 | P20: 0.01 | Q20: 0.01
B21: HIDALGO | C21: 0.02 | D21: 0.02 | E21: 0.02 | F21: 0.02 | G21: 0.03 | H21: 0.03 | I21: 0.29 | J21: 0.49 | K21: 0.48 | L21: 0.32 | M21: 1.37 | N21: 0.24 | O21: 0.23 | P21: 0.19 | Q21: 0.32
B22: JALISCO | C22: 0.40 | D22: 0.35 | E22: 0.81 | F22: 0.49 | G22: 0.64 | H22: 0.65 | I22: 0.93 | J22: 0.99 | K22: 1.05 | L22: 0.95 | M22: 0.96 | N22: 0.97 | O22: 0.94 | P22: 1.12 | Q22: 0.85
B23: MÉXICO | C23: 0.21 | D23: 0.23 | E23: 0.23 | F23: 0.30 | G23: 0.28 | H23: 0.27 | I23: 0.36 | J23: 0.35 | K23: 0.43 | L23: 0.55 | M23: 0.24 | N23: 0.24 | O23: 0.23 | P23: 0.25 | Q23: 0.30
B24: MICHOACÁN | C24: 0.10 | D24: 0.13 | E24: 0.12 | F24: 0.11 | G24: 0.05 | H24: 0.03 | I24: 0.02 | J24: 1.03 | K24: 0.09 | L24: 0.05 | M24: 0.02 | N24: 0.03 | O24: 0.01 | P24: 0.02 | Q24: 0.12
B25: MORELOS | C25: 0.17 | D25: 0.18 | E25: 0.07 | F25: 0.06 | G25: 0.14 | H25: 0.11 | I25: 0.23 | J25: 0.25 | K25: 0.25 | L25: 0.15 | M25: 0.10 | N25: 0.05 | O25: 0.11 | Q25: 0.14
B26: NAYARIT | C26: 0.28 | D26: 0.18 | E26: 0.44 | F26: 0.04 | G26: 0.11 | H26: 0.10 | I26: 0.12 | J26: 0.08 | K26: 0.03 | L26: 0.04 | M26: 0.05 | N26: 0.04 | O26: 0.04 | P26: 0.04 | Q26: 0.10
B27: NUEVO LEÓN | C27: 0.66 | D27: 0.78 | E27: 0.53 | F27: 0.58 | G27: 0.39 | H27: 0.33 | I27: 0.23 | J27: 0.23 | K27: 0.15 | L27: 0.17 | M27: 0.13 | N27: 0.08 | O27: 0.06 | P27: 0.03 | Q27: 0.25
B28: OAXACA | C28: 0 | D28: 0 | E28: 0.09 | F28: 0.03 | G28: 0.01 | H28: 0.03 | I28: 0.02 | J28: 0.29 | K28: 0.25 | L28: 0.80 | M28: 0.27 | N28: 0.27 | O28: 0.24 | P28: 0.22 | Q28: 0.21
B29: PUEBLA | C29: 0.01 | D29: 0.01 | E29: 0.01 | F29: 0.03 | G29: 0.07 | H29: 0.05 | I29: 0.09 | J29: 0.10 | K29: 0.07 | L29: 0.07 | M29: 0.13 | N29: 0.20 | O29: 0.12 | P29: 0.09 | Q29: 0.09
B30: QUERÉTARO | C30: 0.25 | D30: 0.08 | E30: 0.09 | F30: 0.09 | G30: 0.09 | H30: 0.09 | I30: 0.09 | J30: 0.08 | K30: 0.08 | L30: 0.06 | M30: 0.06 | N30: 0.06 | O30: 0.06 | P30: 0.05 | Q30: 0.07
B31: QUINTANA ROO | C31: 0.14 | D31: 0.11 | E31: 0.12 | F31: 0.11 | G31: 0.11 | H31: 0.10 | I31: 0.05 | J31: 0.09 | K31: 0.12 | L31: 0.13 | M31: 0.16 | N31: 0.14 | O31: 0.15 | P31: 0.14 | Q31: 0.12
B32: SAN LUIS POTOSÍ | C32: 0.04 | D32: 0.04 | E32: 0.04 | F32: 0.04 | G32: 0.04 | H32: 0.57 | I32: 0.05 | J32: 0.05 | K32: 0.57 | L32: 0.55 | M32: 0.05 | N32: 0.03 | O32: 0.03 | P32: 0.90 | Q32: 0.25
B33: SINALOA | C33: 0.30 | D33: 0 | E33: 0 | F33: 0.39 | G33: 0.47 | H33: 0.48 | I33: 0.44 | J33: 0.34 | K33: 0.37 | L33: 0.46 | M33: 0.40 | N33: 0.47 | O33: 0.46 | P33: 0.39 | Q33: 0.38
B34: SONORA | C34: 0.06 | D34: 0.01 | E34: 0.21 | F34: 0.24 | G34: 0.32 | H34: 0.01 | I34: 0.25 | J34: 0.07 | K34: 0.24 | L34: 0.15 | M34: 0.14 | N34: 0.16 | O34: 0.16 | P34: 0.21 | Q34: 0.16
B35: TABASCO | C35: 0.05 | D35: 0.05 | E35: 0.04 | F35: 0.05 | G35: 0.05 | H35: 0.05 | I35: 0.05 | J35: 0.06 | K35: 0.06 | L35: 0.17 | M35: 0.04 | N35: 0.03 | O35: 0.03 | P35: 0.02 | Q35: 0.05
B36: TAMAULIPAS | C36: 0 | D36: 0 | E36: 0 | F36: 0 | G36: 0 | H36: 0 | I36: 0.02 | J36: 0.02 | K36: 0.02 | L36: 0.04 | M36: 0.04 | N36: 0.03 | O36: 0.04 | P36: 0.03 | Q36: 0.02
B37: TLAXCALA | C37: 0.13 | D37: 0.12 | E37: 0.10 | F37: 0.10 | G37: 0.10 | H37: 0.09 | I37: 0.09 | J37: 0.08 | K37: 0.08 | L37: 0.08 | M37: 0.08 | N37: 0.08 | O37: 0.08 | P37: 0.07 | Q37: 0.09
B38: VERACRUZ | C38: 0.06 | D38: 0.05 | E38: 0.05 | F38: 0.05 | G38: 0.05 | H38: 0.06 | I38: 0.09 | J38: 0.13 | K38: 0.14 | L38: 0.09 | M38: 0.14 | N38: 0.17 | O38: 0.15 | P38: 0.14 | Q38: 0.11
B39: YUCATÁN | C39: 3.02 | D39: 0.10 | E39: 0.06 | F39: 0.05 | G39: 0.07 | H39: 0.01 | I39: 0.01 | J39: 0.05 | K39: 0.40 | L39: 0.37 | M39: 0.54 | N39: 0.17 | O39: 0.09 | P39: 1.30 | Q39: 0.39
B40: ZACATECAS | C40: 0.13 | D40: 0.07 | E40: 0.03 | F40: 0.30 | G40: 0.24 | H40: 0.19 | I40: 0.18 | J40: 0.29 | K40: 0.26 | L40: 0.28 | M40: 0.22 | N40: 0.39 | O40: 0.25 | P40: 0.12 | Q40: 0.22
B41: TOTAL | C41: 0.25 | D41: 0.20 | E41: 0.24 | F41: 0.21 | G41: 0.20 | H41: 0.20 | I41: 0.26 | J41: 0.32 | K41: 0.31 | L41: 0.33 | M41: 0.32 | N41: 0.28 | O41: 0.28 | P41: 0.28 | Q41: 0.27
B42: Fuente: Páginas Web de las 32 entidades federativas.- Presupuesto de Egresos Estatal 2009-2022.
B97: 1/ Datos preliminares.
B98: Fuente: Decretos de Presupuestos de Egresos de las 32 entidades federativas, 2009-2021.

Sheet A.9.1
B5: A.9.1 GASTO NACIONAL EN CIENCIA, TECNOLOGÍA E INNOVACIÓN, POR SECTOR DE FINANCIAMIENTO, 2013-2022
B6: Millones de pesos
B9: Año | C9: Público | D9: Privado | G9: IES | H9: Sector Externo | I9: Total CTI | J9: GNCTI/PIB
D10: Sector Empresarial | E10: IPnL | F10: Total Privado
B11: 2012 | C11: 63,933.5 | D11: 40,689.4 | E11: 3,073.6 | F11: =D11+E11 -> 43,763.0 | G11: 6,290.7 | H11: 266.3 | I11: 114,253.6 | J11: 114,253.56
B12: 2013 | C12: 68,886.0 | D12: 40,244.9 | E12: 3,225.0 | F12: =D12+E12 -> 43,470.0 | G12: 9,307.6 | H12: 304.4 | I12: 121,968.1 | J12: 0.72
B13: 2014 | C13: 83,956.0 | D13: 30,625.0 | E13: 3,539.7 | F13: 34,164.8 | G13: 3,039.7 | H13: 380.8 | I13: 121,541.3 | J13: 0.67
B14: 2015 | C14: 85,494.6 | D14: 32,897.0 | E14: 8,065.7 | F14: 40,962.7 | G14: 3,112.9 | H14: 501.0 | I14: 130,071.2 | J14: 0.68
B15: 2016 | C15: 84,520.0 | D15: 34,423.4 | E15: 12,572.0 | F15: 46,995.4 | G15: 3,471.9 | H15: 561.7 | I15: 135,549.0 | J15: 0.65
B16: 2017e/ | C16: 86,775.9 | D16: 34,293.1 | E16: 12,419.5 | F16: 46,712.6 | G16: 3,521.4 | H16: 613.4 | I16: 137,623.3 | J16: 0.61
B17: 2018e/ | C17: 88,893.9 | D17: 33,691.2 | E17: 12,211.5 | F17: 45,902.7 | G17: 3,569.8 | H17: 651.3 | I17: 139,017.7 | J17: 0.58
B18: 2019e/ | C18: 88,725.7 | D18: 33,895.6 | E18: 12,049.3 | F18: 45,944.9 | G18: 3,527.2 | H18: 755.9 | I18: 138,953.7 | J18: 0.55
B19: 2020e/ | C19: 98,147.6 | D19: 33,762.7 | E19: 11,878.0 | F19: 45,640.8 | G19: 3,228.7 | H19: 879.7 | I19: 147,896.7 | J19: 0.61
B20: 2021e/ | C20: 100,612.4 | D20: 34,551.0 | E20: 11,780.3 | F20: 46,331.3 | G20: 3,302.8 | H20: 1,011.4 | I20: 151,257.9 | J20: 0.57
B21: 2022e/ | C21: 106,863.9 | D21: 35,071.8 | E21: 11,688.2 | F21: =D21+E21 -> 46,760.1 | G21: 3,421.7 | H21: 1,137.0 | I21: 158,182.7 | J21: 0.54
B22: e/ Cifras estimadas.
B23: Notas:
B24: n1/ El Gasto en Innovación del sector privado no está considerado en el Gasto Nacional en Ciencia, Tecnología e Innovación, con el objetivo de evitar duplicidad con los datos reportados por las empresas para la realización de IDE, ya que ambos datos provienen de la ESIDET. El Gasto Público sólo incluye la inversión federal en innovación.
B25: n2/De acuerdo con los lineamientos metodológicos establecidos por la OCDE, en 2018 el indicador GIDE se recalculó para el periodo 2007–2018. Se considera como parte del gasto en IDE de gobierno sólo el pago de las becas nacionales otorgadas a estudiantes inscritos en los programas de doctorado registrados en el Padrón de Programas Nacionales de Posgrados de Calidad (PNPC) de Conacyt como un proxi del pago a estudiantes de posgrado por su participación en proyectos de IDE en sus respectivas instituciones de estudio. Asimismo, se contabiliza desde 2014 el pago a investigadores adscritos en el programa de Cátedras Conacyt. Además, se realizó una distribución proporcional del financiamiento del gobierno a la IDE, entre los sectores de ejecución gobierno e instituciones de educación superior. Debido a ello, las cifras del GIDE aquí presentadas consideran esta nueva forma de cálculo. En consecuencia, al ser el GIDE un componente del GNCTI se actualizó la información de este indicador para el mismo periodo. Por lo tanto, para 2019 y 2020 se utilizó la misma metodología.
B26: n3/ Se realizó una revisión de cifras registradas en la ESIDET 2012 y 2014.
B27: n4/ Se consideraron cifras registradas en la ESIDET 2017 con información complemetaria que capta el INEGI de ramas industriales de interés nacional, por lo tanto, se realizó un ajuste a los datos registrados en 2014, 2015 y 2016.
B28: Fuente: Datos calculados por el Conacyt con base en información proveniente de la Encuesta sobre Investigación y Desarrollo Tecnológico (ESIDET), 2012, 2014, 2017. INEGI-Conacyt.
B29: SHCP, Cuenta de la Hacienda Pública Federal (SHCP) 2014-2022.
B30: INEGI. Encuesta Nacional de Gastos de los Hogares (ENGASTO), 2012 y 2013.
B31: INEGI, Encuesta Nacional de Ingresos y Gastos de los Hogares, 2014, 2016 y 2018.

Sheet A.9.2
B5: A.9.2 GASTO NACIONAL EN CIENCIA, TECNOLOGÍA E INNOVACIÓN, POR SECTOR DE FINANCIAMIENTO, 2013-2022 Millones de pesos a precios de 2022
B8: Año | C8: Público | D8: Privado | G8: IES | H8: Sector Externo | I8: Total CTI
D9: Sector Empresarial | E9: IPnL | F9: Total Privado
B10: 2012 | C10: 63,933.5 | D10: 40,689.4 | E10: 3,073.6 | F10: =D10+E10 -> 43,763.0 | G10: 6,290.7 | H10: 266.3 | I10: 114,253.56
B11: 2013 | C11: 107,503.3 | D11: 62,806.2 | E11: 5,033.0 | F11: =D11+E11 -> 67,839.2 | G11: 14,525.5 | H11: 475.1 | I11: 190,343.06
B12: 2014 | C12: 125,551.1 | D12: 45,797.9 | E12: 5,293.5 | F12: =D12+E12 -> 51,091.3 | G12: 4,545.7 | H12: 569.5 | I12: 181,757.69
B13: 2015 | C13: 123,863.6 | D13: 47,660.8 | E13: 11,685.5 | F13: 59,346.3 | G13: 4,510.0 | H13: 725.8 | I13: 188,445.62
B14: 2016 | C14: 115,462.2 | D14: 47,025.7 | E14: 17,174.5 | F14: 64,200.2 | G14: 4,742.9 | H14: 767.4 | I14: 185,172.75
B15: 2017e/ | C15: 111,204.9 | D15: 43,947.3 | E15: 15,915.8 | F15: 59,863.0 | G15: 4,512.7 | H15: 786.1 | I15: 176,366.81
B16: 2018e/ | C16: 108,289.5 | D16: 41,042.2 | E16: 14,875.9 | F16: 55,918.2 | G16: 4,348.7 | H16: 793.4 | I16: 169,349.78
B17: 2019e/ | C17: 103,628.7 | D17: 39,589.0 | E17: 14,073.2 | F17: 53,662.2 | G17: 4,119.6 | H17: 882.9 | I17: 162,293.44
B18: 2020e/ | C18: 109,372.9 | D18: 37,624.2 | E18: 13,236.5 | F18: 50,860.8 | G18: 3,598.0 | H18: 980.3 | I18: 164,811.87
B19: 2021e/ | C19: 107,365.4 | D19: 36,870.1 | E19: 12,571.0 | F19: 49,441.0 | G19: 3,524.5 | H19: 1,079.3 | I19: 161,410.19
B20: 2022e/ | C20: 106,863.9 | D20: 35,071.8 | E20: 11,688.2 | F20: 46,760.1 | G20: 3,421.7 | H20: 1,137.0 | I20: 158,182.75
B21: e/ Cifras estimadas.
B22: Notas:
B23: n1/ El Gasto en Innovación del sector privado no está considerado en el Gasto Nacional en Ciencia, Tecnología e Innovación, con el objetivo de evitar duplicidad con los datos reportados por las empresas para la realización de IDE, ya que ambos datos provienen de la ESIDET. El Gasto Público sólo incluye la inversión federal en innovación.
B24: n2/De acuerdo con los lineamientos metodológicos establecidos por la OCDE, en 2018 el indicador GIDE se recalculó para el periodo 2007–2018. Se considera como parte del gasto en IDE de gobierno sólo el pago de las becas nacionales otorgadas a estudiantes inscritos en los programas de doctorado registrados en el Padrón de Programas Nacionales de Posgrados de Calidad (PNPC) de Conacyt como un proxi del pago a estudiantes de posgrado por su participación en proyectos de IDE en sus respectivas instituciones de estudio. Asimismo, se contabiliza desde 2014 el pago a investigadores adscritos en el programa de Cátedras Conacyt. Además, se realizó una distribución proporcional del financiamiento del gobierno a la IDE, entre los sectores de ejecución gobierno e instituciones de educación superior. Debido a ello, las cifras del GIDE aquí presentadas consideran esta nueva forma de cálculo. En consecuencia, al ser el GIDE un componente del GNCTI se actualizó la información de este indicador para el mismo periodo. Por lo tanto, para 2019 y 2020 se utilizó la misma metodología.
B25: n3/ Se realizó una revisión de cifras registradas en la ESIDET 2012 y 2014.
B26: n4/ Se consideraron cifras registradas en la ESIDET 2017 con información complemetaria que capta el INEGI de ramas industriales de interés nacional, por lo tanto, se realizó un ajuste a los datos registrados en 2014, 2015 y 2016.
B27: Fuente: Datos calculados por el Conacyt con base en información proveniente de la Encuesta sobre Investigación y Desarrollo Tecnológico (ESIDET), 2012, 2014, 2017. INEGI-Conacyt.
B28: SHCP, Cuenta de la Hacienda Pública Federal (SHCP) 2011-2020.
B29: INEGI. Encuesta Nacional de Gastos de los Hogares (ENGASTO), 2012 y 2013.
B30: INEGI, Encuesta Nacional de Ingresos y Gastos de los Hogares, 2014, 2016 y 2018.

Sheet A.9.3
B5: A.9.3 GASTO NACIONAL EN CIENCIA, TECNOLOGÍA E INNOVACIÓN, POR TIPO DE ACTIVIDAD, 2013-2022
B6: Millones de pesos
B8: Año | C8: IDE | D8: GEECyT | E8: GSCyT | F8: GI | G8: GNCTI | H8: GNCTI/PIB
B9: 2013 | C9: 69,182.6 | D9: 31,996.6 | E9: 19,922.6 | F9: 866.2 | G9: 121,968.1 | H9: 0.72
B10: 2014 | C10: 76,109.3 | D10: 25,508.3 | E10: 15,767.5 | F10: 4,156.1 | G10: 121,541.3 | H10: 0.67
B11: 2015 | C11: 79,753.7 | D11: 28,862.8 | E11: 17,409.6 | F11: 4,045.0 | G11: 130,071.2 | H11: 0.68
B12: 2016 | C12: 78,055.7 | D12: 35,928.0 | E12: 19,592.1 | F12: 1,973.3 | G12: 135,549.0 | H12: 0.65
B13: 2017e/ | C13: 72,013.5 | D13: 43,787.2 | E13: 19,165.8 | F13: 2,656.8 | G13: 137,623.3 | H13: 0.61
B14: 2018e/ | C14: 72,085.7 | D14: 44,690.7 | E14: 19,688.2 | F14: 2,553.1 | G14: 139,017.7 | H14: 0.58
B15: 2019e/ | C15: 69,410.1 | D15: 49,038.4 | E15: 20,124.0 | F15: 381.2 | G15: 138,953.7 | H15: 0.55
B16: 2020e/ | C16: 70,297.3 | D16: 53,280.4 | E16: 24,319.0 | F16: 0.0 | G16: 147,896.7 | H16: 0.61
B17: 2021e/ | C17: 72,877.5 | D17: 55,559.6 | E17: 22,820.8 | F17: 0.0 | G17: 151,257.9 | H17: 0.57
B18: 2022e/ | C18: 76,440.5 | D18: 57,366.3 | E18: 24,375.9 | F18: 0.0 | G18: 158,182.7 | H18: 0.54
B19: e/ Cifras estimadas
B20: Fuente: Datos calculados con base en información proveniente de la Encuesta sobre Investigación y Desarrollo Tecnológico (ESIDET) 2008, 2010, 2012, 2014, 2017; INEGI-Conacyt.
B21: SHCP, Cuenta de la Hacienda Pública Federal, 2014-2022.
B22: INEGI. Encuesta Nacional de Gastos de los Hogares (ENGASTO), 2012 y 2013.
B23: INEGI. Encuesta Nacional de Ingresos y Gastos de los Hogares (ENIGH), 2014, 2016 y 2018. Hasta la fecha de publicación de este informe, no ha sido publicada la ENIGH 2020.
B24: Notas:
B25: n1/ El Gasto en Innovación del sector privado no está considerado en el Gasto Nacional en Ciencia, Tecnología e Innovación, con el objetivo de evitar duplicidad con los datos reportados por las empresas para la realización de IDE, ya que ambos datos provienen de la ESIDET. El Gasto Público sólo incluye la inversión federal en innovación.
B26: n2/De acuerdo con los lineamientos metodológicos establecidos por la OCDE, en 2018 el indicador GIDE se recalculó para el periodo 2007–2018. Se considera como parte del gasto en IDE de gobierno sólo el pago de las becas nacionales otorgadas a estudiantes inscritos en los programas de doctorado registrados en el Padrón de Programas Nacionales de Posgrados de Calidad (PNPC) de Conacyt como un proxi del pago a estudiantes de posgrado por su participación en proyectos de IDE en sus respectivas instituciones de estudio. Asimismo, se contabiliza desde 2014 el pago a investigadores adscritos en el programa de Cátedras Conacyt. Además, se realizó una distribución proporcional del financiamiento del gobierno a la IDE, entre los sectores de ejecución gobierno e instituciones de educación superior. Debido a ello, las cifras del GIDE aquí presentadas consideran esta nueva forma de cálculo. En consecuencia, al ser el GIDE un componente del GNCTI se actualizó la información de este indicador para el mismo periodo. Por lo tanto, para 2019 y 2020 se utilizó la misma metodología.
B27: n3/ Se realizó una revisión de cifras registradas en la ESIDET 2012 y 2014.
B28: n4/ Se consideraron cifras registradas en la ESIDET 2017 con información complemetaria que capta el INEGI de ramas industriales de interés nacional, por lo tanto, se realizó un ajuste a los datos registrados en 2014, 2015 y 2016.

Sheet A.9.4
B5: A.9.4 GASTO NACIONAL EN CIENCIA, TECNOLOGÍA E INNOVACIÓN, POR TIPO DE ACTIVIDAD, 2013-2022
B6: Millones de pesos a precios de 2022
B8: Año | C8: IDE | D8: GEECyT | E8: GSCyT | F8: GI | G8: GNCTI
B9: 2013 | C9: 107,966.2 | D9: 49,933.8 | E9: 31,091.2 | F9: 1,351.8 | G9: 0.72
B10: 2014 | C10: 113,816.9 | D10: 38,146.2 | E10: 23,579.4 | F10: 6,215.1 | G10: 0.67
B11: 2015 | C11: 115,546.2 | D11: 41,816.2 | E11: 25,222.9 | F11: 5,860.4 | G11: 0.68
B12: 2016 | C12: 106,631.4 | D12: 49,081.1 | E12: 26,764.6 | F12: 2,695.7 | G12: 0.65
B13: 2017e/ | C13: 92,286.7 | D13: 56,114.1 | E13: 24,561.3 | F13: 3,404.7 | G13: 0.61
B14: 2018e/ | C14: 87,814.0 | D14: 54,441.7 | E14: 23,983.9 | F14: 3,110.2 | G14: 0.58
B15: 2019e/ | C15: 81,068.8 | D15: 57,275.3 | E15: 23,504.2 | F15: 445.2 | G15: 0.55
B16: 2020e/ | C16: 78,337.3 | D16: 59,374.1 | E16: 27,100.4 | F16: 0.0 | G16: 0.61
B17: 2021e/ | C17: 77,769.0 | D17: 59,288.7 | E17: 24,352.5 | F17: 0.0 | G17: 0.57
B18: 2022e/ | C18: 76,440.5 | D18: 57,366.3 | E18: 24,375.9 | F18: 0.0 | G18: 0.54
B19: e/ Cifras estimadas
B20: Fuente: Datos calculados con base en información proveniente de la Encuesta sobre Investigación y Desarrollo Tecnológico (ESIDET) 2008, 2010, 2012, 2014, 2017; INEGI-Conacyt.
B21: SHCP, Cuenta de la Hacienda Pública Federal, 2014-2022.
B22: INEGI. Encuesta Nacional de Gastos de los Hogares (ENGASTO), 2012 y 2013.
B23: INEGI. Encuesta Nacional de Ingresos y Gastos de los Hogares (ENIGH), 2014, 2016 y 2018. Hasta la fecha de publicación de este informe, no ha sido publicada la ENIGH 2020.
B24: Notas:
B25: n1/ El Gasto en Innovación del sector privado no está considerado en el Gasto Nacional en Ciencia, Tecnología e Innovación, con el objetivo de evitar duplicidad con los datos reportados por las empresas para la realización de IDE, ya que ambos datos provienen de la ESIDET. El Gasto Público sólo incluye la inversión federal en innovación.
B26: n2/De acuerdo con los lineamientos metodológicos establecidos por la OCDE, en 2018 el indicador GIDE se recalculó para el periodo 2007–2018. Se considera como parte del gasto en IDE de gobierno sólo el pago de las becas nacionales otorgadas a estudiantes inscritos en los programas de doctorado registrados en el Padrón de Programas Nacionales de Posgrados de Calidad (PNPC) de Conacyt como un proxi del pago a estudiantes de posgrado por su participación en proyectos de IDE en sus respectivas instituciones de estudio. Asimismo, se contabiliza desde 2014 el pago a investigadores adscritos en el programa de Cátedras Conacyt. Además, se realizó una distribución proporcional del financiamiento del gobierno a la IDE, entre los sectores de ejecución gobierno e instituciones de educación superior. Debido a ello, las cifras del GIDE aquí presentadas consideran esta nueva forma de cálculo. En consecuencia, al ser el GIDE un componente del GNCTI se actualizó la información de este indicador para el mismo periodo. Por lo tanto, para 2019 y 2020 se utilizó la misma metodología.
B27: n3/ Se realizó una revisión de cifras registradas en la ESIDET 2012 y 2014.
B28: n4/ Se consideraron cifras registradas en la ESIDET 2017 con información complemetaria que capta el INEGI de ramas industriales de interés nacional, por lo tanto, se realizó un ajuste a los datos registrados en 2014, 2015 y 2016.
